Workbook

Sheet Table of Contents
C1: Go to Charts by Pressing Shift and Enter on Menu Item
C3: Sheet Tab | D3: Description | E3: Author
B4: 1 | C4: Table of Contents
B5: 2 | C5: Solar and Battery Payback
B6: 3 | C6: Battery Sensitivity
B7: 4 | C7: Tornado
B8: 5 | C8: Nigeria Backup
B9: 6 | C9: PF Model
B10: 7 | C10: Distribution Financials
B11: 8 | C11: LCOE Graph
B12: 9 | C12: LCOE
B13: 10 | C13: Scenario Output
B14: 11 | C14: Waterfall Chart1
B15: 12 | C15: Example of PV Syst
B16: 13 | C16: Debt Sizing Analysis
B17: 14 | C17: Debt Repayment Analysis
B18: 15 | C18: Scenarios
B19: 16 | C19: Repayment Patterns
B20: 17 | C20: Debt and Int Chart
B21: 18 | C21: Waterfall Chartdata1

Sheet Solar and Battery Payback
A1: Table of Contents | B1: Solar and Battery Payback
I2: 1 | J2: 2 | K2: 3 | L2: 4 | M2: 5 | N2: 6 | O2: 7 | P2: 8 | Q2: 9 | R2: 10 | S2: 11 | T2: 12 | U2: 13 | V2: 14 | W2: 15 | X2: 16 | Y2: 17 | Z2: 18 | AA2: 19 | AB2: 20 | AC2: 21 | AD2: 22 | AE2: 23 | AF2: 24 | AG2: 25 | AH2: 26 | AI2: 27 | AJ2: 28 | AK2: 29 | AL2: 30
A3: Analysis with No Battery
B4: Savings From Reduced Consumption | E4: Diesel Cost | F4: Ht Rate | G4: Increase
C5: Cost of Diesel/MWh | D5: USD/MWH | E5: ='Battery Sensitivity'!G28 -> 0.65 | F5: 255 | G5: 0.02 | H5: =E5*F5 -> 165.75 | I5: =H5*(1+$G$5) -> 169.065 | J5: 172.4463 | K5: 175.895226 | L5: 179.4131305 | M5: 183.0013931 | N5: 186.661421 | O5: 190.3946494 | P5: 194.2025424 | Q5: 198.0865932 | R5: 202.0483251 | S5: 206.0892916 | T5: 210.2110774 | U5: 214.415299 | V5: 218.703605 | W5: 223.0776771 | X5: 227.5392306 | Y5: 232.0900152 | Z5: 236.7318155 | AA5: 241.4664518 | AB5: 246.2957809 | AC5: 251.2216965 | AD5: 256.2461304 | AE5: 261.371053 | AF5: 266.5984741 | AG5: 271.9304436 | AH5: 277.3690525 | AI5: 282.9164335 | AJ5: 288.5747622 | AK5: 294.3462574 | AL5: 300.2331826
C6: Cost of Grid Power/MWH | D6: USD/MWH | E6: Increase | F6: ='Battery Sensitivity'!H28 -> 0.5 | G6: 29 | H6: ='Nigeria Backup'!E26 -> 81.69014085 | I6: =H6 -> 81.69014085 | J6: =I6*(1+F6) -> 122.5352113 | K6: =J6 -> 122.5352113 | L6: =K6 -> 122.5352113 | M6: 122.5352113 | N6: 122.5352113 | O6: 122.5352113 | P6: 122.5352113 | Q6: 122.5352113 | R6: 122.5352113 | S6: 122.5352113 | T6: 122.5352113 | U6: 122.5352113 | V6: 122.5352113 | W6: 122.5352113 | X6: 122.5352113 | Y6: 122.5352113 | Z6: 122.5352113 | AA6: 122.5352113 | AB6: 122.5352113 | AC6: 122.5352113 | AD6: 122.5352113 | AE6: 122.5352113 | AF6: 122.5352113 | AG6: 122.5352113 | AH6: 122.5352113 | AI6: 122.5352113 | AJ6: 122.5352113 | AK6: 122.5352113 | AL6: 122.5352113
C8: Capacity | D8: kW | H8: ='Nigeria Backup'!H15 -> 6 | I8: =$H$8 -> 6 | J8: =$H$8 -> 6 | K8: 6 | L8: 6 | M8: 6 | N8: 6 | O8: 6 | P8: 6 | Q8: 6 | R8: 6 | S8: 6 | T8: 6 | U8: 6 | V8: 6 | W8: 6 | X8: 6 | Y8: 6 | Z8: 6 | AA8: 6 | AB8: 6 | AC8: 6 | AD8: 6 | AE8: 6 | AF8: 6 | AG8: 6 | AH8: 6 | AI8: 6 | AJ8: 6 | AK8: 6 | AL8: 6
C9: Capacity Factor | D9: % | F9: 1377 | G9: 8760 | H9: ='Battery Sensitivity'!I28 -> 0.1572 | I9: =$H$9 -> 0.1572 | J9: =$H$9 -> 0.1572 | K9: 0.1572 | L9: 0.1572 | M9: 0.1572 | N9: 0.1572 | O9: 0.1572 | P9: 0.1572 | Q9: 0.1572 | R9: 0.1572 | S9: 0.1572 | T9: 0.1572 | U9: 0.1572 | V9: 0.1572 | W9: 0.1572 | X9: 0.1572 | Y9: 0.1572 | Z9: 0.1572 | AA9: 0.1572 | AB9: 0.1572 | AC9: 0.1572 | AD9: 0.1572 | AE9: 0.1572 | AF9: 0.1572 | AG9: 0.1572 | AH9: 0.1572 | AI9: 0.1572 | AJ9: 0.1572 | AK9: 0.1572 | AL9: 0.1572
C10: Gen-KWh Produced by Solar | D10: kWh | I10: =I8*I9*8760 -> 8262.432 | J10: =J8*J9*8760 -> 8262.432 | K10: 8262.432 | L10: 8262.432 | M10: 8262.432 | N10: 8262.432 | O10: 8262.432 | P10: 8262.432 | Q10: 8262.432 | R10: 8262.432 | S10: 8262.432 | T10: 8262.432 | U10: 8262.432 | V10: 8262.432 | W10: 8262.432 | X10: 8262.432 | Y10: 8262.432 | Z10: 8262.432 | AA10: 8262.432 | AB10: 8262.432 | AC10: 8262.432 | AD10: 8262.432 | AE10: 8262.432 | AF10: 8262.432 | AG10: 8262.432 | AH10: 8262.432 | AI10: 8262.432 | AJ10: 8262.432 | AK10: 8262.432 | AL10: 8262.432
C11: Solar Not Used | D11: % | H11: ='Battery Sensitivity'!J28 -> 0.3 | I11: =$H$11 -> 0.3 | J11: =$H$11 -> 0.3 | K11: 0.3 | L11: 0.3 | M11: 0.3 | N11: 0.3 | O11: 0.3 | P11: 0.3 | Q11: 0.3 | R11: 0.3 | S11: 0.3 | T11: 0.3 | U11: 0.3 | V11: 0.3 | W11: 0.3 | X11: 0.3 | Y11: 0.3 | Z11: 0.3 | AA11: 0.3 | AB11: 0.3 | AC11: 0.3 | AD11: 0.3 | AE11: 0.3 | AF11: 0.3 | AG11: 0.3 | AH11: 0.3 | AI11: 0.3 | AJ11: 0.3 | AK11: 0.3 | AL11: 0.3
C12: Gen-KWh Produced by Solar | D12: kWh | I12: =I10*(1-I11) -> 5783.7024 | J12: =J10*(1-J11) -> 5783.7024 | K12: 5783.7024 | L12: 5783.7024 | M12: 5783.7024 | N12: 5783.7024 | O12: 5783.7024 | P12: 5783.7024 | Q12: 5783.7024 | R12: 5783.7024 | S12: 5783.7024 | T12: 5783.7024 | U12: 5783.7024 | V12: 5783.7024 | W12: 5783.7024 | X12: 5783.7024 | Y12: 5783.7024 | Z12: 5783.7024 | AA12: 5783.7024 | AB12: 5783.7024 | AC12: 5783.7024 | AD12: 5783.7024 | AE12: 5783.7024 | AF12: 5783.7024 | AG12: 5783.7024 | AH12: 5783.7024 | AI12: 5783.7024 | AJ12: 5783.7024 | AK12: 5783.7024 | AL12: 5783.7024
C14: From Not Running Gen Set | D14: Percent | H14: ='Battery Sensitivity'!K28 -> 0.8 | I14: =I12*$H$14 -> 4626.96192 | J14: =J12*$H$14 -> 4626.96192 | K14: 4626.96192 | L14: 4626.96192 | M14: 4626.96192 | N14: 4626.96192 | O14: 4626.96192 | P14: 4626.96192 | Q14: 4626.96192 | R14: 4626.96192 | S14: 4626.96192 | T14: 4626.96192 | U14: 4626.96192 | V14: 4626.96192 | W14: 4626.96192 | X14: 4626.96192 | Y14: 4626.96192 | Z14: 4626.96192 | AA14: 4626.96192 | AB14: 4626.96192 | AC14: 4626.96192 | AD14: 4626.96192 | AE14: 4626.96192 | AF14: 4626.96192 | AG14: 4626.96192 | AH14: 4626.96192 | AI14: 4626.96192 | AJ14: 4626.96192 | AK14: 4626.96192 | AL14: 4626.96192
C15: From Not Buying Grid Power | D15: Percent | H15: =1-H14 -> 0.2 | I15: =I12*$H$15 -> 1156.74048 | J15: =J12*$H$15 -> 1156.74048 | K15: 1156.74048 | L15: 1156.74048 | M15: 1156.74048 | N15: 1156.74048 | O15: 1156.74048 | P15: 1156.74048 | Q15: 1156.74048 | R15: 1156.74048 | S15: 1156.74048 | T15: 1156.74048 | U15: 1156.74048 | V15: 1156.74048 | W15: 1156.74048 | X15: 1156.74048 | Y15: 1156.74048 | Z15: 1156.74048 | AA15: 1156.74048 | AB15: 1156.74048 | AC15: 1156.74048 | AD15: 1156.74048 | AE15: 1156.74048 | AF15: 1156.74048 | AG15: 1156.74048 | AH15: 1156.74048 | AI15: 1156.74048 | AJ15: 1156.74048 | AK15: 1156.74048 | AL15: 1156.74048
C17: Total Savings | H17: =-H19 -> -6000 | I17: =(I14*I5+I6*I15)/1000 -> 876.7516097 | J17: =(J14*J5+J6*J15)/1000 -> 939.6439024 | K17: 955.6019517 | L17: 971.879162 | M17: 988.4819164 | N17: 1005.416726 | O17: 1022.690232 | P17: 1040.309208 | Q17: 1058.280563 | R17: 1076.611345 | S17: 1095.308744 | T17: 1114.38009 | U17: 1133.832863 | V17: 1153.674691 | W17: 1173.913356 | X17: 1194.556794 | Y17: 1215.613102 | Z17: 1237.090535 | AA17: 1258.997517 | AB17: 1281.342638 | AC17: 1304.134662 | AD17: 1327.382527 | AE17: 1351.095349 | AF17: 1375.282427 | AG17: 1399.953246 | AH17: 1425.117483 | AI17: 1450.785003 | AJ17: 1476.965875 | AK17: 1503.670363 | AL17: 1530.908942
H18: =H17+C18 -> -6000 | I18: =I17+H18 -> -5123.24839 | J18: =J17+I18 -> -4183.604488 | K18: -3228.002536 | L18: -2256.123374 | M18: -1267.641458 | N18: -262.2247318 | O18: 760.4654999 | P18: 1800.774707 | Q18: 2859.05527 | R18: 3935.666616 | S18: 5030.975359 | T18: 6145.355449 | U18: 7279.188312 | V18: 8432.863003 | W18: 9606.776359 | X18: 10801.33315 | Y18: 12016.94625 | Z18: 13254.03679 | AA18: 14513.03431 | AB18: 15794.37694 | AC18: 17098.51161 | AD18: 18425.89413 | AE18: 19776.98948 | AF18: 21152.27191 | AG18: 22552.22516 | AH18: 23977.34264 | AI18: 25428.12764 | AJ18: 26905.09352 | AK18: 28408.76388 | AL18: 29939.67282
C19: Cost | E19: USD/kW | G19: ='Battery Sensitivity'!E28 -> 1000 | H19: =G19*H8 -> 6000
C21: CashFlow | H21: =-H19 -> -6000 | I21: =I17-I19 -> 876.7516097 | J21: 939.6439024 | K21: 955.6019517 | L21: 971.879162 | M21: 988.4819164 | N21: 1005.416726 | O21: 1022.690232 | P21: 1040.309208 | Q21: 1058.280563 | R21: 1076.611345 | S21: 1095.308744 | T21: 1114.38009 | U21: 1133.832863 | V21: 1153.674691 | W21: 1173.913356 | X21: 1194.556794 | Y21: 1215.613102 | Z21: 1237.090535 | AA21: 1258.997517 | AB21: 1281.342638 | AC21: 1304.134662 | AD21: 1327.382527 | AE21: 1351.095349 | AF21: 1375.282427 | AG21: 1399.953246 | AH21: 1425.117483 | AI21: 1450.785003 | AJ21: 1476.965875 | AK21: 1503.670363 | AL21: 1530.908942
C22: IRR | H22: =IRR(21:21) -> 0.1677346105
C24: PayBack Period | H24: =payback(H21:AL21) -> 6.256406784 | I24: Years
C25: Match | H25: =MATCH(0,H18:AL18) -> 7
A27: Analysis with Battery
B28: Battery Storage | D28: Hrs | H28: 4
B29: Battery Capacity | D29: kW | H29: 6
B30: Storage Capacity | D30: kWh | H30: =H28*H29 -> 24
B31: Battery Cost/kWh | D31: USD/kWh | H31: =2600/24 -> 108.3333333
B32: Battery Cost | D32: USD | H32: =H31*H30 -> 2600
B33: Battery Efficiency | D33: % | H33: ='Battery Sensitivity'!L28 -> 0.8
B34: Battery Life | D34: Years/Charges | H34: 6
B36: Cost Parameters
C37: Cost of Diesel/MWh | D37: USD/MWH | H37: =H5 -> 165.75 | I37: =I5 -> 169.065 | J37: =J5 -> 172.4463 | K37: 175.895226 | L37: 179.4131305 | M37: 183.0013931 | N37: 186.661421 | O37: 190.3946494 | P37: 194.2025424 | Q37: 198.0865932 | R37: 202.0483251 | S37: 206.0892916 | T37: 210.2110774 | U37: 214.415299 | V37: 218.703605 | W37: 223.0776771 | X37: 227.5392306 | Y37: 232.0900152 | Z37: 236.7318155 | AA37: 241.4664518 | AB37: 246.2957809 | AC37: 251.2216965 | AD37: 256.2461304 | AE37: 261.371053 | AF37: 266.5984741 | AG37: 271.9304436 | AH37: 277.3690525 | AI37: 282.9164335 | AJ37: 288.5747622 | AK37: 294.3462574 | AL37: 300.2331826
C38: Cost of Grid Power/MWH | D38: USD/MWH | H38: =H6 -> 81.69014085 | I38: =I6 -> 81.69014085 | J38: =J6 -> 122.5352113 | K38: 122.5352113 | L38: 122.5352113 | M38: 122.5352113 | N38: 122.5352113 | O38: 122.5352113 | P38: 122.5352113 | Q38: 122.5352113 | R38: 122.5352113 | S38: 122.5352113 | T38: 122.5352113 | U38: 122.5352113 | V38: 122.5352113 | W38: 122.5352113 | X38: 122.5352113 | Y38: 122.5352113 | Z38: 122.5352113 | AA38: 122.5352113 | AB38: 122.5352113 | AC38: 122.5352113 | AD38: 122.5352113 | AE38: 122.5352113 | AF38: 122.5352113 | AG38: 122.5352113 | AH38: 122.5352113 | AI38: 122.5352113 | AJ38: 122.5352113 | AK38: 122.5352113 | AL38: 122.5352113
C39: Cost of Buying Genset | D39: USD/kW | H39: ='Nigeria Backup'!L10 -> 352.9411765 | I39: =H39*1.02 -> 360 | J39: =I39*1.02 -> 367.2 | K39: 374.544 | L39: 382.03488 | M39: 389.6755776 | N39: 397.4690892 | O39: 405.4184709 | P39: 413.5268404 | Q39: 421.7973772 | R39: 430.2333247 | S39: 438.8379912 | T39: 447.614751 | U39: 456.567046 | V39: 465.698387 | W39: 475.0123547 | X39: 484.5126018 | Y39: 494.2028538 | Z39: 504.0869109 | AA39: 514.1686491 | AB39: 524.4520221 | AC39: 534.9410626 | AD39: 545.6398838 | AE39: 556.5526815 | AF39: 567.6837351 | AG39: 579.0374098 | AH39: 590.618158 | AI39: 602.4305212 | AJ39: 614.4791316 | AK39: 626.7687142 | AL39: 639.3040885
B41: Solar Production
C42: Capacity | D42: kW | H42: =H8 -> 6 | I42: =$H$42 -> 6 | J42: =$H$42 -> 6 | K42: 6 | L42: 6 | M42: 6 | N42: 6 | O42: 6 | P42: 6 | Q42: 6 | R42: 6 | S42: 6 | T42: 6 | U42: 6 | V42: 6 | W42: 6 | X42: 6 | Y42: 6 | Z42: 6 | AA42: 6 | AB42: 6 | AC42: 6 | AD42: 6 | AE42: 6 | AF42: 6 | AG42: 6 | AH42: 6 | AI42: 6 | AJ42: 6 | AK42: 6 | AL42: 6
C43: Capacity Factor | D43: % | H43: =H9 -> 0.1572 | I43: =$H$43 -> 0.1572 | J43: =$H$43 -> 0.1572 | K43: 0.1572 | L43: 0.1572 | M43: 0.1572 | N43: 0.1572 | O43: 0.1572 | P43: 0.1572 | Q43: 0.1572 | R43: 0.1572 | S43: 0.1572 | T43: 0.1572 | U43: 0.1572 | V43: 0.1572 | W43: 0.1572 | X43: 0.1572 | Y43: 0.1572 | Z43: 0.1572 | AA43: 0.1572 | AB43: 0.1572 | AC43: 0.1572 | AD43: 0.1572 | AE43: 0.1572 | AF43: 0.1572 | AG43: 0.1572 | AH43: 0.1572 | AI43: 0.1572 | AJ43: 0.1572 | AK43: 0.1572 | AL43: 0.1572
C44: Production | D44: kWh | I44: =I42*I43*8760 -> 8262.432 | J44: =J42*J43*8760 -> 8262.432 | K44: 8262.432 | L44: 8262.432 | M44: 8262.432 | N44: 8262.432 | O44: 8262.432 | P44: 8262.432 | Q44: 8262.432 | R44: 8262.432 | S44: 8262.432 | T44: 8262.432 | U44: 8262.432 | V44: 8262.432 | W44: 8262.432 | X44: 8262.432 | Y44: 8262.432 | Z44: 8262.432 | AA44: 8262.432 | AB44: 8262.432 | AC44: 8262.432 | AD44: 8262.432 | AE44: 8262.432 | AF44: 8262.432 | AG44: 8262.432 | AH44: 8262.432 | AI44: 8262.432 | AJ44: 8262.432 | AK44: 8262.432 | AL44: 8262.432
C45: Losses from Battery | D45: % | H45: =1-H33 -> 0.2 | I45: =I44*$H$45 -> 1652.4864 | J45: =J44*$H$45 -> 1652.4864 | K45: 1652.4864 | L45: 1652.4864 | M45: 1652.4864 | N45: 1652.4864 | O45: 1652.4864 | P45: 1652.4864 | Q45: 1652.4864 | R45: 1652.4864 | S45: 1652.4864 | T45: 1652.4864 | U45: 1652.4864 | V45: 1652.4864 | W45: 1652.4864 | X45: 1652.4864 | Y45: 1652.4864 | Z45: 1652.4864 | AA45: 1652.4864 | AB45: 1652.4864 | AC45: 1652.4864 | AD45: 1652.4864 | AE45: 1652.4864 | AF45: 1652.4864 | AG45: 1652.4864 | AH45: 1652.4864 | AI45: 1652.4864 | AJ45: 1652.4864 | AK45: 1652.4864 | AL45: 1652.4864
C46: Net Production | D46: kWh | I46: =I44-I45 -> 6609.9456 | J46: =J44-J45 -> 6609.9456 | K46: 6609.9456 | L46: 6609.9456 | M46: 6609.9456 | N46: 6609.9456 | O46: 6609.9456 | P46: 6609.9456 | Q46: 6609.9456 | R46: 6609.9456 | S46: 6609.9456 | T46: 6609.9456 | U46: 6609.9456 | V46: 6609.9456 | W46: 6609.9456 | X46: 6609.9456 | Y46: 6609.9456 | Z46: 6609.9456 | AA46: 6609.9456 | AB46: 6609.9456 | AC46: 6609.9456 | AD46: 6609.9456 | AE46: 6609.9456 | AF46: 6609.9456 | AG46: 6609.9456 | AH46: 6609.9456 | AI46: 6609.9456 | AJ46: 6609.9456 | AK46: 6609.9456 | AL46: 6609.9456
C48: From Not Running Gen Set | D48: Percent | H48: 0.9 | I48: =$H$48 -> 0.9 | J48: =$H$48 -> 0.9 | K48: 0.9 | L48: 0.9 | M48: 0.9 | N48: 0.9 | O48: 0.9 | P48: 0.9 | Q48: 0.9 | R48: 0.9 | S48: 0.9 | T48: 0.9 | U48: 0.9 | V48: 0.9 | W48: 0.9 | X48: 0.9 | Y48: 0.9 | Z48: 0.9 | AA48: 0.9 | AB48: 0.9 | AC48: 0.9 | AD48: 0.9 | AE48: 0.9 | AF48: 0.9 | AG48: 0.9 | AH48: 0.9 | AI48: 0.9 | AJ48: 0.9 | AK48: 0.9 | AL48: 0.9
C49: From Not Buying Grid Power | D49: Percent | H49: =1-H48 -> 0.1 | I49: =$H$49 -> 0.1 | J49: =$H$49 -> 0.1 | K49: 0.1 | L49: 0.1 | M49: 0.1 | N49: 0.1 | O49: 0.1 | P49: 0.1 | Q49: 0.1 | R49: 0.1 | S49: 0.1 | T49: 0.1 | U49: 0.1 | V49: 0.1 | W49: 0.1 | X49: 0.1 | Y49: 0.1 | Z49: 0.1 | AA49: 0.1 | AB49: 0.1 | AC49: 0.1 | AD49: 0.1 | AE49: 0.1 | AF49: 0.1 | AG49: 0.1 | AH49: 0.1 | AI49: 0.1 | AJ49: 0.1 | AK49: 0.1 | AL49: 0.1
C51: Total Energy Savings | I51: =(I48*I37+I49*I38)*I46/1000 -> 1059.756146 | J51: =(J48*J37+J49*J38)*J46/1000 -> 1106.869704 | K51: 1127.387196 | L51: 1148.315037 | M51: 1169.661436 | N51: 1191.434763 | O51: 1213.643556 | P51: 1236.296525 | Q51: 1259.402553 | R51: 1282.970702 | S51: 1307.010214 | T51: 1331.530516 | U51: 1356.541224 | V51: 1382.052146 | W51: 1408.073287 | X51: 1434.614851 | Y51: 1461.687246 | Z51: 1489.301088 | AA51: 1517.467208 | AB51: 1546.19665 | AC51: 1575.500681 | AD51: 1605.390792 | AE51: 1635.878706 | AF51: 1666.976378 | AG51: 1698.696003 | AH51: 1731.050021 | AI51: 1764.051119 | AJ51: 1797.71224 | AK51: 1832.046582 | AL51: 1867.067612
C52: Savings from Not Buying Genset | I52: =I42*I39 -> 2160
C53: Total Savings | I53: =I52+I51 -> 3219.756146 | J53: =J52+J51 -> 1106.869704 | K53: 1127.387196 | L53: 1148.315037 | M53: 1169.661436 | N53: 1191.434763 | O53: 1213.643556 | P53: 1236.296525 | Q53: 1259.402553 | R53: 1282.970702 | S53: 1307.010214 | T53: 1331.530516 | U53: 1356.541224 | V53: 1382.052146 | W53: 1408.073287 | X53: 1434.614851 | Y53: 1461.687246 | Z53: 1489.301088 | AA53: 1517.467208 | AB53: 1546.19665 | AC53: 1575.500681 | AD53: 1605.390792 | AE53: 1635.878706 | AF53: 1666.976378 | AG53: 1698.696003 | AH53: 1731.050021 | AI53: 1764.051119 | AJ53: 1797.71224 | AK53: 1832.046582 | AL53: 1867.067612
H55: =H34 -> 6 | I55: =MOD(I2,$H$55)=0 -> FALSE | J55: =MOD(J2,$H$55)=0 -> FALSE | K55: FALSE | L55: FALSE | M55: FALSE | N55: TRUE | O55: FALSE | P55: FALSE | Q55: FALSE | R55: FALSE | S55: FALSE | T55: TRUE | U55: FALSE | V55: FALSE | W55: FALSE | X55: FALSE | Y55: FALSE | Z55: TRUE | AA55: FALSE | AB55: FALSE | AC55: FALSE | AD55: FALSE | AE55: FALSE | AF55: TRUE | AG55: FALSE | AH55: FALSE | AI55: FALSE | AJ55: FALSE | AK55: FALSE | AL55: TRUE
C56: Cost of Solar | H56: =H19 -> 6000
C57: Cost of Battery | H57: =H32 -> 2600 | I57: =$H$57*I55 -> 0 | J57: =$H$57*J55 -> 0 | K57: 0 | L57: 0 | M57: 0 | N57: 2600 | O57: 0 | P57: 0 | Q57: 0 | R57: 0 | S57: 0 | T57: 2600 | U57: 0 | V57: 0 | W57: 0 | X57: 0 | Y57: 0 | Z57: 2600 | AA57: 0 | AB57: 0 | AC57: 0 | AD57: 0 | AE57: 0 | AF57: 2600 | AG57: 0 | AH57: 0 | AI57: 0 | AJ57: 0 | AK57: 0 | AL57: 2600
C58: Net Cash Flow | H58: =H53-H56-H57 -> -8600 | I58: =I53-I56-I57 -> 3219.756146 | J58: 1106.869704 | K58: 1127.387196 | L58: 1148.315037 | M58: 1169.661436 | N58: -1408.565237 | O58: 1213.643556 | P58: 1236.296525 | Q58: 1259.402553 | R58: 1282.970702 | S58: 1307.010214 | T58: -1268.469484 | U58: 1356.541224 | V58: 1382.052146 | W58: 1408.073287 | X58: 1434.614851 | Y58: 1461.687246 | Z58: -1110.698912 | AA58: 1517.467208 | AB58: 1546.19665 | AC58: 1575.500681 | AD58: 1605.390792 | AE58: 1635.878706 | AF58: -933.0236222 | AG58: 1698.696003 | AH58: 1731.050021 | AI58: 1764.051119 | AJ58: 1797.71224 | AK58: 1832.046582 | AL58: -732.9323883
C60: Payback | H60: =payback(H58:AL58) -> 7.827417374
C61: IRR | H61: =IRR(58:58) -> 0.1354755317

Sheet Battery Sensitivity
A1: Table of Contents | B1: Battery Sensitivity
E2: Scenario Code | F2: 10
E4: Solar Cost (Panel and Inverter and Wires) | F4: Battery Cost - USD per kWh | G4: Diesel Price (USD/Liter) | H4: Grid Price Increase | I4: Capacity Factor | J4: Unused Solar During Sunlight | K4: % of Electricity from Genset | L4: Battery Efficiency Percent | N4: Solar Alone Payback | O4: Battery + Solar Payback | P4: Solar Alone IRR | Q4: Battery + Solar IRR
N5: ='Solar and Battery Payback'!H24 -> 6.256406784 | O5: ='Solar and Battery Payback'!H60 -> 7.827417374 | P5: ='Solar and Battery Payback'!H22 -> 0.1677346105 | Q5: ='Solar and Battery Payback'!H61 -> 0.1354755317
D6: Base | E6: 1000 | F6: 108.3333333 | G6: 0.65 | H6: 0.5 | I6: 0.1572 | J6: 0.3 | K6: 0.6 | L6: 0.8 | M6: 1 | N6: 6.733606339 | O6: 7.827417374 | P6: 0.1541057102 | Q6: 0.1354755317
D7: Best Case | E7: 600 | F7: 60 | G7: 1 | H7: 0.6 | I7: 0.175 | J7: 0.15 | K7: 0.8 | L7: 0.9 | M7: 2 | N7: 1.990174055 | O7: 1.975887775 | P7: 0.5194821574 | Q7: 0.4227896125
D8: Worst Case | E8: 2500 | F8: 200 | G8: 0.5 | H8: 0.25 | I8: 0.14 | J8: 0.4 | K8: 0.5 | L8: 0.75 | M8: 3 | N8: 25.30753899 | O8: 28.2880764 | P8: 0.01272652965 | Q8: -0.002267812533
D9: =TRANSPOSE(E4:L4)&" Best" -> Solar Cost (Panel and Inverter and Wires) Best | E9: =E7 -> 600 | F9: 108.3333333 | G9: 0.65 | H9: 0.5 | I9: 0.1572 | J9: 0.3 | K9: 0.6 | L9: 0.8 | M9: 4 | N9: 4.155076981 | O9: 3.649636269 | P9: 0.2501335981 | Q9: 0.209877093
D10: Battery Cost - USD per kWh Best | E10: 1000 | F10: =F7 -> 60 | G10: 0.65 | H10: 0.5 | I10: 0.1572 | J10: 0.3 | K10: 0.6 | L10: 0.8 | M10: 5 | N10: 6.733606339 | O10: 7.827417374 | P10: 0.1541057102 | Q10: 0.1354755317
D11: Diesel Price (USD/Liter) Best | E11: 1000 | F11: 108.3333333 | G11: =G7 -> 1 | H11: 0.5 | I11: 0.1572 | J11: 0.3 | K11: 0.6 | L11: 0.8 | M11: 6 | N11: 4.984045029 | O11: 3.863938332 | P11: 0.2096609263 | Q11: 0.2226959032
D12: Grid Price Increase Best | E12: 1000 | F12: 108.3333333 | G12: 0.65 | H12: =H7 -> 0.6 | I12: 0.1572 | J12: 0.3 | K12: 0.6 | L12: 0.8 | M12: 7 | N12: 6.621094704 | O12: 7.797726631 | P12: 0.1567092542 | Q12: 0.13618632
D13: Capacity Factor Best | E13: 1000 | F13: 108.3333333 | G13: 0.65 | H13: 0.5 | I13: =I7 -> 0.175 | J13: 0.3 | K13: 0.6 | L13: 0.8 | M13: 8 | N13: 6.087249756 | O13: 7.083665848 | P13: 0.170892392 | Q13: 0.1560446708
D14: Unused Solar During Sunlight Best | E14: 1000 | F14: 108.3333333 | G14: 0.65 | H14: 0.5 | I14: 0.1572 | J14: =J7 -> 0.15 | K14: 0.6 | L14: 0.8 | M14: 9 | N14: 5.606807232 | O14: 7.827417374 | P14: 0.1856450472 | Q14: 0.1354755317
D15: % of Electricity from Genset Best | E15: 1000 | F15: 108.3333333 | G15: 0.65 | H15: 0.5 | I15: 0.1572 | J15: 0.3 | K15: =K7 -> 0.8 | L15: 0.8 | M15: 10 | N15: 6.256406784 | O15: 7.827417374 | P15: 0.1677346105 | Q15: 0.1354755317
D16: Battery Efficiency Percent Best | E16: 1000 | F16: 108.3333333 | G16: 0.65 | H16: 0.5 | I16: 0.1572 | J16: 0.3 | K16: 0.6 | L16: =L7 -> 0.9 | M16: 11 | N16: 6.733606339 | O16: 7.014954567 | P16: 0.1541057102 | Q16: 0.158139016
D17: =TRANSPOSE(E4:L4)&" Worst" -> Solar Cost (Panel and Inverter and Wires) Worst | E17: =E8 -> 2500 | F17: 108.3333333 | G17: 0.65 | H17: 0.5 | I17: 0.1572 | J17: 0.3 | K17: 0.6 | L17: 0.8 | M17: 12 | N17: 15.64889526 | O17: 16.42720413 | P17: 0.05333645227 | Q17: 0.04615815674
D18: Battery Cost - USD per kWh Worst | E18: 1000 | F18: =F8 -> 200 | G18: 0.65 | H18: 0.5 | I18: 0.1572 | J18: 0.3 | K18: 0.6 | L18: 0.8 | M18: 13 | N18: 6.733606339 | O18: 7.827417374 | P18: 0.1541057102 | Q18: 0.1354755317
D19: Diesel Price (USD/Liter) Worst | E19: 1000 | F19: 108.3333333 | G19: =G8 -> 0.5 | H19: 0.5 | I19: 0.1572 | J19: 0.3 | K19: 0.6 | L19: 0.8 | M19: 14 | N19: 7.941534996 | O19: 9.786866188 | P19: 0.128992337 | Q19: 0.09292836689
D20: Grid Price Increase Worst | E20: 1000 | F20: 108.3333333 | G20: 0.65 | H20: =H8 -> 0.25 | I20: 0.1572 | J20: 0.3 | K20: 0.6 | L20: 0.8 | M20: 15 | N20: 7.03510952 | O20: 7.902788162 | P20: 0.1475419387 | Q20: 0.1336933019
D21: Capacity Factor Worst | E21: 1000 | F21: 108.3333333 | G21: 0.65 | H21: 0.5 | I21: =I8 -> 0.14 | J21: 0.3 | K21: 0.6 | L21: 0.8 | M21: 16 | N21: 7.507217407 | O21: 8.712451935 | P21: 0.1375363222 | Q21: 0.1146636617
D22: Unused Solar During Sunlight Worst | E22: 1000 | F22: 108.3333333 | G22: 0.65 | H22: 0.5 | I22: 0.1572 | J22: =J8 -> 0.4 | K22: 0.6 | L22: 0.8 | M22: 17 | N22: 7.781768799 | O22: 7.827417374 | P22: 0.1323845359 | Q22: 0.1354755317
D23: % of Electricity from Genset Worst | E23: 1000 | F23: 108.3333333 | G23: 0.65 | H23: 0.5 | I23: 0.1572 | J23: 0.3 | K23: =K8 -> 0.5 | L23: 0.8 | M23: 18 | N23: 7.003211021 | O23: 7.827417374 | P23: 0.1470966727 | Q23: 0.1354755317
D24: Battery Efficiency Percent Worst | E24: 1000 | F24: 108.3333333 | G24: 0.65 | H24: 0.5 | I24: 0.1572 | J24: 0.3 | K24: 0.6 | L24: =L8 -> 0.75 | M24: 19 | N24: 6.733606339 | O24: 8.309116364 | P24: 0.1541057102 | Q24: 0.1237242212
D28: =INDEX(D6:D26,$F$2) -> % of Electricity from Genset Best | E28: =INDEX(E6:E26,$F$2) -> 1000 | F28: 108.3333333 | G28: 0.65 | H28: 0.5 | I28: 0.1572 | J28: 0.3 | K28: 0.8 | L28: 0.8
E30: Best vs Base | F30: Worst vs Base
D31: =TRANSPOSE(E4:L4) -> Solar Cost (Panel and Inverter and Wires) | E31: =Q9-$Q$6 -> 0.07440156129 | F31: =Q17-$Q$6 -> -0.08931737493
D32: Battery Cost - USD per kWh | E32: =Q10-$Q$6 -> 0 | F32: =Q18-$Q$6 -> 0
D33: Diesel Price (USD/Liter) | E33: 0.08722037153 | F33: -0.04254716478
D34: Grid Price Increase | E34: 0.0007107883621 | F34: -0.001782229753
D35: Capacity Factor | E35: 0.02056913914 | F35: -0.02081186994
D36: Unused Solar During Sunlight | E36: 0 | F36: 0
D37: % of Electricity from Genset | E37: 0 | F37: 0
D38: Battery Efficiency Percent | E38: 0.0226634843 | F38: -0.01175131043

Sheet Nigeria Backup
A1: Table of Contents | B1: Nigeria Backup
C2: Battery | G2: Solar | K2: Cost of Gasoline
C4: Current | D4: 200 | E4: Amps | G4: Panels | H4: 20 | K4: Cost/Liter
C5: Voltage | D5: 48 | E5: Volts | G5: Capacity per panel | H5: 300 | I5: Watts | K5: Total | L5: 1500 | M5: USD
C6: Capacty | D6: =D4*D5 -> 9600 | E6: Watts | G6: Total | H6: =H4*H5 -> 6000 | I6: Watts | K6: Capacity | L6: 5 | M6: kVa
C7: Capacty | D7: =D6/1000 -> 9.6 | E7: kW | G7: Total | H7: =H6/1000 -> 6 | I7: kW | K7: Power Factor | L7: 0.85
K8: Capacity | L8: =L6*L7 -> 4.25 | M8: kW
C9: Hours | D9: 4 | E9: Hrs | G9: Cost/Panel | H9: 200 | I9: USD
C10: Capacity | D10: =D9*6 -> 24 | E10: kWh | G10: Total Cost | H10: =H9*H4 -> 4000 | I10: USD | K10: Cost/kW | L10: =L5/L8 -> 352.9411765 | M10: USD/kW
G11: BOS Cost | H11: =H20 -> 2000 | I11: USD
C12: Batteries | D12: 8 | G12: Cost/kW | H12: =H11/H7 -> 333.3333333 | I12: USD/kW | K12: Consumption | L12: 15 | M12: Liters/day
C13: Cost/Battery | D13: 325
C14: Total | D14: =D12*D13 -> 2600 | G14: Inverter | K14: Cost/Liter | L14: =229/355 -> 0.6450704225 | M14: USD/Liter
G15: Capacity | H15: 6 | I15: kVa
C16: Cost/kWh | D16: =D14/D10 -> 108.3333333
G17: Total | H17: 8600
C18: Battery Efficiency | D18: 0.8 | G18: Cost/Battery | H18: =D14 -> 2600
G19: Cost of Solar and Inverter | H19: =H17-H18 -> 6000
C20: Battery Life | D20: 5 | G20: BOS Cost | H20: =H19-H10 -> 2000
G21: Cost per Panel | H21: =H10/H7 -> 666.6666667 | I21: USD
G22: Total Cost of the System/KW | H22: =H19/H15 -> 1000 | I22: USD
C24: Electricity Price | D24: N/kWh | E24: 29
C25: Exchange Rate | E25: 355
C26: Cost/MWH - USD | E26: =E24/E25*1000 -> 81.69014085

Sheet PF Model
A1: Table of Contents
B2: Model period | G2: =0 -> 0 | H2: 1 | I2: 2 | J2: 3 | K2: 4 | L2: 5 | M2: 6 | N2: 7 | O2: 8 | P2: 9 | Q2: 10 | R2: 11 | S2: 12 | T2: 13 | U2: 14 | V2: 15 | W2: 16 | X2: 17 | Y2: 18 | Z2: 19 | AA2: 20 | AB2: 21 | AC2: 22 | AD2: 23 | AE2: 24 | AF2: 25 | AG2: 26 | AH2: 27 | AI2: 28 | AJ2: 29 | AK2: 30 | AL2: 31 | AM2: 32 | AN2: 33 | AO2: 34 | AP2: 35 | AQ2: 36 | AR2: 37 | AS2: 38 | AT2: 39 | AU2: 40 | AV2: 41 | AW2: 42 | AX2: 43 | AY2: 44 | AZ2: 45 | BA2: 46 | BB2: 47 | BC2: 48 | BD2: 49 | BE2: 50
B3: Operation Phase | G3: =LCOE!H13 -> 30 | H3: =(H2<=$G$3)*1 -> 1 | I3: =(I2<=$G$3)*1 -> 1 | J3: 1 | K3: 1 | L3: 1 | M3: 1 | N3: 1 | O3: 1 | P3: 1 | Q3: 1 | R3: 1 | S3: 1 | T3: 1 | U3: 1 | V3: 1 | W3: 1 | X3: 1 | Y3: 1 | Z3: 1 | AA3: 1 | AB3: 1 | AC3: 1 | AD3: 1 | AE3: 1 | AF3: 1 | AG3: 1 | AH3: 1 | AI3: 1 | AJ3: 1 | AK3: 1 | AL3: 0 | AM3: 0 | AN3: 0 | AO3: 0 | AP3: 0 | AQ3: 0 | AR3: 0 | AS3: 0 | AT3: 0 | AU3: 0 | AV3: 0 | AW3: 0 | AX3: 0 | AY3: 0 | AZ3: 0 | BA3: 0 | BB3: 0 | BC3: 0 | BD3: 0 | BE3: 0
E4: Price | F4: =price -> 45 | G4: Carry Chg | H4: =F37 -> 0.0444
A5: Operation
B6: Capacity | E6: MW | F6: =LCOE!G4 -> 300000 | H6: =$F$6*H3 -> 300000 | I6: 300000 | J6: 300000 | K6: 300000 | L6: 300000 | M6: 300000 | N6: 300000 | O6: 300000 | P6: 300000 | Q6: 300000 | R6: 300000 | S6: 300000 | T6: 300000 | U6: 300000 | V6: 300000 | W6: 300000 | X6: 300000 | Y6: 300000 | Z6: 300000 | AA6: 300000 | AB6: 300000 | AC6: 300000 | AD6: 300000 | AE6: 300000 | AF6: 300000 | AG6: 300000 | AH6: 300000 | AI6: 300000 | AJ6: 300000 | AK6: 300000 | AL6: 0 | AM6: 0 | AN6: =$F$6*AN3 -> 0 | AO6: 0 | AP6: 0 | AQ6: 0 | AR6: 0 | AS6: 0 | AT6: 0 | AU6: 0 | AV6: 0 | AW6: 0 | AX6: 0 | AY6: 0 | AZ6: 0 | BA6: 0 | BB6: 0 | BC6: 0 | BD6: 0 | BE6: 0
B7: Capacity Factor | E7: % | F7: =LCOE!G8 -> 0.2 | H7: =$F$7*H3 -> 0.2 | I7: 0.2 | J7: 0.2 | K7: 0.2 | L7: 0.2 | M7: 0.2 | N7: 0.2 | O7: 0.2 | P7: 0.2 | Q7: 0.2 | R7: 0.2 | S7: 0.2 | T7: 0.2 | U7: 0.2 | V7: 0.2 | W7: 0.2 | X7: 0.2 | Y7: 0.2 | Z7: 0.2 | AA7: 0.2 | AB7: 0.2 | AC7: 0.2 | AD7: 0.2 | AE7: 0.2 | AF7: 0.2 | AG7: 0.2 | AH7: 0.2 | AI7: 0.2 | AJ7: 0.2 | AK7: 0.2 | AL7: 0 | AM7: 0 | AN7: =$F$7*AN3 -> 0 | AO7: 0 | AP7: 0 | AQ7: 0 | AR7: 0 | AS7: 0 | AT7: 0 | AU7: 0 | AV7: 0 | AW7: 0 | AX7: 0 | AY7: 0 | AZ7: 0 | BA7: 0 | BB7: 0 | BC7: 0 | BD7: 0 | BE7: 0
B8: Hours | E8: h | F8: 8760 | H8: =$F$8 -> 8760 | I8: =$F$8 -> 8760 | J8: 8760 | K8: 8760 | L8: 8760 | M8: 8760 | N8: 8760 | O8: 8760 | P8: 8760 | Q8: 8760 | R8: 8760 | S8: 8760 | T8: 8760 | U8: 8760 | V8: 8760 | W8: 8760 | X8: 8760 | Y8: 8760 | Z8: 8760 | AA8: 8760 | AB8: 8760 | AC8: 8760 | AD8: 8760 | AE8: 8760 | AF8: 8760 | AG8: 8760 | AH8: 8760 | AI8: 8760 | AJ8: 8760 | AK8: 8760 | AL8: 8760 | AM8: 8760 | AN8: 8760 | AO8: 8760 | AP8: 8760 | AQ8: 8760 | AR8: 8760 | AS8: 8760 | AT8: 8760 | AU8: 8760 | AV8: 8760 | AW8: 8760 | AX8: 8760 | AY8: 8760 | AZ8: 8760 | BA8: 8760 | BB8: 8760 | BC8: 8760 | BD8: 8760 | BE8: 8760
B9: Generation | E9: MWh | H9: =H6*H7*H8 -> 525600000 | I9: =I6*I7*I8 -> 525600000 | J9: 525600000 | K9: 525600000 | L9: 525600000 | M9: 525600000 | N9: 525600000 | O9: 525600000 | P9: 525600000 | Q9: 525600000 | R9: 525600000 | S9: 525600000 | T9: 525600000 | U9: 525600000 | V9: 525600000 | W9: 525600000 | X9: 525600000 | Y9: 525600000 | Z9: 525600000 | AA9: 525600000 | AB9: 525600000 | AC9: 525600000 | AD9: 525600000 | AE9: 525600000 | AF9: 525600000 | AG9: 525600000 | AH9: 525600000 | AI9: 525600000 | AJ9: 525600000 | AK9: 525600000 | AL9: 0 | AM9: 0 | AN9: 0 | AO9: 0 | AP9: 0 | AQ9: 0 | AR9: 0 | AS9: 0 | AT9: 0 | AU9: 0 | AV9: 0 | AW9: 0 | AX9: 0 | AY9: 0 | AZ9: 0 | BA9: 0 | BB9: 0 | BC9: 0 | BD9: 0 | BE9: 0
A11: EPC
B12: Cost per kW | E12: USD/Kw | F12: =LCOE!G10 -> 1500
B13: Total Cost | E13: USD/1000 | F13: =F12*F6 -> 450000000 | G13: =F13 -> 450000000
A15: O&M Agreement
B16: Inflation | E16: % | F16: =LCOE!H16 -> 0.02 | G16: 1 | H16: =G16*(1+$F$16) -> 1.02 | I16: =H16*(1+$F$16) -> 1.0404 | J16: 1.061208 | K16: 1.08243216 | L16: 1.104080803 | M16: 1.126162419 | N16: 1.148685668 | O16: 1.171659381 | P16: 1.195092569 | Q16: 1.21899442 | R16: 1.243374308 | S16: 1.268241795 | T16: 1.29360663 | U16: 1.319478763 | V16: 1.345868338 | W16: 1.372785705 | X16: 1.400241419 | Y16: 1.428246248 | Z16: 1.456811173 | AA16: 1.485947396 | AB16: 1.515666344 | AC16: 1.545979671 | AD16: 1.576899264 | AE16: 1.608437249 | AF16: 1.640605994 | AG16: 1.673418114 | AH16: 1.706886477 | AI16: 1.741024206 | AJ16: 1.77584469 | AK16: 1.811361584 | AL16: 1.847588816 | AM16: 1.884540592 | AN16: 1.922231404 | AO16: 1.960676032 | AP16: 1.999889553 | AQ16: 2.039887344 | AR16: 2.080685091 | AS16: 2.122298792 | AT16: 2.164744768 | AU16: 2.208039664 | AV16: 2.252200457 | AW16: 2.297244466 | AX16: 2.343189355 | AY16: 2.390053142 | AZ16: 2.437854205 | BA16: 2.486611289 | BB16: 2.536343515 | BC16: 2.587070385 | BD16: 2.638811793 | BE16: 2.691588029
B17: Varying inflation | H17: =LOOKUP(H2,128:128,129:129) -> 0.005 | I17: 0.005 | J17: 0.005 | K17: 0.015 | L17: 0.015 | M17: 0.02 | N17: 0.02 | O17: 0.02 | P17: 0.02 | Q17: 0.03 | R17: 0.03 | S17: 0.03 | T17: 0.03 | U17: 0.03 | V17: 0.03 | W17: 0.03 | X17: 0.03 | Y17: 0.03 | Z17: 0.03 | AA17: 0.03 | AB17: 0.03 | AC17: 0.03 | AD17: 0.03 | AE17: 0.03 | AF17: 0.03 | AG17: 0.03 | AH17: 0.03 | AI17: 0.03 | AJ17: 0.03 | AK17: 0.03 | AL17: 0.03 | AM17: 0.03 | AN17: =LOOKUP(AN2,128:128,129:129) -> 0.03 | AO17: 0.03 | AP17: 0.03 | AQ17: 0.03 | AR17: 0.03 | AS17: 0.03 | AT17: 0.03 | AU17: 0.03 | AV17: 0.03 | AW17: 0.03 | AX17: 0.03 | AY17: 0.03 | AZ17: 0.03 | BA17: 0.03 | BB17: 0.03 | BC17: 0.03 | BD17: 0.03 | BE17: 0.03
B18: Fixed O&M | E18: USD/kWy | F18: =LCOE!G23 -> 12 | H18: =H16*$F$18*H3 -> 12.24 | I18: 12.4848 | J18: 12.734496 | K18: 12.98918592 | L18: 13.24896964 | M18: 13.51394903 | N18: 13.78422801 | O18: 14.05991257 | P18: 14.34111082 | Q18: 14.62793304 | R18: 14.9204917 | S18: 15.21890153 | T18: 15.52327957 | U18: 15.83374516 | V18: 16.15042006 | W18: 16.47342846 | X18: 16.80289703 | Y18: 17.13895497 | Z18: 17.48173407 | AA18: 17.83136875 | AB18: 18.18799613 | AC18: 18.55175605 | AD18: 18.92279117 | AE18: 19.30124699 | AF18: 19.68727193 | AG18: 20.08101737 | AH18: 20.48263772 | AI18: 20.89229047 | AJ18: 21.31013628 | AK18: 21.73633901 | AL18: 0 | AM18: 0 | AN18: =AN16*$F$18*AN3 -> 0 | AO18: 0 | AP18: 0 | AQ18: 0 | AR18: 0 | AS18: 0 | AT18: 0 | AU18: 0 | AV18: 0 | AW18: 0 | AX18: 0 | AY18: 0 | AZ18: 0 | BA18: 0 | BB18: 0 | BC18: 0 | BD18: 0 | BE18: 0
B19: Fixed O&M | E19: USD/1000 | H19: =H18*H6 -> 3672000 | I19: =I18*I6 -> 3745440 | J19: 3820348.8 | K19: 3896755.776 | L19: 3974690.892 | M19: 4054184.709 | N19: 4135268.404 | O19: 4217973.772 | P19: 4302333.247 | Q19: 4388379.912 | R19: 4476147.51 | S19: 4565670.46 | T19: 4656983.87 | U19: 4750123.547 | V19: 4845126.018 | W19: 4942028.538 | X19: 5040869.109 | Y19: 5141686.491 | Z19: 5244520.221 | AA19: 5349410.626 | AB19: 5456398.838 | AC19: 5565526.815 | AD19: 5676837.351 | AE19: 5790374.098 | AF19: 5906181.58 | AG19: 6024305.212 | AH19: 6144791.316 | AI19: 6267687.142 | AJ19: 6393040.885 | AK19: 6520901.703 | AL19: 0 | AM19: 0 | AN19: 0 | AO19: 0 | AP19: 0 | AQ19: 0 | AR19: 0 | AS19: 0 | AT19: 0 | AU19: 0 | AV19: 0 | AW19: 0 | AX19: 0 | AY19: 0 | AZ19: 0 | BA19: 0 | BB19: 0 | BC19: 0 | BD19: 0 | BE19: 0
B20: Variable O&M | E20: USD/MWh | F20: =LCOE!G25 -> 0 | H20: =$F$20*H16*H3 -> 0 | I20: 0 | J20: 0 | K20: 0 | L20: 0 | M20: 0 | N20: 0 | O20: 0 | P20: 0 | Q20: 0 | R20: 0 | S20: 0 | T20: 0 | U20: 0 | V20: 0 | W20: 0 | X20: 0 | Y20: 0 | Z20: 0 | AA20: 0 | AB20: 0 | AC20: 0 | AD20: 0 | AE20: 0 | AF20: 0 | AG20: 0 | AH20: 0 | AI20: 0 | AJ20: 0 | AK20: 0 | AL20: 0 | AM20: 0 | AN20: =$F$20*AN16*AN3 -> 0 | AO20: 0 | AP20: 0 | AQ20: 0 | AR20: 0 | AS20: 0 | AT20: 0 | AU20: 0 | AV20: 0 | AW20: 0 | AX20: 0 | AY20: 0 | AZ20: 0 | BA20: 0 | BB20: 0 | BC20: 0 | BD20: 0 | BE20: 0
B21: Variable O&M | E21: USD/1000 | H21: =H9*H20/1000 -> 0 | I21: =I9*I20/1000 -> 0 | J21: 0 | K21: 0 | L21: 0 | M21: 0 | N21: 0 | O21: 0 | P21: 0 | Q21: 0 | R21: 0 | S21: 0 | T21: 0 | U21: 0 | V21: 0 | W21: 0 | X21: 0 | Y21: 0 | Z21: 0 | AA21: 0 | AB21: 0 | AC21: 0 | AD21: 0 | AE21: 0 | AF21: 0 | AG21: 0 | AH21: 0 | AI21: 0 | AJ21: 0 | AK21: 0 | AL21: 0 | AM21: 0 | AN21: 0 | AO21: 0 | AP21: 0 | AQ21: 0 | AR21: 0 | AS21: 0 | AT21: 0 | AU21: 0 | AV21: 0 | AW21: 0 | AX21: 0 | AY21: 0 | AZ21: 0 | BA21: 0 | BB21: 0 | BC21: 0 | BD21: 0 | BE21: 0
C22: Total Expense | E22: USD/1000 | H22: =H21+H19 -> 3672000 | I22: =I21+I19 -> 3745440 | J22: 3820348.8 | K22: 3896755.776 | L22: 3974690.892 | M22: 4054184.709 | N22: 4135268.404 | O22: 4217973.772 | P22: 4302333.247 | Q22: 4388379.912 | R22: 4476147.51 | S22: 4565670.46 | T22: 4656983.87 | U22: 4750123.547 | V22: 4845126.018 | W22: 4942028.538 | X22: 5040869.109 | Y22: 5141686.491 | Z22: 5244520.221 | AA22: 5349410.626 | AB22: 5456398.838 | AC22: 5565526.815 | AD22: 5676837.351 | AE22: 5790374.098 | AF22: 5906181.58 | AG22: 6024305.212 | AH22: 6144791.316 | AI22: 6267687.142 | AJ22: 6393040.885 | AK22: 6520901.703 | AL22: 0 | AM22: 0 | AN22: 0 | AO22: 0 | AP22: 0 | AQ22: 0 | AR22: 0 | AS22: 0 | AT22: 0 | AU22: 0 | AV22: 0 | AW22: 0 | AX22: 0 | AY22: 0 | AZ22: 0 | BA22: 0 | BB22: 0 | BC22: 0 | BD22: 0 | BE22: 0
A24: PPA
B25: PPA Price | E25: USD/MWh | F25: 45 | H25: =$F$25 -> 45 | I25: =$F$25 -> 45 | J25: 45 | K25: 45 | L25: 45 | M25: 45 | N25: 45 | O25: 45 | P25: 45 | Q25: 45 | R25: 45 | S25: 45 | T25: 45 | U25: 45 | V25: 45 | W25: 45 | X25: 45 | Y25: 45 | Z25: 45 | AA25: 45 | AB25: 45 | AC25: 45 | AD25: 45 | AE25: 45 | AF25: 45 | AG25: 45 | AH25: 45 | AI25: 45 | AJ25: 45 | AK25: 45 | AL25: 45 | AM25: 45 | AN25: 45 | AO25: 45 | AP25: 45 | AQ25: 45 | AR25: 45 | AS25: 45 | AT25: 45 | AU25: 45 | AV25: 45 | AW25: 45 | AX25: 45 | AY25: 45 | AZ25: 45 | BA25: 45 | BB25: 45 | BC25: 45 | BD25: 45 | BE25: 45
B26: PPA Price with inflation | E26: USD/MWh | G26: =LCOE!H15 -> FALSE | H26: =IF($G$26,H25*H16,H25) -> 45 | I26: =IF($G$26,I25*I16,I25) -> 45 | J26: 45 | K26: 45 | L26: 45 | M26: 45 | N26: 45 | O26: 45 | P26: 45 | Q26: 45 | R26: 45 | S26: 45 | T26: 45 | U26: 45 | V26: 45 | W26: 45 | X26: 45 | Y26: 45 | Z26: 45 | AA26: 45 | AB26: 45 | AC26: 45 | AD26: 45 | AE26: 45 | AF26: 45 | AG26: 45 | AH26: 45 | AI26: 45 | AJ26: 45 | AK26: 45 | AL26: 45 | AM26: 45 | AN26: 45 | AO26: 45 | AP26: 45 | AQ26: 45 | AR26: 45 | AS26: 45 | AT26: 45 | AU26: 45 | AV26: 45 | AW26: 45 | AX26: 45 | AY26: 45 | AZ26: 45 | BA26: 45 | BB26: 45 | BC26: 45 | BD26: 45 | BE26: 45
C27: Revenues | E27: USD/1000 | H27: =H26*H9/1000 -> 23652000 | I27: =I26*I9/1000 -> 23652000 | J27: 23652000 | K27: 23652000 | L27: 23652000 | M27: 23652000 | N27: 23652000 | O27: 23652000 | P27: 23652000 | Q27: 23652000 | R27: 23652000 | S27: 23652000 | T27: 23652000 | U27: 23652000 | V27: 23652000 | W27: 23652000 | X27: 23652000 | Y27: 23652000 | Z27: 23652000 | AA27: 23652000 | AB27: 23652000 | AC27: 23652000 | AD27: 23652000 | AE27: 23652000 | AF27: 23652000 | AG27: 23652000 | AH27: 23652000 | AI27: 23652000 | AJ27: 23652000 | AK27: 23652000 | AL27: 0 | AM27: 0 | AN27: 0 | AO27: 0 | AP27: 0 | AQ27: 0 | AR27: 0 | AS27: 0 | AT27: 0 | AU27: 0 | AV27: 0 | AW27: 0 | AX27: 0 | AY27: 0 | AZ27: 0 | BA27: 0 | BB27: 0 | BC27: 0 | BD27: 0 | BE27: 0
A29: Free cash flow
B30: EBITDA | E30: USD/1000 | H30: =H27-H19-H21 -> 19980000 | I30: =I27-I19-I21 -> 19906560 | J30: 19831651.2 | K30: 19755244.22 | L30: 19677309.11 | M30: 19597815.29 | N30: 19516731.6 | O30: 19434026.23 | P30: 19349666.75 | Q30: 19263620.09 | R30: 19175852.49 | S30: 19086329.54 | T30: 18995016.13 | U30: 18901876.45 | V30: 18806873.98 | W30: 18709971.46 | X30: 18611130.89 | Y30: 18510313.51 | Z30: 18407479.78 | AA30: 18302589.37 | AB30: 18195601.16 | AC30: 18086473.19 | AD30: 17975162.65 | AE30: 17861625.9 | AF30: 17745818.42 | AG30: 17627694.79 | AH30: 17507208.68 | AI30: 17384312.86 | AJ30: 17258959.11 | AK30: 17131098.3 | AL30: 0 | AM30: 0 | AN30: 0 | AO30: 0 | AP30: 0 | AQ30: 0 | AR30: 0 | AS30: 0 | AT30: 0 | AU30: 0 | AV30: 0 | AW30: 0 | AX30: 0 | AY30: 0 | AZ30: 0 | BA30: 0 | BB30: 0 | BC30: 0 | BD30: 0 | BE30: 0
B31: less CAPEX | E31: USD/1000 | G31: =G13 -> 450000000
B32: Pre-tax free cash flows | E32: USD/1000 | G32: =G30-G31 -> -450000000 | H32: =H30-H31 -> 19980000 | I32: 19906560 | J32: 19831651.2 | K32: 19755244.22 | L32: 19677309.11 | M32: 19597815.29 | N32: 19516731.6 | O32: 19434026.23 | P32: 19349666.75 | Q32: 19263620.09 | R32: 19175852.49 | S32: 19086329.54 | T32: 18995016.13 | U32: 18901876.45 | V32: 18806873.98 | W32: 18709971.46 | X32: 18611130.89 | Y32: 18510313.51 | Z32: 18407479.78 | AA32: 18302589.37 | AB32: 18195601.16 | AC32: 18086473.19 | AD32: 17975162.65 | AE32: 17861625.9 | AF32: 17745818.42 | AG32: 17627694.79 | AH32: 17507208.68 | AI32: 17384312.86 | AJ32: 17258959.11 | AK32: 17131098.3 | AL32: 0 | AM32: 0 | AN32: 0 | AO32: 0 | AP32: 0 | AQ32: 0 | AR32: 0 | AS32: 0 | AT32: 0 | AU32: 0 | AV32: 0 | AW32: 0 | AX32: 0 | AY32: 0 | AZ32: 0 | BA32: 0 | BB32: 0 | BC32: 0 | BD32: 0 | BE32: 0
B33: Project IRR | E33: % | F33: =IRR(32:32) -> 0.01522039632
B34: Target IRR | E34: % | F34: =LCOE!H14 -> 0.1
B35: NPV at target IRR | E35: USD/1000 | F35: =NPV(F34,32:32) -> -243790818.3
B37: Carry on Charge | E37: % | F37: =H30/G31 -> 0.0444
B39: NPV of revenues | F39: =NPV(F33,27:27) -> 566251900.2
B40: NPV of generation | F40: =NPV(F33,9:9) -> 1.258337556e+10
B41: Computed LCOE | F41: =F39/F40*1000 -> 45
A43: Debt Inputs
C44: Debt Size
D45: Debt to Capital | E45: % | F45: 0.8
D46: DSCR | E46: x | F46: 1.35
D47: Development Fee % | E47: %
D49: Repayment Tenure | E49: Years | F49: 20
D51: Interest Rate
D52: Base Rate | E52: % | F52: 0.025
D53: Credit Spread | E53: % | F53: 0.02
D55: DSRA
A57: Project Finance
B58: Debt Repayment Flag | F58: =F49 -> 20 | H58: =H2<=$F$58 -> TRUE | I58: TRUE | J58: TRUE | K58: TRUE | L58: TRUE | M58: TRUE | N58: TRUE | O58: TRUE | P58: TRUE | Q58: TRUE | R58: TRUE | S58: TRUE | T58: TRUE | U58: TRUE | V58: TRUE | W58: TRUE | X58: TRUE | Y58: TRUE | Z58: TRUE | AA58: TRUE | AB58: FALSE | AC58: FALSE | AD58: FALSE | AE58: FALSE | AF58: FALSE | AG58: FALSE | AH58: FALSE | AI58: FALSE | AJ58: FALSE | AK58: FALSE | AL58: FALSE | AM58: FALSE | AN58: =AN2<=$F$58 -> FALSE | AO58: FALSE | AP58: FALSE | AQ58: FALSE | AR58: FALSE | AS58: FALSE | AT58: FALSE | AU58: FALSE | AV58: FALSE | AW58: FALSE | AX58: FALSE | AY58: FALSE | AZ58: FALSE | BA58: FALSE | BB58: FALSE | BC58: FALSE | BD58: FALSE | BE58: FALSE
B60: Debt Size from DSCR
C61: CFADS | H61: =H30 -> 19980000 | I61: =I30 -> 19906560 | J61: 19831651.2 | K61: 19755244.22 | L61: 19677309.11 | M61: 19597815.29 | N61: 19516731.6 | O61: 19434026.23 | P61: 19349666.75 | Q61: 19263620.09 | R61: 19175852.49 | S61: 19086329.54 | T61: 18995016.13 | U61: 18901876.45 | V61: 18806873.98 | W61: 18709971.46 | X61: 18611130.89 | Y61: 18510313.51 | Z61: 18407479.78 | AA61: 18302589.37 | AB61: 18195601.16 | AC61: 18086473.19 | AD61: 17975162.65 | AE61: 17861625.9 | AF61: 17745818.42 | AG61: 17627694.79 | AH61: 17507208.68 | AI61: 17384312.86 | AJ61: 17258959.11 | AK61: 17131098.3 | AL61: 0 | AM61: 0 | AN61: 0 | AO61: 0 | AP61: 0 | AQ61: 0 | AR61: 0 | AS61: 0 | AT61: 0 | AU61: 0 | AV61: 0 | AW61: 0 | AX61: 0 | AY61: 0 | AZ61: 0 | BA61: 0 | BB61: 0 | BC61: 0 | BD61: 0 | BE61: 0 | BF61: 0 | BG61: 0 | BH61: 0 | BI61: 0 | BJ61: 0 | BK61: 0 | BL61: 0 | BM61: 0 | BN61: 0 | BO61: 0 | BP61: 0 | BQ61: 0 | BR61: 0 | BS61: 0 | BT61: 0 | BU61: =BU30 -> 0 | BV61: 0 | BW61: 0 | BX61: 0 | BY61: 0 | BZ61: 0 | CA61: 0 | CB61: 0 | CC61: 0 | CD61: 0 | CE61: 0 | CF61: 0 | CG61: 0 | CH61: 0 | CI61: 0 | CJ61: 0 | CK61: 0 | CL61: 0 | CM61: 0 | CN61: 0 | CO61: 0 | CP61: 0 | CQ61: 0 | CR61: 0 | CS61: 0 | CT61: 0 | CU61: 0 | CV61: 0 | CW61: 0 | CX61: 0 | CY61: 0 | CZ61: 0 | DA61: 0 | DB61: 0 | DC61: 0 | DD61: 0 | DE61: 0 | DF61: 0 | DG61: 0 | DH61: 0 | DI61: 0 | DJ61: 0 | DK61: 0 | DL61: 0 | DM61: 0 | DN61: 0 | DO61: 0 | DP61: 0 | DQ61: 0 | DR61: 0 | DS61: 0 | DT61: 0 | DU61: 0 | DV61: 0 | DW61: 0 | DX61: 0 | DY61: 0 | DZ61: 0 | EA61: 0 | EB61: 0 | EC61: 0 | ED61: 0 | EE61: 0 | EF61: 0 | EG61: =EG30 -> 0 | EH61: 0 | EI61: 0 | EJ61: 0 | EK61: 0 | EL61: 0 | EM61: 0 | EN61: 0 | EO61: 0 | EP61: 0 | EQ61: 0 | ER61: 0 | ES61: 0 | ET61: 0 | EU61: 0 | EV61: 0 | EW61: 0 | EX61: 0 | EY61: 0 | EZ61: 0 | FA61: 0 | FB61: 0 | FC61: 0 | FD61: 0 | FE61: 0 | FF61: 0 | FG61: 0 | FH61: 0 | FI61: 0 | FJ61: 0 | FK61: 0 | FL61: 0 | FM61: 0 | FN61: 0 | FO61: 0 | FP61: 0 | FQ61: 0 | FR61: 0 | FS61: 0 | FT61: 0 | FU61: 0 | FV61: 0 | FW61: 0 | FX61: 0 | FY61: 0 | FZ61: 0 | GA61: 0 | GB61: 0 | GC61: 0 | GD61: 0 | GE61: 0 | GF61: 0 | GG61: 0 | GH61: 0 | GI61: 0 | GJ61: 0 | GK61: 0 | GL61: 0 | GM61: 0 | GN61: 0 | GO61: 0 | GP61: 0 | GQ61: 0 | GR61: 0 | GS61: =GS30 -> 0 | GT61: 0 | GU61: 0 | GV61: 0 | GW61: 0 | GX61: 0 | GY61: 0 | GZ61: 0 | HA61: 0 | HB61: 0 | HC61: 0 | HD61: 0 | HE61: 0 | HF61: 0 | HG61: 0 | HH61: 0 | HI61: 0 | HJ61: 0 | HK61: 0 | HL61: 0 | HM61: 0 | HN61: 0 | HO61: 0 | HP61: 0 | HQ61: 0 | HR61: 0 | HS61: 0 | HT61: 0 | HU61: 0 | HV61: 0 | HW61: 0 | HX61: 0 | HY61: 0 | HZ61: 0 | IA61: 0 | IB61: 0 | IC61: 0 | ID61: 0 | IE61: 0 | IF61: 0 | IG61: 0 | IH61: 0 | II61: 0 | IJ61: 0 | IK61: 0 | IL61: 0 | IM61: 0 | IN61: 0 | IO61: 0 | IP61: 0 | IQ61: 0 | IR61: 0 | IS61: 0 | IT61: 0 | IU61: 0 | IV61: 0 | IW61: 0 | IX61: 0 | IY61: 0 | IZ61: 0 | JA61: 0 | JB61: 0 | JC61: 0 | JD61: 0 | JE61: =JE30 -> 0 | JF61: 0 | JG61: 0 | JH61: 0 | JI61: 0 | JJ61: 0 | JK61: 0 | JL61: 0 | JM61: 0 | JN61: 0 | JO61: 0 | JP61: 0 | JQ61: 0 | JR61: 0 | JS61: 0 | JT61: 0 | JU61: 0 | JV61: 0 | JW61: 0 | JX61: 0 | JY61: 0 | JZ61: 0 | KA61: 0 | KB61: 0 | KC61: 0 | KD61: 0 | KE61: 0 | KF61: 0 | KG61: 0 | KH61: 0 | KI61: 0 | KJ61: 0 | KK61: 0 | KL61: 0 | KM61: 0 | KN61: 0 | KO61: 0 | KP61: 0 | KQ61: 0 | KR61: 0 | KS61: 0 | KT61: 0 | KU61: 0 | KV61: 0 | KW61: 0 | KX61: 0 | KY61: 0 | KZ61: 0 | LA61: 0 | LB61: 0 | LC61: 0 | LD61: 0 | LE61: 0 | LF61: 0 | LG61: 0 | LH61: 0 | LI61: 0 | LJ61: 0 | LK61: 0 | LL61: 0 | LM61: 0 | LN61: 0 | LO61: 0 | LP61: 0 | LQ61: =LQ30 -> 0 | LR61: 0 | LS61: 0 | LT61: 0 | LU61: 0 | LV61: 0 | LW61: 0 | LX61: 0 | LY61: 0 | LZ61: 0 | MA61: 0 | MB61: 0 | MC61: 0 | MD61: 0 | ME61: 0 | MF61: 0 | MG61: 0 | MH61: 0 | MI61: 0 | MJ61: 0 | MK61: 0 | ML61: 0 | MM61: 0 | MN61: 0 | MO61: 0 | MP61: 0 | MQ61: 0 | MR61: 0 | MS61: 0 | MT61: 0 | MU61: 0 | MV61: 0 | MW61: 0 | MX61: 0 | MY61: 0 | MZ61: 0 | NA61: 0 | NB61: 0 | NC61: 0 | ND61: 0 | NE61: 0 | NF61: 0 | NG61: 0 | NH61: 0 | NI61: 0 | NJ61: 0 | NK61: 0 | NL61: 0 | NM61: 0 | NN61: 0 | NO61: 0 | NP61: 0 | NQ61: 0 | NR61: 0 | NS61: 0 | NT61: 0 | NU61: 0 | NV61: 0 | NW61: 0 | NX61: 0 | NY61: 0 | NZ61: 0 | OA61: 0 | OB61: 0 | OC61: =OC30 -> 0 | OD61: 0 | OE61: 0 | OF61: 0 | OG61: 0 | OH61: 0 | OI61: 0 | OJ61: 0 | OK61: 0 | OL61: 0 | OM61: 0 | ON61: 0 | OO61: 0 | OP61: 0 | OQ61: 0 | OR61: 0 | OS61: 0 | OT61: 0 | OU61: 0 | OV61: 0 | OW61: 0 | OX61: 0 | OY61: 0 | OZ61: 0 | PA61: 0 | PB61: 0 | PC61: 0 | PD61: 0 | PE61: 0 | PF61: 0 | PG61: 0 | PH61: 0 | PI61: 0 | PJ61: 0 | PK61: 0 | PL61: 0 | PM61: 0 | PN61: 0 | PO61: 0 | PP61: 0 | PQ61: 0 | PR61: 0 | PS61: 0 | PT61: 0 | PU61: 0 | PV61: 0 | PW61: 0 | PX61: 0 | PY61: 0 | PZ61: 0 | QA61: 0 | QB61: 0 | QC61: 0 | QD61: 0 | QE61: 0 | QF61: 0 | QG61: 0 | QH61: 0 | QI61: 0 | QJ61: 0 | QK61: 0 | QL61: 0 | QM61: 0 | QN61: 0 | QO61: =QO30 -> 0 | QP61: 0 | QQ61: 0 | QR61: 0 | QS61: 0 | QT61: 0 | QU61: 0 | QV61: 0 | QW61: 0 | QX61: 0 | QY61: 0 | QZ61: 0 | RA61: 0 | RB61: 0 | RC61: 0 | RD61: 0 | RE61: 0 | RF61: 0 | RG61: 0 | RH61: 0 | RI61: 0 | RJ61: 0 | RK61: 0 | RL61: 0 | RM61: 0 | RN61: 0 | RO61: 0 | RP61: 0 | RQ61: 0 | RR61: 0 | RS61: 0 | RT61: 0 | RU61: 0 | RV61: 0 | RW61: 0 | RX61: 0 | RY61: 0 | RZ61: 0 | SA61: 0 | SB61: 0 | SC61: 0 | SD61: 0 | SE61: 0 | SF61: 0 | SG61: 0 | SH61: 0 | SI61: 0 | SJ61: 0 | SK61: 0 | SL61: 0 | SM61: 0 | SN61: 0 | SO61: 0 | SP61: 0 | SQ61: 0 | SR61: 0 | SS61: 0 | ST61: 0 | SU61: 0 | SV61: 0 | SW61: 0 | SX61: 0 | SY61: 0 | SZ61: 0 | TA61: =TA30 -> 0 | TB61: 0 | TC61: 0 | TD61: 0 | TE61: 0 | TF61: 0 | TG61: 0 | TH61: 0 | TI61: 0 | TJ61: 0 | TK61: 0 | TL61: 0 | TM61: 0 | TN61: 0 | TO61: 0 | TP61: 0 | TQ61: 0 | TR61: 0 | TS61: 0 | TT61: 0 | TU61: 0 | TV61: 0 | TW61: 0 | TX61: 0 | TY61: 0 | TZ61: 0 | UA61: 0 | UB61: 0 | UC61: 0 | UD61: 0 | UE61: 0 | UF61: 0 | UG61: 0 | UH61: 0 | UI61: 0 | UJ61: 0 | UK61: 0 | UL61: 0 | UM61: 0 | UN61: 0 | UO61: 0 | UP61: 0 | UQ61: 0 | UR61: 0 | US61: 0 | UT61: 0 | UU61: 0 | UV61: 0 | UW61: 0 | UX61: 0 | UY61: 0 | UZ61: 0 | VA61: 0 | VB61: 0 | VC61: 0 | VD61: 0 | VE61: 0 | VF61: 0 | VG61: 0 | VH61: 0 | VI61: 0 | VJ61: 0 | VK61: 0 | VL61: 0 | VM61: =VM30 -> 0 | VN61: 0 | VO61: 0 | VP61: 0 | VQ61: 0 | VR61: 0 | VS61: 0 | VT61: 0 | VU61: 0 | VV61: 0 | VW61: 0 | VX61: 0 | VY61: 0 | VZ61: 0 | WA61: 0 | WB61: 0 | WC61: 0 | WD61: 0 | WE61: 0 | WF61: 0 | WG61: 0 | WH61: 0 | WI61: 0 | WJ61: 0 | WK61: 0 | WL61: 0 | WM61: 0 | WN61: 0 | WO61: 0 | WP61: 0 | WQ61: 0 | WR61: 0 | WS61: 0 | WT61: 0 | WU61: 0 | WV61: 0 | WW61: 0 | WX61: 0 | WY61: 0 | WZ61: 0 | XA61: 0 | XB61: 0 | XC61: 0 | XD61: 0 | XE61: 0 | XF61: 0 | XG61: 0 | XH61: 0 | XI61: 0 | XJ61: 0 | XK61: 0 | XL61: 0 | XM61: 0 | XN61: 0 | XO61: 0 | XP61: 0 | XQ61: 0 | XR61: 0 | XS61: 0 | XT61: 0 | XU61: 0 | XV61: 0 | XW61: 0 | XX61: 0 | XY61: =XY30 -> 0 | XZ61: 0 | YA61: 0 | YB61: 0 | YC61: 0 | YD61: 0 | YE61: 0 | YF61: 0 | YG61: 0 | YH61: 0 | YI61: 0 | YJ61: 0 | YK61: 0 | YL61: 0 | YM61: 0 | YN61: 0 | YO61: 0 | YP61: 0 | YQ61: 0 | YR61: 0 | YS61: 0 | YT61: 0 | YU61: 0 | YV61: 0 | YW61: 0 | YX61: 0 | YY61: 0 | YZ61: 0 | ZA61: 0 | ZB61: 0 | ZC61: 0 | ZD61: 0 | ZE61: 0 | ZF61: 0 | ZG61: 0 | ZH61: 0 | ZI61: 0 | ZJ61: 0 | ZK61: 0 | ZL61: 0 | ZM61: 0 | ZN61: 0 | ZO61: 0 | ZP61: 0 | ZQ61: 0 | ZR61: 0 | ZS61: 0 | ZT61: 0 | ZU61: 0 | ZV61: 0 | ZW61: 0 | ZX61: 0 | ZY61: 0 | ZZ61: 0 | AAA61: 0 | AAB61: 0 | AAC61: 0 | AAD61: 0 | AAE61: 0 | AAF61: 0 | AAG61: 0 | AAH61: 0 | AAI61: 0 | AAJ61: 0 | AAK61: =AAK30 -> 0 | AAL61: 0 | AAM61: 0 | AAN61: 0 | AAO61: 0 | AAP61: 0 | AAQ61: 0 | AAR61: 0 | AAS61: 0 | AAT61: 0 | AAU61: 0 | AAV61: 0 | AAW61: 0 | AAX61: 0 | AAY61: 0 | AAZ61: 0 | ABA61: 0 | ABB61: 0 | ABC61: 0 | ABD61: 0 | ABE61: 0 | ABF61: 0 | ABG61: 0 | ABH61: 0 | ABI61: 0 | ABJ61: 0 | ABK61: 0 | ABL61: 0 | ABM61: 0 | ABN61: 0 | ABO61: 0 | ABP61: 0 | ABQ61: 0 | ABR61: 0 | ABS61: 0 | ABT61: 0 | ABU61: 0 | ABV61: 0 | ABW61: 0 | ABX61: 0 | ABY61: 0 | ABZ61: 0 | ACA61: 0 | ACB61: 0 | ACC61: 0 | ACD61: 0 | ACE61: 0 | ACF61: 0 | ACG61: 0 | ACH61: 0 | ACI61: 0 | ACJ61: 0 | ACK61: 0 | ACL61: 0 | ACM61: 0 | ACN61: 0 | ACO61: 0 | ACP61: 0 | ACQ61: 0 | ACR61: 0 | ACS61: 0 | ACT61: 0 | ACU61: 0 | ACV61: 0 | ACW61: =ACW30 -> 0 | ACX61: 0 | ACY61: 0 | ACZ61: 0 | ADA61: 0 | ADB61: 0 | ADC61: 0 | ADD61: 0 | ADE61: 0 | ADF61: 0 | ADG61: 0 | ADH61: 0 | ADI61: 0 | ADJ61: 0 | ADK61: 0 | ADL61: 0 | ADM61: 0 | ADN61: 0 | ADO61: 0 | ADP61: 0 | ADQ61: 0 | ADR61: 0 | ADS61: 0 | ADT61: 0 | ADU61: 0 | ADV61: 0 | ADW61: 0 | ADX61: 0 | ADY61: 0 | ADZ61: 0 | AEA61: 0 | AEB61: 0 | AEC61: 0 | AED61: 0 | AEE61: 0 | AEF61: 0 | AEG61: 0 | AEH61: 0 | AEI61: 0 | AEJ61: 0 | AEK61: 0 | AEL61: 0 | AEM61: 0 | AEN61: 0 | AEO61: 0 | AEP61: 0 | AEQ61: 0 | AER61: 0 | AES61: 0 | AET61: 0 | AEU61: 0 | AEV61: 0 | AEW61: 0 | AEX61: 0 | AEY61: 0 | AEZ61: 0 | AFA61: 0 | AFB61: 0 | AFC61: 0 | AFD61: 0 | AFE61: 0 | AFF61: 0 | AFG61: 0 | AFH61: 0 | AFI61: =AFI30 -> 0 | AFJ61: 0 | AFK61: 0 | AFL61: 0 | AFM61: 0 | AFN61: 0 | AFO61: 0 | AFP61: 0 | AFQ61: 0 | AFR61: 0 | AFS61: 0 | AFT61: 0 | AFU61: 0 | AFV61: 0 | AFW61: 0 | AFX61: 0 | AFY61: 0 | AFZ61: 0 | AGA61: 0 | AGB61: 0 | AGC61: 0 | AGD61: 0 | AGE61: 0 | AGF61: 0 | AGG61: 0 | AGH61: 0 | AGI61: 0 | AGJ61: 0 | AGK61: 0 | AGL61: 0 | AGM61: 0 | AGN61: 0 | AGO61: 0 | AGP61: 0 | AGQ61: 0 | AGR61: 0 | AGS61: 0 | AGT61: 0 | AGU61: 0 | AGV61: 0 | AGW61: 0 | AGX61: 0 | AGY61: 0 | AGZ61: 0 | AHA61: 0 | AHB61: 0 | AHC61: 0 | AHD61: 0 | AHE61: 0 | AHF61: 0 | AHG61: 0 | AHH61: 0 | AHI61: 0 | AHJ61: 0 | AHK61: 0 | AHL61: 0 | AHM61: 0 | AHN61: 0 | AHO61: 0 | AHP61: 0 | AHQ61: 0 | AHR61: 0 | AHS61: 0 | AHT61: 0 | AHU61: =AHU30 -> 0 | AHV61: 0 | AHW61: 0 | AHX61: 0 | AHY61: 0 | AHZ61: 0 | AIA61: 0 | AIB61: 0 | AIC61: 0 | AID61: 0 | AIE61: 0 | AIF61: 0 | AIG61: 0 | AIH61: 0 | AII61: 0 | AIJ61: 0 | AIK61: 0 | AIL61: 0 | AIM61: 0 | AIN61: 0 | AIO61: 0 | AIP61: 0 | AIQ61: 0 | AIR61: 0 | AIS61: 0 | AIT61: 0 | AIU61: 0 | AIV61: 0 | AIW61: 0 | AIX61: 0 | AIY61: 0 | AIZ61: 0 | AJA61: 0 | AJB61: 0 | AJC61: 0 | AJD61: 0 | AJE61: 0 | AJF61: 0 | AJG61: 0 | AJH61: 0 | AJI61: 0 | AJJ61: 0 | AJK61: 0 | AJL61: 0 | AJM61: 0 | AJN61: 0 | AJO61: 0 | AJP61: 0 | AJQ61: 0 | AJR61: 0 | AJS61: 0 | AJT61: 0 | AJU61: 0 | AJV61: 0 | AJW61: 0 | AJX61: 0 | AJY61: 0 | AJZ61: 0 | AKA61: 0 | AKB61: 0 | AKC61: 0 | AKD61: 0 | AKE61: 0 | AKF61: 0 | AKG61: =AKG30 -> 0 | AKH61: 0 | AKI61: 0 | AKJ61: 0 | AKK61: 0 | AKL61: 0 | AKM61: 0 | AKN61: 0 | AKO61: 0 | AKP61: 0 | AKQ61: 0 | AKR61: 0 | AKS61: 0 | AKT61: 0 | AKU61: 0 | AKV61: 0 | AKW61: 0 | AKX61: 0 | AKY61: 0 | AKZ61: 0 | ALA61: 0 | ALB61: 0 | ALC61: 0 | ALD61: 0 | ALE61: 0 | ALF61: 0 | ALG61: 0 | ALH61: 0 | ALI61: 0 | ALJ61: 0 | ALK61: 0 | ALL61: 0 | ALM61: 0 | ALN61: 0 | ALO61: 0 | ALP61: 0 | ALQ61: 0 | ALR61: 0 | ALS61: 0 | ALT61: 0 | ALU61: 0 | ALV61: 0 | ALW61: 0 | ALX61: 0 | ALY61: 0 | ALZ61: 0 | AMA61: 0 | AMB61: 0 | AMC61: 0 | AMD61: 0 | AME61: 0 | AMF61: 0 | AMG61: 0 | AMH61: 0 | AMI61: 0 | AMJ61: 0 | AMK61: 0 | AML61: 0 | AMM61: 0 | AMN61: 0 | AMO61: 0 | AMP61: 0 | AMQ61: 0 | AMR61: 0 | AMS61: =AMS30 -> 0 | AMT61: 0 | AMU61: 0 | AMV61: 0 | AMW61: 0 | AMX61: 0 | AMY61: 0 | AMZ61: 0 | ANA61: 0 | ANB61: 0 | ANC61: 0 | AND61: 0 | ANE61: 0 | ANF61: 0 | ANG61: 0 | ANH61: 0 | ANI61: 0 | ANJ61: 0 | ANK61: 0 | ANL61: 0 | ANM61: 0 | ANN61: 0 | ANO61: 0 | ANP61: 0 | ANQ61: 0 | ANR61: 0 | ANS61: 0 | ANT61: 0 | ANU61: 0 | ANV61: 0 | ANW61: 0 | ANX61: 0 | ANY61: 0 | ANZ61: 0 | AOA61: 0 | AOB61: 0 | AOC61: 0 | AOD61: 0 | AOE61: 0 | AOF61: 0 | AOG61: 0 | AOH61: 0 | AOI61: 0 | AOJ61: 0 | AOK61: 0 | AOL61: 0 | AOM61: 0 | AON61: 0 | AOO61: 0 | AOP61: 0 | AOQ61: 0 | AOR61: 0 | AOS61: 0 | AOT61: 0 | AOU61: 0 | AOV61: 0 | AOW61: 0 | AOX61: 0 | AOY61: 0 | AOZ61: 0 | APA61: 0 | APB61: 0 | APC61: 0 | APD61: 0 | APE61: =APE30 -> 0 | APF61: 0 | APG61: 0 | APH61: 0 | API61: 0 | APJ61: 0 | APK61: 0 | APL61: 0 | APM61: 0 | APN61: 0 | APO61: 0 | APP61: 0 | APQ61: 0 | APR61: 0 | APS61: 0 | APT61: 0 | APU61: 0 | APV61: 0 | APW61: 0 | APX61: 0 | APY61: 0 | APZ61: 0 | AQA61: 0 | AQB61: 0 | AQC61: 0 | AQD61: 0 | AQE61: 0 | AQF61: 0 | AQG61: 0 | AQH61: 0 | AQI61: 0 | AQJ61: 0 | AQK61: 0 | AQL61: 0 | AQM61: 0 | AQN61: 0 | AQO61: 0 | AQP61: 0 | AQQ61: 0 | AQR61: 0 | AQS61: 0 | AQT61: 0 | AQU61: 0 | AQV61: 0 | AQW61: 0 | AQX61: 0 | AQY61: 0 | AQZ61: 0 | ARA61: 0 | ARB61: 0 | ARC61: 0 | ARD61: 0 | ARE61: 0 | ARF61: 0 | ARG61: 0 | ARH61: 0 | ARI61: 0 | ARJ61: 0 | ARK61: 0 | ARL61: 0 | ARM61: 0 | ARN61: 0 | ARO61: 0 | ARP61: 0 | ARQ61: =ARQ30 -> 0 | ARR61: 0 | ARS61: 0 | ART61: 0 | ARU61: 0 | ARV61: 0 | ARW61: 0 | ARX61: 0 | ARY61: 0 | ARZ61: 0 | ASA61: 0 | ASB61: 0 | ASC61: 0 | ASD61: 0 | ASE61: 0 | ASF61: 0 | ASG61: 0 | ASH61: 0 | ASI61: 0 | ASJ61: 0 | ASK61: 0 | ASL61: 0 | ASM61: 0 | ASN61: 0 | ASO61: 0 | ASP61: 0 | ASQ61: 0 | ASR61: 0 | ASS61: 0 | AST61: 0 | ASU61: 0 | ASV61: 0 | ASW61: 0 | ASX61: 0 | ASY61: 0 | ASZ61: 0 | ATA61: 0 | ATB61: 0 | ATC61: 0 | ATD61: 0 | ATE61: 0 | ATF61: 0 | ATG61: 0 | ATH61: 0 | ATI61: 0 | ATJ61: 0 | ATK61: 0 | ATL61: 0 | ATM61: 0 | ATN61: 0 | ATO61: 0 | ATP61: 0 | ATQ61: 0 | ATR61: 0 | ATS61: 0 | ATT61: 0 | ATU61: 0 | ATV61: 0 | ATW61: 0 | ATX61: 0 | ATY61: 0 | ATZ61: 0 | AUA61: 0 | AUB61: 0 | AUC61: =AUC30 -> 0 | AUD61: 0 | AUE61: 0 | AUF61: 0 | AUG61: 0 | AUH61: 0 | AUI61: 0 | AUJ61: 0 | AUK61: 0 | AUL61: 0 | AUM61: 0 | AUN61: 0 | AUO61: 0 | AUP61: 0 | AUQ61: 0 | AUR61: 0 | AUS61: 0 | AUT61: 0 | AUU61: 0 | AUV61: 0 | AUW61: 0 | AUX61: 0 | AUY61: 0 | AUZ61: 0 | AVA61: 0 | AVB61: 0 | AVC61: 0 | AVD61: 0 | AVE61: 0 | AVF61: 0 | AVG61: 0 | AVH61: 0 | AVI61: 0 | AVJ61: 0 | AVK61: 0 | AVL61: 0 | AVM61: 0 | AVN61: 0 | AVO61: 0 | AVP61: 0 | AVQ61: 0 | AVR61: 0 | AVS61: 0 | AVT61: 0 | AVU61: 0 | AVV61: 0 | AVW61: 0 | AVX61: 0 | AVY61: 0 | AVZ61: 0 | AWA61: 0 | AWB61: 0 | AWC61: 0 | AWD61: 0 | AWE61: 0 | AWF61: 0 | AWG61: 0 | AWH61: 0 | AWI61: 0 | AWJ61: 0 | AWK61: 0 | AWL61: 0 | AWM61: 0 | AWN61: 0 | AWO61: =AWO30 -> 0 | AWP61: 0 | AWQ61: 0 | AWR61: 0 | AWS61: 0 | AWT61: 0 | AWU61: 0 | AWV61: 0 | AWW61: 0 | AWX61: 0 | AWY61: 0 | AWZ61: 0 | AXA61: 0 | AXB61: 0 | AXC61: 0 | AXD61: 0 | AXE61: 0 | AXF61: 0 | AXG61: 0 | AXH61: 0 | AXI61: 0 | AXJ61: 0 | AXK61: 0 | AXL61: 0 | AXM61: 0 | AXN61: 0 | AXO61: 0 | AXP61: 0 | AXQ61: 0 | AXR61: 0 | AXS61: 0 | AXT61: 0 | AXU61: 0 | AXV61: 0 | AXW61: 0 | AXX61: 0 | AXY61: 0 | AXZ61: 0 | AYA61: 0 | AYB61: 0 | AYC61: 0 | AYD61: 0 | AYE61: 0 | AYF61: 0 | AYG61: 0 | AYH61: 0 | AYI61: 0 | AYJ61: 0 | AYK61: 0 | AYL61: 0 | AYM61: 0 | AYN61: 0 | AYO61: 0 | AYP61: 0 | AYQ61: 0 | AYR61: 0 | AYS61: 0 | AYT61: 0 | AYU61: 0 | AYV61: 0 | AYW61: 0 | AYX61: 0 | AYY61: 0 | AYZ61: 0 | AZA61: =AZA30 -> 0 | AZB61: 0 | AZC61: 0 | AZD61: 0 | AZE61: 0 | AZF61: 0 | AZG61: 0 | AZH61: 0 | AZI61: 0 | AZJ61: 0 | AZK61: 0 | AZL61: 0 | AZM61: 0 | AZN61: 0 | AZO61: 0 | AZP61: 0 | AZQ61: 0 | AZR61: 0 | AZS61: 0 | AZT61: 0 | AZU61: 0 | AZV61: 0 | AZW61: 0 | AZX61: 0 | AZY61: 0 | AZZ61: 0 | BAA61: 0 | BAB61: 0 | BAC61: 0 | BAD61: 0 | BAE61: 0 | BAF61: 0 | BAG61: 0 | BAH61: 0 | BAI61: 0 | BAJ61: 0 | BAK61: 0 | BAL61: 0 | BAM61: 0 | BAN61: 0 | BAO61: 0 | BAP61: 0 | BAQ61: 0 | BAR61: 0 | BAS61: 0 | BAT61: 0 | BAU61: 0 | BAV61: 0 | BAW61: 0 | BAX61: 0 | BAY61: 0 | BAZ61: 0 | BBA61: 0 | BBB61: 0 | BBC61: 0 | BBD61: 0 | BBE61: 0 | BBF61: 0 | BBG61: 0 | BBH61: 0 | BBI61: 0 | BBJ61: 0 | BBK61: 0 | BBL61: 0 | BBM61: =BBM30 -> 0 | BBN61: 0 | BBO61: 0 | BBP61: 0 | BBQ61: 0 | BBR61: 0 | BBS61: 0 | BBT61: 0 | BBU61: 0 | BBV61: 0 | BBW61: 0 | BBX61: 0 | BBY61: 0 | BBZ61: 0 | BCA61: 0 | BCB61: 0 | BCC61: 0 | BCD61: 0 | BCE61: 0 | BCF61: 0 | BCG61: 0 | BCH61: 0 | BCI61: 0 | BCJ61: 0 | BCK61: 0 | BCL61: 0 | BCM61: 0 | BCN61: 0 | BCO61: 0 | BCP61: 0 | BCQ61: 0 | BCR61: 0 | BCS61: 0 | BCT61: 0 | BCU61: 0 | BCV61: 0 | BCW61: 0 | BCX61: 0 | BCY61: 0 | BCZ61: 0 | BDA61: 0 | BDB61: 0 | BDC61: 0 | BDD61: 0 | BDE61: 0 | BDF61: 0 | BDG61: 0 | BDH61: 0 | BDI61: 0 | BDJ61: 0 | BDK61: 0 | BDL61: 0 | BDM61: 0 | BDN61: 0 | BDO61: 0 | BDP61: 0 | BDQ61: 0 | BDR61: 0 | BDS61: 0 | BDT61: 0 | BDU61: 0 | BDV61: 0 | BDW61: 0 | BDX61: 0 | BDY61: =BDY30 -> 0 | BDZ61: 0 | BEA61: 0 | BEB61: 0 | BEC61: 0 | BED61: 0 | BEE61: 0 | BEF61: 0 | BEG61: 0 | BEH61: 0 | BEI61: 0 | BEJ61: 0 | BEK61: 0 | BEL61: 0 | BEM61: 0 | BEN61: 0 | BEO61: 0 | BEP61: 0 | BEQ61: 0 | BER61: 0 | BES61: 0 | BET61: 0 | BEU61: 0 | BEV61: 0 | BEW61: 0 | BEX61: 0 | BEY61: 0 | BEZ61: 0 | BFA61: 0 | BFB61: 0 | BFC61: 0 | BFD61: 0 | BFE61: 0 | BFF61: 0 | BFG61: 0 | BFH61: 0 | BFI61: 0 | BFJ61: 0 | BFK61: 0 | BFL61: 0 | BFM61: 0 | BFN61: 0 | BFO61: 0 | BFP61: 0 | BFQ61: 0 | BFR61: 0 | BFS61: 0 | BFT61: 0 | BFU61: 0 | BFV61: 0 | BFW61: 0 | BFX61: 0 | BFY61: 0 | BFZ61: 0 | BGA61: 0 | BGB61: 0 | BGC61: 0 | BGD61: 0 | BGE61: 0 | BGF61: 0 | BGG61: 0 | BGH61: 0 | BGI61: 0 | BGJ61: 0 | BGK61: =BGK30 -> 0 | BGL61: 0 | BGM61: 0 | BGN61: 0 | BGO61: 0 | BGP61: 0 | BGQ61: 0 | BGR61: 0 | BGS61: 0 | BGT61: 0 | BGU61: 0 | BGV61: 0 | BGW61: 0 | BGX61: 0 | BGY61: 0 | BGZ61: 0 | BHA61: 0 | BHB61: 0 | BHC61: 0 | BHD61: 0 | BHE61: 0 | BHF61: 0 | BHG61: 0 | BHH61: 0 | BHI61: 0 | BHJ61: 0 | BHK61: 0 | BHL61: 0 | BHM61: 0 | BHN61: 0 | BHO61: 0 | BHP61: 0 | BHQ61: 0 | BHR61: 0 | BHS61: 0 | BHT61: 0 | BHU61: 0 | BHV61: 0 | BHW61: 0 | BHX61: 0 | BHY61: 0 | BHZ61: 0 | BIA61: 0 | BIB61: 0 | BIC61: 0 | BID61: 0 | BIE61: 0 | BIF61: 0 | BIG61: 0 | BIH61: 0 | BII61: 0 | BIJ61: 0 | BIK61: 0 | BIL61: 0 | BIM61: 0 | BIN61: 0 | BIO61: 0 | BIP61: 0 | BIQ61: 0 | BIR61: 0 | BIS61: 0 | BIT61: 0 | BIU61: 0 | BIV61: 0 | BIW61: =BIW30 -> 0 | BIX61: 0 | BIY61: 0 | BIZ61: 0 | BJA61: 0 | BJB61: 0 | BJC61: 0 | BJD61: 0 | BJE61: 0 | BJF61: 0 | BJG61: 0 | BJH61: 0 | BJI61: 0 | BJJ61: 0 | BJK61: 0 | BJL61: 0 | BJM61: 0 | BJN61: 0 | BJO61: 0 | BJP61: 0 | BJQ61: 0 | BJR61: 0 | BJS61: 0 | BJT61: 0 | BJU61: 0 | BJV61: 0 | BJW61: 0 | BJX61: 0 | BJY61: 0 | BJZ61: 0 | BKA61: 0 | BKB61: 0 | BKC61: 0 | BKD61: 0 | BKE61: 0 | BKF61: 0 | BKG61: 0 | BKH61: 0 | BKI61: 0 | BKJ61: 0 | BKK61: 0 | BKL61: 0 | BKM61: 0 | BKN61: 0 | BKO61: 0 | BKP61: 0 | BKQ61: 0 | BKR61: 0 | BKS61: 0 | BKT61: 0 | BKU61: 0 | BKV61: 0 | BKW61: 0 | BKX61: 0 | BKY61: 0 | BKZ61: 0 | BLA61: 0 | BLB61: 0 | BLC61: 0 | BLD61: 0 | BLE61: 0 | BLF61: 0 | BLG61: 0 | BLH61: 0 | BLI61: =BLI30 -> 0 | BLJ61: 0 | BLK61: 0 | BLL61: 0 | BLM61: 0 | BLN61: 0 | BLO61: 0 | BLP61: 0 | BLQ61: 0 | BLR61: 0 | BLS61: 0 | BLT61: 0 | BLU61: 0 | BLV61: 0 | BLW61: 0 | BLX61: 0 | BLY61: 0 | BLZ61: 0 | BMA61: 0 | BMB61: 0 | BMC61: 0 | BMD61: 0 | BME61: 0 | BMF61: 0 | BMG61: 0 | BMH61: 0 | BMI61: 0 | BMJ61: 0 | BMK61: 0 | BML61: 0 | BMM61: 0 | BMN61: 0 | BMO61: 0 | BMP61: 0 | BMQ61: 0 | BMR61: 0 | BMS61: 0 | BMT61: 0 | BMU61: 0 | BMV61: 0 | BMW61: 0 | BMX61: 0 | BMY61: 0 | BMZ61: 0 | BNA61: 0 | BNB61: 0 | BNC61: 0 | BND61: 0 | BNE61: 0 | BNF61: 0 | BNG61: 0 | BNH61: 0 | BNI61: 0 | BNJ61: 0 | BNK61: 0 | BNL61: 0 | BNM61: 0 | BNN61: 0 | BNO61: 0 | BNP61: 0 | BNQ61: 0 | BNR61: 0 | BNS61: 0 | BNT61: 0 | BNU61: =BNU30 -> 0 | BNV61: 0 | BNW61: 0 | BNX61: 0 | BNY61: 0 | BNZ61: 0 | BOA61: 0 | BOB61: 0 | BOC61: 0 | BOD61: 0 | BOE61: 0 | BOF61: 0 | BOG61: 0 | BOH61: 0 | BOI61: 0 | BOJ61: 0 | BOK61: 0 | BOL61: 0 | BOM61: 0 | BON61: 0 | BOO61: 0 | BOP61: 0 | BOQ61: 0 | BOR61: 0 | BOS61: 0 | BOT61: 0 | BOU61: 0 | BOV61: 0 | BOW61: 0 | BOX61: 0 | BOY61: 0 | BOZ61: 0 | BPA61: 0 | BPB61: 0 | BPC61: 0 | BPD61: 0 | BPE61: 0 | BPF61: 0 | BPG61: 0 | BPH61: 0 | BPI61: 0 | BPJ61: 0 | BPK61: 0 | BPL61: 0 | BPM61: 0 | BPN61: 0 | BPO61: 0 | BPP61: 0 | BPQ61: 0 | BPR61: 0 | BPS61: 0 | BPT61: 0 | BPU61: 0 | BPV61: 0 | BPW61: 0 | BPX61: 0 | BPY61: 0 | BPZ61: 0 | BQA61: 0 | BQB61: 0 | BQC61: 0 | BQD61: 0 | BQE61: 0 | BQF61: 0 | BQG61: =BQG30 -> 0 | BQH61: 0 | BQI61: 0 | BQJ61: 0 | BQK61: 0 | BQL61: 0 | BQM61: 0 | BQN61: 0 | BQO61: 0 | BQP61: 0 | BQQ61: 0 | BQR61: 0 | BQS61: 0 | BQT61: 0 | BQU61: 0 | BQV61: 0 | BQW61: 0 | BQX61: 0 | BQY61: 0 | BQZ61: 0 | BRA61: 0 | BRB61: 0 | BRC61: 0 | BRD61: 0 | BRE61: 0 | BRF61: 0 | BRG61: 0 | BRH61: 0 | BRI61: 0 | BRJ61: 0 | BRK61: 0 | BRL61: 0 | BRM61: 0 | BRN61: 0 | BRO61: 0 | BRP61: 0 | BRQ61: 0 | BRR61: 0 | BRS61: 0 | BRT61: 0 | BRU61: 0 | BRV61: 0 | BRW61: 0 | BRX61: 0 | BRY61: 0 | BRZ61: 0 | BSA61: 0 | BSB61: 0 | BSC61: 0 | BSD61: 0 | BSE61: 0 | BSF61: 0 | BSG61: 0 | BSH61: 0 | BSI61: 0 | BSJ61: 0 | BSK61: 0 | BSL61: 0 | BSM61: 0 | BSN61: 0 | BSO61: 0 | BSP61: 0 | BSQ61: 0 | BSR61: 0 | BSS61: =BSS30 -> 0 | BST61: 0 | BSU61: 0 | BSV61: 0 | BSW61: 0 | BSX61: 0 | BSY61: 0 | BSZ61: 0 | BTA61: 0 | BTB61: 0 | BTC61: 0 | BTD61: 0 | BTE61: 0 | BTF61: 0 | BTG61: 0 | BTH61: 0 | BTI61: 0 | BTJ61: 0 | BTK61: 0 | BTL61: 0 | BTM61: 0 | BTN61: 0 | BTO61: 0 | BTP61: 0 | BTQ61: 0 | BTR61: 0 | BTS61: 0 | BTT61: 0 | BTU61: 0 | BTV61: 0 | BTW61: 0 | BTX61: 0 | BTY61: 0 | BTZ61: 0 | BUA61: 0 | BUB61: 0 | BUC61: 0 | BUD61: 0 | BUE61: 0 | BUF61: 0 | BUG61: 0 | BUH61: 0 | BUI61: 0 | BUJ61: 0 | BUK61: 0 | BUL61: 0 | BUM61: 0 | BUN61: 0 | BUO61: 0 | BUP61: 0 | BUQ61: 0 | BUR61: 0 | BUS61: 0 | BUT61: 0 | BUU61: 0 | BUV61: 0 | BUW61: 0 | BUX61: 0 | BUY61: 0 | BUZ61: 0 | BVA61: 0 | BVB61: 0 | BVC61: 0 | BVD61: 0 | BVE61: =BVE30 -> 0 | BVF61: 0 | BVG61: 0 | BVH61: 0 | BVI61: 0 | BVJ61: 0 | BVK61: 0 | BVL61: 0 | BVM61: 0 | BVN61: 0 | BVO61: 0 | BVP61: 0 | BVQ61: 0 | BVR61: 0 | BVS61: 0 | BVT61: 0 | BVU61: 0 | BVV61: 0 | BVW61: 0 | BVX61: 0 | BVY61: 0 | BVZ61: 0 | BWA61: 0 | BWB61: 0 | BWC61: 0 | BWD61: 0 | BWE61: 0 | BWF61: 0 | BWG61: 0 | BWH61: 0 | BWI61: 0 | BWJ61: 0 | BWK61: 0 | BWL61: 0 | BWM61: 0 | BWN61: 0 | BWO61: 0 | BWP61: 0 | BWQ61: 0 | BWR61: 0 | BWS61: 0 | BWT61: 0 | BWU61: 0 | BWV61: 0 | BWW61: 0 | BWX61: 0 | BWY61: 0 | BWZ61: 0 | BXA61: 0 | BXB61: 0 | BXC61: 0 | BXD61: 0 | BXE61: 0 | BXF61: 0 | BXG61: 0 | BXH61: 0 | BXI61: 0 | BXJ61: 0 | BXK61: 0 | BXL61: 0 | BXM61: 0 | BXN61: 0 | BXO61: 0 | BXP61: 0 | BXQ61: =BXQ30 -> 0 | BXR61: 0 | BXS61: 0 | BXT61: 0 | BXU61: 0 | BXV61: 0 | BXW61: 0 | BXX61: 0 | BXY61: 0 | BXZ61: 0 | BYA61: 0 | BYB61: 0 | BYC61: 0 | BYD61: 0 | BYE61: 0 | BYF61: 0 | BYG61: 0 | BYH61: 0 | BYI61: 0 | BYJ61: 0 | BYK61: 0 | BYL61: 0 | BYM61: 0 | BYN61: 0 | BYO61: 0 | BYP61: 0 | BYQ61: 0 | BYR61: 0 | BYS61: 0 | BYT61: 0 | BYU61: 0 | BYV61: 0 | BYW61: 0 | BYX61: 0 | BYY61: 0 | BYZ61: 0 | BZA61: 0 | BZB61: 0 | BZC61: 0 | BZD61: 0 | BZE61: 0 | BZF61: 0 | BZG61: 0 | BZH61: 0 | BZI61: 0 | BZJ61: 0 | BZK61: 0 | BZL61: 0 | BZM61: 0 | BZN61: 0 | BZO61: 0 | BZP61: 0 | BZQ61: 0 | BZR61: 0 | BZS61: 0 | BZT61: 0 | BZU61: 0 | BZV61: 0 | BZW61: 0 | BZX61: 0 | BZY61: 0 | BZZ61: 0 | CAA61: 0 | CAB61: 0 | CAC61: =CAC30 -> 0 | CAD61: 0 | CAE61: 0 | CAF61: 0 | CAG61: 0 | CAH61: 0 | CAI61: 0 | CAJ61: 0 | CAK61: 0 | CAL61: 0 | CAM61: 0 | CAN61: 0 | CAO61: 0 | CAP61: 0 | CAQ61: 0 | CAR61: 0 | CAS61: 0 | CAT61: 0 | CAU61: 0 | CAV61: 0 | CAW61: 0 | CAX61: 0 | CAY61: 0 | CAZ61: 0 | CBA61: 0 | CBB61: 0 | CBC61: 0 | CBD61: 0 | CBE61: 0 | CBF61: 0 | CBG61: 0 | CBH61: 0 | CBI61: 0 | CBJ61: 0 | CBK61: 0 | CBL61: 0 | CBM61: 0 | CBN61: 0 | CBO61: 0 | CBP61: 0 | CBQ61: 0 | CBR61: 0 | CBS61: 0 | CBT61: 0 | CBU61: 0 | CBV61: 0 | CBW61: 0 | CBX61: 0 | CBY61: 0 | CBZ61: 0 | CCA61: 0 | CCB61: 0 | CCC61: 0 | CCD61: 0 | CCE61: 0 | CCF61: 0 | CCG61: 0 | CCH61: 0 | CCI61: 0 | CCJ61: 0 | CCK61: 0 | CCL61: 0 | CCM61: 0 | CCN61: 0 | CCO61: =CCO30 -> 0 | CCP61: 0 | CCQ61: 0 | CCR61: 0 | CCS61: 0 | CCT61: 0 | CCU61: 0 | CCV61: 0 | CCW61: 0 | CCX61: 0 | CCY61: 0 | CCZ61: 0 | CDA61: 0 | CDB61: 0 | CDC61: 0 | CDD61: 0 | CDE61: 0 | CDF61: 0 | CDG61: 0 | CDH61: 0 | CDI61: 0 | CDJ61: 0 | CDK61: 0 | CDL61: 0 | CDM61: 0 | CDN61: 0 | CDO61: 0 | CDP61: 0 | CDQ61: 0 | CDR61: 0 | CDS61: 0 | CDT61: 0 | CDU61: 0 | CDV61: 0 | CDW61: 0 | CDX61: 0 | CDY61: 0 | CDZ61: 0 | CEA61: 0 | CEB61: 0 | CEC61: 0 | CED61: 0 | CEE61: 0 | CEF61: 0 | CEG61: 0 | CEH61: 0 | CEI61: 0 | CEJ61: 0 | CEK61: 0 | CEL61: 0 | CEM61: 0 | CEN61: 0 | CEO61: 0 | CEP61: 0 | CEQ61: 0 | CER61: 0 | CES61: 0 | CET61: 0 | CEU61: 0 | CEV61: 0 | CEW61: 0 | CEX61: 0 | CEY61: 0 | CEZ61: 0 | CFA61: =CFA30 -> 0 | CFB61: 0 | CFC61: 0 | CFD61: 0 | CFE61: 0 | CFF61: 0 | CFG61: 0 | CFH61: 0 | CFI61: 0 | CFJ61: 0 | CFK61: 0 | CFL61: 0 | CFM61: 0 | CFN61: 0 | CFO61: 0 | CFP61: 0 | CFQ61: 0 | CFR61: 0 | CFS61: 0 | CFT61: 0 | CFU61: 0 | CFV61: 0 | CFW61: 0 | CFX61: 0 | CFY61: 0 | CFZ61: 0 | CGA61: 0 | CGB61: 0 | CGC61: 0 | CGD61: 0 | CGE61: 0 | CGF61: 0 | CGG61: 0 | CGH61: 0 | CGI61: 0 | CGJ61: 0 | CGK61: 0 | CGL61: 0 | CGM61: 0 | CGN61: 0 | CGO61: 0 | CGP61: 0 | CGQ61: 0 | CGR61: 0 | CGS61: 0 | CGT61: 0 | CGU61: 0 | CGV61: 0 | CGW61: 0 | CGX61: 0 | CGY61: 0 | CGZ61: 0 | CHA61: 0 | CHB61: 0 | CHC61: 0 | CHD61: 0 | CHE61: 0 | CHF61: 0 | CHG61: 0 | CHH61: 0 | CHI61: 0 | CHJ61: 0 | CHK61: 0 | CHL61: 0 | CHM61: =CHM30 -> 0 | CHN61: 0 | CHO61: 0 | CHP61: 0 | CHQ61: 0 | CHR61: 0 | CHS61: 0 | CHT61: 0 | CHU61: 0 | CHV61: 0 | CHW61: 0 | CHX61: 0 | CHY61: 0 | CHZ61: 0 | CIA61: 0 | CIB61: 0 | CIC61: 0 | CID61: 0 | CIE61: 0 | CIF61: 0 | CIG61: 0 | CIH61: 0 | CII61: 0 | CIJ61: 0 | CIK61: 0 | CIL61: 0 | CIM61: 0 | CIN61: 0 | CIO61: 0 | CIP61: 0 | CIQ61: 0 | CIR61: 0 | CIS61: 0 | CIT61: 0 | CIU61: 0 | CIV61: 0 | CIW61: 0 | CIX61: 0 | CIY61: 0 | CIZ61: 0 | CJA61: 0 | CJB61: 0 | CJC61: 0 | CJD61: 0 | CJE61: 0 | CJF61: 0 | CJG61: 0 | CJH61: 0 | CJI61: 0 | CJJ61: 0 | CJK61: 0 | CJL61: 0 | CJM61: 0 | CJN61: 0 | CJO61: 0 | CJP61: 0 | CJQ61: 0 | CJR61: 0 | CJS61: 0 | CJT61: 0 | CJU61: 0 | CJV61: 0 | CJW61: 0 | CJX61: 0 | CJY61: =CJY30 -> 0 | CJZ61: 0 | CKA61: 0 | CKB61: 0 | CKC61: 0 | CKD61: 0 | CKE61: 0 | CKF61: 0 | CKG61: 0 | CKH61: 0 | CKI61: 0 | CKJ61: 0 | CKK61: 0 | CKL61: 0 | CKM61: 0 | CKN61: 0 | CKO61: 0 | CKP61: 0 | CKQ61: 0 | CKR61: 0 | CKS61: 0 | CKT61: 0 | CKU61: 0 | CKV61: 0 | CKW61: 0 | CKX61: 0 | CKY61: 0 | CKZ61: 0 | CLA61: 0 | CLB61: 0 | CLC61: 0 | CLD61: 0 | CLE61: 0 | CLF61: 0 | CLG61: 0 | CLH61: 0 | CLI61: 0 | CLJ61: 0 | CLK61: 0 | CLL61: 0 | CLM61: 0 | CLN61: 0 | CLO61: 0 | CLP61: 0 | CLQ61: 0 | CLR61: 0 | CLS61: 0 | CLT61: 0 | CLU61: 0 | CLV61: 0 | CLW61: 0 | CLX61: 0 | CLY61: 0 | CLZ61: 0 | CMA61: 0 | CMB61: 0 | CMC61: 0 | CMD61: 0 | CME61: 0 | CMF61: 0 | CMG61: 0 | CMH61: 0 | CMI61: 0 | CMJ61: 0 | CMK61: =CMK30 -> 0 | CML61: 0 | CMM61: 0 | CMN61: 0 | CMO61: 0 | CMP61: 0 | CMQ61: 0 | CMR61: 0 | CMS61: 0 | CMT61: 0 | CMU61: 0 | CMV61: 0 | CMW61: 0 | CMX61: 0 | CMY61: 0 | CMZ61: 0 | CNA61: 0 | CNB61: 0 | CNC61: 0 | CND61: 0 | CNE61: 0 | CNF61: 0 | CNG61: 0 | CNH61: 0 | CNI61: 0 | CNJ61: 0 | CNK61: 0 | CNL61: 0 | CNM61: 0 | CNN61: 0 | CNO61: 0 | CNP61: 0 | CNQ61: 0 | CNR61: 0 | CNS61: 0 | CNT61: 0 | CNU61: 0 | CNV61: 0 | CNW61: 0 | CNX61: 0 | CNY61: 0 | CNZ61: 0 | COA61: 0 | COB61: 0 | COC61: 0 | COD61: 0 | COE61: 0 | COF61: 0 | COG61: 0 | COH61: 0 | COI61: 0 | COJ61: 0 | COK61: 0 | COL61: 0 | COM61: 0 | CON61: 0 | COO61: 0 | COP61: 0 | COQ61: 0 | COR61: 0 | COS61: 0 | COT61: 0 | COU61: 0 | COV61: 0 | COW61: =COW30 -> 0 | COX61: 0 | COY61: 0 | COZ61: 0 | CPA61: 0 | CPB61: 0 | CPC61: 0 | CPD61: 0 | CPE61: 0 | CPF61: 0 | CPG61: 0 | CPH61: 0 | CPI61: 0 | CPJ61: 0 | CPK61: 0 | CPL61: 0 | CPM61: 0 | CPN61: 0 | CPO61: 0 | CPP61: 0 | CPQ61: 0 | CPR61: 0 | CPS61: 0 | CPT61: 0 | CPU61: 0 | CPV61: 0 | CPW61: 0 | CPX61: 0 | CPY61: 0 | CPZ61: 0 | CQA61: 0 | CQB61: 0 | CQC61: 0 | CQD61: 0 | CQE61: 0 | CQF61: 0 | CQG61: 0 | CQH61: 0 | CQI61: 0 | CQJ61: 0 | CQK61: 0 | CQL61: 0 | CQM61: 0 | CQN61: 0 | CQO61: 0 | CQP61: 0 | CQQ61: 0 | CQR61: 0 | CQS61: 0 | CQT61: 0 | CQU61: 0 | CQV61: 0 | CQW61: 0 | CQX61: 0 | CQY61: 0 | CQZ61: 0 | CRA61: 0 | CRB61: 0 | CRC61: 0 | CRD61: 0 | CRE61: 0 | CRF61: 0 | CRG61: 0 | CRH61: 0 | CRI61: =CRI30 -> 0 | CRJ61: 0 | CRK61: 0 | CRL61: 0 | CRM61: 0 | CRN61: 0 | CRO61: 0 | CRP61: 0 | CRQ61: 0 | CRR61: 0 | CRS61: 0 | CRT61: 0 | CRU61: 0 | CRV61: 0 | CRW61: 0 | CRX61: 0 | CRY61: 0 | CRZ61: 0 | CSA61: 0 | CSB61: 0 | CSC61: 0 | CSD61: 0 | CSE61: 0 | CSF61: 0 | CSG61: 0 | CSH61: 0 | CSI61: 0 | CSJ61: 0 | CSK61: 0 | CSL61: 0 | CSM61: 0 | CSN61: 0 | CSO61: 0 | CSP61: 0 | CSQ61: 0 | CSR61: 0 | CSS61: 0 | CST61: 0 | CSU61: 0 | CSV61: 0 | CSW61: 0 | CSX61: 0 | CSY61: 0 | CSZ61: 0 | CTA61: 0 | CTB61: 0 | CTC61: 0 | CTD61: 0 | CTE61: 0 | CTF61: 0 | CTG61: 0 | CTH61: 0 | CTI61: 0 | CTJ61: 0 | CTK61: 0 | CTL61: 0 | CTM61: 0 | CTN61: 0 | CTO61: 0 | CTP61: 0 | CTQ61: 0 | CTR61: 0 | CTS61: 0 | CTT61: 0 | CTU61: =CTU30 -> 0 | CTV61: 0 | CTW61: 0 | CTX61: 0 | CTY61: 0 | CTZ61: 0 | CUA61: 0 | CUB61: 0 | CUC61: 0 | CUD61: 0 | CUE61: 0 | CUF61: 0 | CUG61: 0 | CUH61: 0 | CUI61: 0 | CUJ61: 0 | CUK61: 0 | CUL61: 0 | CUM61: 0 | CUN61: 0 | CUO61: 0 | CUP61: 0 | CUQ61: 0 | CUR61: 0 | CUS61: 0 | CUT61: 0 | CUU61: 0 | CUV61: 0 | CUW61: 0 | CUX61: 0 | CUY61: 0 | CUZ61: 0 | CVA61: 0 | CVB61: 0 | CVC61: 0 | CVD61: 0 | CVE61: 0 | CVF61: 0 | CVG61: 0 | CVH61: 0 | CVI61: 0 | CVJ61: 0 | CVK61: 0 | CVL61: 0 | CVM61: 0 | CVN61: 0 | CVO61: 0 | CVP61: 0 | CVQ61: 0 | CVR61: 0 | CVS61: 0 | CVT61: 0 | CVU61: 0 | CVV61: 0 | CVW61: 0 | CVX61: 0 | CVY61: 0 | CVZ61: 0 | CWA61: 0 | CWB61: 0 | CWC61: 0 | CWD61: 0 | CWE61: 0 | CWF61: 0 | CWG61: =CWG30 -> 0 | CWH61: 0 | CWI61: 0 | CWJ61: 0 | CWK61: 0 | CWL61: 0 | CWM61: 0 | CWN61: 0 | CWO61: 0 | CWP61: 0 | CWQ61: 0 | CWR61: 0 | CWS61: 0 | CWT61: 0 | CWU61: 0 | CWV61: 0 | CWW61: 0 | CWX61: 0 | CWY61: 0 | CWZ61: 0 | CXA61: 0 | CXB61: 0 | CXC61: 0 | CXD61: 0 | CXE61: 0 | CXF61: 0 | CXG61: 0 | CXH61: 0 | CXI61: 0 | CXJ61: 0 | CXK61: 0 | CXL61: 0 | CXM61: 0 | CXN61: 0 | CXO61: 0 | CXP61: 0 | CXQ61: 0 | CXR61: 0 | CXS61: 0 | CXT61: 0 | CXU61: 0 | CXV61: 0 | CXW61: 0 | CXX61: 0 | CXY61: 0 | CXZ61: 0 | CYA61: 0 | CYB61: 0 | CYC61: 0 | CYD61: 0 | CYE61: 0 | CYF61: 0 | CYG61: 0 | CYH61: 0 | CYI61: 0 | CYJ61: 0 | CYK61: 0 | CYL61: 0 | CYM61: 0 | CYN61: 0 | CYO61: 0 | CYP61: 0 | CYQ61: 0 | CYR61: 0 | CYS61: =CYS30 -> 0 | CYT61: 0 | CYU61: 0 | CYV61: 0 | CYW61: 0 | CYX61: 0 | CYY61: 0 | CYZ61: 0 | CZA61: 0 | CZB61: 0 | CZC61: 0 | CZD61: 0 | CZE61: 0 | CZF61: 0 | CZG61: 0 | CZH61: 0 | CZI61: 0 | CZJ61: 0 | CZK61: 0 | CZL61: 0 | CZM61: 0 | CZN61: 0 | CZO61: 0 | CZP61: 0 | CZQ61: 0 | CZR61: 0 | CZS61: 0 | CZT61: 0 | CZU61: 0 | CZV61: 0 | CZW61: 0 | CZX61: 0 | CZY61: 0 | CZZ61: 0 | DAA61: 0 | DAB61: 0 | DAC61: 0 | DAD61: 0 | DAE61: 0 | DAF61: 0 | DAG61: 0 | DAH61: 0 | DAI61: 0 | DAJ61: 0 | DAK61: 0 | DAL61: 0 | DAM61: 0 | DAN61: 0 | DAO61: 0 | DAP61: 0 | DAQ61: 0 | DAR61: 0 | DAS61: 0 | DAT61: 0 | DAU61: 0 | DAV61: 0 | DAW61: 0 | DAX61: 0 | DAY61: 0 | DAZ61: 0 | DBA61: 0 | DBB61: 0 | DBC61: 0 | DBD61: 0 | DBE61: =DBE30 -> 0 | DBF61: 0 | DBG61: 0 | DBH61: 0 | DBI61: 0 | DBJ61: 0 | DBK61: 0 | DBL61: 0 | DBM61: 0 | DBN61: 0 | DBO61: 0 | DBP61: 0 | DBQ61: 0 | DBR61: 0 | DBS61: 0 | DBT61: 0 | DBU61: 0 | DBV61: 0 | DBW61: 0 | DBX61: 0 | DBY61: 0 | DBZ61: 0 | DCA61: 0 | DCB61: 0 | DCC61: 0 | DCD61: 0 | DCE61: 0 | DCF61: 0 | DCG61: 0 | DCH61: 0 | DCI61: 0 | DCJ61: 0 | DCK61: 0 | DCL61: 0 | DCM61: 0 | DCN61: 0 | DCO61: 0 | DCP61: 0 | DCQ61: 0 | DCR61: 0 | DCS61: 0 | DCT61: 0 | DCU61: 0 | DCV61: 0 | DCW61: 0 | DCX61: 0 | DCY61: 0 | DCZ61: 0 | DDA61: 0 | DDB61: 0 | DDC61: 0 | DDD61: 0 | DDE61: 0 | DDF61: 0 | DDG61: 0 | DDH61: 0 | DDI61: 0 | DDJ61: 0 | DDK61: 0 | DDL61: 0 | DDM61: 0 | DDN61: 0 | DDO61: 0 | DDP61: 0 | DDQ61: =DDQ30 -> 0 | DDR61: 0 | DDS61: 0 | DDT61: 0 | DDU61: 0 | DDV61: 0 | DDW61: 0 | DDX61: 0 | DDY61: 0 | DDZ61: 0 | DEA61: 0 | DEB61: 0 | DEC61: 0 | DED61: 0 | DEE61: 0 | DEF61: 0 | DEG61: 0 | DEH61: 0 | DEI61: 0 | DEJ61: 0 | DEK61: 0 | DEL61: 0 | DEM61: 0 | DEN61: 0 | DEO61: 0 | DEP61: 0 | DEQ61: 0 | DER61: 0 | DES61: 0 | DET61: 0 | DEU61: 0 | DEV61: 0 | DEW61: 0 | DEX61: 0 | DEY61: 0 | DEZ61: 0 | DFA61: 0 | DFB61: 0 | DFC61: 0 | DFD61: 0 | DFE61: 0 | DFF61: 0 | DFG61: 0 | DFH61: 0 | DFI61: 0 | DFJ61: 0 | DFK61: 0 | DFL61: 0 | DFM61: 0 | DFN61: 0 | DFO61: 0 | DFP61: 0 | DFQ61: 0 | DFR61: 0 | DFS61: 0 | DFT61: 0 | DFU61: 0 | DFV61: 0 | DFW61: 0 | DFX61: 0 | DFY61: 0 | DFZ61: 0 | DGA61: 0 | DGB61: 0 | DGC61: =DGC30 -> 0 | DGD61: 0 | DGE61: 0 | DGF61: 0 | DGG61: 0 | DGH61: 0 | DGI61: 0 | DGJ61: 0 | DGK61: 0 | DGL61: 0 | DGM61: 0 | DGN61: 0 | DGO61: 0 | DGP61: 0 | DGQ61: 0 | DGR61: 0 | DGS61: 0 | DGT61: 0 | DGU61: 0 | DGV61: 0 | DGW61: 0 | DGX61: 0 | DGY61: 0 | DGZ61: 0 | DHA61: 0 | DHB61: 0 | DHC61: 0 | DHD61: 0 | DHE61: 0 | DHF61: 0 | DHG61: 0 | DHH61: 0 | DHI61: 0 | DHJ61: 0 | DHK61: 0 | DHL61: 0 | DHM61: 0 | DHN61: 0 | DHO61: 0 | DHP61: 0 | DHQ61: 0 | DHR61: 0 | DHS61: 0 | DHT61: 0 | DHU61: 0 | DHV61: 0 | DHW61: 0 | DHX61: 0 | DHY61: 0 | DHZ61: 0 | DIA61: 0 | DIB61: 0 | DIC61: 0 | DID61: 0 | DIE61: 0 | DIF61: 0 | DIG61: 0 | DIH61: 0 | DII61: 0 | DIJ61: 0 | DIK61: 0 | DIL61: 0 | DIM61: 0 | DIN61: 0 | DIO61: =DIO30 -> 0 | DIP61: 0 | DIQ61: 0 | DIR61: 0 | DIS61: 0 | DIT61: 0 | DIU61: 0 | DIV61: 0 | DIW61: 0 | DIX61: 0 | DIY61: 0 | DIZ61: 0 | DJA61: 0 | DJB61: 0 | DJC61: 0 | DJD61: 0 | DJE61: 0 | DJF61: 0 | DJG61: 0 | DJH61: 0 | DJI61: 0 | DJJ61: 0 | DJK61: 0 | DJL61: 0 | DJM61: 0 | DJN61: 0 | DJO61: 0 | DJP61: 0 | DJQ61: 0 | DJR61: 0 | DJS61: 0 | DJT61: 0 | DJU61: 0 | DJV61: 0 | DJW61: 0 | DJX61: 0 | DJY61: 0 | DJZ61: 0 | DKA61: 0 | DKB61: 0 | DKC61: 0 | DKD61: 0 | DKE61: 0 | DKF61: 0 | DKG61: 0 | DKH61: 0 | DKI61: 0 | DKJ61: 0 | DKK61: 0 | DKL61: 0 | DKM61: 0 | DKN61: 0 | DKO61: 0 | DKP61: 0 | DKQ61: 0 | DKR61: 0 | DKS61: 0 | DKT61: 0 | DKU61: 0 | DKV61: 0 | DKW61: 0 | DKX61: 0 | DKY61: 0 | DKZ61: 0 | DLA61: =DLA30 -> 0 | DLB61: 0 | DLC61: 0 | DLD61: 0 | DLE61: 0 | DLF61: 0 | DLG61: 0 | DLH61: 0 | DLI61: 0 | DLJ61: 0 | DLK61: 0 | DLL61: 0 | DLM61: 0 | DLN61: 0 | DLO61: 0 | DLP61: 0 | DLQ61: 0 | DLR61: 0 | DLS61: 0 | DLT61: 0 | DLU61: 0 | DLV61: 0 | DLW61: 0 | DLX61: 0 | DLY61: 0 | DLZ61: 0 | DMA61: 0 | DMB61: 0 | DMC61: 0 | DMD61: 0 | DME61: 0 | DMF61: 0 | DMG61: 0 | DMH61: 0 | DMI61: 0 | DMJ61: 0 | DMK61: 0 | DML61: 0 | DMM61: 0 | DMN61: 0 | DMO61: 0 | DMP61: 0 | DMQ61: 0 | DMR61: 0 | DMS61: 0 | DMT61: 0 | DMU61: 0 | DMV61: 0 | DMW61: 0 | DMX61: 0 | DMY61: 0 | DMZ61: 0 | DNA61: 0 | DNB61: 0 | DNC61: 0 | DND61: 0 | DNE61: 0 | DNF61: 0 | DNG61: 0 | DNH61: 0 | DNI61: 0 | DNJ61: 0 | DNK61: 0 | DNL61: 0 | DNM61: =DNM30 -> 0 | DNN61: 0 | DNO61: 0 | DNP61: 0 | DNQ61: 0 | DNR61: 0 | DNS61: 0 | DNT61: 0 | DNU61: 0 | DNV61: 0 | DNW61: 0 | DNX61: 0 | DNY61: 0 | DNZ61: 0 | DOA61: 0 | DOB61: 0 | DOC61: 0 | DOD61: 0 | DOE61: 0 | DOF61: 0 | DOG61: 0 | DOH61: 0 | DOI61: 0 | DOJ61: 0 | DOK61: 0 | DOL61: 0 | DOM61: 0 | DON61: 0 | DOO61: 0 | DOP61: 0 | DOQ61: 0 | DOR61: 0 | DOS61: 0 | DOT61: 0 | DOU61: 0 | DOV61: 0 | DOW61: 0 | DOX61: 0 | DOY61: 0 | DOZ61: 0 | DPA61: 0 | DPB61: 0 | DPC61: 0 | DPD61: 0 | DPE61: 0 | DPF61: 0 | DPG61: 0 | DPH61: 0 | DPI61: 0 | DPJ61: 0 | DPK61: 0 | DPL61: 0 | DPM61: 0 | DPN61: 0 | DPO61: 0 | DPP61: 0 | DPQ61: 0 | DPR61: 0 | DPS61: 0 | DPT61: 0 | DPU61: 0 | DPV61: 0 | DPW61: 0 | DPX61: 0 | DPY61: =DPY30 -> 0 | DPZ61: 0 | DQA61: 0 | DQB61: 0 | DQC61: 0 | DQD61: 0 | DQE61: 0 | DQF61: 0 | DQG61: 0 | DQH61: 0 | DQI61: 0 | DQJ61: 0 | DQK61: 0 | DQL61: 0 | DQM61: 0 | DQN61: 0 | DQO61: 0 | DQP61: 0 | DQQ61: 0 | DQR61: 0 | DQS61: 0 | DQT61: 0 | DQU61: 0 | DQV61: 0 | DQW61: 0 | DQX61: 0 | DQY61: 0 | DQZ61: 0 | DRA61: 0 | DRB61: 0 | DRC61: 0 | DRD61: 0 | DRE61: 0 | DRF61: 0 | DRG61: 0 | DRH61: 0 | DRI61: 0 | DRJ61: 0 | DRK61: 0 | DRL61: 0 | DRM61: 0 | DRN61: 0 | DRO61: 0 | DRP61: 0 | DRQ61: 0 | DRR61: 0 | DRS61: 0 | DRT61: 0 | DRU61: 0 | DRV61: 0 | DRW61: 0 | DRX61: 0 | DRY61: 0 | DRZ61: 0 | DSA61: 0 | DSB61: 0 | DSC61: 0 | DSD61: 0 | DSE61: 0 | DSF61: 0 | DSG61: 0 | DSH61: 0 | DSI61: 0 | DSJ61: 0 | DSK61: =DSK30 -> 0 | DSL61: 0 | DSM61: 0 | DSN61: 0 | DSO61: 0 | DSP61: 0 | DSQ61: 0 | DSR61: 0 | DSS61: 0 | DST61: 0 | DSU61: 0 | DSV61: 0 | DSW61: 0 | DSX61: 0 | DSY61: 0 | DSZ61: 0 | DTA61: 0 | DTB61: 0 | DTC61: 0 | DTD61: 0 | DTE61: 0 | DTF61: 0 | DTG61: 0 | DTH61: 0 | DTI61: 0 | DTJ61: 0 | DTK61: 0 | DTL61: 0 | DTM61: 0 | DTN61: 0 | DTO61: 0 | DTP61: 0 | DTQ61: 0 | DTR61: 0 | DTS61: 0 | DTT61: 0 | DTU61: 0 | DTV61: 0 | DTW61: 0 | DTX61: 0 | DTY61: 0 | DTZ61: 0 | DUA61: 0 | DUB61: 0 | DUC61: 0 | DUD61: 0 | DUE61: 0 | DUF61: 0 | DUG61: 0 | DUH61: 0 | DUI61: 0 | DUJ61: 0 | DUK61: 0 | DUL61: 0 | DUM61: 0 | DUN61: 0 | DUO61: 0 | DUP61: 0 | DUQ61: 0 | DUR61: 0 | DUS61: 0 | DUT61: 0 | DUU61: 0 | DUV61: 0 | DUW61: =DUW30 -> 0 | DUX61: 0 | DUY61: 0 | DUZ61: 0 | DVA61: 0 | DVB61: 0 | DVC61: 0 | DVD61: 0 | DVE61: 0 | DVF61: 0 | DVG61: 0 | DVH61: 0 | DVI61: 0 | DVJ61: 0 | DVK61: 0 | DVL61: 0 | DVM61: 0 | DVN61: 0 | DVO61: 0 | DVP61: 0 | DVQ61: 0 | DVR61: 0 | DVS61: 0 | DVT61: 0 | DVU61: 0 | DVV61: 0 | DVW61: 0 | DVX61: 0 | DVY61: 0 | DVZ61: 0 | DWA61: 0 | DWB61: 0 | DWC61: 0 | DWD61: 0 | DWE61: 0 | DWF61: 0 | DWG61: 0 | DWH61: 0 | DWI61: 0 | DWJ61: 0 | DWK61: 0 | DWL61: 0 | DWM61: 0 | DWN61: 0 | DWO61: 0 | DWP61: 0 | DWQ61: 0 | DWR61: 0 | DWS61: 0 | DWT61: 0 | DWU61: 0 | DWV61: 0 | DWW61: 0 | DWX61: 0 | DWY61: 0 | DWZ61: 0 | DXA61: 0 | DXB61: 0 | DXC61: 0 | DXD61: 0 | DXE61: 0 | DXF61: 0 | DXG61: 0 | DXH61: 0 | DXI61: =DXI30 -> 0 | DXJ61: 0 | DXK61: 0 | DXL61: 0 | DXM61: 0 | DXN61: 0 | DXO61: 0 | DXP61: 0 | DXQ61: 0 | DXR61: 0 | DXS61: 0 | DXT61: 0 | DXU61: 0 | DXV61: 0 | DXW61: 0 | DXX61: 0 | DXY61: 0 | DXZ61: 0 | DYA61: 0 | DYB61: 0 | DYC61: 0 | DYD61: 0 | DYE61: 0 | DYF61: 0 | DYG61: 0 | DYH61: 0 | DYI61: 0 | DYJ61: 0 | DYK61: 0 | DYL61: 0 | DYM61: 0 | DYN61: 0 | DYO61: 0 | DYP61: 0 | DYQ61: 0 | DYR61: 0 | DYS61: 0 | DYT61: 0 | DYU61: 0 | DYV61: 0 | DYW61: 0 | DYX61: 0 | DYY61: 0 | DYZ61: 0 | DZA61: 0 | DZB61: 0 | DZC61: 0 | DZD61: 0 | DZE61: 0 | DZF61: 0 | DZG61: 0 | DZH61: 0 | DZI61: 0 | DZJ61: 0 | DZK61: 0 | DZL61: 0 | DZM61: 0 | DZN61: 0 | DZO61: 0 | DZP61: 0 | DZQ61: 0 | DZR61: 0 | DZS61: 0 | DZT61: 0 | DZU61: =DZU30 -> 0 | DZV61: 0 | DZW61: 0 | DZX61: 0 | DZY61: 0 | DZZ61: 0 | EAA61: 0 | EAB61: 0 | EAC61: 0 | EAD61: 0 | EAE61: 0 | EAF61: 0 | EAG61: 0 | EAH61: 0 | EAI61: 0 | EAJ61: 0 | EAK61: 0 | EAL61: 0 | EAM61: 0 | EAN61: 0 | EAO61: 0 | EAP61: 0 | EAQ61: 0 | EAR61: 0 | EAS61: 0 | EAT61: 0 | EAU61: 0 | EAV61: 0 | EAW61: 0 | EAX61: 0 | EAY61: 0 | EAZ61: 0 | EBA61: 0 | EBB61: 0 | EBC61: 0 | EBD61: 0 | EBE61: 0 | EBF61: 0 | EBG61: 0 | EBH61: 0 | EBI61: 0 | EBJ61: 0 | EBK61: 0 | EBL61: 0 | EBM61: 0 | EBN61: 0 | EBO61: 0 | EBP61: 0 | EBQ61: 0 | EBR61: 0 | EBS61: 0 | EBT61: 0 | EBU61: 0 | EBV61: 0 | EBW61: 0 | EBX61: 0 | EBY61: 0 | EBZ61: 0 | ECA61: 0 | ECB61: 0 | ECC61: 0 | ECD61: 0 | ECE61: 0 | ECF61: 0 | ECG61: =ECG30 -> 0 | ECH61: 0 | ECI61: 0 | ECJ61: 0 | ECK61: 0 | ECL61: 0 | ECM61: 0 | ECN61: 0 | ECO61: 0 | ECP61: 0 | ECQ61: 0 | ECR61: 0 | ECS61: 0 | ECT61: 0 | ECU61: 0 | ECV61: 0 | ECW61: 0 | ECX61: 0 | ECY61: 0 | ECZ61: 0 | EDA61: 0 | EDB61: 0 | EDC61: 0 | EDD61: 0 | EDE61: 0 | EDF61: 0 | EDG61: 0 | EDH61: 0 | EDI61: 0 | EDJ61: 0 | EDK61: 0 | EDL61: 0 | EDM61: 0 | EDN61: 0 | EDO61: 0 | EDP61: 0 | EDQ61: 0 | EDR61: 0 | EDS61: 0 | EDT61: 0 | EDU61: 0 | EDV61: 0 | EDW61: 0 | EDX61: 0 | EDY61: 0 | EDZ61: 0 | EEA61: 0 | EEB61: 0 | EEC61: 0 | EED61: 0 | EEE61: 0 | EEF61: 0 | EEG61: 0 | EEH61: 0 | EEI61: 0 | EEJ61: 0 | EEK61: 0 | EEL61: 0 | EEM61: 0 | EEN61: 0 | EEO61: 0 | EEP61: 0 | EEQ61: 0 | EER61: 0 | EES61: =EES30 -> 0 | EET61: 0 | EEU61: 0 | EEV61: 0 | EEW61: 0 | EEX61: 0 | EEY61: 0 | EEZ61: 0 | EFA61: 0 | EFB61: 0 | EFC61: 0 | EFD61: 0 | EFE61: 0 | EFF61: 0 | EFG61: 0 | EFH61: 0 | EFI61: 0 | EFJ61: 0 | EFK61: 0 | EFL61: 0 | EFM61: 0 | EFN61: 0 | EFO61: 0 | EFP61: 0 | EFQ61: 0 | EFR61: 0 | EFS61: 0 | EFT61: 0 | EFU61: 0 | EFV61: 0 | EFW61: 0 | EFX61: 0 | EFY61: 0 | EFZ61: 0 | EGA61: 0 | EGB61: 0 | EGC61: 0 | EGD61: 0 | EGE61: 0 | EGF61: 0 | EGG61: 0 | EGH61: 0 | EGI61: 0 | EGJ61: 0 | EGK61: 0 | EGL61: 0 | EGM61: 0 | EGN61: 0 | EGO61: 0 | EGP61: 0 | EGQ61: 0 | EGR61: 0 | EGS61: 0 | EGT61: 0 | EGU61: 0 | EGV61: 0 | EGW61: 0 | EGX61: 0 | EGY61: 0 | EGZ61: 0 | EHA61: 0 | EHB61: 0 | EHC61: 0 | EHD61: 0 | EHE61: =EHE30 -> 0 | EHF61: 0 | EHG61: 0 | EHH61: 0 | EHI61: 0 | EHJ61: 0 | EHK61: 0 | EHL61: 0 | EHM61: 0 | EHN61: 0 | EHO61: 0 | EHP61: 0 | EHQ61: 0 | EHR61: 0 | EHS61: 0 | EHT61: 0 | EHU61: 0 | EHV61: 0 | EHW61: 0 | EHX61: 0 | EHY61: 0 | EHZ61: 0 | EIA61: 0 | EIB61: 0 | EIC61: 0 | EID61: 0 | EIE61: 0 | EIF61: 0 | EIG61: 0 | EIH61: 0 | EII61: 0 | EIJ61: 0 | EIK61: 0 | EIL61: 0 | EIM61: 0 | EIN61: 0 | EIO61: 0 | EIP61: 0 | EIQ61: 0 | EIR61: 0 | EIS61: 0 | EIT61: 0 | EIU61: 0 | EIV61: 0 | EIW61: 0 | EIX61: 0 | EIY61: 0 | EIZ61: 0 | EJA61: 0 | EJB61: 0 | EJC61: 0 | EJD61: 0 | EJE61: 0 | EJF61: 0 | EJG61: 0 | EJH61: 0 | EJI61: 0 | EJJ61: 0 | EJK61: 0 | EJL61: 0 | EJM61: 0 | EJN61: 0 | EJO61: 0 | EJP61: 0 | EJQ61: =EJQ30 -> 0 | EJR61: 0 | EJS61: 0 | EJT61: 0 | EJU61: 0 | EJV61: 0 | EJW61: 0 | EJX61: 0 | EJY61: 0 | EJZ61: 0 | EKA61: 0 | EKB61: 0 | EKC61: 0 | EKD61: 0 | EKE61: 0 | EKF61: 0 | EKG61: 0 | EKH61: 0 | EKI61: 0 | EKJ61: 0 | EKK61: 0 | EKL61: 0 | EKM61: 0 | EKN61: 0 | EKO61: 0 | EKP61: 0 | EKQ61: 0 | EKR61: 0 | EKS61: 0 | EKT61: 0 | EKU61: 0 | EKV61: 0 | EKW61: 0 | EKX61: 0 | EKY61: 0 | EKZ61: 0 | ELA61: 0 | ELB61: 0 | ELC61: 0 | ELD61: 0 | ELE61: 0 | ELF61: 0 | ELG61: 0 | ELH61: 0 | ELI61: 0 | ELJ61: 0 | ELK61: 0 | ELL61: 0 | ELM61: 0 | ELN61: 0 | ELO61: 0 | ELP61: 0 | ELQ61: 0 | ELR61: 0 | ELS61: 0 | ELT61: 0 | ELU61: 0 | ELV61: 0 | ELW61: 0 | ELX61: 0 | ELY61: 0 | ELZ61: 0 | EMA61: 0 | EMB61: 0 | EMC61: =EMC30 -> 0 | EMD61: 0 | EME61: 0 | EMF61: 0 | EMG61: 0 | EMH61: 0 | EMI61: 0 | EMJ61: 0 | EMK61: 0 | EML61: 0 | EMM61: 0 | EMN61: 0 | EMO61: 0 | EMP61: 0 | EMQ61: 0 | EMR61: 0 | EMS61: 0 | EMT61: 0 | EMU61: 0 | EMV61: 0 | EMW61: 0 | EMX61: 0 | EMY61: 0 | EMZ61: 0 | ENA61: 0 | ENB61: 0 | ENC61: 0 | END61: 0 | ENE61: 0 | ENF61: 0 | ENG61: 0 | ENH61: 0 | ENI61: 0 | ENJ61: 0 | ENK61: 0 | ENL61: 0 | ENM61: 0 | ENN61: 0 | ENO61: 0 | ENP61: 0 | ENQ61: 0 | ENR61: 0 | ENS61: 0 | ENT61: 0 | ENU61: 0 | ENV61: 0 | ENW61: 0 | ENX61: 0 | ENY61: 0 | ENZ61: 0 | EOA61: 0 | EOB61: 0 | EOC61: 0 | EOD61: 0 | EOE61: 0 | EOF61: 0 | EOG61: 0 | EOH61: 0 | EOI61: 0 | EOJ61: 0 | EOK61: 0 | EOL61: 0 | EOM61: 0 | EON61: 0 | EOO61: =EOO30 -> 0 | EOP61: 0 | EOQ61: 0 | EOR61: 0 | EOS61: 0 | EOT61: 0 | EOU61: 0 | EOV61: 0 | EOW61: 0 | EOX61: 0 | EOY61: 0 | EOZ61: 0 | EPA61: 0 | EPB61: 0 | EPC61: 0 | EPD61: 0 | EPE61: 0 | EPF61: 0 | EPG61: 0 | EPH61: 0 | EPI61: 0 | EPJ61: 0 | EPK61: 0 | EPL61: 0 | EPM61: 0 | EPN61: 0 | EPO61: 0 | EPP61: 0 | EPQ61: 0 | EPR61: 0 | EPS61: 0 | EPT61: 0 | EPU61: 0 | EPV61: 0 | EPW61: 0 | EPX61: 0 | EPY61: 0 | EPZ61: 0 | EQA61: 0 | EQB61: 0 | EQC61: 0 | EQD61: 0 | EQE61: 0 | EQF61: 0 | EQG61: 0 | EQH61: 0 | EQI61: 0 | EQJ61: 0 | EQK61: 0 | EQL61: 0 | EQM61: 0 | EQN61: 0 | EQO61: 0 | EQP61: 0 | EQQ61: 0 | EQR61: 0 | EQS61: 0 | EQT61: 0 | EQU61: 0 | EQV61: 0 | EQW61: 0 | EQX61: 0 | EQY61: 0 | EQZ61: 0 | ERA61: =ERA30 -> 0 | ERB61: 0 | ERC61: 0 | ERD61: 0 | ERE61: 0 | ERF61: 0 | ERG61: 0 | ERH61: 0 | ERI61: 0 | ERJ61: 0 | ERK61: 0 | ERL61: 0 | ERM61: 0 | ERN61: 0 | ERO61: 0 | ERP61: 0 | ERQ61: 0 | ERR61: 0 | ERS61: 0 | ERT61: 0 | ERU61: 0 | ERV61: 0 | ERW61: 0 | ERX61: 0 | ERY61: 0 | ERZ61: 0 | ESA61: 0 | ESB61: 0 | ESC61: 0 | ESD61: 0 | ESE61: 0 | ESF61: 0 | ESG61: 0 | ESH61: 0 | ESI61: 0 | ESJ61: 0 | ESK61: 0 | ESL61: 0 | ESM61: 0 | ESN61: 0 | ESO61: 0 | ESP61: 0 | ESQ61: 0 | ESR61: 0 | ESS61: 0 | EST61: 0 | ESU61: 0 | ESV61: 0 | ESW61: 0 | ESX61: 0 | ESY61: 0 | ESZ61: 0 | ETA61: 0 | ETB61: 0 | ETC61: 0 | ETD61: 0 | ETE61: 0 | ETF61: 0 | ETG61: 0 | ETH61: 0 | ETI61: 0 | ETJ61: 0 | ETK61: 0 | ETL61: 0 | ETM61: =ETM30 -> 0 | ETN61: 0 | ETO61: 0 | ETP61: 0 | ETQ61: 0 | ETR61: 0 | ETS61: 0 | ETT61: 0 | ETU61: 0 | ETV61: 0 | ETW61: 0 | ETX61: 0 | ETY61: 0 | ETZ61: 0 | EUA61: 0 | EUB61: 0 | EUC61: 0 | EUD61: 0 | EUE61: 0 | EUF61: 0 | EUG61: 0 | EUH61: 0 | EUI61: 0 | EUJ61: 0 | EUK61: 0 | EUL61: 0 | EUM61: 0 | EUN61: 0 | EUO61: 0 | EUP61: 0 | EUQ61: 0 | EUR61: 0 | EUS61: 0 | EUT61: 0 | EUU61: 0 | EUV61: 0 | EUW61: 0 | EUX61: 0 | EUY61: 0 | EUZ61: 0 | EVA61: 0 | EVB61: 0 | EVC61: 0 | EVD61: 0 | EVE61: 0 | EVF61: 0 | EVG61: 0 | EVH61: 0 | EVI61: 0 | EVJ61: 0 | EVK61: 0 | EVL61: 0 | EVM61: 0 | EVN61: 0 | EVO61: 0 | EVP61: 0 | EVQ61: 0 | EVR61: 0 | EVS61: 0 | EVT61: 0 | EVU61: 0 | EVV61: 0 | EVW61: 0 | EVX61: 0 | EVY61: =EVY30 -> 0 | EVZ61: 0 | EWA61: 0 | EWB61: 0 | EWC61: 0 | EWD61: 0 | EWE61: 0 | EWF61: 0 | EWG61: 0 | EWH61: 0 | EWI61: 0 | EWJ61: 0 | EWK61: 0 | EWL61: 0 | EWM61: 0 | EWN61: 0 | EWO61: 0 | EWP61: 0 | EWQ61: 0 | EWR61: 0 | EWS61: 0 | EWT61: 0 | EWU61: 0 | EWV61: 0 | EWW61: 0 | EWX61: 0 | EWY61: 0 | EWZ61: 0 | EXA61: 0 | EXB61: 0 | EXC61: 0 | EXD61: 0 | EXE61: 0 | EXF61: 0 | EXG61: 0 | EXH61: 0 | EXI61: 0 | EXJ61: 0 | EXK61: 0 | EXL61: 0 | EXM61: 0 | EXN61: 0 | EXO61: 0 | EXP61: 0 | EXQ61: 0 | EXR61: 0 | EXS61: 0 | EXT61: 0 | EXU61: 0 | EXV61: 0 | EXW61: 0 | EXX61: 0 | EXY61: 0 | EXZ61: 0 | EYA61: 0 | EYB61: 0 | EYC61: 0 | EYD61: 0 | EYE61: 0 | EYF61: 0 | EYG61: 0 | EYH61: 0 | EYI61: 0 | EYJ61: 0 | EYK61: =EYK30 -> 0 | EYL61: 0 | EYM61: 0 | EYN61: 0 | EYO61: 0 | EYP61: 0 | EYQ61: 0 | EYR61: 0 | EYS61: 0 | EYT61: 0 | EYU61: 0 | EYV61: 0 | EYW61: 0 | EYX61: 0 | EYY61: 0 | EYZ61: 0 | EZA61: 0 | EZB61: 0 | EZC61: 0 | EZD61: 0 | EZE61: 0 | EZF61: 0 | EZG61: 0 | EZH61: 0 | EZI61: 0 | EZJ61: 0 | EZK61: 0 | EZL61: 0 | EZM61: 0 | EZN61: 0 | EZO61: 0 | EZP61: 0 | EZQ61: 0 | EZR61: 0 | EZS61: 0 | EZT61: 0 | EZU61: 0 | EZV61: 0 | EZW61: 0 | EZX61: 0 | EZY61: 0 | EZZ61: 0 | FAA61: 0 | FAB61: 0 | FAC61: 0 | FAD61: 0 | FAE61: 0 | FAF61: 0 | FAG61: 0 | FAH61: 0 | FAI61: 0 | FAJ61: 0 | FAK61: 0 | FAL61: 0 | FAM61: 0 | FAN61: 0 | FAO61: 0 | FAP61: 0 | FAQ61: 0 | FAR61: 0 | FAS61: 0 | FAT61: 0 | FAU61: 0 | FAV61: 0 | FAW61: =FAW30 -> 0 | FAX61: 0 | FAY61: 0 | FAZ61: 0 | FBA61: 0 | FBB61: 0 | FBC61: 0 | FBD61: 0 | FBE61: 0 | FBF61: 0 | FBG61: 0 | FBH61: 0 | FBI61: 0 | FBJ61: 0 | FBK61: 0 | FBL61: 0 | FBM61: 0 | FBN61: 0 | FBO61: 0 | FBP61: 0 | FBQ61: 0 | FBR61: 0 | FBS61: 0 | FBT61: 0 | FBU61: 0 | FBV61: 0 | FBW61: 0 | FBX61: 0 | FBY61: 0 | FBZ61: 0 | FCA61: 0 | FCB61: 0 | FCC61: 0 | FCD61: 0 | FCE61: 0 | FCF61: 0 | FCG61: 0 | FCH61: 0 | FCI61: 0 | FCJ61: 0 | FCK61: 0 | FCL61: 0 | FCM61: 0 | FCN61: 0 | FCO61: 0 | FCP61: 0 | FCQ61: 0 | FCR61: 0 | FCS61: 0 | FCT61: 0 | FCU61: 0 | FCV61: 0 | FCW61: 0 | FCX61: 0 | FCY61: 0 | FCZ61: 0 | FDA61: 0 | FDB61: 0 | FDC61: 0 | FDD61: 0 | FDE61: 0 | FDF61: 0 | FDG61: 0 | FDH61: 0 | FDI61: =FDI30 -> 0 | FDJ61: 0 | FDK61: 0 | FDL61: 0 | FDM61: 0 | FDN61: 0 | FDO61: 0 | FDP61: 0 | FDQ61: 0 | FDR61: 0 | FDS61: 0 | FDT61: 0 | FDU61: 0 | FDV61: 0 | FDW61: 0 | FDX61: 0 | FDY61: 0 | FDZ61: 0 | FEA61: 0 | FEB61: 0 | FEC61: 0 | FED61: 0 | FEE61: 0 | FEF61: 0 | FEG61: 0 | FEH61: 0 | FEI61: 0 | FEJ61: 0 | FEK61: 0 | FEL61: 0 | FEM61: 0 | FEN61: 0 | FEO61: 0 | FEP61: 0 | FEQ61: 0 | FER61: 0 | FES61: 0 | FET61: 0 | FEU61: 0 | FEV61: 0 | FEW61: 0 | FEX61: 0 | FEY61: 0 | FEZ61: 0 | FFA61: 0 | FFB61: 0 | FFC61: 0 | FFD61: 0 | FFE61: 0 | FFF61: 0 | FFG61: 0 | FFH61: 0 | FFI61: 0 | FFJ61: 0 | FFK61: 0 | FFL61: 0 | FFM61: 0 | FFN61: 0 | FFO61: 0 | FFP61: 0 | FFQ61: 0 | FFR61: 0 | FFS61: 0 | FFT61: 0 | FFU61: =FFU30 -> 0 | FFV61: 0 | FFW61: 0 | FFX61: 0 | FFY61: 0 | FFZ61: 0 | FGA61: 0 | FGB61: 0 | FGC61: 0 | FGD61: 0 | FGE61: 0 | FGF61: 0 | FGG61: 0 | FGH61: 0 | FGI61: 0 | FGJ61: 0 | FGK61: 0 | FGL61: 0 | FGM61: 0 | FGN61: 0 | FGO61: 0 | FGP61: 0 | FGQ61: 0 | FGR61: 0 | FGS61: 0 | FGT61: 0 | FGU61: 0 | FGV61: 0 | FGW61: 0 | FGX61: 0 | FGY61: 0 | FGZ61: 0 | FHA61: 0 | FHB61: 0 | FHC61: 0 | FHD61: 0 | FHE61: 0 | FHF61: 0 | FHG61: 0 | FHH61: 0 | FHI61: 0 | FHJ61: 0 | FHK61: 0 | FHL61: 0 | FHM61: 0 | FHN61: 0 | FHO61: 0 | FHP61: 0 | FHQ61: 0 | FHR61: 0 | FHS61: 0 | FHT61: 0 | FHU61: 0 | FHV61: 0 | FHW61: 0 | FHX61: 0 | FHY61: 0 | FHZ61: 0 | FIA61: 0 | FIB61: 0 | FIC61: 0 | FID61: 0 | FIE61: 0 | FIF61: 0 | FIG61: =FIG30 -> 0 | FIH61: 0 | FII61: 0 | FIJ61: 0 | FIK61: 0 | FIL61: 0 | FIM61: 0 | FIN61: 0 | FIO61: 0 | FIP61: 0 | FIQ61: 0 | FIR61: 0 | FIS61: 0 | FIT61: 0 | FIU61: 0 | FIV61: 0 | FIW61: 0 | FIX61: 0 | FIY61: 0 | FIZ61: 0 | FJA61: 0 | FJB61: 0 | FJC61: 0 | FJD61: 0 | FJE61: 0 | FJF61: 0 | FJG61: 0 | FJH61: 0 | FJI61: 0 | FJJ61: 0 | FJK61: 0 | FJL61: 0 | FJM61: 0 | FJN61: 0 | FJO61: 0 | FJP61: 0 | FJQ61: 0 | FJR61: 0 | FJS61: 0 | FJT61: 0 | FJU61: 0 | FJV61: 0 | FJW61: 0 | FJX61: 0 | FJY61: 0 | FJZ61: 0 | FKA61: 0 | FKB61: 0 | FKC61: 0 | FKD61: 0 | FKE61: 0 | FKF61: 0 | FKG61: 0 | FKH61: 0 | FKI61: 0 | FKJ61: 0 | FKK61: 0 | FKL61: 0 | FKM61: 0 | FKN61: 0 | FKO61: 0 | FKP61: 0 | FKQ61: 0 | FKR61: 0 | FKS61: =FKS30 -> 0 | FKT61: 0 | FKU61: 0 | FKV61: 0 | FKW61: 0 | FKX61: 0 | FKY61: 0 | FKZ61: 0 | FLA61: 0 | FLB61: 0 | FLC61: 0 | FLD61: 0 | FLE61: 0 | FLF61: 0 | FLG61: 0 | FLH61: 0 | FLI61: 0 | FLJ61: 0 | FLK61: 0 | FLL61: 0 | FLM61: 0 | FLN61: 0 | FLO61: 0 | FLP61: 0 | FLQ61: 0 | FLR61: 0 | FLS61: 0 | FLT61: 0 | FLU61: 0 | FLV61: 0 | FLW61: 0 | FLX61: 0 | FLY61: 0 | FLZ61: 0 | FMA61: 0 | FMB61: 0 | FMC61: 0 | FMD61: 0 | FME61: 0 | FMF61: 0 | FMG61: 0 | FMH61: 0 | FMI61: 0 | FMJ61: 0 | FMK61: 0 | FML61: 0 | FMM61: 0 | FMN61: 0 | FMO61: 0 | FMP61: 0 | FMQ61: 0 | FMR61: 0 | FMS61: 0 | FMT61: 0 | FMU61: 0 | FMV61: 0 | FMW61: 0 | FMX61: 0 | FMY61: 0 | FMZ61: 0 | FNA61: 0 | FNB61: 0 | FNC61: 0 | FND61: 0 | FNE61: =FNE30 -> 0 | FNF61: 0 | FNG61: 0 | FNH61: 0 | FNI61: 0 | FNJ61: 0 | FNK61: 0 | FNL61: 0 | FNM61: 0 | FNN61: 0 | FNO61: 0 | FNP61: 0 | FNQ61: 0 | FNR61: 0 | FNS61: 0 | FNT61: 0 | FNU61: 0 | FNV61: 0 | FNW61: 0 | FNX61: 0 | FNY61: 0 | FNZ61: 0 | FOA61: 0 | FOB61: 0 | FOC61: 0 | FOD61: 0 | FOE61: 0 | FOF61: 0 | FOG61: 0 | FOH61: 0 | FOI61: 0 | FOJ61: 0 | FOK61: 0 | FOL61: 0 | FOM61: 0 | FON61: 0 | FOO61: 0 | FOP61: 0 | FOQ61: 0 | FOR61: 0 | FOS61: 0 | FOT61: 0 | FOU61: 0 | FOV61: 0 | FOW61: 0 | FOX61: 0 | FOY61: 0 | FOZ61: 0 | FPA61: 0 | FPB61: 0 | FPC61: 0 | FPD61: 0 | FPE61: 0 | FPF61: 0 | FPG61: 0 | FPH61: 0 | FPI61: 0 | FPJ61: 0 | FPK61: 0 | FPL61: 0 | FPM61: 0 | FPN61: 0 | FPO61: 0 | FPP61: 0 | FPQ61: =FPQ30 -> 0 | FPR61: 0 | FPS61: 0 | FPT61: 0 | FPU61: 0 | FPV61: 0 | FPW61: 0 | FPX61: 0 | FPY61: 0 | FPZ61: 0 | FQA61: 0 | FQB61: 0 | FQC61: 0 | FQD61: 0 | FQE61: 0 | FQF61: 0 | FQG61: 0 | FQH61: 0 | FQI61: 0 | FQJ61: 0 | FQK61: 0 | FQL61: 0 | FQM61: 0 | FQN61: 0 | FQO61: 0 | FQP61: 0 | FQQ61: 0 | FQR61: 0 | FQS61: 0 | FQT61: 0 | FQU61: 0 | FQV61: 0 | FQW61: 0 | FQX61: 0 | FQY61: 0 | FQZ61: 0 | FRA61: 0 | FRB61: 0 | FRC61: 0 | FRD61: 0 | FRE61: 0 | FRF61: 0 | FRG61: 0 | FRH61: 0 | FRI61: 0 | FRJ61: 0 | FRK61: 0 | FRL61: 0 | FRM61: 0 | FRN61: 0 | FRO61: 0 | FRP61: 0 | FRQ61: 0 | FRR61: 0 | FRS61: 0 | FRT61: 0 | FRU61: 0 | FRV61: 0 | FRW61: 0 | FRX61: 0 | FRY61: 0 | FRZ61: 0 | FSA61: 0 | FSB61: 0 | FSC61: =FSC30 -> 0 | FSD61: 0 | FSE61: 0 | FSF61: 0 | FSG61: 0 | FSH61: 0 | FSI61: 0 | FSJ61: 0 | FSK61: 0 | FSL61: 0 | FSM61: 0 | FSN61: 0 | FSO61: 0 | FSP61: 0 | FSQ61: 0 | FSR61: 0 | FSS61: 0 | FST61: 0 | FSU61: 0 | FSV61: 0 | FSW61: 0 | FSX61: 0 | FSY61: 0 | FSZ61: 0 | FTA61: 0 | FTB61: 0 | FTC61: 0 | FTD61: 0 | FTE61: 0 | FTF61: 0 | FTG61: 0 | FTH61: 0 | FTI61: 0 | FTJ61: 0 | FTK61: 0 | FTL61: 0 | FTM61: 0 | FTN61: 0 | FTO61: 0 | FTP61: 0 | FTQ61: 0 | FTR61: 0 | FTS61: 0 | FTT61: 0 | FTU61: 0 | FTV61: 0 | FTW61: 0 | FTX61: 0 | FTY61: 0 | FTZ61: 0 | FUA61: 0 | FUB61: 0 | FUC61: 0 | FUD61: 0 | FUE61: 0 | FUF61: 0 | FUG61: 0 | FUH61: 0 | FUI61: 0 | FUJ61: 0 | FUK61: 0 | FUL61: 0 | FUM61: 0 | FUN61: 0 | FUO61: =FUO30 -> 0 | FUP61: 0 | FUQ61: 0 | FUR61: 0 | FUS61: 0 | FUT61: 0 | FUU61: 0 | FUV61: 0 | FUW61: 0 | FUX61: 0 | FUY61: 0 | FUZ61: 0 | FVA61: 0 | FVB61: 0 | FVC61: 0 | FVD61: 0 | FVE61: 0 | FVF61: 0 | FVG61: 0 | FVH61: 0 | FVI61: 0 | FVJ61: 0 | FVK61: 0 | FVL61: 0 | FVM61: 0 | FVN61: 0 | FVO61: 0 | FVP61: 0 | FVQ61: 0 | FVR61: 0 | FVS61: 0 | FVT61: 0 | FVU61: 0 | FVV61: 0 | FVW61: 0 | FVX61: 0 | FVY61: 0 | FVZ61: 0 | FWA61: 0 | FWB61: 0 | FWC61: 0 | FWD61: 0 | FWE61: 0 | FWF61: 0 | FWG61: 0 | FWH61: 0 | FWI61: 0 | FWJ61: 0 | FWK61: 0 | FWL61: 0 | FWM61: 0 | FWN61: 0 | FWO61: 0 | FWP61: 0 | FWQ61: 0 | FWR61: 0 | FWS61: 0 | FWT61: 0 | FWU61: 0 | FWV61: 0 | FWW61: 0 | FWX61: 0 | FWY61: 0 | FWZ61: 0 | FXA61: =FXA30 -> 0 | FXB61: 0 | FXC61: 0 | FXD61: 0 | FXE61: 0 | FXF61: 0 | FXG61: 0 | FXH61: 0 | FXI61: 0 | FXJ61: 0 | FXK61: 0 | FXL61: 0 | FXM61: 0 | FXN61: 0 | FXO61: 0 | FXP61: 0 | FXQ61: 0 | FXR61: 0 | FXS61: 0 | FXT61: 0 | FXU61: 0 | FXV61: 0 | FXW61: 0 | FXX61: 0 | FXY61: 0 | FXZ61: 0 | FYA61: 0 | FYB61: 0 | FYC61: 0 | FYD61: 0 | FYE61: 0 | FYF61: 0 | FYG61: 0 | FYH61: 0 | FYI61: 0 | FYJ61: 0 | FYK61: 0 | FYL61: 0 | FYM61: 0 | FYN61: 0 | FYO61: 0 | FYP61: 0 | FYQ61: 0 | FYR61: 0 | FYS61: 0 | FYT61: 0 | FYU61: 0 | FYV61: 0 | FYW61: 0 | FYX61: 0 | FYY61: 0 | FYZ61: 0 | FZA61: 0 | FZB61: 0 | FZC61: 0 | FZD61: 0 | FZE61: 0 | FZF61: 0 | FZG61: 0 | FZH61: 0 | FZI61: 0 | FZJ61: 0 | FZK61: 0 | FZL61: 0 | FZM61: =FZM30 -> 0 | FZN61: 0 | FZO61: 0 | FZP61: 0 | FZQ61: 0 | FZR61: 0 | FZS61: 0 | FZT61: 0 | FZU61: 0 | FZV61: 0 | FZW61: 0 | FZX61: 0 | FZY61: 0 | FZZ61: 0 | GAA61: 0 | GAB61: 0 | GAC61: 0 | GAD61: 0 | GAE61: 0 | GAF61: 0 | GAG61: 0 | GAH61: 0 | GAI61: 0 | GAJ61: 0 | GAK61: 0 | GAL61: 0 | GAM61: 0 | GAN61: 0 | GAO61: 0 | GAP61: 0 | GAQ61: 0 | GAR61: 0 | GAS61: 0 | GAT61: 0 | GAU61: 0 | GAV61: 0 | GAW61: 0 | GAX61: 0 | GAY61: 0 | GAZ61: 0 | GBA61: 0 | GBB61: 0 | GBC61: 0 | GBD61: 0 | GBE61: 0 | GBF61: 0 | GBG61: 0 | GBH61: 0 | GBI61: 0 | GBJ61: 0 | GBK61: 0 | GBL61: 0 | GBM61: 0 | GBN61: 0 | GBO61: 0 | GBP61: 0 | GBQ61: 0 | GBR61: 0 | GBS61: 0 | GBT61: 0 | GBU61: 0 | GBV61: 0 | GBW61: 0 | GBX61: 0 | GBY61: =GBY30 -> 0 | GBZ61: 0 | GCA61: 0 | GCB61: 0 | GCC61: 0 | GCD61: 0 | GCE61: 0 | GCF61: 0 | GCG61: 0 | GCH61: 0 | GCI61: 0 | GCJ61: 0 | GCK61: 0 | GCL61: 0 | GCM61: 0 | GCN61: 0 | GCO61: 0 | GCP61: 0 | GCQ61: 0 | GCR61: 0 | GCS61: 0 | GCT61: 0 | GCU61: 0 | GCV61: 0 | GCW61: 0 | GCX61: 0 | GCY61: 0 | GCZ61: 0 | GDA61: 0 | GDB61: 0 | GDC61: 0 | GDD61: 0 | GDE61: 0 | GDF61: 0 | GDG61: 0 | GDH61: 0 | GDI61: 0 | GDJ61: 0 | GDK61: 0 | GDL61: 0 | GDM61: 0 | GDN61: 0 | GDO61: 0 | GDP61: 0 | GDQ61: 0 | GDR61: 0 | GDS61: 0 | GDT61: 0 | GDU61: 0 | GDV61: 0 | GDW61: 0 | GDX61: 0 | GDY61: 0 | GDZ61: 0 | GEA61: 0 | GEB61: 0 | GEC61: 0 | GED61: 0 | GEE61: 0 | GEF61: 0 | GEG61: 0 | GEH61: 0 | GEI61: 0 | GEJ61: 0 | GEK61: =GEK30 -> 0 | GEL61: 0 | GEM61: 0 | GEN61: 0 | GEO61: 0 | GEP61: 0 | GEQ61: 0 | GER61: 0 | GES61: 0 | GET61: 0 | GEU61: 0 | GEV61: 0 | GEW61: 0 | GEX61: 0 | GEY61: 0 | GEZ61: 0 | GFA61: 0 | GFB61: 0 | GFC61: 0 | GFD61: 0 | GFE61: 0 | GFF61: 0 | GFG61: 0 | GFH61: 0 | GFI61: 0 | GFJ61: 0 | GFK61: 0 | GFL61: 0 | GFM61: 0 | GFN61: 0 | GFO61: 0 | GFP61: 0 | GFQ61: 0 | GFR61: 0 | GFS61: 0 | GFT61: 0 | GFU61: 0 | GFV61: 0 | GFW61: 0 | GFX61: 0 | GFY61: 0 | GFZ61: 0 | GGA61: 0 | GGB61: 0 | GGC61: 0 | GGD61: 0 | GGE61: 0 | GGF61: 0 | GGG61: 0 | GGH61: 0 | GGI61: 0 | GGJ61: 0 | GGK61: 0 | GGL61: 0 | GGM61: 0 | GGN61: 0 | GGO61: 0 | GGP61: 0 | GGQ61: 0 | GGR61: 0 | GGS61: 0 | GGT61: 0 | GGU61: 0 | GGV61: 0 | GGW61: =GGW30 -> 0 | GGX61: 0 | GGY61: 0 | GGZ61: 0 | GHA61: 0 | GHB61: 0 | GHC61: 0 | GHD61: 0 | GHE61: 0 | GHF61: 0 | GHG61: 0 | GHH61: 0 | GHI61: 0 | GHJ61: 0 | GHK61: 0 | GHL61: 0 | GHM61: 0 | GHN61: 0 | GHO61: 0 | GHP61: 0 | GHQ61: 0 | GHR61: 0 | GHS61: 0 | GHT61: 0 | GHU61: 0 | GHV61: 0 | GHW61: 0 | GHX61: 0 | GHY61: 0 | GHZ61: 0 | GIA61: 0 | GIB61: 0 | GIC61: 0 | GID61: 0 | GIE61: 0 | GIF61: 0 | GIG61: 0 | GIH61: 0 | GII61: 0 | GIJ61: 0 | GIK61: 0 | GIL61: 0 | GIM61: 0 | GIN61: 0 | GIO61: 0 | GIP61: 0 | GIQ61: 0 | GIR61: 0 | GIS61: 0 | GIT61: 0 | GIU61: 0 | GIV61: 0 | GIW61: 0 | GIX61: 0 | GIY61: 0 | GIZ61: 0 | GJA61: 0 | GJB61: 0 | GJC61: 0 | GJD61: 0 | GJE61: 0 | GJF61: 0 | GJG61: 0 | GJH61: 0 | GJI61: =GJI30 -> 0 | GJJ61: 0 | GJK61: 0 | GJL61: 0 | GJM61: 0 | GJN61: 0 | GJO61: 0 | GJP61: 0 | GJQ61: 0 | GJR61: 0 | GJS61: 0 | GJT61: 0 | GJU61: 0 | GJV61: 0 | GJW61: 0 | GJX61: 0 | GJY61: 0 | GJZ61: 0 | GKA61: 0 | GKB61: 0 | GKC61: 0 | GKD61: 0 | GKE61: 0 | GKF61: 0 | GKG61: 0 | GKH61: 0 | GKI61: 0 | GKJ61: 0 | GKK61: 0 | GKL61: 0 | GKM61: 0 | GKN61: 0 | GKO61: 0 | GKP61: 0 | GKQ61: 0 | GKR61: 0 | GKS61: 0 | GKT61: 0 | GKU61: 0 | GKV61: 0 | GKW61: 0 | GKX61: 0 | GKY61: 0 | GKZ61: 0 | GLA61: 0 | GLB61: 0 | GLC61: 0 | GLD61: 0 | GLE61: 0 | GLF61: 0 | GLG61: 0 | GLH61: 0 | GLI61: 0 | GLJ61: 0 | GLK61: 0 | GLL61: 0 | GLM61: 0 | GLN61: 0 | GLO61: 0 | GLP61: 0 | GLQ61: 0 | GLR61: 0 | GLS61: 0 | GLT61: 0 | GLU61: =GLU30 -> 0 | GLV61: 0 | GLW61: 0 | GLX61: 0 | GLY61: 0 | GLZ61: 0 | GMA61: 0 | GMB61: 0 | GMC61: 0 | GMD61: 0 | GME61: 0 | GMF61: 0 | GMG61: 0 | GMH61: 0 | GMI61: 0 | GMJ61: 0 | GMK61: 0 | GML61: 0 | GMM61: 0 | GMN61: 0 | GMO61: 0 | GMP61: 0 | GMQ61: 0 | GMR61: 0 | GMS61: 0 | GMT61: 0 | GMU61: 0 | GMV61: 0 | GMW61: 0 | GMX61: 0 | GMY61: 0 | GMZ61: 0 | GNA61: 0 | GNB61: 0 | GNC61: 0 | GND61: 0 | GNE61: 0 | GNF61: 0 | GNG61: 0 | GNH61: 0 | GNI61: 0 | GNJ61: 0 | GNK61: 0 | GNL61: 0 | GNM61: 0 | GNN61: 0 | GNO61: 0 | GNP61: 0 | GNQ61: 0 | GNR61: 0 | GNS61: 0 | GNT61: 0 | GNU61: 0 | GNV61: 0 | GNW61: 0 | GNX61: 0 | GNY61: 0 | GNZ61: 0 | GOA61: 0 | GOB61: 0 | GOC61: 0 | GOD61: 0 | GOE61: 0 | GOF61: 0 | GOG61: =GOG30 -> 0 | GOH61: 0 | GOI61: 0 | GOJ61: 0 | GOK61: 0 | GOL61: 0 | GOM61: 0 | GON61: 0 | GOO61: 0 | GOP61: 0 | GOQ61: 0 | GOR61: 0 | GOS61: 0 | GOT61: 0 | GOU61: 0 | GOV61: 0 | GOW61: 0 | GOX61: 0 | GOY61: 0 | GOZ61: 0 | GPA61: 0 | GPB61: 0 | GPC61: 0 | GPD61: 0 | GPE61: 0 | GPF61: 0 | GPG61: 0 | GPH61: 0 | GPI61: 0 | GPJ61: 0 | GPK61: 0 | GPL61: 0 | GPM61: 0 | GPN61: 0 | GPO61: 0 | GPP61: 0 | GPQ61: 0 | GPR61: 0 | GPS61: 0 | GPT61: 0 | GPU61: 0 | GPV61: 0 | GPW61: 0 | GPX61: 0 | GPY61: 0 | GPZ61: 0 | GQA61: 0 | GQB61: 0 | GQC61: 0 | GQD61: 0 | GQE61: 0 | GQF61: 0 | GQG61: 0 | GQH61: 0 | GQI61: 0 | GQJ61: 0 | GQK61: 0 | GQL61: 0 | GQM61: 0 | GQN61: 0 | GQO61: 0 | GQP61: 0 | GQQ61: 0 | GQR61: 0 | GQS61: =GQS30 -> 0 | GQT61: 0 | GQU61: 0 | GQV61: 0 | GQW61: 0 | GQX61: 0 | GQY61: 0 | GQZ61: 0 | GRA61: 0 | GRB61: 0 | GRC61: 0 | GRD61: 0 | GRE61: 0 | GRF61: 0 | GRG61: 0 | GRH61: 0 | GRI61: 0 | GRJ61: 0 | GRK61: 0 | GRL61: 0 | GRM61: 0 | GRN61: 0 | GRO61: 0 | GRP61: 0 | GRQ61: 0 | GRR61: 0 | GRS61: 0 | GRT61: 0 | GRU61: 0 | GRV61: 0 | GRW61: 0 | GRX61: 0 | GRY61: 0 | GRZ61: 0 | GSA61: 0 | GSB61: 0 | GSC61: 0 | GSD61: 0 | GSE61: 0 | GSF61: 0 | GSG61: 0 | GSH61: 0 | GSI61: 0 | GSJ61: 0 | GSK61: 0 | GSL61: 0 | GSM61: 0 | GSN61: 0 | GSO61: 0 | GSP61: 0 | GSQ61: 0 | GSR61: 0 | GSS61: 0 | GST61: 0 | GSU61: 0 | GSV61: 0 | GSW61: 0 | GSX61: 0 | GSY61: 0 | GSZ61: 0 | GTA61: 0 | GTB61: 0 | GTC61: 0 | GTD61: 0 | GTE61: =GTE30 -> 0 | GTF61: 0 | GTG61: 0 | GTH61: 0 | GTI61: 0 | GTJ61: 0 | GTK61: 0 | GTL61: 0 | GTM61: 0 | GTN61: 0 | GTO61: 0 | GTP61: 0 | GTQ61: 0 | GTR61: 0 | GTS61: 0 | GTT61: 0 | GTU61: 0 | GTV61: 0 | GTW61: 0 | GTX61: 0 | GTY61: 0 | GTZ61: 0 | GUA61: 0 | GUB61: 0 | GUC61: 0 | GUD61: 0 | GUE61: 0 | GUF61: 0 | GUG61: 0 | GUH61: 0 | GUI61: 0 | GUJ61: 0 | GUK61: 0 | GUL61: 0 | GUM61: 0 | GUN61: 0 | GUO61: 0 | GUP61: 0 | GUQ61: 0 | GUR61: 0 | GUS61: 0 | GUT61: 0 | GUU61: 0 | GUV61: 0 | GUW61: 0 | GUX61: 0 | GUY61: 0 | GUZ61: 0 | GVA61: 0 | GVB61: 0 | GVC61: 0 | GVD61: 0 | GVE61: 0 | GVF61: 0 | GVG61: 0 | GVH61: 0 | GVI61: 0 | GVJ61: 0 | GVK61: 0 | GVL61: 0 | GVM61: 0 | GVN61: 0 | GVO61: 0 | GVP61: 0 | GVQ61: =GVQ30 -> 0 | GVR61: 0 | GVS61: 0 | GVT61: 0 | GVU61: 0 | GVV61: 0 | GVW61: 0 | GVX61: 0 | GVY61: 0 | GVZ61: 0 | GWA61: 0 | GWB61: 0 | GWC61: 0 | GWD61: 0 | GWE61: 0 | GWF61: 0 | GWG61: 0 | GWH61: 0 | GWI61: 0 | GWJ61: 0 | GWK61: 0 | GWL61: 0 | GWM61: 0 | GWN61: 0 | GWO61: 0 | GWP61: 0 | GWQ61: 0 | GWR61: 0 | GWS61: 0 | GWT61: 0 | GWU61: 0 | GWV61: 0 | GWW61: 0 | GWX61: 0 | GWY61: 0 | GWZ61: 0 | GXA61: 0 | GXB61: 0 | GXC61: 0 | GXD61: 0 | GXE61: 0 | GXF61: 0 | GXG61: 0 | GXH61: 0 | GXI61: 0 | GXJ61: 0 | GXK61: 0 | GXL61: 0 | GXM61: 0 | GXN61: 0 | GXO61: 0 | GXP61: 0 | GXQ61: 0 | GXR61: 0 | GXS61: 0 | GXT61: 0 | GXU61: 0 | GXV61: 0 | GXW61: 0 | GXX61: 0 | GXY61: 0 | GXZ61: 0 | GYA61: 0 | GYB61: 0 | GYC61: =GYC30 -> 0 | GYD61: 0 | GYE61: 0 | GYF61: 0 | GYG61: 0 | GYH61: 0 | GYI61: 0 | GYJ61: 0 | GYK61: 0 | GYL61: 0 | GYM61: 0 | GYN61: 0 | GYO61: 0 | GYP61: 0 | GYQ61: 0 | GYR61: 0 | GYS61: 0 | GYT61: 0 | GYU61: 0 | GYV61: 0 | GYW61: 0 | GYX61: 0 | GYY61: 0 | GYZ61: 0 | GZA61: 0 | GZB61: 0 | GZC61: 0 | GZD61: 0 | GZE61: 0 | GZF61: 0 | GZG61: 0 | GZH61: 0 | GZI61: 0 | GZJ61: 0 | GZK61: 0 | GZL61: 0 | GZM61: 0 | GZN61: 0 | GZO61: 0 | GZP61: 0 | GZQ61: 0 | GZR61: 0 | GZS61: 0 | GZT61: 0 | GZU61: 0 | GZV61: 0 | GZW61: 0 | GZX61: 0 | GZY61: 0 | GZZ61: 0 | HAA61: 0 | HAB61: 0 | HAC61: 0 | HAD61: 0 | HAE61: 0 | HAF61: 0 | HAG61: 0 | HAH61: 0 | HAI61: 0 | HAJ61: 0 | HAK61: 0 | HAL61: 0 | HAM61: 0 | HAN61: 0 | HAO61: =HAO30 -> 0 | HAP61: 0 | HAQ61: 0 | HAR61: 0 | HAS61: 0 | HAT61: 0 | HAU61: 0 | HAV61: 0 | HAW61: 0 | HAX61: 0 | HAY61: 0 | HAZ61: 0 | HBA61: 0 | HBB61: 0 | HBC61: 0 | HBD61: 0 | HBE61: 0 | HBF61: 0 | HBG61: 0 | HBH61: 0 | HBI61: 0 | HBJ61: 0 | HBK61: 0 | HBL61: 0 | HBM61: 0 | HBN61: 0 | HBO61: 0 | HBP61: 0 | HBQ61: 0 | HBR61: 0 | HBS61: 0 | HBT61: 0 | HBU61: 0 | HBV61: 0 | HBW61: 0 | HBX61: 0 | HBY61: 0 | HBZ61: 0 | HCA61: 0 | HCB61: 0 | HCC61: 0 | HCD61: 0 | HCE61: 0 | HCF61: 0 | HCG61: 0 | HCH61: 0 | HCI61: 0 | HCJ61: 0 | HCK61: 0 | HCL61: 0 | HCM61: 0 | HCN61: 0 | HCO61: 0 | HCP61: 0 | HCQ61: 0 | HCR61: 0 | HCS61: 0 | HCT61: 0 | HCU61: 0 | HCV61: 0 | HCW61: 0 | HCX61: 0 | HCY61: 0 | HCZ61: 0 | HDA61: =HDA30 -> 0 | HDB61: 0 | HDC61: 0 | HDD61: 0 | HDE61: 0 | HDF61: 0 | HDG61: 0 | HDH61: 0 | HDI61: 0 | HDJ61: 0 | HDK61: 0 | HDL61: 0 | HDM61: 0 | HDN61: 0 | HDO61: 0 | HDP61: 0 | HDQ61: 0 | HDR61: 0 | HDS61: 0 | HDT61: 0 | HDU61: 0 | HDV61: 0 | HDW61: 0 | HDX61: 0 | HDY61: 0 | HDZ61: 0 | HEA61: 0 | HEB61: 0 | HEC61: 0 | HED61: 0 | HEE61: 0 | HEF61: 0 | HEG61: 0 | HEH61: 0 | HEI61: 0 | HEJ61: 0 | HEK61: 0 | HEL61: 0 | HEM61: 0 | HEN61: 0 | HEO61: 0 | HEP61: 0 | HEQ61: 0 | HER61: 0 | HES61: 0 | HET61: 0 | HEU61: 0 | HEV61: 0 | HEW61: 0 | HEX61: 0 | HEY61: 0 | HEZ61: 0 | HFA61: 0 | HFB61: 0 | HFC61: 0 | HFD61: 0 | HFE61: 0 | HFF61: 0 | HFG61: 0 | HFH61: 0 | HFI61: 0 | HFJ61: 0 | HFK61: 0 | HFL61: 0 | HFM61: =HFM30 -> 0 | HFN61: 0 | HFO61: 0 | HFP61: 0 | HFQ61: 0 | HFR61: 0 | HFS61: 0 | HFT61: 0 | HFU61: 0 | HFV61: 0 | HFW61: 0 | HFX61: 0 | HFY61: 0 | HFZ61: 0 | HGA61: 0 | HGB61: 0 | HGC61: 0 | HGD61: 0 | HGE61: 0 | HGF61: 0 | HGG61: 0 | HGH61: 0 | HGI61: 0 | HGJ61: 0 | HGK61: 0 | HGL61: 0 | HGM61: 0 | HGN61: 0 | HGO61: 0 | HGP61: 0 | HGQ61: 0 | HGR61: 0 | HGS61: 0 | HGT61: 0 | HGU61: 0 | HGV61: 0 | HGW61: 0 | HGX61: 0 | HGY61: 0 | HGZ61: 0 | HHA61: 0 | HHB61: 0 | HHC61: 0 | HHD61: 0 | HHE61: 0 | HHF61: 0 | HHG61: 0 | HHH61: 0 | HHI61: 0 | HHJ61: 0 | HHK61: 0 | HHL61: 0 | HHM61: 0 | HHN61: 0 | HHO61: 0 | HHP61: 0 | HHQ61: 0 | HHR61: 0 | HHS61: 0 | HHT61: 0 | HHU61: 0 | HHV61: 0 | HHW61: 0 | HHX61: 0 | HHY61: =HHY30 -> 0 | HHZ61: 0 | HIA61: 0 | HIB61: 0 | HIC61: 0 | HID61: 0 | HIE61: 0 | HIF61: 0 | HIG61: 0 | HIH61: 0 | HII61: 0 | HIJ61: 0 | HIK61: 0 | HIL61: 0 | HIM61: 0 | HIN61: 0 | HIO61: 0 | HIP61: 0 | HIQ61: 0 | HIR61: 0 | HIS61: 0 | HIT61: 0 | HIU61: 0 | HIV61: 0 | HIW61: 0 | HIX61: 0 | HIY61: 0 | HIZ61: 0 | HJA61: 0 | HJB61: 0 | HJC61: 0 | HJD61: 0 | HJE61: 0 | HJF61: 0 | HJG61: 0 | HJH61: 0 | HJI61: 0 | HJJ61: 0 | HJK61: 0 | HJL61: 0 | HJM61: 0 | HJN61: 0 | HJO61: 0 | HJP61: 0 | HJQ61: 0 | HJR61: 0 | HJS61: 0 | HJT61: 0 | HJU61: 0 | HJV61: 0 | HJW61: 0 | HJX61: 0 | HJY61: 0 | HJZ61: 0 | HKA61: 0 | HKB61: 0 | HKC61: 0 | HKD61: 0 | HKE61: 0 | HKF61: 0 | HKG61: 0 | HKH61: 0 | HKI61: 0 | HKJ61: 0 | HKK61: =HKK30 -> 0 | HKL61: 0 | HKM61: 0 | HKN61: 0 | HKO61: 0 | HKP61: 0 | HKQ61: 0 | HKR61: 0 | HKS61: 0 | HKT61: 0 | HKU61: 0 | HKV61: 0 | HKW61: 0 | HKX61: 0 | HKY61: 0 | HKZ61: 0 | HLA61: 0 | HLB61: 0 | HLC61: 0 | HLD61: 0 | HLE61: 0 | HLF61: 0 | HLG61: 0 | HLH61: 0 | HLI61: 0 | HLJ61: 0 | HLK61: 0 | HLL61: 0 | HLM61: 0 | HLN61: 0 | HLO61: 0 | HLP61: 0 | HLQ61: 0 | HLR61: 0 | HLS61: 0 | HLT61: 0 | HLU61: 0 | HLV61: 0 | HLW61: 0 | HLX61: 0 | HLY61: 0 | HLZ61: 0 | HMA61: 0 | HMB61: 0 | HMC61: 0 | HMD61: 0 | HME61: 0 | HMF61: 0 | HMG61: 0 | HMH61: 0 | HMI61: 0 | HMJ61: 0 | HMK61: 0 | HML61: 0 | HMM61: 0 | HMN61: 0 | HMO61: 0 | HMP61: 0 | HMQ61: 0 | HMR61: 0 | HMS61: 0 | HMT61: 0 | HMU61: 0 | HMV61: 0 | HMW61: =HMW30 -> 0 | HMX61: 0 | HMY61: 0 | HMZ61: 0 | HNA61: 0 | HNB61: 0 | HNC61: 0 | HND61: 0 | HNE61: 0 | HNF61: 0 | HNG61: 0 | HNH61: 0 | HNI61: 0 | HNJ61: 0 | HNK61: 0 | HNL61: 0 | HNM61: 0 | HNN61: 0 | HNO61: 0 | HNP61: 0 | HNQ61: 0 | HNR61: 0 | HNS61: 0 | HNT61: 0 | HNU61: 0 | HNV61: 0 | HNW61: 0 | HNX61: 0 | HNY61: 0 | HNZ61: 0 | HOA61: 0 | HOB61: 0 | HOC61: 0 | HOD61: 0 | HOE61: 0 | HOF61: 0 | HOG61: 0 | HOH61: 0 | HOI61: 0 | HOJ61: 0 | HOK61: 0 | HOL61: 0 | HOM61: 0 | HON61: 0 | HOO61: 0 | HOP61: 0 | HOQ61: 0 | HOR61: 0 | HOS61: 0 | HOT61: 0 | HOU61: 0 | HOV61: 0 | HOW61: 0 | HOX61: 0 | HOY61: 0 | HOZ61: 0 | HPA61: 0 | HPB61: 0 | HPC61: 0 | HPD61: 0 | HPE61: 0 | HPF61: 0 | HPG61: 0 | HPH61: 0 | HPI61: =HPI30 -> 0 | HPJ61: 0 | HPK61: 0 | HPL61: 0 | HPM61: 0 | HPN61: 0 | HPO61: 0 | HPP61: 0 | HPQ61: 0 | HPR61: 0 | HPS61: 0 | HPT61: 0 | HPU61: 0 | HPV61: 0 | HPW61: 0 | HPX61: 0 | HPY61: 0 | HPZ61: 0 | HQA61: 0 | HQB61: 0 | HQC61: 0 | HQD61: 0 | HQE61: 0 | HQF61: 0 | HQG61: 0 | HQH61: 0 | HQI61: 0 | HQJ61: 0 | HQK61: 0 | HQL61: 0 | HQM61: 0 | HQN61: 0 | HQO61: 0 | HQP61: 0 | HQQ61: 0 | HQR61: 0 | HQS61: 0 | HQT61: 0 | HQU61: 0 | HQV61: 0 | HQW61: 0 | HQX61: 0 | HQY61: 0 | HQZ61: 0 | HRA61: 0 | HRB61: 0 | HRC61: 0 | HRD61: 0 | HRE61: 0 | HRF61: 0 | HRG61: 0 | HRH61: 0 | HRI61: 0 | HRJ61: 0 | HRK61: 0 | HRL61: 0 | HRM61: 0 | HRN61: 0 | HRO61: 0 | HRP61: 0 | HRQ61: 0 | HRR61: 0 | HRS61: 0 | HRT61: 0 | HRU61: =HRU30 -> 0 | HRV61: 0 | HRW61: 0 | HRX61: 0 | HRY61: 0 | HRZ61: 0 | HSA61: 0 | HSB61: 0 | HSC61: 0 | HSD61: 0 | HSE61: 0 | HSF61: 0 | HSG61: 0 | HSH61: 0 | HSI61: 0 | HSJ61: 0 | HSK61: 0 | HSL61: 0 | HSM61: 0 | HSN61: 0 | HSO61: 0 | HSP61: 0 | HSQ61: 0 | HSR61: 0 | HSS61: 0 | HST61: 0 | HSU61: 0 | HSV61: 0 | HSW61: 0 | HSX61: 0 | HSY61: 0 | HSZ61: 0 | HTA61: 0 | HTB61: 0 | HTC61: 0 | HTD61: 0 | HTE61: 0 | HTF61: 0 | HTG61: 0 | HTH61: 0 | HTI61: 0 | HTJ61: 0 | HTK61: 0 | HTL61: 0 | HTM61: 0 | HTN61: 0 | HTO61: 0 | HTP61: 0 | HTQ61: 0 | HTR61: 0 | HTS61: 0 | HTT61: 0 | HTU61: 0 | HTV61: 0 | HTW61: 0 | HTX61: 0 | HTY61: 0 | HTZ61: 0 | HUA61: 0 | HUB61: 0 | HUC61: 0 | HUD61: 0 | HUE61: 0 | HUF61: 0 | HUG61: =HUG30 -> 0 | HUH61: 0 | HUI61: 0 | HUJ61: 0 | HUK61: 0 | HUL61: 0 | HUM61: 0 | HUN61: 0 | HUO61: 0 | HUP61: 0 | HUQ61: 0 | HUR61: 0 | HUS61: 0 | HUT61: 0 | HUU61: 0 | HUV61: 0 | HUW61: 0 | HUX61: 0 | HUY61: 0 | HUZ61: 0 | HVA61: 0 | HVB61: 0 | HVC61: 0 | HVD61: 0 | HVE61: 0 | HVF61: 0 | HVG61: 0 | HVH61: 0 | HVI61: 0 | HVJ61: 0 | HVK61: 0 | HVL61: 0 | HVM61: 0 | HVN61: 0 | HVO61: 0 | HVP61: 0 | HVQ61: 0 | HVR61: 0 | HVS61: 0 | HVT61: 0 | HVU61: 0 | HVV61: 0 | HVW61: 0 | HVX61: 0 | HVY61: 0 | HVZ61: 0 | HWA61: 0 | HWB61: 0 | HWC61: 0 | HWD61: 0 | HWE61: 0 | HWF61: 0 | HWG61: 0 | HWH61: 0 | HWI61: 0 | HWJ61: 0 | HWK61: 0 | HWL61: 0 | HWM61: 0 | HWN61: 0 | HWO61: 0 | HWP61: 0 | HWQ61: 0 | HWR61: 0 | HWS61: =HWS30 -> 0 | HWT61: 0 | HWU61: 0 | HWV61: 0 | HWW61: 0 | HWX61: 0 | HWY61: 0 | HWZ61: 0 | HXA61: 0 | HXB61: 0 | HXC61: 0 | HXD61: 0 | HXE61: 0 | HXF61: 0 | HXG61: 0 | HXH61: 0 | HXI61: 0 | HXJ61: 0 | HXK61: 0 | HXL61: 0 | HXM61: 0 | HXN61: 0 | HXO61: 0 | HXP61: 0 | HXQ61: 0 | HXR61: 0 | HXS61: 0 | HXT61: 0 | HXU61: 0 | HXV61: 0 | HXW61: 0 | HXX61: 0 | HXY61: 0 | HXZ61: 0 | HYA61: 0 | HYB61: 0 | HYC61: 0 | HYD61: 0 | HYE61: 0 | HYF61: 0 | HYG61: 0 | HYH61: 0 | HYI61: 0 | HYJ61: 0 | HYK61: 0 | HYL61: 0 | HYM61: 0 | HYN61: 0 | HYO61: 0 | HYP61: 0 | HYQ61: 0 | HYR61: 0 | HYS61: 0 | HYT61: 0 | HYU61: 0 | HYV61: 0 | HYW61: 0 | HYX61: 0 | HYY61: 0 | HYZ61: 0 | HZA61: 0 | HZB61: 0 | HZC61: 0 | HZD61: 0 | HZE61: =HZE30 -> 0 | HZF61: 0 | HZG61: 0 | HZH61: 0 | HZI61: 0 | HZJ61: 0 | HZK61: 0 | HZL61: 0 | HZM61: 0 | HZN61: 0 | HZO61: 0 | HZP61: 0 | HZQ61: 0 | HZR61: 0 | HZS61: 0 | HZT61: 0 | HZU61: 0 | HZV61: 0 | HZW61: 0 | HZX61: 0 | HZY61: 0 | HZZ61: 0 | IAA61: 0 | IAB61: 0 | IAC61: 0 | IAD61: 0 | IAE61: 0 | IAF61: 0 | IAG61: 0 | IAH61: 0 | IAI61: 0 | IAJ61: 0 | IAK61: 0 | IAL61: 0 | IAM61: 0 | IAN61: 0 | IAO61: 0 | IAP61: 0 | IAQ61: 0 | IAR61: 0 | IAS61: 0 | IAT61: 0 | IAU61: 0 | IAV61: 0 | IAW61: 0 | IAX61: 0 | IAY61: 0 | IAZ61: 0 | IBA61: 0 | IBB61: 0 | IBC61: 0 | IBD61: 0 | IBE61: 0 | IBF61: 0 | IBG61: 0 | IBH61: 0 | IBI61: 0 | IBJ61: 0 | IBK61: 0 | IBL61: 0 | IBM61: 0 | IBN61: 0 | IBO61: 0 | IBP61: 0 | IBQ61: =IBQ30 -> 0 | IBR61: 0 | IBS61: 0 | IBT61: 0 | IBU61: 0 | IBV61: 0 | IBW61: 0 | IBX61: 0 | IBY61: 0 | IBZ61: 0 | ICA61: 0 | ICB61: 0 | ICC61: 0 | ICD61: 0 | ICE61: 0 | ICF61: 0 | ICG61: 0 | ICH61: 0 | ICI61: 0 | ICJ61: 0 | ICK61: 0 | ICL61: 0 | ICM61: 0 | ICN61: 0 | ICO61: 0 | ICP61: 0 | ICQ61: 0 | ICR61: 0 | ICS61: 0 | ICT61: 0 | ICU61: 0 | ICV61: 0 | ICW61: 0 | ICX61: 0 | ICY61: 0 | ICZ61: 0 | IDA61: 0 | IDB61: 0 | IDC61: 0 | IDD61: 0 | IDE61: 0 | IDF61: 0 | IDG61: 0 | IDH61: 0 | IDI61: 0 | IDJ61: 0 | IDK61: 0 | IDL61: 0 | IDM61: 0 | IDN61: 0 | IDO61: 0 | IDP61: 0 | IDQ61: 0 | IDR61: 0 | IDS61: 0 | IDT61: 0 | IDU61: 0 | IDV61: 0 | IDW61: 0 | IDX61: 0 | IDY61: 0 | IDZ61: 0 | IEA61: 0 | IEB61: 0 | IEC61: =IEC30 -> 0 | IED61: 0 | IEE61: 0 | IEF61: 0 | IEG61: 0 | IEH61: 0 | IEI61: 0 | IEJ61: 0 | IEK61: 0 | IEL61: 0 | IEM61: 0 | IEN61: 0 | IEO61: 0 | IEP61: 0 | IEQ61: 0 | IER61: 0 | IES61: 0 | IET61: 0 | IEU61: 0 | IEV61: 0 | IEW61: 0 | IEX61: 0 | IEY61: 0 | IEZ61: 0 | IFA61: 0 | IFB61: 0 | IFC61: 0 | IFD61: 0 | IFE61: 0 | IFF61: 0 | IFG61: 0 | IFH61: 0 | IFI61: 0 | IFJ61: 0 | IFK61: 0 | IFL61: 0 | IFM61: 0 | IFN61: 0 | IFO61: 0 | IFP61: 0 | IFQ61: 0 | IFR61: 0 | IFS61: 0 | IFT61: 0 | IFU61: 0 | IFV61: 0 | IFW61: 0 | IFX61: 0 | IFY61: 0 | IFZ61: 0 | IGA61: 0 | IGB61: 0 | IGC61: 0 | IGD61: 0 | IGE61: 0 | IGF61: 0 | IGG61: 0 | IGH61: 0 | IGI61: 0 | IGJ61: 0 | IGK61: 0 | IGL61: 0 | IGM61: 0 | IGN61: 0 | IGO61: =IGO30 -> 0 | IGP61: 0 | IGQ61: 0 | IGR61: 0 | IGS61: 0 | IGT61: 0 | IGU61: 0 | IGV61: 0 | IGW61: 0 | IGX61: 0 | IGY61: 0 | IGZ61: 0 | IHA61: 0 | IHB61: 0 | IHC61: 0 | IHD61: 0 | IHE61: 0 | IHF61: 0 | IHG61: 0 | IHH61: 0 | IHI61: 0 | IHJ61: 0 | IHK61: 0 | IHL61: 0 | IHM61: 0 | IHN61: 0 | IHO61: 0 | IHP61: 0 | IHQ61: 0 | IHR61: 0 | IHS61: 0 | IHT61: 0 | IHU61: 0 | IHV61: 0 | IHW61: 0 | IHX61: 0 | IHY61: 0 | IHZ61: 0 | IIA61: 0 | IIB61: 0 | IIC61: 0 | IID61: 0 | IIE61: 0 | IIF61: 0 | IIG61: 0 | IIH61: 0 | III61: 0 | IIJ61: 0 | IIK61: 0 | IIL61: 0 | IIM61: 0 | IIN61: 0 | IIO61: 0 | IIP61: 0 | IIQ61: 0 | IIR61: 0 | IIS61: 0 | IIT61: 0 | IIU61: 0 | IIV61: 0 | IIW61: 0 | IIX61: 0 | IIY61: 0 | IIZ61: 0 | IJA61: =IJA30 -> 0 | IJB61: 0 | IJC61: 0 | IJD61: 0 | IJE61: 0 | IJF61: 0 | IJG61: 0 | IJH61: 0 | IJI61: 0 | IJJ61: 0 | IJK61: 0 | IJL61: 0 | IJM61: 0 | IJN61: 0 | IJO61: 0 | IJP61: 0 | IJQ61: 0 | IJR61: 0 | IJS61: 0 | IJT61: 0 | IJU61: 0 | IJV61: 0 | IJW61: 0 | IJX61: 0 | IJY61: 0 | IJZ61: 0 | IKA61: 0 | IKB61: 0 | IKC61: 0 | IKD61: 0 | IKE61: 0 | IKF61: 0 | IKG61: 0 | IKH61: 0 | IKI61: 0 | IKJ61: 0 | IKK61: 0 | IKL61: 0 | IKM61: 0 | IKN61: 0 | IKO61: 0 | IKP61: 0 | IKQ61: 0 | IKR61: 0 | IKS61: 0 | IKT61: 0 | IKU61: 0 | IKV61: 0 | IKW61: 0 | IKX61: 0 | IKY61: 0 | IKZ61: 0 | ILA61: 0 | ILB61: 0 | ILC61: 0 | ILD61: 0 | ILE61: 0 | ILF61: 0 | ILG61: 0 | ILH61: 0 | ILI61: 0 | ILJ61: 0 | ILK61: 0 | ILL61: 0 | ILM61: =ILM30 -> 0 | ILN61: 0 | ILO61: 0 | ILP61: 0 | ILQ61: 0 | ILR61: 0 | ILS61: 0 | ILT61: 0 | ILU61: 0 | ILV61: 0 | ILW61: 0 | ILX61: 0 | ILY61: 0 | ILZ61: 0 | IMA61: 0 | IMB61: 0 | IMC61: 0 | IMD61: 0 | IME61: 0 | IMF61: 0 | IMG61: 0 | IMH61: 0 | IMI61: 0 | IMJ61: 0 | IMK61: 0 | IML61: 0 | IMM61: 0 | IMN61: 0 | IMO61: 0 | IMP61: 0 | IMQ61: 0 | IMR61: 0 | IMS61: 0 | IMT61: 0 | IMU61: 0 | IMV61: 0 | IMW61: 0 | IMX61: 0 | IMY61: 0 | IMZ61: 0 | INA61: 0 | INB61: 0 | INC61: 0 | IND61: 0 | INE61: 0 | INF61: 0 | ING61: 0 | INH61: 0 | INI61: 0 | INJ61: 0 | INK61: 0 | INL61: 0 | INM61: 0 | INN61: 0 | INO61: 0 | INP61: 0 | INQ61: 0 | INR61: 0 | INS61: 0 | INT61: 0 | INU61: 0 | INV61: 0 | INW61: 0 | INX61: 0 | INY61: =INY30 -> 0 | INZ61: 0 | IOA61: 0 | IOB61: 0 | IOC61: 0 | IOD61: 0 | IOE61: 0 | IOF61: 0 | IOG61: 0 | IOH61: 0 | IOI61: 0 | IOJ61: 0 | IOK61: 0 | IOL61: 0 | IOM61: 0 | ION61: 0 | IOO61: 0 | IOP61: 0 | IOQ61: 0 | IOR61: 0 | IOS61: 0 | IOT61: 0 | IOU61: 0 | IOV61: 0 | IOW61: 0 | IOX61: 0 | IOY61: 0 | IOZ61: 0 | IPA61: 0 | IPB61: 0 | IPC61: 0 | IPD61: 0 | IPE61: 0 | IPF61: 0 | IPG61: 0 | IPH61: 0 | IPI61: 0 | IPJ61: 0 | IPK61: 0 | IPL61: 0 | IPM61: 0 | IPN61: 0 | IPO61: 0 | IPP61: 0 | IPQ61: 0 | IPR61: 0 | IPS61: 0 | IPT61: 0 | IPU61: 0 | IPV61: 0 | IPW61: 0 | IPX61: 0 | IPY61: 0 | IPZ61: 0 | IQA61: 0 | IQB61: 0 | IQC61: 0 | IQD61: 0 | IQE61: 0 | IQF61: 0 | IQG61: 0 | IQH61: 0 | IQI61: 0 | IQJ61: 0 | IQK61: =IQK30 -> 0 | IQL61: 0 | IQM61: 0 | IQN61: 0 | IQO61: 0 | IQP61: 0 | IQQ61: 0 | IQR61: 0 | IQS61: 0 | IQT61: 0 | IQU61: 0 | IQV61: 0 | IQW61: 0 | IQX61: 0 | IQY61: 0 | IQZ61: 0 | IRA61: 0 | IRB61: 0 | IRC61: 0 | IRD61: 0 | IRE61: 0 | IRF61: 0 | IRG61: 0 | IRH61: 0 | IRI61: 0 | IRJ61: 0 | IRK61: 0 | IRL61: 0 | IRM61: 0 | IRN61: 0 | IRO61: 0 | IRP61: 0 | IRQ61: 0 | IRR61: 0 | IRS61: 0 | IRT61: 0 | IRU61: 0 | IRV61: 0 | IRW61: 0 | IRX61: 0 | IRY61: 0 | IRZ61: 0 | ISA61: 0 | ISB61: 0 | ISC61: 0 | ISD61: 0 | ISE61: 0 | ISF61: 0 | ISG61: 0 | ISH61: 0 | ISI61: 0 | ISJ61: 0 | ISK61: 0 | ISL61: 0 | ISM61: 0 | ISN61: 0 | ISO61: 0 | ISP61: 0 | ISQ61: 0 | ISR61: 0 | ISS61: 0 | IST61: 0 | ISU61: 0 | ISV61: 0 | ISW61: =ISW30 -> 0 | ISX61: 0 | ISY61: 0 | ISZ61: 0 | ITA61: 0 | ITB61: 0 | ITC61: 0 | ITD61: 0 | ITE61: 0 | ITF61: 0 | ITG61: 0 | ITH61: 0 | ITI61: 0 | ITJ61: 0 | ITK61: 0 | ITL61: 0 | ITM61: 0 | ITN61: 0 | ITO61: 0 | ITP61: 0 | ITQ61: 0 | ITR61: 0 | ITS61: 0 | ITT61: 0 | ITU61: 0 | ITV61: 0 | ITW61: 0 | ITX61: 0 | ITY61: 0 | ITZ61: 0 | IUA61: 0 | IUB61: 0 | IUC61: 0 | IUD61: 0 | IUE61: 0 | IUF61: 0 | IUG61: 0 | IUH61: 0 | IUI61: 0 | IUJ61: 0 | IUK61: 0 | IUL61: 0 | IUM61: 0 | IUN61: 0 | IUO61: 0 | IUP61: 0 | IUQ61: 0 | IUR61: 0 | IUS61: 0 | IUT61: 0 | IUU61: 0 | IUV61: 0 | IUW61: 0 | IUX61: 0 | IUY61: 0 | IUZ61: 0 | IVA61: 0 | IVB61: 0 | IVC61: 0 | IVD61: 0 | IVE61: 0 | IVF61: 0 | IVG61: 0 | IVH61: 0 | IVI61: =IVI30 -> 0 | IVJ61: 0 | IVK61: 0 | IVL61: 0 | IVM61: 0 | IVN61: 0 | IVO61: 0 | IVP61: 0 | IVQ61: 0 | IVR61: 0 | IVS61: 0 | IVT61: 0 | IVU61: 0 | IVV61: 0 | IVW61: 0 | IVX61: 0 | IVY61: 0 | IVZ61: 0 | IWA61: 0 | IWB61: 0 | IWC61: 0 | IWD61: 0 | IWE61: 0 | IWF61: 0 | IWG61: 0 | IWH61: 0 | IWI61: 0 | IWJ61: 0 | IWK61: 0 | IWL61: 0 | IWM61: 0 | IWN61: 0 | IWO61: 0 | IWP61: 0 | IWQ61: 0 | IWR61: 0 | IWS61: 0 | IWT61: 0 | IWU61: 0 | IWV61: 0 | IWW61: 0 | IWX61: 0 | IWY61: 0 | IWZ61: 0 | IXA61: 0 | IXB61: 0 | IXC61: 0 | IXD61: 0 | IXE61: 0 | IXF61: 0 | IXG61: 0 | IXH61: 0 | IXI61: 0 | IXJ61: 0 | IXK61: 0 | IXL61: 0 | IXM61: 0 | IXN61: 0 | IXO61: 0 | IXP61: 0 | IXQ61: 0 | IXR61: 0 | IXS61: 0 | IXT61: 0 | IXU61: =IXU30 -> 0 | IXV61: 0 | IXW61: 0 | IXX61: 0 | IXY61: 0 | IXZ61: 0 | IYA61: 0 | IYB61: 0 | IYC61: 0 | IYD61: 0 | IYE61: 0 | IYF61: 0 | IYG61: 0 | IYH61: 0 | IYI61: 0 | IYJ61: 0 | IYK61: 0 | IYL61: 0 | IYM61: 0 | IYN61: 0 | IYO61: 0 | IYP61: 0 | IYQ61: 0 | IYR61: 0 | IYS61: 0 | IYT61: 0 | IYU61: 0 | IYV61: 0 | IYW61: 0 | IYX61: 0 | IYY61: 0 | IYZ61: 0 | IZA61: 0 | IZB61: 0 | IZC61: 0 | IZD61: 0 | IZE61: 0 | IZF61: 0 | IZG61: 0 | IZH61: 0 | IZI61: 0 | IZJ61: 0 | IZK61: 0 | IZL61: 0 | IZM61: 0 | IZN61: 0 | IZO61: 0 | IZP61: 0 | IZQ61: 0 | IZR61: 0 | IZS61: 0 | IZT61: 0 | IZU61: 0 | IZV61: 0 | IZW61: 0 | IZX61: 0 | IZY61: 0 | IZZ61: 0 | JAA61: 0 | JAB61: 0 | JAC61: 0 | JAD61: 0 | JAE61: 0 | JAF61: 0 | JAG61: =JAG30 -> 0 | JAH61: 0 | JAI61: 0 | JAJ61: 0 | JAK61: 0 | JAL61: 0 | JAM61: 0 | JAN61: 0 | JAO61: 0 | JAP61: 0 | JAQ61: 0 | JAR61: 0 | JAS61: 0 | JAT61: 0 | JAU61: 0 | JAV61: 0 | JAW61: 0 | JAX61: 0 | JAY61: 0 | JAZ61: 0 | JBA61: 0 | JBB61: 0 | JBC61: 0 | JBD61: 0 | JBE61: 0 | JBF61: 0 | JBG61: 0 | JBH61: 0 | JBI61: 0 | JBJ61: 0 | JBK61: 0 | JBL61: 0 | JBM61: 0 | JBN61: 0 | JBO61: 0 | JBP61: 0 | JBQ61: 0 | JBR61: 0 | JBS61: 0 | JBT61: 0 | JBU61: 0 | JBV61: 0 | JBW61: 0 | JBX61: 0 | JBY61: 0 | JBZ61: 0 | JCA61: 0 | JCB61: 0 | JCC61: 0 | JCD61: 0 | JCE61: 0 | JCF61: 0 | JCG61: 0 | JCH61: 0 | JCI61: 0 | JCJ61: 0 | JCK61: 0 | JCL61: 0 | JCM61: 0 | JCN61: 0 | JCO61: 0 | JCP61: 0 | JCQ61: 0 | JCR61: 0 | JCS61: =JCS30 -> 0 | JCT61: 0 | JCU61: 0 | JCV61: 0 | JCW61: 0 | JCX61: 0 | JCY61: 0 | JCZ61: 0 | JDA61: 0 | JDB61: 0 | JDC61: 0 | JDD61: 0 | JDE61: 0 | JDF61: 0 | JDG61: 0 | JDH61: 0 | JDI61: 0 | JDJ61: 0 | JDK61: 0 | JDL61: 0 | JDM61: 0 | JDN61: 0 | JDO61: 0 | JDP61: 0 | JDQ61: 0 | JDR61: 0 | JDS61: 0 | JDT61: 0 | JDU61: 0 | JDV61: 0 | JDW61: 0 | JDX61: 0 | JDY61: 0 | JDZ61: 0 | JEA61: 0 | JEB61: 0 | JEC61: 0 | JED61: 0 | JEE61: 0 | JEF61: 0 | JEG61: 0 | JEH61: 0 | JEI61: 0 | JEJ61: 0 | JEK61: 0 | JEL61: 0 | JEM61: 0 | JEN61: 0 | JEO61: 0 | JEP61: 0 | JEQ61: 0 | JER61: 0 | JES61: 0 | JET61: 0 | JEU61: 0 | JEV61: 0 | JEW61: 0 | JEX61: 0 | JEY61: 0 | JEZ61: 0 | JFA61: 0 | JFB61: 0 | JFC61: 0 | JFD61: 0 | JFE61: =JFE30 -> 0 | JFF61: 0 | JFG61: 0 | JFH61: 0 | JFI61: 0 | JFJ61: 0 | JFK61: 0 | JFL61: 0 | JFM61: 0 | JFN61: 0 | JFO61: 0 | JFP61: 0 | JFQ61: 0 | JFR61: 0 | JFS61: 0 | JFT61: 0 | JFU61: 0 | JFV61: 0 | JFW61: 0 | JFX61: 0 | JFY61: 0 | JFZ61: 0 | JGA61: 0 | JGB61: 0 | JGC61: 0 | JGD61: 0 | JGE61: 0 | JGF61: 0 | JGG61: 0 | JGH61: 0 | JGI61: 0 | JGJ61: 0 | JGK61: 0 | JGL61: 0 | JGM61: 0 | JGN61: 0 | JGO61: 0 | JGP61: 0 | JGQ61: 0 | JGR61: 0 | JGS61: 0 | JGT61: 0 | JGU61: 0 | JGV61: 0 | JGW61: 0 | JGX61: 0 | JGY61: 0 | JGZ61: 0 | JHA61: 0 | JHB61: 0 | JHC61: 0 | JHD61: 0 | JHE61: 0 | JHF61: 0 | JHG61: 0 | JHH61: 0 | JHI61: 0 | JHJ61: 0 | JHK61: 0 | JHL61: 0 | JHM61: 0 | JHN61: 0 | JHO61: 0 | JHP61: 0 | JHQ61: =JHQ30 -> 0 | JHR61: 0 | JHS61: 0 | JHT61: 0 | JHU61: 0 | JHV61: 0 | JHW61: 0 | JHX61: 0 | JHY61: 0 | JHZ61: 0 | JIA61: 0 | JIB61: 0 | JIC61: 0 | JID61: 0 | JIE61: 0 | JIF61: 0 | JIG61: 0 | JIH61: 0 | JII61: 0 | JIJ61: 0 | JIK61: 0 | JIL61: 0 | JIM61: 0 | JIN61: 0 | JIO61: 0 | JIP61: 0 | JIQ61: 0 | JIR61: 0 | JIS61: 0 | JIT61: 0 | JIU61: 0 | JIV61: 0 | JIW61: 0 | JIX61: 0 | JIY61: 0 | JIZ61: 0 | JJA61: 0 | JJB61: 0 | JJC61: 0 | JJD61: 0 | JJE61: 0 | JJF61: 0 | JJG61: 0 | JJH61: 0 | JJI61: 0 | JJJ61: 0 | JJK61: 0 | JJL61: 0 | JJM61: 0 | JJN61: 0 | JJO61: 0 | JJP61: 0 | JJQ61: 0 | JJR61: 0 | JJS61: 0 | JJT61: 0 | JJU61: 0 | JJV61: 0 | JJW61: 0 | JJX61: 0 | JJY61: 0 | JJZ61: 0 | JKA61: 0 | JKB61: 0 | JKC61: =JKC30 -> 0 | JKD61: 0 | JKE61: 0 | JKF61: 0 | JKG61: 0 | JKH61: 0 | JKI61: 0 | JKJ61: 0 | JKK61: 0 | JKL61: 0 | JKM61: 0 | JKN61: 0 | JKO61: 0 | JKP61: 0 | JKQ61: 0 | JKR61: 0 | JKS61: 0 | JKT61: 0 | JKU61: 0 | JKV61: 0 | JKW61: 0 | JKX61: 0 | JKY61: 0 | JKZ61: 0 | JLA61: 0 | JLB61: 0 | JLC61: 0 | JLD61: 0 | JLE61: 0 | JLF61: 0 | JLG61: 0 | JLH61: 0 | JLI61: 0 | JLJ61: 0 | JLK61: 0 | JLL61: 0 | JLM61: 0 | JLN61: 0 | JLO61: 0 | JLP61: 0 | JLQ61: 0 | JLR61: 0 | JLS61: 0 | JLT61: 0 | JLU61: 0 | JLV61: 0 | JLW61: 0 | JLX61: 0 | JLY61: 0 | JLZ61: 0 | JMA61: 0 | JMB61: 0 | JMC61: 0 | JMD61: 0 | JME61: 0 | JMF61: 0 | JMG61: 0 | JMH61: 0 | JMI61: 0 | JMJ61: 0 | JMK61: 0 | JML61: 0 | JMM61: 0 | JMN61: 0 | JMO61: =JMO30 -> 0 | JMP61: 0 | JMQ61: 0 | JMR61: 0 | JMS61: 0 | JMT61: 0 | JMU61: 0 | JMV61: 0 | JMW61: 0 | JMX61: 0 | JMY61: 0 | JMZ61: 0 | JNA61: 0 | JNB61: 0 | JNC61: 0 | JND61: 0 | JNE61: 0 | JNF61: 0 | JNG61: 0 | JNH61: 0 | JNI61: 0 | JNJ61: 0 | JNK61: 0 | JNL61: 0 | JNM61: 0 | JNN61: 0 | JNO61: 0 | JNP61: 0 | JNQ61: 0 | JNR61: 0 | JNS61: 0 | JNT61: 0 | JNU61: 0 | JNV61: 0 | JNW61: 0 | JNX61: 0 | JNY61: 0 | JNZ61: 0 | JOA61: 0 | JOB61: 0 | JOC61: 0 | JOD61: 0 | JOE61: 0 | JOF61: 0 | JOG61: 0 | JOH61: 0 | JOI61: 0 | JOJ61: 0 | JOK61: 0 | JOL61: 0 | JOM61: 0 | JON61: 0 | JOO61: 0 | JOP61: 0 | JOQ61: 0 | JOR61: 0 | JOS61: 0 | JOT61: 0 | JOU61: 0 | JOV61: 0 | JOW61: 0 | JOX61: 0 | JOY61: 0 | JOZ61: 0 | JPA61: =JPA30 -> 0 | JPB61: 0 | JPC61: 0 | JPD61: 0 | JPE61: 0 | JPF61: 0 | JPG61: 0 | JPH61: 0 | JPI61: 0 | JPJ61: 0 | JPK61: 0 | JPL61: 0 | JPM61: 0 | JPN61: 0 | JPO61: 0 | JPP61: 0 | JPQ61: 0 | JPR61: 0 | JPS61: 0 | JPT61: 0 | JPU61: 0 | JPV61: 0 | JPW61: 0 | JPX61: 0 | JPY61: 0 | JPZ61: 0 | JQA61: 0 | JQB61: 0 | JQC61: 0 | JQD61: 0 | JQE61: 0 | JQF61: 0 | JQG61: 0 | JQH61: 0 | JQI61: 0 | JQJ61: 0 | JQK61: 0 | JQL61: 0 | JQM61: 0 | JQN61: 0 | JQO61: 0 | JQP61: 0 | JQQ61: 0 | JQR61: 0 | JQS61: 0 | JQT61: 0 | JQU61: 0 | JQV61: 0 | JQW61: 0 | JQX61: 0 | JQY61: 0 | JQZ61: 0 | JRA61: 0 | JRB61: 0 | JRC61: 0 | JRD61: 0 | JRE61: 0 | JRF61: 0 | JRG61: 0 | JRH61: 0 | JRI61: 0 | JRJ61: 0 | JRK61: 0 | JRL61: 0 | JRM61: =JRM30 -> 0 | JRN61: 0 | JRO61: 0 | JRP61: 0 | JRQ61: 0 | JRR61: 0 | JRS61: 0 | JRT61: 0 | JRU61: 0 | JRV61: 0 | JRW61: 0 | JRX61: 0 | JRY61: 0 | JRZ61: 0 | JSA61: 0 | JSB61: 0 | JSC61: 0 | JSD61: 0 | JSE61: 0 | JSF61: 0 | JSG61: 0 | JSH61: 0 | JSI61: 0 | JSJ61: 0 | JSK61: 0 | JSL61: 0 | JSM61: 0 | JSN61: 0 | JSO61: 0 | JSP61: 0 | JSQ61: 0 | JSR61: 0 | JSS61: 0 | JST61: 0 | JSU61: 0 | JSV61: 0 | JSW61: 0 | JSX61: 0 | JSY61: 0 | JSZ61: 0 | JTA61: 0 | JTB61: 0 | JTC61: 0 | JTD61: 0 | JTE61: 0 | JTF61: 0 | JTG61: 0 | JTH61: 0 | JTI61: 0 | JTJ61: 0 | JTK61: 0 | JTL61: 0 | JTM61: 0 | JTN61: 0 | JTO61: 0 | JTP61: 0 | JTQ61: 0 | JTR61: 0 | JTS61: 0 | JTT61: 0 | JTU61: 0 | JTV61: 0 | JTW61: 0 | JTX61: 0 | JTY61: =JTY30 -> 0 | JTZ61: 0 | JUA61: 0 | JUB61: 0 | JUC61: 0 | JUD61: 0 | JUE61: 0 | JUF61: 0 | JUG61: 0 | JUH61: 0 | JUI61: 0 | JUJ61: 0 | JUK61: 0 | JUL61: 0 | JUM61: 0 | JUN61: 0 | JUO61: 0 | JUP61: 0 | JUQ61: 0 | JUR61: 0 | JUS61: 0 | JUT61: 0 | JUU61: 0 | JUV61: 0 | JUW61: 0 | JUX61: 0 | JUY61: 0 | JUZ61: 0 | JVA61: 0 | JVB61: 0 | JVC61: 0 | JVD61: 0 | JVE61: 0 | JVF61: 0 | JVG61: 0 | JVH61: 0 | JVI61: 0 | JVJ61: 0 | JVK61: 0 | JVL61: 0 | JVM61: 0 | JVN61: 0 | JVO61: 0 | JVP61: 0 | JVQ61: 0 | JVR61: 0 | JVS61: 0 | JVT61: 0 | JVU61: 0 | JVV61: 0 | JVW61: 0 | JVX61: 0 | JVY61: 0 | JVZ61: 0 | JWA61: 0 | JWB61: 0 | JWC61: 0 | JWD61: 0 | JWE61: 0 | JWF61: 0 | JWG61: 0 | JWH61: 0 | JWI61: 0 | JWJ61: 0 | JWK61: =JWK30 -> 0 | JWL61: 0 | JWM61: 0 | JWN61: 0 | JWO61: 0 | JWP61: 0 | JWQ61: 0 | JWR61: 0 | JWS61: 0 | JWT61: 0 | JWU61: 0 | JWV61: 0 | JWW61: 0 | JWX61: 0 | JWY61: 0 | JWZ61: 0 | JXA61: 0 | JXB61: 0 | JXC61: 0 | JXD61: 0 | JXE61: 0 | JXF61: 0 | JXG61: 0 | JXH61: 0 | JXI61: 0 | JXJ61: 0 | JXK61: 0 | JXL61: 0 | JXM61: 0 | JXN61: 0 | JXO61: 0 | JXP61: 0 | JXQ61: 0 | JXR61: 0 | JXS61: 0 | JXT61: 0 | JXU61: 0 | JXV61: 0 | JXW61: 0 | JXX61: 0 | JXY61: 0 | JXZ61: 0 | JYA61: 0 | JYB61: 0 | JYC61: 0 | JYD61: 0 | JYE61: 0 | JYF61: 0 | JYG61: 0 | JYH61: 0 | JYI61: 0 | JYJ61: 0 | JYK61: 0 | JYL61: 0 | JYM61: 0 | JYN61: 0 | JYO61: 0 | JYP61: 0 | JYQ61: 0 | JYR61: 0 | JYS61: 0 | JYT61: 0 | JYU61: 0 | JYV61: 0 | JYW61: =JYW30 -> 0 | JYX61: 0 | JYY61: 0 | JYZ61: 0 | JZA61: 0 | JZB61: 0 | JZC61: 0 | JZD61: 0 | JZE61: 0 | JZF61: 0 | JZG61: 0 | JZH61: 0 | JZI61: 0 | JZJ61: 0 | JZK61: 0 | JZL61: 0 | JZM61: 0 | JZN61: 0 | JZO61: 0 | JZP61: 0 | JZQ61: 0 | JZR61: 0 | JZS61: 0 | JZT61: 0 | JZU61: 0 | JZV61: 0 | JZW61: 0 | JZX61: 0 | JZY61: 0 | JZZ61: 0 | KAA61: 0 | KAB61: 0 | KAC61: 0 | KAD61: 0 | KAE61: 0 | KAF61: 0 | KAG61: 0 | KAH61: 0 | KAI61: 0 | KAJ61: 0 | KAK61: 0 | KAL61: 0 | KAM61: 0 | KAN61: 0 | KAO61: 0 | KAP61: 0 | KAQ61: 0 | KAR61: 0 | KAS61: 0 | KAT61: 0 | KAU61: 0 | KAV61: 0 | KAW61: 0 | KAX61: 0 | KAY61: 0 | KAZ61: 0 | KBA61: 0 | KBB61: 0 | KBC61: 0 | KBD61: 0 | KBE61: 0 | KBF61: 0 | KBG61: 0 | KBH61: 0 | KBI61: =KBI30 -> 0 | KBJ61: 0 | KBK61: 0 | KBL61: 0 | KBM61: 0 | KBN61: 0 | KBO61: 0 | KBP61: 0 | KBQ61: 0 | KBR61: 0 | KBS61: 0 | KBT61: 0 | KBU61: 0 | KBV61: 0 | KBW61: 0 | KBX61: 0 | KBY61: 0 | KBZ61: 0 | KCA61: 0 | KCB61: 0 | KCC61: 0 | KCD61: 0 | KCE61: 0 | KCF61: 0 | KCG61: 0 | KCH61: 0 | KCI61: 0 | KCJ61: 0 | KCK61: 0 | KCL61: 0 | KCM61: 0 | KCN61: 0 | KCO61: 0 | KCP61: 0 | KCQ61: 0 | KCR61: 0 | KCS61: 0 | KCT61: 0 | KCU61: 0 | KCV61: 0 | KCW61: 0 | KCX61: 0 | KCY61: 0 | KCZ61: 0 | KDA61: 0 | KDB61: 0 | KDC61: 0 | KDD61: 0 | KDE61: 0 | KDF61: 0 | KDG61: 0 | KDH61: 0 | KDI61: 0 | KDJ61: 0 | KDK61: 0 | KDL61: 0 | KDM61: 0 | KDN61: 0 | KDO61: 0 | KDP61: 0 | KDQ61: 0 | KDR61: 0 | KDS61: 0 | KDT61: 0 | KDU61: =KDU30 -> 0 | KDV61: 0 | KDW61: 0 | KDX61: 0 | KDY61: 0 | KDZ61: 0 | KEA61: 0 | KEB61: 0 | KEC61: 0 | KED61: 0 | KEE61: 0 | KEF61: 0 | KEG61: 0 | KEH61: 0 | KEI61: 0 | KEJ61: 0 | KEK61: 0 | KEL61: 0 | KEM61: 0 | KEN61: 0 | KEO61: 0 | KEP61: 0 | KEQ61: 0 | KER61: 0 | KES61: 0 | KET61: 0 | KEU61: 0 | KEV61: 0 | KEW61: 0 | KEX61: 0 | KEY61: 0 | KEZ61: 0 | KFA61: 0 | KFB61: 0 | KFC61: 0 | KFD61: 0 | KFE61: 0 | KFF61: 0 | KFG61: 0 | KFH61: 0 | KFI61: 0 | KFJ61: 0 | KFK61: 0 | KFL61: 0 | KFM61: 0 | KFN61: 0 | KFO61: 0 | KFP61: 0 | KFQ61: 0 | KFR61: 0 | KFS61: 0 | KFT61: 0 | KFU61: 0 | KFV61: 0 | KFW61: 0 | KFX61: 0 | KFY61: 0 | KFZ61: 0 | KGA61: 0 | KGB61: 0 | KGC61: 0 | KGD61: 0 | KGE61: 0 | KGF61: 0 | KGG61: =KGG30 -> 0 | KGH61: 0 | KGI61: 0 | KGJ61: 0 | KGK61: 0 | KGL61: 0 | KGM61: 0 | KGN61: 0 | KGO61: 0 | KGP61: 0 | KGQ61: 0 | KGR61: 0 | KGS61: 0 | KGT61: 0 | KGU61: 0 | KGV61: 0 | KGW61: 0 | KGX61: 0 | KGY61: 0 | KGZ61: 0 | KHA61: 0 | KHB61: 0 | KHC61: 0 | KHD61: 0 | KHE61: 0 | KHF61: 0 | KHG61: 0 | KHH61: 0 | KHI61: 0 | KHJ61: 0 | KHK61: 0 | KHL61: 0 | KHM61: 0 | KHN61: 0 | KHO61: 0 | KHP61: 0 | KHQ61: 0 | KHR61: 0 | KHS61: 0 | KHT61: 0 | KHU61: 0 | KHV61: 0 | KHW61: 0 | KHX61: 0 | KHY61: 0 | KHZ61: 0 | KIA61: 0 | KIB61: 0 | KIC61: 0 | KID61: 0 | KIE61: 0 | KIF61: 0 | KIG61: 0 | KIH61: 0 | KII61: 0 | KIJ61: 0 | KIK61: 0 | KIL61: 0 | KIM61: 0 | KIN61: 0 | KIO61: 0 | KIP61: 0 | KIQ61: 0 | KIR61: 0 | KIS61: =KIS30 -> 0 | KIT61: 0 | KIU61: 0 | KIV61: 0 | KIW61: 0 | KIX61: 0 | KIY61: 0 | KIZ61: 0 | KJA61: 0 | KJB61: 0 | KJC61: 0 | KJD61: 0 | KJE61: 0 | KJF61: 0 | KJG61: 0 | KJH61: 0 | KJI61: 0 | KJJ61: 0 | KJK61: 0 | KJL61: 0 | KJM61: 0 | KJN61: 0 | KJO61: 0 | KJP61: 0 | KJQ61: 0 | KJR61: 0 | KJS61: 0 | KJT61: 0 | KJU61: 0 | KJV61: 0 | KJW61: 0 | KJX61: 0 | KJY61: 0 | KJZ61: 0 | KKA61: 0 | KKB61: 0 | KKC61: 0 | KKD61: 0 | KKE61: 0 | KKF61: 0 | KKG61: 0 | KKH61: 0 | KKI61: 0 | KKJ61: 0 | KKK61: 0 | KKL61: 0 | KKM61: 0 | KKN61: 0 | KKO61: 0 | KKP61: 0 | KKQ61: 0 | KKR61: 0 | KKS61: 0 | KKT61: 0 | KKU61: 0 | KKV61: 0 | KKW61: 0 | KKX61: 0 | KKY61: 0 | KKZ61: 0 | KLA61: 0 | KLB61: 0 | KLC61: 0 | KLD61: 0 | KLE61: =KLE30 -> 0 | KLF61: 0 | KLG61: 0 | KLH61: 0 | KLI61: 0 | KLJ61: 0 | KLK61: 0 | KLL61: 0 | KLM61: 0 | KLN61: 0 | KLO61: 0 | KLP61: 0 | KLQ61: 0 | KLR61: 0 | KLS61: 0 | KLT61: 0 | KLU61: 0 | KLV61: 0 | KLW61: 0 | KLX61: 0 | KLY61: 0 | KLZ61: 0 | KMA61: 0 | KMB61: 0 | KMC61: 0 | KMD61: 0 | KME61: 0 | KMF61: 0 | KMG61: 0 | KMH61: 0 | KMI61: 0 | KMJ61: 0 | KMK61: 0 | KML61: 0 | KMM61: 0 | KMN61: 0 | KMO61: 0 | KMP61: 0 | KMQ61: 0 | KMR61: 0 | KMS61: 0 | KMT61: 0 | KMU61: 0 | KMV61: 0 | KMW61: 0 | KMX61: 0 | KMY61: 0 | KMZ61: 0 | KNA61: 0 | KNB61: 0 | KNC61: 0 | KND61: 0 | KNE61: 0 | KNF61: 0 | KNG61: 0 | KNH61: 0 | KNI61: 0 | KNJ61: 0 | KNK61: 0 | KNL61: 0 | KNM61: 0 | KNN61: 0 | KNO61: 0 | KNP61: 0 | KNQ61: =KNQ30 -> 0 | KNR61: 0 | KNS61: 0 | KNT61: 0 | KNU61: 0 | KNV61: 0 | KNW61: 0 | KNX61: 0 | KNY61: 0 | KNZ61: 0 | KOA61: 0 | KOB61: 0 | KOC61: 0 | KOD61: 0 | KOE61: 0 | KOF61: 0 | KOG61: 0 | KOH61: 0 | KOI61: 0 | KOJ61: 0 | KOK61: 0 | KOL61: 0 | KOM61: 0 | KON61: 0 | KOO61: 0 | KOP61: 0 | KOQ61: 0 | KOR61: 0 | KOS61: 0 | KOT61: 0 | KOU61: 0 | KOV61: 0 | KOW61: 0 | KOX61: 0 | KOY61: 0 | KOZ61: 0 | KPA61: 0 | KPB61: 0 | KPC61: 0 | KPD61: 0 | KPE61: 0 | KPF61: 0 | KPG61: 0 | KPH61: 0 | KPI61: 0 | KPJ61: 0 | KPK61: 0 | KPL61: 0 | KPM61: 0 | KPN61: 0 | KPO61: 0 | KPP61: 0 | KPQ61: 0 | KPR61: 0 | KPS61: 0 | KPT61: 0 | KPU61: 0 | KPV61: 0 | KPW61: 0 | KPX61: 0 | KPY61: 0 | KPZ61: 0 | KQA61: 0 | KQB61: 0 | KQC61: =KQC30 -> 0 | KQD61: 0 | KQE61: 0 | KQF61: 0 | KQG61: 0 | KQH61: 0 | KQI61: 0 | KQJ61: 0 | KQK61: 0 | KQL61: 0 | KQM61: 0 | KQN61: 0 | KQO61: 0 | KQP61: 0 | KQQ61: 0 | KQR61: 0 | KQS61: 0 | KQT61: 0 | KQU61: 0 | KQV61: 0 | KQW61: 0 | KQX61: 0 | KQY61: 0 | KQZ61: 0 | KRA61: 0 | KRB61: 0 | KRC61: 0 | KRD61: 0 | KRE61: 0 | KRF61: 0 | KRG61: 0 | KRH61: 0 | KRI61: 0 | KRJ61: 0 | KRK61: 0 | KRL61: 0 | KRM61: 0 | KRN61: 0 | KRO61: 0 | KRP61: 0 | KRQ61: 0 | KRR61: 0 | KRS61: 0 | KRT61: 0 | KRU61: 0 | KRV61: 0 | KRW61: 0 | KRX61: 0 | KRY61: 0 | KRZ61: 0 | KSA61: 0 | KSB61: 0 | KSC61: 0 | KSD61: 0 | KSE61: 0 | KSF61: 0 | KSG61: 0 | KSH61: 0 | KSI61: 0 | KSJ61: 0 | KSK61: 0 | KSL61: 0 | KSM61: 0 | KSN61: 0 | KSO61: =KSO30 -> 0 | KSP61: 0 | KSQ61: 0 | KSR61: 0 | KSS61: 0 | KST61: 0 | KSU61: 0 | KSV61: 0 | KSW61: 0 | KSX61: 0 | KSY61: 0 | KSZ61: 0 | KTA61: 0 | KTB61: 0 | KTC61: 0 | KTD61: 0 | KTE61: 0 | KTF61: 0 | KTG61: 0 | KTH61: 0 | KTI61: 0 | KTJ61: 0 | KTK61: 0 | KTL61: 0 | KTM61: 0 | KTN61: 0 | KTO61: 0 | KTP61: 0 | KTQ61: 0 | KTR61: 0 | KTS61: 0 | KTT61: 0 | KTU61: 0 | KTV61: 0 | KTW61: 0 | KTX61: 0 | KTY61: 0 | KTZ61: 0 | KUA61: 0 | KUB61: 0 | KUC61: 0 | KUD61: 0 | KUE61: 0 | KUF61: 0 | KUG61: 0 | KUH61: 0 | KUI61: 0 | KUJ61: 0 | KUK61: 0 | KUL61: 0 | KUM61: 0 | KUN61: 0 | KUO61: 0 | KUP61: 0 | KUQ61: 0 | KUR61: 0 | KUS61: 0 | KUT61: 0 | KUU61: 0 | KUV61: 0 | KUW61: 0 | KUX61: 0 | KUY61: 0 | KUZ61: 0 | KVA61: =KVA30 -> 0 | KVB61: 0 | KVC61: 0 | KVD61: 0 | KVE61: 0 | KVF61: 0 | KVG61: 0 | KVH61: 0 | KVI61: 0 | KVJ61: 0 | KVK61: 0 | KVL61: 0 | KVM61: 0 | KVN61: 0 | KVO61: 0 | KVP61: 0 | KVQ61: 0 | KVR61: 0 | KVS61: 0 | KVT61: 0 | KVU61: 0 | KVV61: 0 | KVW61: 0 | KVX61: 0 | KVY61: 0 | KVZ61: 0 | KWA61: 0 | KWB61: 0 | KWC61: 0 | KWD61: 0 | KWE61: 0 | KWF61: 0 | KWG61: 0 | KWH61: 0 | KWI61: 0 | KWJ61: 0 | KWK61: 0 | KWL61: 0 | KWM61: 0 | KWN61: 0 | KWO61: 0 | KWP61: 0 | KWQ61: 0 | KWR61: 0 | KWS61: 0 | KWT61: 0 | KWU61: 0 | KWV61: 0 | KWW61: 0 | KWX61: 0 | KWY61: 0 | KWZ61: 0 | KXA61: 0 | KXB61: 0 | KXC61: 0 | KXD61: 0 | KXE61: 0 | KXF61: 0 | KXG61: 0 | KXH61: 0 | KXI61: 0 | KXJ61: 0 | KXK61: 0 | KXL61: 0 | KXM61: =KXM30 -> 0 | KXN61: 0 | KXO61: 0 | KXP61: 0 | KXQ61: 0 | KXR61: 0 | KXS61: 0 | KXT61: 0 | KXU61: 0 | KXV61: 0 | KXW61: 0 | KXX61: 0 | KXY61: 0 | KXZ61: 0 | KYA61: 0 | KYB61: 0 | KYC61: 0 | KYD61: 0 | KYE61: 0 | KYF61: 0 | KYG61: 0 | KYH61: 0 | KYI61: 0 | KYJ61: 0 | KYK61: 0 | KYL61: 0 | KYM61: 0 | KYN61: 0 | KYO61: 0 | KYP61: 0 | KYQ61: 0 | KYR61: 0 | KYS61: 0 | KYT61: 0 | KYU61: 0 | KYV61: 0 | KYW61: 0 | KYX61: 0 | KYY61: 0 | KYZ61: 0 | KZA61: 0 | KZB61: 0 | KZC61: 0 | KZD61: 0 | KZE61: 0 | KZF61: 0 | KZG61: 0 | KZH61: 0 | KZI61: 0 | KZJ61: 0 | KZK61: 0 | KZL61: 0 | KZM61: 0 | KZN61: 0 | KZO61: 0 | KZP61: 0 | KZQ61: 0 | KZR61: 0 | KZS61: 0 | KZT61: 0 | KZU61: 0 | KZV61: 0 | KZW61: 0 | KZX61: 0 | KZY61: =KZY30 -> 0 | KZZ61: 0 | LAA61: 0 | LAB61: 0 | LAC61: 0 | LAD61: 0 | LAE61: 0 | LAF61: 0 | LAG61: 0 | LAH61: 0 | LAI61: 0 | LAJ61: 0 | LAK61: 0 | LAL61: 0 | LAM61: 0 | LAN61: 0 | LAO61: 0 | LAP61: 0 | LAQ61: 0 | LAR61: 0 | LAS61: 0 | LAT61: 0 | LAU61: 0 | LAV61: 0 | LAW61: 0 | LAX61: 0 | LAY61: 0 | LAZ61: 0 | LBA61: 0 | LBB61: 0 | LBC61: 0 | LBD61: 0 | LBE61: 0 | LBF61: 0 | LBG61: 0 | LBH61: 0 | LBI61: 0 | LBJ61: 0 | LBK61: 0 | LBL61: 0 | LBM61: 0 | LBN61: 0 | LBO61: 0 | LBP61: 0 | LBQ61: 0 | LBR61: 0 | LBS61: 0 | LBT61: 0 | LBU61: 0 | LBV61: 0 | LBW61: 0 | LBX61: 0 | LBY61: 0 | LBZ61: 0 | LCA61: 0 | LCB61: 0 | LCC61: 0 | LCD61: 0 | LCE61: 0 | LCF61: 0 | LCG61: 0 | LCH61: 0 | LCI61: 0 | LCJ61: 0 | LCK61: =LCK30 -> 0 | LCL61: 0 | LCM61: 0 | LCN61: 0 | LCO61: 0 | LCP61: 0 | LCQ61: 0 | LCR61: 0 | LCS61: 0 | LCT61: 0 | LCU61: 0 | LCV61: 0 | LCW61: 0 | LCX61: 0 | LCY61: 0 | LCZ61: 0 | LDA61: 0 | LDB61: 0 | LDC61: 0 | LDD61: 0 | LDE61: 0 | LDF61: 0 | LDG61: 0 | LDH61: 0 | LDI61: 0 | LDJ61: 0 | LDK61: 0 | LDL61: 0 | LDM61: 0 | LDN61: 0 | LDO61: 0 | LDP61: 0 | LDQ61: 0 | LDR61: 0 | LDS61: 0 | LDT61: 0 | LDU61: 0 | LDV61: 0 | LDW61: 0 | LDX61: 0 | LDY61: 0 | LDZ61: 0 | LEA61: 0 | LEB61: 0 | LEC61: 0 | LED61: 0 | LEE61: 0 | LEF61: 0 | LEG61: 0 | LEH61: 0 | LEI61: 0 | LEJ61: 0 | LEK61: 0 | LEL61: 0 | LEM61: 0 | LEN61: 0 | LEO61: 0 | LEP61: 0 | LEQ61: 0 | LER61: 0 | LES61: 0 | LET61: 0 | LEU61: 0 | LEV61: 0 | LEW61: =LEW30 -> 0 | LEX61: 0 | LEY61: 0 | LEZ61: 0 | LFA61: 0 | LFB61: 0 | LFC61: 0 | LFD61: 0 | LFE61: 0 | LFF61: 0 | LFG61: 0 | LFH61: 0 | LFI61: 0 | LFJ61: 0 | LFK61: 0 | LFL61: 0 | LFM61: 0 | LFN61: 0 | LFO61: 0 | LFP61: 0 | LFQ61: 0 | LFR61: 0 | LFS61: 0 | LFT61: 0 | LFU61: 0 | LFV61: 0 | LFW61: 0 | LFX61: 0 | LFY61: 0 | LFZ61: 0 | LGA61: 0 | LGB61: 0 | LGC61: 0 | LGD61: 0 | LGE61: 0 | LGF61: 0 | LGG61: 0 | LGH61: 0 | LGI61: 0 | LGJ61: 0 | LGK61: 0 | LGL61: 0 | LGM61: 0 | LGN61: 0 | LGO61: 0 | LGP61: 0 | LGQ61: 0 | LGR61: 0 | LGS61: 0 | LGT61: 0 | LGU61: 0 | LGV61: 0 | LGW61: 0 | LGX61: 0 | LGY61: 0 | LGZ61: 0 | LHA61: 0 | LHB61: 0 | LHC61: 0 | LHD61: 0 | LHE61: 0 | LHF61: 0 | LHG61: 0 | LHH61: 0 | LHI61: =LHI30 -> 0 | LHJ61: 0 | LHK61: 0 | LHL61: 0 | LHM61: 0 | LHN61: 0 | LHO61: 0 | LHP61: 0 | LHQ61: 0 | LHR61: 0 | LHS61: 0 | LHT61: 0 | LHU61: 0 | LHV61: 0 | LHW61: 0 | LHX61: 0 | LHY61: 0 | LHZ61: 0 | LIA61: 0 | LIB61: 0 | LIC61: 0 | LID61: 0 | LIE61: 0 | LIF61: 0 | LIG61: 0 | LIH61: 0 | LII61: 0 | LIJ61: 0 | LIK61: 0 | LIL61: 0 | LIM61: 0 | LIN61: 0 | LIO61: 0 | LIP61: 0 | LIQ61: 0 | LIR61: 0 | LIS61: 0 | LIT61: 0 | LIU61: 0 | LIV61: 0 | LIW61: 0 | LIX61: 0 | LIY61: 0 | LIZ61: 0 | LJA61: 0 | LJB61: 0 | LJC61: 0 | LJD61: 0 | LJE61: 0 | LJF61: 0 | LJG61: 0 | LJH61: 0 | LJI61: 0 | LJJ61: 0 | LJK61: 0 | LJL61: 0 | LJM61: 0 | LJN61: 0 | LJO61: 0 | LJP61: 0 | LJQ61: 0 | LJR61: 0 | LJS61: 0 | LJT61: 0 | LJU61: =LJU30 -> 0 | LJV61: 0 | LJW61: 0 | LJX61: 0 | LJY61: 0 | LJZ61: 0 | LKA61: 0 | LKB61: 0 | LKC61: 0 | LKD61: 0 | LKE61: 0 | LKF61: 0 | LKG61: 0 | LKH61: 0 | LKI61: 0 | LKJ61: 0 | LKK61: 0 | LKL61: 0 | LKM61: 0 | LKN61: 0 | LKO61: 0 | LKP61: 0 | LKQ61: 0 | LKR61: 0 | LKS61: 0 | LKT61: 0 | LKU61: 0 | LKV61: 0 | LKW61: 0 | LKX61: 0 | LKY61: 0 | LKZ61: 0 | LLA61: 0 | LLB61: 0 | LLC61: 0 | LLD61: 0 | LLE61: 0 | LLF61: 0 | LLG61: 0 | LLH61: 0 | LLI61: 0 | LLJ61: 0 | LLK61: 0 | LLL61: 0 | LLM61: 0 | LLN61: 0 | LLO61: 0 | LLP61: 0 | LLQ61: 0 | LLR61: 0 | LLS61: 0 | LLT61: 0 | LLU61: 0 | LLV61: 0 | LLW61: 0 | LLX61: 0 | LLY61: 0 | LLZ61: 0 | LMA61: 0 | LMB61: 0 | LMC61: 0 | LMD61: 0 | LME61: 0 | LMF61: 0 | LMG61: =LMG30 -> 0 | LMH61: 0 | LMI61: 0 | LMJ61: 0 | LMK61: 0 | LML61: 0 | LMM61: 0 | LMN61: 0 | LMO61: 0 | LMP61: 0 | LMQ61: 0 | LMR61: 0 | LMS61: 0 | LMT61: 0 | LMU61: 0 | LMV61: 0 | LMW61: 0 | LMX61: 0 | LMY61: 0 | LMZ61: 0 | LNA61: 0 | LNB61: 0 | LNC61: 0 | LND61: 0 | LNE61: 0 | LNF61: 0 | LNG61: 0 | LNH61: 0 | LNI61: 0 | LNJ61: 0 | LNK61: 0 | LNL61: 0 | LNM61: 0 | LNN61: 0 | LNO61: 0 | LNP61: 0 | LNQ61: 0 | LNR61: 0 | LNS61: 0 | LNT61: 0 | LNU61: 0 | LNV61: 0 | LNW61: 0 | LNX61: 0 | LNY61: 0 | LNZ61: 0 | LOA61: 0 | LOB61: 0 | LOC61: 0 | LOD61: 0 | LOE61: 0 | LOF61: 0 | LOG61: 0 | LOH61: 0 | LOI61: 0 | LOJ61: 0 | LOK61: 0 | LOL61: 0 | LOM61: 0 | LON61: 0 | LOO61: 0 | LOP61: 0 | LOQ61: 0 | LOR61: 0 | LOS61: =LOS30 -> 0 | LOT61: 0 | LOU61: 0 | LOV61: 0 | LOW61: 0 | LOX61: 0 | LOY61: 0 | LOZ61: 0 | LPA61: 0 | LPB61: 0 | LPC61: 0 | LPD61: 0 | LPE61: 0 | LPF61: 0 | LPG61: 0 | LPH61: 0 | LPI61: 0 | LPJ61: 0 | LPK61: 0 | LPL61: 0 | LPM61: 0 | LPN61: 0 | LPO61: 0 | LPP61: 0 | LPQ61: 0 | LPR61: 0 | LPS61: 0 | LPT61: 0 | LPU61: 0 | LPV61: 0 | LPW61: 0 | LPX61: 0 | LPY61: 0 | LPZ61: 0 | LQA61: 0 | LQB61: 0 | LQC61: 0 | LQD61: 0 | LQE61: 0 | LQF61: 0 | LQG61: 0 | LQH61: 0 | LQI61: 0 | LQJ61: 0 | LQK61: 0 | LQL61: 0 | LQM61: 0 | LQN61: 0 | LQO61: 0 | LQP61: 0 | LQQ61: 0 | LQR61: 0 | LQS61: 0 | LQT61: 0 | LQU61: 0 | LQV61: 0 | LQW61: 0 | LQX61: 0 | LQY61: 0 | LQZ61: 0 | LRA61: 0 | LRB61: 0 | LRC61: 0 | LRD61: 0 | LRE61: =LRE30 -> 0 | LRF61: 0 | LRG61: 0 | LRH61: 0 | LRI61: 0 | LRJ61: 0 | LRK61: 0 | LRL61: 0 | LRM61: 0 | LRN61: 0 | LRO61: 0 | LRP61: 0 | LRQ61: 0 | LRR61: 0 | LRS61: 0 | LRT61: 0 | LRU61: 0 | LRV61: 0 | LRW61: 0 | LRX61: 0 | LRY61: 0 | LRZ61: 0 | LSA61: 0 | LSB61: 0 | LSC61: 0 | LSD61: 0 | LSE61: 0 | LSF61: 0 | LSG61: 0 | LSH61: 0 | LSI61: 0 | LSJ61: 0 | LSK61: 0 | LSL61: 0 | LSM61: 0 | LSN61: 0 | LSO61: 0 | LSP61: 0 | LSQ61: 0 | LSR61: 0 | LSS61: 0 | LST61: 0 | LSU61: 0 | LSV61: 0 | LSW61: 0 | LSX61: 0 | LSY61: 0 | LSZ61: 0 | LTA61: 0 | LTB61: 0 | LTC61: 0 | LTD61: 0 | LTE61: 0 | LTF61: 0 | LTG61: 0 | LTH61: 0 | LTI61: 0 | LTJ61: 0 | LTK61: 0 | LTL61: 0 | LTM61: 0 | LTN61: 0 | LTO61: 0 | LTP61: 0 | LTQ61: =LTQ30 -> 0 | LTR61: 0 | LTS61: 0 | LTT61: 0 | LTU61: 0 | LTV61: 0 | LTW61: 0 | LTX61: 0 | LTY61: 0 | LTZ61: 0 | LUA61: 0 | LUB61: 0 | LUC61: 0 | LUD61: 0 | LUE61: 0 | LUF61: 0 | LUG61: 0 | LUH61: 0 | LUI61: 0 | LUJ61: 0 | LUK61: 0 | LUL61: 0 | LUM61: 0 | LUN61: 0 | LUO61: 0 | LUP61: 0 | LUQ61: 0 | LUR61: 0 | LUS61: 0 | LUT61: 0 | LUU61: 0 | LUV61: 0 | LUW61: 0 | LUX61: 0 | LUY61: 0 | LUZ61: 0 | LVA61: 0 | LVB61: 0 | LVC61: 0 | LVD61: 0 | LVE61: 0 | LVF61: 0 | LVG61: 0 | LVH61: 0 | LVI61: 0 | LVJ61: 0 | LVK61: 0 | LVL61: 0 | LVM61: 0 | LVN61: 0 | LVO61: 0 | LVP61: 0 | LVQ61: 0 | LVR61: 0 | LVS61: 0 | LVT61: 0 | LVU61: 0 | LVV61: 0 | LVW61: 0 | LVX61: 0 | LVY61: 0 | LVZ61: 0 | LWA61: 0 | LWB61: 0 | LWC61: =LWC30 -> 0 | LWD61: 0 | LWE61: 0 | LWF61: 0 | LWG61: 0 | LWH61: 0 | LWI61: 0 | LWJ61: 0 | LWK61: 0 | LWL61: 0 | LWM61: 0 | LWN61: 0 | LWO61: 0 | LWP61: 0 | LWQ61: 0 | LWR61: 0 | LWS61: 0 | LWT61: 0 | LWU61: 0 | LWV61: 0 | LWW61: 0 | LWX61: 0 | LWY61: 0 | LWZ61: 0 | LXA61: 0 | LXB61: 0 | LXC61: 0 | LXD61: 0 | LXE61: 0 | LXF61: 0 | LXG61: 0 | LXH61: 0 | LXI61: 0 | LXJ61: 0 | LXK61: 0 | LXL61: 0 | LXM61: 0 | LXN61: 0 | LXO61: 0 | LXP61: 0 | LXQ61: 0 | LXR61: 0 | LXS61: 0 | LXT61: 0 | LXU61: 0 | LXV61: 0 | LXW61: 0 | LXX61: 0 | LXY61: 0 | LXZ61: 0 | LYA61: 0 | LYB61: 0 | LYC61: 0 | LYD61: 0 | LYE61: 0 | LYF61: 0 | LYG61: 0 | LYH61: 0 | LYI61: 0 | LYJ61: 0 | LYK61: 0 | LYL61: 0 | LYM61: 0 | LYN61: 0 | LYO61: =LYO30 -> 0 | LYP61: 0 | LYQ61: 0 | LYR61: 0 | LYS61: 0 | LYT61: 0 | LYU61: 0 | LYV61: 0 | LYW61: 0 | LYX61: 0 | LYY61: 0 | LYZ61: 0 | LZA61: 0 | LZB61: 0 | LZC61: 0 | LZD61: 0 | LZE61: 0 | LZF61: 0 | LZG61: 0 | LZH61: 0 | LZI61: 0 | LZJ61: 0 | LZK61: 0 | LZL61: 0 | LZM61: 0 | LZN61: 0 | LZO61: 0 | LZP61: 0 | LZQ61: 0 | LZR61: 0 | LZS61: 0 | LZT61: 0 | LZU61: 0 | LZV61: 0 | LZW61: 0 | LZX61: 0 | LZY61: 0 | LZZ61: 0 | MAA61: 0 | MAB61: 0 | MAC61: 0 | MAD61: 0 | MAE61: 0 | MAF61: 0 | MAG61: 0 | MAH61: 0 | MAI61: 0 | MAJ61: 0 | MAK61: 0 | MAL61: 0 | MAM61: 0 | MAN61: 0 | MAO61: 0 | MAP61: 0 | MAQ61: 0 | MAR61: 0 | MAS61: 0 | MAT61: 0 | MAU61: 0 | MAV61: 0 | MAW61: 0 | MAX61: 0 | MAY61: 0 | MAZ61: 0 | MBA61: =MBA30 -> 0 | MBB61: 0 | MBC61: 0 | MBD61: 0 | MBE61: 0 | MBF61: 0 | MBG61: 0 | MBH61: 0 | MBI61: 0 | MBJ61: 0 | MBK61: 0 | MBL61: 0 | MBM61: 0 | MBN61: 0 | MBO61: 0 | MBP61: 0 | MBQ61: 0 | MBR61: 0 | MBS61: 0 | MBT61: 0 | MBU61: 0 | MBV61: 0 | MBW61: 0 | MBX61: 0 | MBY61: 0 | MBZ61: 0 | MCA61: 0 | MCB61: 0 | MCC61: 0 | MCD61: 0 | MCE61: 0 | MCF61: 0 | MCG61: 0 | MCH61: 0 | MCI61: 0 | MCJ61: 0 | MCK61: 0 | MCL61: 0 | MCM61: 0 | MCN61: 0 | MCO61: 0 | MCP61: 0 | MCQ61: 0 | MCR61: 0 | MCS61: 0 | MCT61: 0 | MCU61: 0 | MCV61: 0 | MCW61: 0 | MCX61: 0 | MCY61: 0 | MCZ61: 0 | MDA61: 0 | MDB61: 0 | MDC61: 0 | MDD61: 0 | MDE61: 0 | MDF61: 0 | MDG61: 0 | MDH61: 0 | MDI61: 0 | MDJ61: 0 | MDK61: 0 | MDL61: 0 | MDM61: =MDM30 -> 0 | MDN61: 0 | MDO61: 0 | MDP61: 0 | MDQ61: 0 | MDR61: 0 | MDS61: 0 | MDT61: 0 | MDU61: 0 | MDV61: 0 | MDW61: 0 | MDX61: 0 | MDY61: 0 | MDZ61: 0 | MEA61: 0 | MEB61: 0 | MEC61: 0 | MED61: 0 | MEE61: 0 | MEF61: 0 | MEG61: 0 | MEH61: 0 | MEI61: 0 | MEJ61: 0 | MEK61: 0 | MEL61: 0 | MEM61: 0 | MEN61: 0 | MEO61: 0 | MEP61: 0 | MEQ61: 0 | MER61: 0 | MES61: 0 | MET61: 0 | MEU61: 0 | MEV61: 0 | MEW61: 0 | MEX61: 0 | MEY61: 0 | MEZ61: 0 | MFA61: 0 | MFB61: 0 | MFC61: 0 | MFD61: 0 | MFE61: 0 | MFF61: 0 | MFG61: 0 | MFH61: 0 | MFI61: 0 | MFJ61: 0 | MFK61: 0 | MFL61: 0 | MFM61: 0 | MFN61: 0 | MFO61: 0 | MFP61: 0 | MFQ61: 0 | MFR61: 0 | MFS61: 0 | MFT61: 0 | MFU61: 0 | MFV61: 0 | MFW61: 0 | MFX61: 0 | MFY61: =MFY30 -> 0 | MFZ61: 0 | MGA61: 0 | MGB61: 0 | MGC61: 0 | MGD61: 0 | MGE61: 0 | MGF61: 0 | MGG61: 0 | MGH61: 0 | MGI61: 0 | MGJ61: 0 | MGK61: 0 | MGL61: 0 | MGM61: 0 | MGN61: 0 | MGO61: 0 | MGP61: 0 | MGQ61: 0 | MGR61: 0 | MGS61: 0 | MGT61: 0 | MGU61: 0 | MGV61: 0 | MGW61: 0 | MGX61: 0 | MGY61: 0 | MGZ61: 0 | MHA61: 0 | MHB61: 0 | MHC61: 0 | MHD61: 0 | MHE61: 0 | MHF61: 0 | MHG61: 0 | MHH61: 0 | MHI61: 0 | MHJ61: 0 | MHK61: 0 | MHL61: 0 | MHM61: 0 | MHN61: 0 | MHO61: 0 | MHP61: 0 | MHQ61: 0 | MHR61: 0 | MHS61: 0 | MHT61: 0 | MHU61: 0 | MHV61: 0 | MHW61: 0 | MHX61: 0 | MHY61: 0 | MHZ61: 0 | MIA61: 0 | MIB61: 0 | MIC61: 0 | MID61: 0 | MIE61: 0 | MIF61: 0 | MIG61: 0 | MIH61: 0 | MII61: 0 | MIJ61: 0 | MIK61: =MIK30 -> 0 | MIL61: 0 | MIM61: 0 | MIN61: 0 | MIO61: 0 | MIP61: 0 | MIQ61: 0 | MIR61: 0 | MIS61: 0 | MIT61: 0 | MIU61: 0 | MIV61: 0 | MIW61: 0 | MIX61: 0 | MIY61: 0 | MIZ61: 0 | MJA61: 0 | MJB61: 0 | MJC61: 0 | MJD61: 0 | MJE61: 0 | MJF61: 0 | MJG61: 0 | MJH61: 0 | MJI61: 0 | MJJ61: 0 | MJK61: 0 | MJL61: 0 | MJM61: 0 | MJN61: 0 | MJO61: 0 | MJP61: 0 | MJQ61: 0 | MJR61: 0 | MJS61: 0 | MJT61: 0 | MJU61: 0 | MJV61: 0 | MJW61: 0 | MJX61: 0 | MJY61: 0 | MJZ61: 0 | MKA61: 0 | MKB61: 0 | MKC61: 0 | MKD61: 0 | MKE61: 0 | MKF61: 0 | MKG61: 0 | MKH61: 0 | MKI61: 0 | MKJ61: 0 | MKK61: 0 | MKL61: 0 | MKM61: 0 | MKN61: 0 | MKO61: 0 | MKP61: 0 | MKQ61: 0 | MKR61: 0 | MKS61: 0 | MKT61: 0 | MKU61: 0 | MKV61: 0 | MKW61: =MKW30 -> 0 | MKX61: 0 | MKY61: 0 | MKZ61: 0 | MLA61: 0 | MLB61: 0 | MLC61: 0 | MLD61: 0 | MLE61: 0 | MLF61: 0 | MLG61: 0 | MLH61: 0 | MLI61: 0 | MLJ61: 0 | MLK61: 0 | MLL61: 0 | MLM61: 0 | MLN61: 0 | MLO61: 0 | MLP61: 0 | MLQ61: 0 | MLR61: 0 | MLS61: 0 | MLT61: 0 | MLU61: 0 | MLV61: 0 | MLW61: 0 | MLX61: 0 | MLY61: 0 | MLZ61: 0 | MMA61: 0 | MMB61: 0 | MMC61: 0 | MMD61: 0 | MME61: 0 | MMF61: 0 | MMG61: 0 | MMH61: 0 | MMI61: 0 | MMJ61: 0 | MMK61: 0 | MML61: 0 | MMM61: 0 | MMN61: 0 | MMO61: 0 | MMP61: 0 | MMQ61: 0 | MMR61: 0 | MMS61: 0 | MMT61: 0 | MMU61: 0 | MMV61: 0 | MMW61: 0 | MMX61: 0 | MMY61: 0 | MMZ61: 0 | MNA61: 0 | MNB61: 0 | MNC61: 0 | MND61: 0 | MNE61: 0 | MNF61: 0 | MNG61: 0 | MNH61: 0 | MNI61: =MNI30 -> 0 | MNJ61: 0 | MNK61: 0 | MNL61: 0 | MNM61: 0 | MNN61: 0 | MNO61: 0 | MNP61: 0 | MNQ61: 0 | MNR61: 0 | MNS61: 0 | MNT61: 0 | MNU61: 0 | MNV61: 0 | MNW61: 0 | MNX61: 0 | MNY61: 0 | MNZ61: 0 | MOA61: 0 | MOB61: 0 | MOC61: 0 | MOD61: 0 | MOE61: 0 | MOF61: 0 | MOG61: 0 | MOH61: 0 | MOI61: 0 | MOJ61: 0 | MOK61: 0 | MOL61: 0 | MOM61: 0 | MON61: 0 | MOO61: 0 | MOP61: 0 | MOQ61: 0 | MOR61: 0 | MOS61: 0 | MOT61: 0 | MOU61: 0 | MOV61: 0 | MOW61: 0 | MOX61: 0 | MOY61: 0 | MOZ61: 0 | MPA61: 0 | MPB61: 0 | MPC61: 0 | MPD61: 0 | MPE61: 0 | MPF61: 0 | MPG61: 0 | MPH61: 0 | MPI61: 0 | MPJ61: 0 | MPK61: 0 | MPL61: 0 | MPM61: 0 | MPN61: 0 | MPO61: 0 | MPP61: 0 | MPQ61: 0 | MPR61: 0 | MPS61: 0 | MPT61: 0 | MPU61: =MPU30 -> 0 | MPV61: 0 | MPW61: 0 | MPX61: 0 | MPY61: 0 | MPZ61: 0 | MQA61: 0 | MQB61: 0 | MQC61: 0 | MQD61: 0 | MQE61: 0 | MQF61: 0 | MQG61: 0 | MQH61: 0 | MQI61: 0 | MQJ61: 0 | MQK61: 0 | MQL61: 0 | MQM61: 0 | MQN61: 0 | MQO61: 0 | MQP61: 0 | MQQ61: 0 | MQR61: 0 | MQS61: 0 | MQT61: 0 | MQU61: 0 | MQV61: 0 | MQW61: 0 | MQX61: 0 | MQY61: 0 | MQZ61: 0 | MRA61: 0 | MRB61: 0 | MRC61: 0 | MRD61: 0 | MRE61: 0 | MRF61: 0 | MRG61: 0 | MRH61: 0 | MRI61: 0 | MRJ61: 0 | MRK61: 0 | MRL61: 0 | MRM61: 0 | MRN61: 0 | MRO61: 0 | MRP61: 0 | MRQ61: 0 | MRR61: 0 | MRS61: 0 | MRT61: 0 | MRU61: 0 | MRV61: 0 | MRW61: 0 | MRX61: 0 | MRY61: 0 | MRZ61: 0 | MSA61: 0 | MSB61: 0 | MSC61: 0 | MSD61: 0 | MSE61: 0 | MSF61: 0 | MSG61: =MSG30 -> 0 | MSH61: 0 | MSI61: 0 | MSJ61: 0 | MSK61: 0 | MSL61: 0 | MSM61: 0 | MSN61: 0 | MSO61: 0 | MSP61: 0 | MSQ61: 0 | MSR61: 0 | MSS61: 0 | MST61: 0 | MSU61: 0 | MSV61: 0 | MSW61: 0 | MSX61: 0 | MSY61: 0 | MSZ61: 0 | MTA61: 0 | MTB61: 0 | MTC61: 0 | MTD61: 0 | MTE61: 0 | MTF61: 0 | MTG61: 0 | MTH61: 0 | MTI61: 0 | MTJ61: 0 | MTK61: 0 | MTL61: 0 | MTM61: 0 | MTN61: 0 | MTO61: 0 | MTP61: 0 | MTQ61: 0 | MTR61: 0 | MTS61: 0 | MTT61: 0 | MTU61: 0 | MTV61: 0 | MTW61: 0 | MTX61: 0 | MTY61: 0 | MTZ61: 0 | MUA61: 0 | MUB61: 0 | MUC61: 0 | MUD61: 0 | MUE61: 0 | MUF61: 0 | MUG61: 0 | MUH61: 0 | MUI61: 0 | MUJ61: 0 | MUK61: 0 | MUL61: 0 | MUM61: 0 | MUN61: 0 | MUO61: 0 | MUP61: 0 | MUQ61: 0 | MUR61: 0 | MUS61: =MUS30 -> 0 | MUT61: 0 | MUU61: 0 | MUV61: 0 | MUW61: 0 | MUX61: 0 | MUY61: 0 | MUZ61: 0 | MVA61: 0 | MVB61: 0 | MVC61: 0 | MVD61: 0 | MVE61: 0 | MVF61: 0 | MVG61: 0 | MVH61: 0 | MVI61: 0 | MVJ61: 0 | MVK61: 0 | MVL61: 0 | MVM61: 0 | MVN61: 0 | MVO61: 0 | MVP61: 0 | MVQ61: 0 | MVR61: 0 | MVS61: 0 | MVT61: 0 | MVU61: 0 | MVV61: 0 | MVW61: 0 | MVX61: 0 | MVY61: 0 | MVZ61: 0 | MWA61: 0 | MWB61: 0 | MWC61: 0 | MWD61: 0 | MWE61: 0 | MWF61: 0 | MWG61: 0 | MWH61: 0 | MWI61: 0 | MWJ61: 0 | MWK61: 0 | MWL61: 0 | MWM61: 0 | MWN61: 0 | MWO61: 0 | MWP61: 0 | MWQ61: 0 | MWR61: 0 | MWS61: 0 | MWT61: 0 | MWU61: 0 | MWV61: 0 | MWW61: 0 | MWX61: 0 | MWY61: 0 | MWZ61: 0 | MXA61: 0 | MXB61: 0 | MXC61: 0 | MXD61: 0 | MXE61: =MXE30 -> 0 | MXF61: 0 | MXG61: 0 | MXH61: 0 | MXI61: 0 | MXJ61: 0 | MXK61: 0 | MXL61: 0 | MXM61: 0 | MXN61: 0 | MXO61: 0 | MXP61: 0 | MXQ61: 0 | MXR61: 0 | MXS61: 0 | MXT61: 0 | MXU61: 0 | MXV61: 0 | MXW61: 0 | MXX61: 0 | MXY61: 0 | MXZ61: 0 | MYA61: 0 | MYB61: 0 | MYC61: 0 | MYD61: 0 | MYE61: 0 | MYF61: 0 | MYG61: 0 | MYH61: 0 | MYI61: 0 | MYJ61: 0 | MYK61: 0 | MYL61: 0 | MYM61: 0 | MYN61: 0 | MYO61: 0 | MYP61: 0 | MYQ61: 0 | MYR61: 0 | MYS61: 0 | MYT61: 0 | MYU61: 0 | MYV61: 0 | MYW61: 0 | MYX61: 0 | MYY61: 0 | MYZ61: 0 | MZA61: 0 | MZB61: 0 | MZC61: 0 | MZD61: 0 | MZE61: 0 | MZF61: 0 | MZG61: 0 | MZH61: 0 | MZI61: 0 | MZJ61: 0 | MZK61: 0 | MZL61: 0 | MZM61: 0 | MZN61: 0 | MZO61: 0 | MZP61: 0 | MZQ61: =MZQ30 -> 0 | MZR61: 0 | MZS61: 0 | MZT61: 0 | MZU61: 0 | MZV61: 0 | MZW61: 0 | MZX61: 0 | MZY61: 0 | MZZ61: 0 | NAA61: 0 | NAB61: 0 | NAC61: 0 | NAD61: 0 | NAE61: 0 | NAF61: 0 | NAG61: 0 | NAH61: 0 | NAI61: 0 | NAJ61: 0 | NAK61: 0 | NAL61: 0 | NAM61: 0 | NAN61: 0 | NAO61: 0 | NAP61: 0 | NAQ61: 0 | NAR61: 0 | NAS61: 0 | NAT61: 0 | NAU61: 0 | NAV61: 0 | NAW61: 0 | NAX61: 0 | NAY61: 0 | NAZ61: 0 | NBA61: 0 | NBB61: 0 | NBC61: 0 | NBD61: 0 | NBE61: 0 | NBF61: 0 | NBG61: 0 | NBH61: 0 | NBI61: 0 | NBJ61: 0 | NBK61: 0 | NBL61: 0 | NBM61: 0 | NBN61: 0 | NBO61: 0 | NBP61: 0 | NBQ61: 0 | NBR61: 0 | NBS61: 0 | NBT61: 0 | NBU61: 0 | NBV61: 0 | NBW61: 0 | NBX61: 0 | NBY61: 0 | NBZ61: 0 | NCA61: 0 | NCB61: 0 | NCC61: =NCC30 -> 0 | NCD61: 0 | NCE61: 0 | NCF61: 0 | NCG61: 0 | NCH61: 0 | NCI61: 0 | NCJ61: 0 | NCK61: 0 | NCL61: 0 | NCM61: 0 | NCN61: 0 | NCO61: 0 | NCP61: 0 | NCQ61: 0 | NCR61: 0 | NCS61: 0 | NCT61: 0 | NCU61: 0 | NCV61: 0 | NCW61: 0 | NCX61: 0 | NCY61: 0 | NCZ61: 0 | NDA61: 0 | NDB61: 0 | NDC61: 0 | NDD61: 0 | NDE61: 0 | NDF61: 0 | NDG61: 0 | NDH61: 0 | NDI61: 0 | NDJ61: 0 | NDK61: 0 | NDL61: 0 | NDM61: 0 | NDN61: 0 | NDO61: 0 | NDP61: 0 | NDQ61: 0 | NDR61: 0 | NDS61: 0 | NDT61: 0 | NDU61: 0 | NDV61: 0 | NDW61: 0 | NDX61: 0 | NDY61: 0 | NDZ61: 0 | NEA61: 0 | NEB61: 0 | NEC61: 0 | NED61: 0 | NEE61: 0 | NEF61: 0 | NEG61: 0 | NEH61: 0 | NEI61: 0 | NEJ61: 0 | NEK61: 0 | NEL61: 0 | NEM61: 0 | NEN61: 0 | NEO61: =NEO30 -> 0 | NEP61: 0 | NEQ61: 0 | NER61: 0 | NES61: 0 | NET61: 0 | NEU61: 0 | NEV61: 0 | NEW61: 0 | NEX61: 0 | NEY61: 0 | NEZ61: 0 | NFA61: 0 | NFB61: 0 | NFC61: 0 | NFD61: 0 | NFE61: 0 | NFF61: 0 | NFG61: 0 | NFH61: 0 | NFI61: 0 | NFJ61: 0 | NFK61: 0 | NFL61: 0 | NFM61: 0 | NFN61: 0 | NFO61: 0 | NFP61: 0 | NFQ61: 0 | NFR61: 0 | NFS61: 0 | NFT61: 0 | NFU61: 0 | NFV61: 0 | NFW61: 0 | NFX61: 0 | NFY61: 0 | NFZ61: 0 | NGA61: 0 | NGB61: 0 | NGC61: 0 | NGD61: 0 | NGE61: 0 | NGF61: 0 | NGG61: 0 | NGH61: 0 | NGI61: 0 | NGJ61: 0 | NGK61: 0 | NGL61: 0 | NGM61: 0 | NGN61: 0 | NGO61: 0 | NGP61: 0 | NGQ61: 0 | NGR61: 0 | NGS61: 0 | NGT61: 0 | NGU61: 0 | NGV61: 0 | NGW61: 0 | NGX61: 0 | NGY61: 0 | NGZ61: 0 | NHA61: =NHA30 -> 0 | NHB61: 0 | NHC61: 0 | NHD61: 0 | NHE61: 0 | NHF61: 0 | NHG61: 0 | NHH61: 0 | NHI61: 0 | NHJ61: 0 | NHK61: 0 | NHL61: 0 | NHM61: 0 | NHN61: 0 | NHO61: 0 | NHP61: 0 | NHQ61: 0 | NHR61: 0 | NHS61: 0 | NHT61: 0 | NHU61: 0 | NHV61: 0 | NHW61: 0 | NHX61: 0 | NHY61: 0 | NHZ61: 0 | NIA61: 0 | NIB61: 0 | NIC61: 0 | NID61: 0 | NIE61: 0 | NIF61: 0 | NIG61: 0 | NIH61: 0 | NII61: 0 | NIJ61: 0 | NIK61: 0 | NIL61: 0 | NIM61: 0 | NIN61: 0 | NIO61: 0 | NIP61: 0 | NIQ61: 0 | NIR61: 0 | NIS61: 0 | NIT61: 0 | NIU61: 0 | NIV61: 0 | NIW61: 0 | NIX61: 0 | NIY61: 0 | NIZ61: 0 | NJA61: 0 | NJB61: 0 | NJC61: 0 | NJD61: 0 | NJE61: 0 | NJF61: 0 | NJG61: 0 | NJH61: 0 | NJI61: 0 | NJJ61: 0 | NJK61: 0 | NJL61: 0 | NJM61: =NJM30 -> 0 | NJN61: 0 | NJO61: 0 | NJP61: 0 | NJQ61: 0 | NJR61: 0 | NJS61: 0 | NJT61: 0 | NJU61: 0 | NJV61: 0 | NJW61: 0 | NJX61: 0 | NJY61: 0 | NJZ61: 0 | NKA61: 0 | NKB61: 0 | NKC61: 0 | NKD61: 0 | NKE61: 0 | NKF61: 0 | NKG61: 0 | NKH61: 0 | NKI61: 0 | NKJ61: 0 | NKK61: 0 | NKL61: 0 | NKM61: 0 | NKN61: 0 | NKO61: 0 | NKP61: 0 | NKQ61: 0 | NKR61: 0 | NKS61: 0 | NKT61: 0 | NKU61: 0 | NKV61: 0 | NKW61: 0 | NKX61: 0 | NKY61: 0 | NKZ61: 0 | NLA61: 0 | NLB61: 0 | NLC61: 0 | NLD61: 0 | NLE61: 0 | NLF61: 0 | NLG61: 0 | NLH61: 0 | NLI61: 0 | NLJ61: 0 | NLK61: 0 | NLL61: 0 | NLM61: 0 | NLN61: 0 | NLO61: 0 | NLP61: 0 | NLQ61: 0 | NLR61: 0 | NLS61: 0 | NLT61: 0 | NLU61: 0 | NLV61: 0 | NLW61: 0 | NLX61: 0 | NLY61: =NLY30 -> 0 | NLZ61: 0 | NMA61: 0 | NMB61: 0 | NMC61: 0 | NMD61: 0 | NME61: 0 | NMF61: 0 | NMG61: 0 | NMH61: 0 | NMI61: 0 | NMJ61: 0 | NMK61: 0 | NML61: 0 | NMM61: 0 | NMN61: 0 | NMO61: 0 | NMP61: 0 | NMQ61: 0 | NMR61: 0 | NMS61: 0 | NMT61: 0 | NMU61: 0 | NMV61: 0 | NMW61: 0 | NMX61: 0 | NMY61: 0 | NMZ61: 0 | NNA61: 0 | NNB61: 0 | NNC61: 0 | NND61: 0 | NNE61: 0 | NNF61: 0 | NNG61: 0 | NNH61: 0 | NNI61: 0 | NNJ61: 0 | NNK61: 0 | NNL61: 0 | NNM61: 0 | NNN61: 0 | NNO61: 0 | NNP61: 0 | NNQ61: 0 | NNR61: 0 | NNS61: 0 | NNT61: 0 | NNU61: 0 | NNV61: 0 | NNW61: 0 | NNX61: 0 | NNY61: 0 | NNZ61: 0 | NOA61: 0 | NOB61: 0 | NOC61: 0 | NOD61: 0 | NOE61: 0 | NOF61: 0 | NOG61: 0 | NOH61: 0 | NOI61: 0 | NOJ61: 0 | NOK61: =NOK30 -> 0 | NOL61: 0 | NOM61: 0 | NON61: 0 | NOO61: 0 | NOP61: 0 | NOQ61: 0 | NOR61: 0 | NOS61: 0 | NOT61: 0 | NOU61: 0 | NOV61: 0 | NOW61: 0 | NOX61: 0 | NOY61: 0 | NOZ61: 0 | NPA61: 0 | NPB61: 0 | NPC61: 0 | NPD61: 0 | NPE61: 0 | NPF61: 0 | NPG61: 0 | NPH61: 0 | NPI61: 0 | NPJ61: 0 | NPK61: 0 | NPL61: 0 | NPM61: 0 | NPN61: 0 | NPO61: 0 | NPP61: 0 | NPQ61: 0 | NPR61: 0 | NPS61: 0 | NPT61: 0 | NPU61: 0 | NPV61: 0 | NPW61: 0 | NPX61: 0 | NPY61: 0 | NPZ61: 0 | NQA61: 0 | NQB61: 0 | NQC61: 0 | NQD61: 0 | NQE61: 0 | NQF61: 0 | NQG61: 0 | NQH61: 0 | NQI61: 0 | NQJ61: 0 | NQK61: 0 | NQL61: 0 | NQM61: 0 | NQN61: 0 | NQO61: 0 | NQP61: 0 | NQQ61: 0 | NQR61: 0 | NQS61: 0 | NQT61: 0 | NQU61: 0 | NQV61: 0 | NQW61: =NQW30 -> 0 | NQX61: 0 | NQY61: 0 | NQZ61: 0 | NRA61: 0 | NRB61: 0 | NRC61: 0 | NRD61: 0 | NRE61: 0 | NRF61: 0 | NRG61: 0 | NRH61: 0 | NRI61: 0 | NRJ61: 0 | NRK61: 0 | NRL61: 0 | NRM61: 0 | NRN61: 0 | NRO61: 0 | NRP61: 0 | NRQ61: 0 | NRR61: 0 | NRS61: 0 | NRT61: 0 | NRU61: 0 | NRV61: 0 | NRW61: 0 | NRX61: 0 | NRY61: 0 | NRZ61: 0 | NSA61: 0 | NSB61: 0 | NSC61: 0 | NSD61: 0 | NSE61: 0 | NSF61: 0 | NSG61: 0 | NSH61: 0 | NSI61: 0 | NSJ61: 0 | NSK61: 0 | NSL61: 0 | NSM61: 0 | NSN61: 0 | NSO61: 0 | NSP61: 0 | NSQ61: 0 | NSR61: 0 | NSS61: 0 | NST61: 0 | NSU61: 0 | NSV61: 0 | NSW61: 0 | NSX61: 0 | NSY61: 0 | NSZ61: 0 | NTA61: 0 | NTB61: 0 | NTC61: 0 | NTD61: 0 | NTE61: 0 | NTF61: 0 | NTG61: 0 | NTH61: 0 | NTI61: =NTI30 -> 0 | NTJ61: 0 | NTK61: 0 | NTL61: 0 | NTM61: 0 | NTN61: 0 | NTO61: 0 | NTP61: 0 | NTQ61: 0 | NTR61: 0 | NTS61: 0 | NTT61: 0 | NTU61: 0 | NTV61: 0 | NTW61: 0 | NTX61: 0 | NTY61: 0 | NTZ61: 0 | NUA61: 0 | NUB61: 0 | NUC61: 0 | NUD61: 0 | NUE61: 0 | NUF61: 0 | NUG61: 0 | NUH61: 0 | NUI61: 0 | NUJ61: 0 | NUK61: 0 | NUL61: 0 | NUM61: 0 | NUN61: 0 | NUO61: 0 | NUP61: 0 | NUQ61: 0 | NUR61: 0 | NUS61: 0 | NUT61: 0 | NUU61: 0 | NUV61: 0 | NUW61: 0 | NUX61: 0 | NUY61: 0 | NUZ61: 0 | NVA61: 0 | NVB61: 0 | NVC61: 0 | NVD61: 0 | NVE61: 0 | NVF61: 0 | NVG61: 0 | NVH61: 0 | NVI61: 0 | NVJ61: 0 | NVK61: 0 | NVL61: 0 | NVM61: 0 | NVN61: 0 | NVO61: 0 | NVP61: 0 | NVQ61: 0 | NVR61: 0 | NVS61: 0 | NVT61: 0 | NVU61: =NVU30 -> 0 | NVV61: 0 | NVW61: 0 | NVX61: 0 | NVY61: 0 | NVZ61: 0 | NWA61: 0 | NWB61: 0 | NWC61: 0 | NWD61: 0 | NWE61: 0 | NWF61: 0 | NWG61: 0 | NWH61: 0 | NWI61: 0 | NWJ61: 0 | NWK61: 0 | NWL61: 0 | NWM61: 0 | NWN61: 0 | NWO61: 0 | NWP61: 0 | NWQ61: 0 | NWR61: 0 | NWS61: 0 | NWT61: 0 | NWU61: 0 | NWV61: 0 | NWW61: 0 | NWX61: 0 | NWY61: 0 | NWZ61: 0 | NXA61: 0 | NXB61: 0 | NXC61: 0 | NXD61: 0 | NXE61: 0 | NXF61: 0 | NXG61: 0 | NXH61: 0 | NXI61: 0 | NXJ61: 0 | NXK61: 0 | NXL61: 0 | NXM61: 0 | NXN61: 0 | NXO61: 0 | NXP61: 0 | NXQ61: 0 | NXR61: 0 | NXS61: 0 | NXT61: 0 | NXU61: 0 | NXV61: 0 | NXW61: 0 | NXX61: 0 | NXY61: 0 | NXZ61: 0 | NYA61: 0 | NYB61: 0 | NYC61: 0 | NYD61: 0 | NYE61: 0 | NYF61: 0 | NYG61: =NYG30 -> 0 | NYH61: 0 | NYI61: 0 | NYJ61: 0 | NYK61: 0 | NYL61: 0 | NYM61: 0 | NYN61: 0 | NYO61: 0 | NYP61: 0 | NYQ61: 0 | NYR61: 0 | NYS61: 0 | NYT61: 0 | NYU61: 0 | NYV61: 0 | NYW61: 0 | NYX61: 0 | NYY61: 0 | NYZ61: 0 | NZA61: 0 | NZB61: 0 | NZC61: 0 | NZD61: 0 | NZE61: 0 | NZF61: 0 | NZG61: 0 | NZH61: 0 | NZI61: 0 | NZJ61: 0 | NZK61: 0 | NZL61: 0 | NZM61: 0 | NZN61: 0 | NZO61: 0 | NZP61: 0 | NZQ61: 0 | NZR61: 0 | NZS61: 0 | NZT61: 0 | NZU61: 0 | NZV61: 0 | NZW61: 0 | NZX61: 0 | NZY61: 0 | NZZ61: 0 | OAA61: 0 | OAB61: 0 | OAC61: 0 | OAD61: 0 | OAE61: 0 | OAF61: 0 | OAG61: 0 | OAH61: 0 | OAI61: 0 | OAJ61: 0 | OAK61: 0 | OAL61: 0 | OAM61: 0 | OAN61: 0 | OAO61: 0 | OAP61: 0 | OAQ61: 0 | OAR61: 0 | OAS61: =OAS30 -> 0 | OAT61: 0 | OAU61: 0 | OAV61: 0 | OAW61: 0 | OAX61: 0 | OAY61: 0 | OAZ61: 0 | OBA61: 0 | OBB61: 0 | OBC61: 0 | OBD61: 0 | OBE61: 0 | OBF61: 0 | OBG61: 0 | OBH61: 0 | OBI61: 0 | OBJ61: 0 | OBK61: 0 | OBL61: 0 | OBM61: 0 | OBN61: 0 | OBO61: 0 | OBP61: 0 | OBQ61: 0 | OBR61: 0 | OBS61: 0 | OBT61: 0 | OBU61: 0 | OBV61: 0 | OBW61: 0 | OBX61: 0 | OBY61: 0 | OBZ61: 0 | OCA61: 0 | OCB61: 0 | OCC61: 0 | OCD61: 0 | OCE61: 0 | OCF61: 0 | OCG61: 0 | OCH61: 0 | OCI61: 0 | OCJ61: 0 | OCK61: 0 | OCL61: 0 | OCM61: 0 | OCN61: 0 | OCO61: 0 | OCP61: 0 | OCQ61: 0 | OCR61: 0 | OCS61: 0 | OCT61: 0 | OCU61: 0 | OCV61: 0 | OCW61: 0 | OCX61: 0 | OCY61: 0 | OCZ61: 0 | ODA61: 0 | ODB61: 0 | ODC61: 0 | ODD61: 0 | ODE61: =ODE30 -> 0 | ODF61: 0 | ODG61: 0 | ODH61: 0 | ODI61: 0 | ODJ61: 0 | ODK61: 0 | ODL61: 0 | ODM61: 0 | ODN61: 0 | ODO61: 0 | ODP61: 0 | ODQ61: 0 | ODR61: 0 | ODS61: 0 | ODT61: 0 | ODU61: 0 | ODV61: 0 | ODW61: 0 | ODX61: 0 | ODY61: 0 | ODZ61: 0 | OEA61: 0 | OEB61: 0 | OEC61: 0 | OED61: 0 | OEE61: 0 | OEF61: 0 | OEG61: 0 | OEH61: 0 | OEI61: 0 | OEJ61: 0 | OEK61: 0 | OEL61: 0 | OEM61: 0 | OEN61: 0 | OEO61: 0 | OEP61: 0 | OEQ61: 0 | OER61: 0 | OES61: 0 | OET61: 0 | OEU61: 0 | OEV61: 0 | OEW61: 0 | OEX61: 0 | OEY61: 0 | OEZ61: 0 | OFA61: 0 | OFB61: 0 | OFC61: 0 | OFD61: 0 | OFE61: 0 | OFF61: 0 | OFG61: 0 | OFH61: 0 | OFI61: 0 | OFJ61: 0 | OFK61: 0 | OFL61: 0 | OFM61: 0 | OFN61: 0 | OFO61: 0 | OFP61: 0 | OFQ61: =OFQ30 -> 0 | OFR61: 0 | OFS61: 0 | OFT61: 0 | OFU61: 0 | OFV61: 0 | OFW61: 0 | OFX61: 0 | OFY61: 0 | OFZ61: 0 | OGA61: 0 | OGB61: 0 | OGC61: 0 | OGD61: 0 | OGE61: 0 | OGF61: 0 | OGG61: 0 | OGH61: 0 | OGI61: 0 | OGJ61: 0 | OGK61: 0 | OGL61: 0 | OGM61: 0 | OGN61: 0 | OGO61: 0 | OGP61: 0 | OGQ61: 0 | OGR61: 0 | OGS61: 0 | OGT61: 0 | OGU61: 0 | OGV61: 0 | OGW61: 0 | OGX61: 0 | OGY61: 0 | OGZ61: 0 | OHA61: 0 | OHB61: 0 | OHC61: 0 | OHD61: 0 | OHE61: 0 | OHF61: 0 | OHG61: 0 | OHH61: 0 | OHI61: 0 | OHJ61: 0 | OHK61: 0 | OHL61: 0 | OHM61: 0 | OHN61: 0 | OHO61: 0 | OHP61: 0 | OHQ61: 0 | OHR61: 0 | OHS61: 0 | OHT61: 0 | OHU61: 0 | OHV61: 0 | OHW61: 0 | OHX61: 0 | OHY61: 0 | OHZ61: 0 | OIA61: 0 | OIB61: 0 | OIC61: =OIC30 -> 0 | OID61: 0 | OIE61: 0 | OIF61: 0 | OIG61: 0 | OIH61: 0 | OII61: 0 | OIJ61: 0 | OIK61: 0 | OIL61: 0 | OIM61: 0 | OIN61: 0 | OIO61: 0 | OIP61: 0 | OIQ61: 0 | OIR61: 0 | OIS61: 0 | OIT61: 0 | OIU61: 0 | OIV61: 0 | OIW61: 0 | OIX61: 0 | OIY61: 0 | OIZ61: 0 | OJA61: 0 | OJB61: 0 | OJC61: 0 | OJD61: 0 | OJE61: 0 | OJF61: 0 | OJG61: 0 | OJH61: 0 | OJI61: 0 | OJJ61: 0 | OJK61: 0 | OJL61: 0 | OJM61: 0 | OJN61: 0 | OJO61: 0 | OJP61: 0 | OJQ61: 0 | OJR61: 0 | OJS61: 0 | OJT61: 0 | OJU61: 0 | OJV61: 0 | OJW61: 0 | OJX61: 0 | OJY61: 0 | OJZ61: 0 | OKA61: 0 | OKB61: 0 | OKC61: 0 | OKD61: 0 | OKE61: 0 | OKF61: 0 | OKG61: 0 | OKH61: 0 | OKI61: 0 | OKJ61: 0 | OKK61: 0 | OKL61: 0 | OKM61: 0 | OKN61: 0 | OKO61: =OKO30 -> 0 | OKP61: 0 | OKQ61: 0 | OKR61: 0 | OKS61: 0 | OKT61: 0 | OKU61: 0 | OKV61: 0 | OKW61: 0 | OKX61: 0 | OKY61: 0 | OKZ61: 0 | OLA61: 0 | OLB61: 0 | OLC61: 0 | OLD61: 0 | OLE61: 0 | OLF61: 0 | OLG61: 0 | OLH61: 0 | OLI61: 0 | OLJ61: 0 | OLK61: 0 | OLL61: 0 | OLM61: 0 | OLN61: 0 | OLO61: 0 | OLP61: 0 | OLQ61: 0 | OLR61: 0 | OLS61: 0 | OLT61: 0 | OLU61: 0 | OLV61: 0 | OLW61: 0 | OLX61: 0 | OLY61: 0 | OLZ61: 0 | OMA61: 0 | OMB61: 0 | OMC61: 0 | OMD61: 0 | OME61: 0 | OMF61: 0 | OMG61: 0 | OMH61: 0 | OMI61: 0 | OMJ61: 0 | OMK61: 0 | OML61: 0 | OMM61: 0 | OMN61: 0 | OMO61: 0 | OMP61: 0 | OMQ61: 0 | OMR61: 0 | OMS61: 0 | OMT61: 0 | OMU61: 0 | OMV61: 0 | OMW61: 0 | OMX61: 0 | OMY61: 0 | OMZ61: 0 | ONA61: =ONA30 -> 0 | ONB61: 0 | ONC61: 0 | OND61: 0 | ONE61: 0 | ONF61: 0 | ONG61: 0 | ONH61: 0 | ONI61: 0 | ONJ61: 0 | ONK61: 0 | ONL61: 0 | ONM61: 0 | ONN61: 0 | ONO61: 0 | ONP61: 0 | ONQ61: 0 | ONR61: 0 | ONS61: 0 | ONT61: 0 | ONU61: 0 | ONV61: 0 | ONW61: 0 | ONX61: 0 | ONY61: 0 | ONZ61: 0 | OOA61: 0 | OOB61: 0 | OOC61: 0 | OOD61: 0 | OOE61: 0 | OOF61: 0 | OOG61: 0 | OOH61: 0 | OOI61: 0 | OOJ61: 0 | OOK61: 0 | OOL61: 0 | OOM61: 0 | OON61: 0 | OOO61: 0 | OOP61: 0 | OOQ61: 0 | OOR61: 0 | OOS61: 0 | OOT61: 0 | OOU61: 0 | OOV61: 0 | OOW61: 0 | OOX61: 0 | OOY61: 0 | OOZ61: 0 | OPA61: 0 | OPB61: 0 | OPC61: 0 | OPD61: 0 | OPE61: 0 | OPF61: 0 | OPG61: 0 | OPH61: 0 | OPI61: 0 | OPJ61: 0 | OPK61: 0 | OPL61: 0 | OPM61: =OPM30 -> 0 | OPN61: 0 | OPO61: 0 | OPP61: 0 | OPQ61: 0 | OPR61: 0 | OPS61: 0 | OPT61: 0 | OPU61: 0 | OPV61: 0 | OPW61: 0 | OPX61: 0 | OPY61: 0 | OPZ61: 0 | OQA61: 0 | OQB61: 0 | OQC61: 0 | OQD61: 0 | OQE61: 0 | OQF61: 0 | OQG61: 0 | OQH61: 0 | OQI61: 0 | OQJ61: 0 | OQK61: 0 | OQL61: 0 | OQM61: 0 | OQN61: 0 | OQO61: 0 | OQP61: 0 | OQQ61: 0 | OQR61: 0 | OQS61: 0 | OQT61: 0 | OQU61: 0 | OQV61: 0 | OQW61: 0 | OQX61: 0 | OQY61: 0 | OQZ61: 0 | ORA61: 0 | ORB61: 0 | ORC61: 0 | ORD61: 0 | ORE61: 0 | ORF61: 0 | ORG61: 0 | ORH61: 0 | ORI61: 0 | ORJ61: 0 | ORK61: 0 | ORL61: 0 | ORM61: 0 | ORN61: 0 | ORO61: 0 | ORP61: 0 | ORQ61: 0 | ORR61: 0 | ORS61: 0 | ORT61: 0 | ORU61: 0 | ORV61: 0 | ORW61: 0 | ORX61: 0 | ORY61: =ORY30 -> 0 | ORZ61: 0 | OSA61: 0 | OSB61: 0 | OSC61: 0 | OSD61: 0 | OSE61: 0 | OSF61: 0 | OSG61: 0 | OSH61: 0 | OSI61: 0 | OSJ61: 0 | OSK61: 0 | OSL61: 0 | OSM61: 0 | OSN61: 0 | OSO61: 0 | OSP61: 0 | OSQ61: 0 | OSR61: 0 | OSS61: 0 | OST61: 0 | OSU61: 0 | OSV61: 0 | OSW61: 0 | OSX61: 0 | OSY61: 0 | OSZ61: 0 | OTA61: 0 | OTB61: 0 | OTC61: 0 | OTD61: 0 | OTE61: 0 | OTF61: 0 | OTG61: 0 | OTH61: 0 | OTI61: 0 | OTJ61: 0 | OTK61: 0 | OTL61: 0 | OTM61: 0 | OTN61: 0 | OTO61: 0 | OTP61: 0 | OTQ61: 0 | OTR61: 0 | OTS61: 0 | OTT61: 0 | OTU61: 0 | OTV61: 0 | OTW61: 0 | OTX61: 0 | OTY61: 0 | OTZ61: 0 | OUA61: 0 | OUB61: 0 | OUC61: 0 | OUD61: 0 | OUE61: 0 | OUF61: 0 | OUG61: 0 | OUH61: 0 | OUI61: 0 | OUJ61: 0 | OUK61: =OUK30 -> 0 | OUL61: 0 | OUM61: 0 | OUN61: 0 | OUO61: 0 | OUP61: 0 | OUQ61: 0 | OUR61: 0 | OUS61: 0 | OUT61: 0 | OUU61: 0 | OUV61: 0 | OUW61: 0 | OUX61: 0 | OUY61: 0 | OUZ61: 0 | OVA61: 0 | OVB61: 0 | OVC61: 0 | OVD61: 0 | OVE61: 0 | OVF61: 0 | OVG61: 0 | OVH61: 0 | OVI61: 0 | OVJ61: 0 | OVK61: 0 | OVL61: 0 | OVM61: 0 | OVN61: 0 | OVO61: 0 | OVP61: 0 | OVQ61: 0 | OVR61: 0 | OVS61: 0 | OVT61: 0 | OVU61: 0 | OVV61: 0 | OVW61: 0 | OVX61: 0 | OVY61: 0 | OVZ61: 0 | OWA61: 0 | OWB61: 0 | OWC61: 0 | OWD61: 0 | OWE61: 0 | OWF61: 0 | OWG61: 0 | OWH61: 0 | OWI61: 0 | OWJ61: 0 | OWK61: 0 | OWL61: 0 | OWM61: 0 | OWN61: 0 | OWO61: 0 | OWP61: 0 | OWQ61: 0 | OWR61: 0 | OWS61: 0 | OWT61: 0 | OWU61: 0 | OWV61: 0 | OWW61: =OWW30 -> 0 | OWX61: 0 | OWY61: 0 | OWZ61: 0 | OXA61: 0 | OXB61: 0 | OXC61: 0 | OXD61: 0 | OXE61: 0 | OXF61: 0 | OXG61: 0 | OXH61: 0 | OXI61: 0 | OXJ61: 0 | OXK61: 0 | OXL61: 0 | OXM61: 0 | OXN61: 0 | OXO61: 0 | OXP61: 0 | OXQ61: 0 | OXR61: 0 | OXS61: 0 | OXT61: 0 | OXU61: 0 | OXV61: 0 | OXW61: 0 | OXX61: 0 | OXY61: 0 | OXZ61: 0 | OYA61: 0 | OYB61: 0 | OYC61: 0 | OYD61: 0 | OYE61: 0 | OYF61: 0 | OYG61: 0 | OYH61: 0 | OYI61: 0 | OYJ61: 0 | OYK61: 0 | OYL61: 0 | OYM61: 0 | OYN61: 0 | OYO61: 0 | OYP61: 0 | OYQ61: 0 | OYR61: 0 | OYS61: 0 | OYT61: 0 | OYU61: 0 | OYV61: 0 | OYW61: 0 | OYX61: 0 | OYY61: 0 | OYZ61: 0 | OZA61: 0 | OZB61: 0 | OZC61: 0 | OZD61: 0 | OZE61: 0 | OZF61: 0 | OZG61: 0 | OZH61: 0 | OZI61: =OZI30 -> 0 | OZJ61: 0 | OZK61: 0 | OZL61: 0 | OZM61: 0 | OZN61: 0 | OZO61: 0 | OZP61: 0 | OZQ61: 0 | OZR61: 0 | OZS61: 0 | OZT61: 0 | OZU61: 0 | OZV61: 0 | OZW61: 0 | OZX61: 0 | OZY61: 0 | OZZ61: 0 | PAA61: 0 | PAB61: 0 | PAC61: 0 | PAD61: 0 | PAE61: 0 | PAF61: 0 | PAG61: 0 | PAH61: 0 | PAI61: 0 | PAJ61: 0 | PAK61: 0 | PAL61: 0 | PAM61: 0 | PAN61: 0 | PAO61: 0 | PAP61: 0 | PAQ61: 0 | PAR61: 0 | PAS61: 0 | PAT61: 0 | PAU61: 0 | PAV61: 0 | PAW61: 0 | PAX61: 0 | PAY61: 0 | PAZ61: 0 | PBA61: 0 | PBB61: 0 | PBC61: 0 | PBD61: 0 | PBE61: 0 | PBF61: 0 | PBG61: 0 | PBH61: 0 | PBI61: 0 | PBJ61: 0 | PBK61: 0 | PBL61: 0 | PBM61: 0 | PBN61: 0 | PBO61: 0 | PBP61: 0 | PBQ61: 0 | PBR61: 0 | PBS61: 0 | PBT61: 0 | PBU61: =PBU30 -> 0 | PBV61: 0 | PBW61: 0 | PBX61: 0 | PBY61: 0 | PBZ61: 0 | PCA61: 0 | PCB61: 0 | PCC61: 0 | PCD61: 0 | PCE61: 0 | PCF61: 0 | PCG61: 0 | PCH61: 0 | PCI61: 0 | PCJ61: 0 | PCK61: 0 | PCL61: 0 | PCM61: 0 | PCN61: 0 | PCO61: 0 | PCP61: 0 | PCQ61: 0 | PCR61: 0 | PCS61: 0 | PCT61: 0 | PCU61: 0 | PCV61: 0 | PCW61: 0 | PCX61: 0 | PCY61: 0 | PCZ61: 0 | PDA61: 0 | PDB61: 0 | PDC61: 0 | PDD61: 0 | PDE61: 0 | PDF61: 0 | PDG61: 0 | PDH61: 0 | PDI61: 0 | PDJ61: 0 | PDK61: 0 | PDL61: 0 | PDM61: 0 | PDN61: 0 | PDO61: 0 | PDP61: 0 | PDQ61: 0 | PDR61: 0 | PDS61: 0 | PDT61: 0 | PDU61: 0 | PDV61: 0 | PDW61: 0 | PDX61: 0 | PDY61: 0 | PDZ61: 0 | PEA61: 0 | PEB61: 0 | PEC61: 0 | PED61: 0 | PEE61: 0 | PEF61: 0 | PEG61: =PEG30 -> 0 | PEH61: 0 | PEI61: 0 | PEJ61: 0 | PEK61: 0 | PEL61: 0 | PEM61: 0 | PEN61: 0 | PEO61: 0 | PEP61: 0 | PEQ61: 0 | PER61: 0 | PES61: 0 | PET61: 0 | PEU61: 0 | PEV61: 0 | PEW61: 0 | PEX61: 0 | PEY61: 0 | PEZ61: 0 | PFA61: 0 | PFB61: 0 | PFC61: 0 | PFD61: 0 | PFE61: 0 | PFF61: 0 | PFG61: 0 | PFH61: 0 | PFI61: 0 | PFJ61: 0 | PFK61: 0 | PFL61: 0 | PFM61: 0 | PFN61: 0 | PFO61: 0 | PFP61: 0 | PFQ61: 0 | PFR61: 0 | PFS61: 0 | PFT61: 0 | PFU61: 0 | PFV61: 0 | PFW61: 0 | PFX61: 0 | PFY61: 0 | PFZ61: 0 | PGA61: 0 | PGB61: 0 | PGC61: 0 | PGD61: 0 | PGE61: 0 | PGF61: 0 | PGG61: 0 | PGH61: 0 | PGI61: 0 | PGJ61: 0 | PGK61: 0 | PGL61: 0 | PGM61: 0 | PGN61: 0 | PGO61: 0 | PGP61: 0 | PGQ61: 0 | PGR61: 0 | PGS61: =PGS30 -> 0 | PGT61: 0 | PGU61: 0 | PGV61: 0 | PGW61: 0 | PGX61: 0 | PGY61: 0 | PGZ61: 0 | PHA61: 0 | PHB61: 0 | PHC61: 0 | PHD61: 0 | PHE61: 0 | PHF61: 0 | PHG61: 0 | PHH61: 0 | PHI61: 0 | PHJ61: 0 | PHK61: 0 | PHL61: 0 | PHM61: 0 | PHN61: 0 | PHO61: 0 | PHP61: 0 | PHQ61: 0 | PHR61: 0 | PHS61: 0 | PHT61: 0 | PHU61: 0 | PHV61: 0 | PHW61: 0 | PHX61: 0 | PHY61: 0 | PHZ61: 0 | PIA61: 0 | PIB61: 0 | PIC61: 0 | PID61: 0 | PIE61: 0 | PIF61: 0 | PIG61: 0 | PIH61: 0 | PII61: 0 | PIJ61: 0 | PIK61: 0 | PIL61: 0 | PIM61: 0 | PIN61: 0 | PIO61: 0 | PIP61: 0 | PIQ61: 0 | PIR61: 0 | PIS61: 0 | PIT61: 0 | PIU61: 0 | PIV61: 0 | PIW61: 0 | PIX61: 0 | PIY61: 0 | PIZ61: 0 | PJA61: 0 | PJB61: 0 | PJC61: 0 | PJD61: 0 | PJE61: =PJE30 -> 0 | PJF61: 0 | PJG61: 0 | PJH61: 0 | PJI61: 0 | PJJ61: 0 | PJK61: 0 | PJL61: 0 | PJM61: 0 | PJN61: 0 | PJO61: 0 | PJP61: 0 | PJQ61: 0 | PJR61: 0 | PJS61: 0 | PJT61: 0 | PJU61: 0 | PJV61: 0 | PJW61: 0 | PJX61: 0 | PJY61: 0 | PJZ61: 0 | PKA61: 0 | PKB61: 0 | PKC61: 0 | PKD61: 0 | PKE61: 0 | PKF61: 0 | PKG61: 0 | PKH61: 0 | PKI61: 0 | PKJ61: 0 | PKK61: 0 | PKL61: 0 | PKM61: 0 | PKN61: 0 | PKO61: 0 | PKP61: 0 | PKQ61: 0 | PKR61: 0 | PKS61: 0 | PKT61: 0 | PKU61: 0 | PKV61: 0 | PKW61: 0 | PKX61: 0 | PKY61: 0 | PKZ61: 0 | PLA61: 0 | PLB61: 0 | PLC61: 0 | PLD61: 0 | PLE61: 0 | PLF61: 0 | PLG61: 0 | PLH61: 0 | PLI61: 0 | PLJ61: 0 | PLK61: 0 | PLL61: 0 | PLM61: 0 | PLN61: 0 | PLO61: 0 | PLP61: 0 | PLQ61: =PLQ30 -> 0 | PLR61: 0 | PLS61: 0 | PLT61: 0 | PLU61: 0 | PLV61: 0 | PLW61: 0 | PLX61: 0 | PLY61: 0 | PLZ61: 0 | PMA61: 0 | PMB61: 0 | PMC61: 0 | PMD61: 0 | PME61: 0 | PMF61: 0 | PMG61: 0 | PMH61: 0 | PMI61: 0 | PMJ61: 0 | PMK61: 0 | PML61: 0 | PMM61: 0 | PMN61: 0 | PMO61: 0 | PMP61: 0 | PMQ61: 0 | PMR61: 0 | PMS61: 0 | PMT61: 0 | PMU61: 0 | PMV61: 0 | PMW61: 0 | PMX61: 0 | PMY61: 0 | PMZ61: 0 | PNA61: 0 | PNB61: 0 | PNC61: 0 | PND61: 0 | PNE61: 0 | PNF61: 0 | PNG61: 0 | PNH61: 0 | PNI61: 0 | PNJ61: 0 | PNK61: 0 | PNL61: 0 | PNM61: 0 | PNN61: 0 | PNO61: 0 | PNP61: 0 | PNQ61: 0 | PNR61: 0 | PNS61: 0 | PNT61: 0 | PNU61: 0 | PNV61: 0 | PNW61: 0 | PNX61: 0 | PNY61: 0 | PNZ61: 0 | POA61: 0 | POB61: 0 | POC61: =POC30 -> 0 | POD61: 0 | POE61: 0 | POF61: 0 | POG61: 0 | POH61: 0 | POI61: 0 | POJ61: 0 | POK61: 0 | POL61: 0 | POM61: 0 | PON61: 0 | POO61: 0 | POP61: 0 | POQ61: 0 | POR61: 0 | POS61: 0 | POT61: 0 | POU61: 0 | POV61: 0 | POW61: 0 | POX61: 0 | POY61: 0 | POZ61: 0 | PPA61: 0 | PPB61: 0 | PPC61: 0 | PPD61: 0 | PPE61: 0 | PPF61: 0 | PPG61: 0 | PPH61: 0 | PPI61: 0 | PPJ61: 0 | PPK61: 0 | PPL61: 0 | PPM61: 0 | PPN61: 0 | PPO61: 0 | PPP61: 0 | PPQ61: 0 | PPR61: 0 | PPS61: 0 | PPT61: 0 | PPU61: 0 | PPV61: 0 | PPW61: 0 | PPX61: 0 | PPY61: 0 | PPZ61: 0 | PQA61: 0 | PQB61: 0 | PQC61: 0 | PQD61: 0 | PQE61: 0 | PQF61: 0 | PQG61: 0 | PQH61: 0 | PQI61: 0 | PQJ61: 0 | PQK61: 0 | PQL61: 0 | PQM61: 0 | PQN61: 0 | PQO61: =PQO30 -> 0 | PQP61: 0 | PQQ61: 0 | PQR61: 0 | PQS61: 0 | PQT61: 0 | PQU61: 0 | PQV61: 0 | PQW61: 0 | PQX61: 0 | PQY61: 0 | PQZ61: 0 | PRA61: 0 | PRB61: 0 | PRC61: 0 | PRD61: 0 | PRE61: 0 | PRF61: 0 | PRG61: 0 | PRH61: 0 | PRI61: 0 | PRJ61: 0 | PRK61: 0 | PRL61: 0 | PRM61: 0 | PRN61: 0 | PRO61: 0 | PRP61: 0 | PRQ61: 0 | PRR61: 0 | PRS61: 0 | PRT61: 0 | PRU61: 0 | PRV61: 0 | PRW61: 0 | PRX61: 0 | PRY61: 0 | PRZ61: 0 | PSA61: 0 | PSB61: 0 | PSC61: 0 | PSD61: 0 | PSE61: 0 | PSF61: 0 | PSG61: 0 | PSH61: 0 | PSI61: 0 | PSJ61: 0 | PSK61: 0 | PSL61: 0 | PSM61: 0 | PSN61: 0 | PSO61: 0 | PSP61: 0 | PSQ61: 0 | PSR61: 0 | PSS61: 0 | PST61: 0 | PSU61: 0 | PSV61: 0 | PSW61: 0 | PSX61: 0 | PSY61: 0 | PSZ61: 0 | PTA61: =PTA30 -> 0 | PTB61: 0 | PTC61: 0 | PTD61: 0 | PTE61: 0 | PTF61: 0 | PTG61: 0 | PTH61: 0 | PTI61: 0 | PTJ61: 0 | PTK61: 0 | PTL61: 0 | PTM61: 0 | PTN61: 0 | PTO61: 0 | PTP61: 0 | PTQ61: 0 | PTR61: 0 | PTS61: 0 | PTT61: 0 | PTU61: 0 | PTV61: 0 | PTW61: 0 | PTX61: 0 | PTY61: 0 | PTZ61: 0 | PUA61: 0 | PUB61: 0 | PUC61: 0 | PUD61: 0 | PUE61: 0 | PUF61: 0 | PUG61: 0 | PUH61: 0 | PUI61: 0 | PUJ61: 0 | PUK61: 0 | PUL61: 0 | PUM61: 0 | PUN61: 0 | PUO61: 0 | PUP61: 0 | PUQ61: 0 | PUR61: 0 | PUS61: 0 | PUT61: 0 | PUU61: 0 | PUV61: 0 | PUW61: 0 | PUX61: 0 | PUY61: 0 | PUZ61: 0 | PVA61: 0 | PVB61: 0 | PVC61: 0 | PVD61: 0 | PVE61: 0 | PVF61: 0 | PVG61: 0 | PVH61: 0 | PVI61: 0 | PVJ61: 0 | PVK61: 0 | PVL61: 0 | PVM61: =PVM30 -> 0 | PVN61: 0 | PVO61: 0 | PVP61: 0 | PVQ61: 0 | PVR61: 0 | PVS61: 0 | PVT61: 0 | PVU61: 0 | PVV61: 0 | PVW61: 0 | PVX61: 0 | PVY61: 0 | PVZ61: 0 | PWA61: 0 | PWB61: 0 | PWC61: 0 | PWD61: 0 | PWE61: 0 | PWF61: 0 | PWG61: 0 | PWH61: 0 | PWI61: 0 | PWJ61: 0 | PWK61: 0 | PWL61: 0 | PWM61: 0 | PWN61: 0 | PWO61: 0 | PWP61: 0 | PWQ61: 0 | PWR61: 0 | PWS61: 0 | PWT61: 0 | PWU61: 0 | PWV61: 0 | PWW61: 0 | PWX61: 0 | PWY61: 0 | PWZ61: 0 | PXA61: 0 | PXB61: 0 | PXC61: 0 | PXD61: 0 | PXE61: 0 | PXF61: 0 | PXG61: 0 | PXH61: 0 | PXI61: 0 | PXJ61: 0 | PXK61: 0 | PXL61: 0 | PXM61: 0 | PXN61: 0 | PXO61: 0 | PXP61: 0 | PXQ61: 0 | PXR61: 0 | PXS61: 0 | PXT61: 0 | PXU61: 0 | PXV61: 0 | PXW61: 0 | PXX61: 0 | PXY61: =PXY30 -> 0 | PXZ61: 0 | PYA61: 0 | PYB61: 0 | PYC61: 0 | PYD61: 0 | PYE61: 0 | PYF61: 0 | PYG61: 0 | PYH61: 0 | PYI61: 0 | PYJ61: 0 | PYK61: 0 | PYL61: 0 | PYM61: 0 | PYN61: 0 | PYO61: 0 | PYP61: 0 | PYQ61: 0 | PYR61: 0 | PYS61: 0 | PYT61: 0 | PYU61: 0 | PYV61: 0 | PYW61: 0 | PYX61: 0 | PYY61: 0 | PYZ61: 0 | PZA61: 0 | PZB61: 0 | PZC61: 0 | PZD61: 0 | PZE61: 0 | PZF61: 0 | PZG61: 0 | PZH61: 0 | PZI61: 0 | PZJ61: 0 | PZK61: 0 | PZL61: 0 | PZM61: 0 | PZN61: 0 | PZO61: 0 | PZP61: 0 | PZQ61: 0 | PZR61: 0 | PZS61: 0 | PZT61: 0 | PZU61: 0 | PZV61: 0 | PZW61: 0 | PZX61: 0 | PZY61: 0 | PZZ61: 0 | QAA61: 0 | QAB61: 0 | QAC61: 0 | QAD61: 0 | QAE61: 0 | QAF61: 0 | QAG61: 0 | QAH61: 0 | QAI61: 0 | QAJ61: 0 | QAK61: =QAK30 -> 0 | QAL61: 0 | QAM61: 0 | QAN61: 0 | QAO61: 0 | QAP61: 0 | QAQ61: 0 | QAR61: 0 | QAS61: 0 | QAT61: 0 | QAU61: 0 | QAV61: 0 | QAW61: 0 | QAX61: 0 | QAY61: 0 | QAZ61: 0 | QBA61: 0 | QBB61: 0 | QBC61: 0 | QBD61: 0 | QBE61: 0 | QBF61: 0 | QBG61: 0 | QBH61: 0 | QBI61: 0 | QBJ61: 0 | QBK61: 0 | QBL61: 0 | QBM61: 0 | QBN61: 0 | QBO61: 0 | QBP61: 0 | QBQ61: 0 | QBR61: 0 | QBS61: 0 | QBT61: 0 | QBU61: 0 | QBV61: 0 | QBW61: 0 | QBX61: 0 | QBY61: 0 | QBZ61: 0 | QCA61: 0 | QCB61: 0 | QCC61: 0 | QCD61: 0 | QCE61: 0 | QCF61: 0 | QCG61: 0 | QCH61: 0 | QCI61: 0 | QCJ61: 0 | QCK61: 0 | QCL61: 0 | QCM61: 0 | QCN61: 0 | QCO61: 0 | QCP61: 0 | QCQ61: 0 | QCR61: 0 | QCS61: 0 | QCT61: 0 | QCU61: 0 | QCV61: 0 | QCW61: =QCW30 -> 0 | QCX61: 0 | QCY61: 0 | QCZ61: 0 | QDA61: 0 | QDB61: 0 | QDC61: 0 | QDD61: 0 | QDE61: 0 | QDF61: 0 | QDG61: 0 | QDH61: 0 | QDI61: 0 | QDJ61: 0 | QDK61: 0 | QDL61: 0 | QDM61: 0 | QDN61: 0 | QDO61: 0 | QDP61: 0 | QDQ61: 0 | QDR61: 0 | QDS61: 0 | QDT61: 0 | QDU61: 0 | QDV61: 0 | QDW61: 0 | QDX61: 0 | QDY61: 0 | QDZ61: 0 | QEA61: 0 | QEB61: 0 | QEC61: 0 | QED61: 0 | QEE61: 0 | QEF61: 0 | QEG61: 0 | QEH61: 0 | QEI61: 0 | QEJ61: 0 | QEK61: 0 | QEL61: 0 | QEM61: 0 | QEN61: 0 | QEO61: 0 | QEP61: 0 | QEQ61: 0 | QER61: 0 | QES61: 0 | QET61: 0 | QEU61: 0 | QEV61: 0 | QEW61: 0 | QEX61: 0 | QEY61: 0 | QEZ61: 0 | QFA61: 0 | QFB61: 0 | QFC61: 0 | QFD61: 0 | QFE61: 0 | QFF61: 0 | QFG61: 0 | QFH61: 0 | QFI61: =QFI30 -> 0 | QFJ61: 0 | QFK61: 0 | QFL61: 0 | QFM61: 0 | QFN61: 0 | QFO61: 0 | QFP61: 0 | QFQ61: 0 | QFR61: 0 | QFS61: 0 | QFT61: 0 | QFU61: 0 | QFV61: 0 | QFW61: 0 | QFX61: 0 | QFY61: 0 | QFZ61: 0 | QGA61: 0 | QGB61: 0 | QGC61: 0 | QGD61: 0 | QGE61: 0 | QGF61: 0 | QGG61: 0 | QGH61: 0 | QGI61: 0 | QGJ61: 0 | QGK61: 0 | QGL61: 0 | QGM61: 0 | QGN61: 0 | QGO61: 0 | QGP61: 0 | QGQ61: 0 | QGR61: 0 | QGS61: 0 | QGT61: 0 | QGU61: 0 | QGV61: 0 | QGW61: 0 | QGX61: 0 | QGY61: 0 | QGZ61: 0 | QHA61: 0 | QHB61: 0 | QHC61: 0 | QHD61: 0 | QHE61: 0 | QHF61: 0 | QHG61: 0 | QHH61: 0 | QHI61: 0 | QHJ61: 0 | QHK61: 0 | QHL61: 0 | QHM61: 0 | QHN61: 0 | QHO61: 0 | QHP61: 0 | QHQ61: 0 | QHR61: 0 | QHS61: 0 | QHT61: 0 | QHU61: =QHU30 -> 0 | QHV61: 0 | QHW61: 0 | QHX61: 0 | QHY61: 0 | QHZ61: 0 | QIA61: 0 | QIB61: 0 | QIC61: 0 | QID61: 0 | QIE61: 0 | QIF61: 0 | QIG61: 0 | QIH61: 0 | QII61: 0 | QIJ61: 0 | QIK61: 0 | QIL61: 0 | QIM61: 0 | QIN61: 0 | QIO61: 0 | QIP61: 0 | QIQ61: 0 | QIR61: 0 | QIS61: 0 | QIT61: 0 | QIU61: 0 | QIV61: 0 | QIW61: 0 | QIX61: 0 | QIY61: 0 | QIZ61: 0 | QJA61: 0 | QJB61: 0 | QJC61: 0 | QJD61: 0 | QJE61: 0 | QJF61: 0 | QJG61: 0 | QJH61: 0 | QJI61: 0 | QJJ61: 0 | QJK61: 0 | QJL61: 0 | QJM61: 0 | QJN61: 0 | QJO61: 0 | QJP61: 0 | QJQ61: 0 | QJR61: 0 | QJS61: 0 | QJT61: 0 | QJU61: 0 | QJV61: 0 | QJW61: 0 | QJX61: 0 | QJY61: 0 | QJZ61: 0 | QKA61: 0 | QKB61: 0 | QKC61: 0 | QKD61: 0 | QKE61: 0 | QKF61: 0 | QKG61: =QKG30 -> 0 | QKH61: 0 | QKI61: 0 | QKJ61: 0 | QKK61: 0 | QKL61: 0 | QKM61: 0 | QKN61: 0 | QKO61: 0 | QKP61: 0 | QKQ61: 0 | QKR61: 0 | QKS61: 0 | QKT61: 0 | QKU61: 0 | QKV61: 0 | QKW61: 0 | QKX61: 0 | QKY61: 0 | QKZ61: 0 | QLA61: 0 | QLB61: 0 | QLC61: 0 | QLD61: 0 | QLE61: 0 | QLF61: 0 | QLG61: 0 | QLH61: 0 | QLI61: 0 | QLJ61: 0 | QLK61: 0 | QLL61: 0 | QLM61: 0 | QLN61: 0 | QLO61: 0 | QLP61: 0 | QLQ61: 0 | QLR61: 0 | QLS61: 0 | QLT61: 0 | QLU61: 0 | QLV61: 0 | QLW61: 0 | QLX61: 0 | QLY61: 0 | QLZ61: 0 | QMA61: 0 | QMB61: 0 | QMC61: 0 | QMD61: 0 | QME61: 0 | QMF61: 0 | QMG61: 0 | QMH61: 0 | QMI61: 0 | QMJ61: 0 | QMK61: 0 | QML61: 0 | QMM61: 0 | QMN61: 0 | QMO61: 0 | QMP61: 0 | QMQ61: 0 | QMR61: 0 | QMS61: =QMS30 -> 0 | QMT61: 0 | QMU61: 0 | QMV61: 0 | QMW61: 0 | QMX61: 0 | QMY61: 0 | QMZ61: 0 | QNA61: 0 | QNB61: 0 | QNC61: 0 | QND61: 0 | QNE61: 0 | QNF61: 0 | QNG61: 0 | QNH61: 0 | QNI61: 0 | QNJ61: 0 | QNK61: 0 | QNL61: 0 | QNM61: 0 | QNN61: 0 | QNO61: 0 | QNP61: 0 | QNQ61: 0 | QNR61: 0 | QNS61: 0 | QNT61: 0 | QNU61: 0 | QNV61: 0 | QNW61: 0 | QNX61: 0 | QNY61: 0 | QNZ61: 0 | QOA61: 0 | QOB61: 0 | QOC61: 0 | QOD61: 0 | QOE61: 0 | QOF61: 0 | QOG61: 0 | QOH61: 0 | QOI61: 0 | QOJ61: 0 | QOK61: 0 | QOL61: 0 | QOM61: 0 | QON61: 0 | QOO61: 0 | QOP61: 0 | QOQ61: 0 | QOR61: 0 | QOS61: 0 | QOT61: 0 | QOU61: 0 | QOV61: 0 | QOW61: 0 | QOX61: 0 | QOY61: 0 | QOZ61: 0 | QPA61: 0 | QPB61: 0 | QPC61: 0 | QPD61: 0 | QPE61: =QPE30 -> 0 | QPF61: 0 | QPG61: 0 | QPH61: 0 | QPI61: 0 | QPJ61: 0 | QPK61: 0 | QPL61: 0 | QPM61: 0 | QPN61: 0 | QPO61: 0 | QPP61: 0 | QPQ61: 0 | QPR61: 0 | QPS61: 0 | QPT61: 0 | QPU61: 0 | QPV61: 0 | QPW61: 0 | QPX61: 0 | QPY61: 0 | QPZ61: 0 | QQA61: 0 | QQB61: 0 | QQC61: 0 | QQD61: 0 | QQE61: 0 | QQF61: 0 | QQG61: 0 | QQH61: 0 | QQI61: 0 | QQJ61: 0 | QQK61: 0 | QQL61: 0 | QQM61: 0 | QQN61: 0 | QQO61: 0 | QQP61: 0 | QQQ61: 0 | QQR61: 0 | QQS61: 0 | QQT61: 0 | QQU61: 0 | QQV61: 0 | QQW61: 0 | QQX61: 0 | QQY61: 0 | QQZ61: 0 | QRA61: 0 | QRB61: 0 | QRC61: 0 | QRD61: 0 | QRE61: 0 | QRF61: 0 | QRG61: 0 | QRH61: 0 | QRI61: 0 | QRJ61: 0 | QRK61: 0 | QRL61: 0 | QRM61: 0 | QRN61: 0 | QRO61: 0 | QRP61: 0 | QRQ61: =QRQ30 -> 0 | QRR61: 0 | QRS61: 0 | QRT61: 0 | QRU61: 0 | QRV61: 0 | QRW61: 0 | QRX61: 0 | QRY61: 0 | QRZ61: 0 | QSA61: 0 | QSB61: 0 | QSC61: 0 | QSD61: 0 | QSE61: 0 | QSF61: 0 | QSG61: 0 | QSH61: 0 | QSI61: 0 | QSJ61: 0 | QSK61: 0 | QSL61: 0 | QSM61: 0 | QSN61: 0 | QSO61: 0 | QSP61: 0 | QSQ61: 0 | QSR61: 0 | QSS61: 0 | QST61: 0 | QSU61: 0 | QSV61: 0 | QSW61: 0 | QSX61: 0 | QSY61: 0 | QSZ61: 0 | QTA61: 0 | QTB61: 0 | QTC61: 0 | QTD61: 0 | QTE61: 0 | QTF61: 0 | QTG61: 0 | QTH61: 0 | QTI61: 0 | QTJ61: 0 | QTK61: 0 | QTL61: 0 | QTM61: 0 | QTN61: 0 | QTO61: 0 | QTP61: 0 | QTQ61: 0 | QTR61: 0 | QTS61: 0 | QTT61: 0 | QTU61: 0 | QTV61: 0 | QTW61: 0 | QTX61: 0 | QTY61: 0 | QTZ61: 0 | QUA61: 0 | QUB61: 0 | QUC61: =QUC30 -> 0 | QUD61: 0 | QUE61: 0 | QUF61: 0 | QUG61: 0 | QUH61: 0 | QUI61: 0 | QUJ61: 0 | QUK61: 0 | QUL61: 0 | QUM61: 0 | QUN61: 0 | QUO61: 0 | QUP61: 0 | QUQ61: 0 | QUR61: 0 | QUS61: 0 | QUT61: 0 | QUU61: 0 | QUV61: 0 | QUW61: 0 | QUX61: 0 | QUY61: 0 | QUZ61: 0 | QVA61: 0 | QVB61: 0 | QVC61: 0 | QVD61: 0 | QVE61: 0 | QVF61: 0 | QVG61: 0 | QVH61: 0 | QVI61: 0 | QVJ61: 0 | QVK61: 0 | QVL61: 0 | QVM61: 0 | QVN61: 0 | QVO61: 0 | QVP61: 0 | QVQ61: 0 | QVR61: 0 | QVS61: 0 | QVT61: 0 | QVU61: 0 | QVV61: 0 | QVW61: 0 | QVX61: 0 | QVY61: 0 | QVZ61: 0 | QWA61: 0 | QWB61: 0 | QWC61: 0 | QWD61: 0 | QWE61: 0 | QWF61: 0 | QWG61: 0 | QWH61: 0 | QWI61: 0 | QWJ61: 0 | QWK61: 0 | QWL61: 0 | QWM61: 0 | QWN61: 0 | QWO61: =QWO30 -> 0 | QWP61: 0 | QWQ61: 0 | QWR61: 0 | QWS61: 0 | QWT61: 0 | QWU61: 0 | QWV61: 0 | QWW61: 0 | QWX61: 0 | QWY61: 0 | QWZ61: 0 | QXA61: 0 | QXB61: 0 | QXC61: 0 | QXD61: 0 | QXE61: 0 | QXF61: 0 | QXG61: 0 | QXH61: 0 | QXI61: 0 | QXJ61: 0 | QXK61: 0 | QXL61: 0 | QXM61: 0 | QXN61: 0 | QXO61: 0 | QXP61: 0 | QXQ61: 0 | QXR61: 0 | QXS61: 0 | QXT61: 0 | QXU61: 0 | QXV61: 0 | QXW61: 0 | QXX61: 0 | QXY61: 0 | QXZ61: 0 | QYA61: 0 | QYB61: 0 | QYC61: 0 | QYD61: 0 | QYE61: 0 | QYF61: 0 | QYG61: 0 | QYH61: 0 | QYI61: 0 | QYJ61: 0 | QYK61: 0 | QYL61: 0 | QYM61: 0 | QYN61: 0 | QYO61: 0 | QYP61: 0 | QYQ61: 0 | QYR61: 0 | QYS61: 0 | QYT61: 0 | QYU61: 0 | QYV61: 0 | QYW61: 0 | QYX61: 0 | QYY61: 0 | QYZ61: 0 | QZA61: =QZA30 -> 0 | QZB61: 0 | QZC61: 0 | QZD61: 0 | QZE61: 0 | QZF61: 0 | QZG61: 0 | QZH61: 0 | QZI61: 0 | QZJ61: 0 | QZK61: 0 | QZL61: 0 | QZM61: 0 | QZN61: 0 | QZO61: 0 | QZP61: 0 | QZQ61: 0 | QZR61: 0 | QZS61: 0 | QZT61: 0 | QZU61: 0 | QZV61: 0 | QZW61: 0 | QZX61: 0 | QZY61: 0 | QZZ61: 0 | RAA61: 0 | RAB61: 0 | RAC61: 0 | RAD61: 0 | RAE61: 0 | RAF61: 0 | RAG61: 0 | RAH61: 0 | RAI61: 0 | RAJ61: 0 | RAK61: 0 | RAL61: 0 | RAM61: 0 | RAN61: 0 | RAO61: 0 | RAP61: 0 | RAQ61: 0 | RAR61: 0 | RAS61: 0 | RAT61: 0 | RAU61: 0 | RAV61: 0 | RAW61: 0 | RAX61: 0 | RAY61: 0 | RAZ61: 0 | RBA61: 0 | RBB61: 0 | RBC61: 0 | RBD61: 0 | RBE61: 0 | RBF61: 0 | RBG61: 0 | RBH61: 0 | RBI61: 0 | RBJ61: 0 | RBK61: 0 | RBL61: 0 | RBM61: =RBM30 -> 0 | RBN61: 0 | RBO61: 0 | RBP61: 0 | RBQ61: 0 | RBR61: 0 | RBS61: 0 | RBT61: 0 | RBU61: 0 | RBV61: 0 | RBW61: 0 | RBX61: 0 | RBY61: 0 | RBZ61: 0 | RCA61: 0 | RCB61: 0 | RCC61: 0 | RCD61: 0 | RCE61: 0 | RCF61: 0 | RCG61: 0 | RCH61: 0 | RCI61: 0 | RCJ61: 0 | RCK61: 0 | RCL61: 0 | RCM61: 0 | RCN61: 0 | RCO61: 0 | RCP61: 0 | RCQ61: 0 | RCR61: 0 | RCS61: 0 | RCT61: 0 | RCU61: 0 | RCV61: 0 | RCW61: 0 | RCX61: 0 | RCY61: 0 | RCZ61: 0 | RDA61: 0 | RDB61: 0 | RDC61: 0 | RDD61: 0 | RDE61: 0 | RDF61: 0 | RDG61: 0 | RDH61: 0 | RDI61: 0 | RDJ61: 0 | RDK61: 0 | RDL61: 0 | RDM61: 0 | RDN61: 0 | RDO61: 0 | RDP61: 0 | RDQ61: 0 | RDR61: 0 | RDS61: 0 | RDT61: 0 | RDU61: 0 | RDV61: 0 | RDW61: 0 | RDX61: 0 | RDY61: =RDY30 -> 0 | RDZ61: 0 | REA61: 0 | REB61: 0 | REC61: 0 | RED61: 0 | REE61: 0 | REF61: 0 | REG61: 0 | REH61: 0 | REI61: 0 | REJ61: 0 | REK61: 0 | REL61: 0 | REM61: 0 | REN61: 0 | REO61: 0 | REP61: 0 | REQ61: 0 | RER61: 0 | RES61: 0 | RET61: 0 | REU61: 0 | REV61: 0 | REW61: 0 | REX61: 0 | REY61: 0 | REZ61: 0 | RFA61: 0 | RFB61: 0 | RFC61: 0 | RFD61: 0 | RFE61: 0 | RFF61: 0 | RFG61: 0 | RFH61: 0 | RFI61: 0 | RFJ61: 0 | RFK61: 0 | RFL61: 0 | RFM61: 0 | RFN61: 0 | RFO61: 0 | RFP61: 0 | RFQ61: 0 | RFR61: 0 | RFS61: 0 | RFT61: 0 | RFU61: 0 | RFV61: 0 | RFW61: 0 | RFX61: 0 | RFY61: 0 | RFZ61: 0 | RGA61: 0 | RGB61: 0 | RGC61: 0 | RGD61: 0 | RGE61: 0 | RGF61: 0 | RGG61: 0 | RGH61: 0 | RGI61: 0 | RGJ61: 0 | RGK61: =RGK30 -> 0 | RGL61: 0 | RGM61: 0 | RGN61: 0 | RGO61: 0 | RGP61: 0 | RGQ61: 0 | RGR61: 0 | RGS61: 0 | RGT61: 0 | RGU61: 0 | RGV61: 0 | RGW61: 0 | RGX61: 0 | RGY61: 0 | RGZ61: 0 | RHA61: 0 | RHB61: 0 | RHC61: 0 | RHD61: 0 | RHE61: 0 | RHF61: 0 | RHG61: 0 | RHH61: 0 | RHI61: 0 | RHJ61: 0 | RHK61: 0 | RHL61: 0 | RHM61: 0 | RHN61: 0 | RHO61: 0 | RHP61: 0 | RHQ61: 0 | RHR61: 0 | RHS61: 0 | RHT61: 0 | RHU61: 0 | RHV61: 0 | RHW61: 0 | RHX61: 0 | RHY61: 0 | RHZ61: 0 | RIA61: 0 | RIB61: 0 | RIC61: 0 | RID61: 0 | RIE61: 0 | RIF61: 0 | RIG61: 0 | RIH61: 0 | RII61: 0 | RIJ61: 0 | RIK61: 0 | RIL61: 0 | RIM61: 0 | RIN61: 0 | RIO61: 0 | RIP61: 0 | RIQ61: 0 | RIR61: 0 | RIS61: 0 | RIT61: 0 | RIU61: 0 | RIV61: 0 | RIW61: =RIW30 -> 0 | RIX61: 0 | RIY61: 0 | RIZ61: 0 | RJA61: 0 | RJB61: 0 | RJC61: 0 | RJD61: 0 | RJE61: 0 | RJF61: 0 | RJG61: 0 | RJH61: 0 | RJI61: 0 | RJJ61: 0 | RJK61: 0 | RJL61: 0 | RJM61: 0 | RJN61: 0 | RJO61: 0 | RJP61: 0 | RJQ61: 0 | RJR61: 0 | RJS61: 0 | RJT61: 0 | RJU61: 0 | RJV61: 0 | RJW61: 0 | RJX61: 0 | RJY61: 0 | RJZ61: 0 | RKA61: 0 | RKB61: 0 | RKC61: 0 | RKD61: 0 | RKE61: 0 | RKF61: 0 | RKG61: 0 | RKH61: 0 | RKI61: 0 | RKJ61: 0 | RKK61: 0 | RKL61: 0 | RKM61: 0 | RKN61: 0 | RKO61: 0 | RKP61: 0 | RKQ61: 0 | RKR61: 0 | RKS61: 0 | RKT61: 0 | RKU61: 0 | RKV61: 0 | RKW61: 0 | RKX61: 0 | RKY61: 0 | RKZ61: 0 | RLA61: 0 | RLB61: 0 | RLC61: 0 | RLD61: 0 | RLE61: 0 | RLF61: 0 | RLG61: 0 | RLH61: 0 | RLI61: =RLI30 -> 0 | RLJ61: 0 | RLK61: 0 | RLL61: 0 | RLM61: 0 | RLN61: 0 | RLO61: 0 | RLP61: 0 | RLQ61: 0 | RLR61: 0 | RLS61: 0 | RLT61: 0 | RLU61: 0 | RLV61: 0 | RLW61: 0 | RLX61: 0 | RLY61: 0 | RLZ61: 0 | RMA61: 0 | RMB61: 0 | RMC61: 0 | RMD61: 0 | RME61: 0 | RMF61: 0 | RMG61: 0 | RMH61: 0 | RMI61: 0 | RMJ61: 0 | RMK61: 0 | RML61: 0 | RMM61: 0 | RMN61: 0 | RMO61: 0 | RMP61: 0 | RMQ61: 0 | RMR61: 0 | RMS61: 0 | RMT61: 0 | RMU61: 0 | RMV61: 0 | RMW61: 0 | RMX61: 0 | RMY61: 0 | RMZ61: 0 | RNA61: 0 | RNB61: 0 | RNC61: 0 | RND61: 0 | RNE61: 0 | RNF61: 0 | RNG61: 0 | RNH61: 0 | RNI61: 0 | RNJ61: 0 | RNK61: 0 | RNL61: 0 | RNM61: 0 | RNN61: 0 | RNO61: 0 | RNP61: 0 | RNQ61: 0 | RNR61: 0 | RNS61: 0 | RNT61: 0 | RNU61: =RNU30 -> 0 | RNV61: 0 | RNW61: 0 | RNX61: 0 | RNY61: 0 | RNZ61: 0 | ROA61: 0 | ROB61: 0 | ROC61: 0 | ROD61: 0 | ROE61: 0 | ROF61: 0 | ROG61: 0 | ROH61: 0 | ROI61: 0 | ROJ61: 0 | ROK61: 0 | ROL61: 0 | ROM61: 0 | RON61: 0 | ROO61: 0 | ROP61: 0 | ROQ61: 0 | ROR61: 0 | ROS61: 0 | ROT61: 0 | ROU61: 0 | ROV61: 0 | ROW61: 0 | ROX61: 0 | ROY61: 0 | ROZ61: 0 | RPA61: 0 | RPB61: 0 | RPC61: 0 | RPD61: 0 | RPE61: 0 | RPF61: 0 | RPG61: 0 | RPH61: 0 | RPI61: 0 | RPJ61: 0 | RPK61: 0 | RPL61: 0 | RPM61: 0 | RPN61: 0 | RPO61: 0 | RPP61: 0 | RPQ61: 0 | RPR61: 0 | RPS61: 0 | RPT61: 0 | RPU61: 0 | RPV61: 0 | RPW61: 0 | RPX61: 0 | RPY61: 0 | RPZ61: 0 | RQA61: 0 | RQB61: 0 | RQC61: 0 | RQD61: 0 | RQE61: 0 | RQF61: 0 | RQG61: =RQG30 -> 0 | RQH61: 0 | RQI61: 0 | RQJ61: 0 | RQK61: 0 | RQL61: 0 | RQM61: 0 | RQN61: 0 | RQO61: 0 | RQP61: 0 | RQQ61: 0 | RQR61: 0 | RQS61: 0 | RQT61: 0 | RQU61: 0 | RQV61: 0 | RQW61: 0 | RQX61: 0 | RQY61: 0 | RQZ61: 0 | RRA61: 0 | RRB61: 0 | RRC61: 0 | RRD61: 0 | RRE61: 0 | RRF61: 0 | RRG61: 0 | RRH61: 0 | RRI61: 0 | RRJ61: 0 | RRK61: 0 | RRL61: 0 | RRM61: 0 | RRN61: 0 | RRO61: 0 | RRP61: 0 | RRQ61: 0 | RRR61: 0 | RRS61: 0 | RRT61: 0 | RRU61: 0 | RRV61: 0 | RRW61: 0 | RRX61: 0 | RRY61: 0 | RRZ61: 0 | RSA61: 0 | RSB61: 0 | RSC61: 0 | RSD61: 0 | RSE61: 0 | RSF61: 0 | RSG61: 0 | RSH61: 0 | RSI61: 0 | RSJ61: 0 | RSK61: 0 | RSL61: 0 | RSM61: 0 | RSN61: 0 | RSO61: 0 | RSP61: 0 | RSQ61: 0 | RSR61: 0 | RSS61: =RSS30 -> 0 | RST61: 0 | RSU61: 0 | RSV61: 0 | RSW61: 0 | RSX61: 0 | RSY61: 0 | RSZ61: 0 | RTA61: 0 | RTB61: 0 | RTC61: 0 | RTD61: 0 | RTE61: 0 | RTF61: 0 | RTG61: 0 | RTH61: 0 | RTI61: 0 | RTJ61: 0 | RTK61: 0 | RTL61: 0 | RTM61: 0 | RTN61: 0 | RTO61: 0 | RTP61: 0 | RTQ61: 0 | RTR61: 0 | RTS61: 0 | RTT61: 0 | RTU61: 0 | RTV61: 0 | RTW61: 0 | RTX61: 0 | RTY61: 0 | RTZ61: 0 | RUA61: 0 | RUB61: 0 | RUC61: 0 | RUD61: 0 | RUE61: 0 | RUF61: 0 | RUG61: 0 | RUH61: 0 | RUI61: 0 | RUJ61: 0 | RUK61: 0 | RUL61: 0 | RUM61: 0 | RUN61: 0 | RUO61: 0 | RUP61: 0 | RUQ61: 0 | RUR61: 0 | RUS61: 0 | RUT61: 0 | RUU61: 0 | RUV61: 0 | RUW61: 0 | RUX61: 0 | RUY61: 0 | RUZ61: 0 | RVA61: 0 | RVB61: 0 | RVC61: 0 | RVD61: 0 | RVE61: =RVE30 -> 0 | RVF61: 0 | RVG61: 0 | RVH61: 0 | RVI61: 0 | RVJ61: 0 | RVK61: 0 | RVL61: 0 | RVM61: 0 | RVN61: 0 | RVO61: 0 | RVP61: 0 | RVQ61: 0 | RVR61: 0 | RVS61: 0 | RVT61: 0 | RVU61: 0 | RVV61: 0 | RVW61: 0 | RVX61: 0 | RVY61: 0 | RVZ61: 0 | RWA61: 0 | RWB61: 0 | RWC61: 0 | RWD61: 0 | RWE61: 0 | RWF61: 0 | RWG61: 0 | RWH61: 0 | RWI61: 0 | RWJ61: 0 | RWK61: 0 | RWL61: 0 | RWM61: 0 | RWN61: 0 | RWO61: 0 | RWP61: 0 | RWQ61: 0 | RWR61: 0 | RWS61: 0 | RWT61: 0 | RWU61: 0 | RWV61: 0 | RWW61: 0 | RWX61: 0 | RWY61: 0 | RWZ61: 0 | RXA61: 0 | RXB61: 0 | RXC61: 0 | RXD61: 0 | RXE61: 0 | RXF61: 0 | RXG61: 0 | RXH61: 0 | RXI61: 0 | RXJ61: 0 | RXK61: 0 | RXL61: 0 | RXM61: 0 | RXN61: 0 | RXO61: 0 | RXP61: 0 | RXQ61: =RXQ30 -> 0 | RXR61: 0 | RXS61: 0 | RXT61: 0 | RXU61: 0 | RXV61: 0 | RXW61: 0 | RXX61: 0 | RXY61: 0 | RXZ61: 0 | RYA61: 0 | RYB61: 0 | RYC61: 0 | RYD61: 0 | RYE61: 0 | RYF61: 0 | RYG61: 0 | RYH61: 0 | RYI61: 0 | RYJ61: 0 | RYK61: 0 | RYL61: 0 | RYM61: 0 | RYN61: 0 | RYO61: 0 | RYP61: 0 | RYQ61: 0 | RYR61: 0 | RYS61: 0 | RYT61: 0 | RYU61: 0 | RYV61: 0 | RYW61: 0 | RYX61: 0 | RYY61: 0 | RYZ61: 0 | RZA61: 0 | RZB61: 0 | RZC61: 0 | RZD61: 0 | RZE61: 0 | RZF61: 0 | RZG61: 0 | RZH61: 0 | RZI61: 0 | RZJ61: 0 | RZK61: 0 | RZL61: 0 | RZM61: 0 | RZN61: 0 | RZO61: 0 | RZP61: 0 | RZQ61: 0 | RZR61: 0 | RZS61: 0 | RZT61: 0 | RZU61: 0 | RZV61: 0 | RZW61: 0 | RZX61: 0 | RZY61: 0 | RZZ61: 0 | SAA61: 0 | SAB61: 0 | SAC61: =SAC30 -> 0 | SAD61: 0 | SAE61: 0 | SAF61: 0 | SAG61: 0 | SAH61: 0 | SAI61: 0 | SAJ61: 0 | SAK61: 0 | SAL61: 0 | SAM61: 0 | SAN61: 0 | SAO61: 0 | SAP61: 0 | SAQ61: 0 | SAR61: 0 | SAS61: 0 | SAT61: 0 | SAU61: 0 | SAV61: 0 | SAW61: 0 | SAX61: 0 | SAY61: 0 | SAZ61: 0 | SBA61: 0 | SBB61: 0 | SBC61: 0 | SBD61: 0 | SBE61: 0 | SBF61: 0 | SBG61: 0 | SBH61: 0 | SBI61: 0 | SBJ61: 0 | SBK61: 0 | SBL61: 0 | SBM61: 0 | SBN61: 0 | SBO61: 0 | SBP61: 0 | SBQ61: 0 | SBR61: 0 | SBS61: 0 | SBT61: 0 | SBU61: 0 | SBV61: 0 | SBW61: 0 | SBX61: 0 | SBY61: 0 | SBZ61: 0 | SCA61: 0 | SCB61: 0 | SCC61: 0 | SCD61: 0 | SCE61: 0 | SCF61: 0 | SCG61: 0 | SCH61: 0 | SCI61: 0 | SCJ61: 0 | SCK61: 0 | SCL61: 0 | SCM61: 0 | SCN61: 0 | SCO61: =SCO30 -> 0 | SCP61: 0 | SCQ61: 0 | SCR61: 0 | SCS61: 0 | SCT61: 0 | SCU61: 0 | SCV61: 0 | SCW61: 0 | SCX61: 0 | SCY61: 0 | SCZ61: 0 | SDA61: 0 | SDB61: 0 | SDC61: 0 | SDD61: 0 | SDE61: 0 | SDF61: 0 | SDG61: 0 | SDH61: 0 | SDI61: 0 | SDJ61: 0 | SDK61: 0 | SDL61: 0 | SDM61: 0 | SDN61: 0 | SDO61: 0 | SDP61: 0 | SDQ61: 0 | SDR61: 0 | SDS61: 0 | SDT61: 0 | SDU61: 0 | SDV61: 0 | SDW61: 0 | SDX61: 0 | SDY61: 0 | SDZ61: 0 | SEA61: 0 | SEB61: 0 | SEC61: 0 | SED61: 0 | SEE61: 0 | SEF61: 0 | SEG61: 0 | SEH61: 0 | SEI61: 0 | SEJ61: 0 | SEK61: 0 | SEL61: 0 | SEM61: 0 | SEN61: 0 | SEO61: 0 | SEP61: 0 | SEQ61: 0 | SER61: 0 | SES61: 0 | SET61: 0 | SEU61: 0 | SEV61: 0 | SEW61: 0 | SEX61: 0 | SEY61: 0 | SEZ61: 0 | SFA61: =SFA30 -> 0 | SFB61: 0 | SFC61: 0 | SFD61: 0 | SFE61: 0 | SFF61: 0 | SFG61: 0 | SFH61: 0 | SFI61: 0 | SFJ61: 0 | SFK61: 0 | SFL61: 0 | SFM61: 0 | SFN61: 0 | SFO61: 0 | SFP61: 0 | SFQ61: 0 | SFR61: 0 | SFS61: 0 | SFT61: 0 | SFU61: 0 | SFV61: 0 | SFW61: 0 | SFX61: 0 | SFY61: 0 | SFZ61: 0 | SGA61: 0 | SGB61: 0 | SGC61: 0 | SGD61: 0 | SGE61: 0 | SGF61: 0 | SGG61: 0 | SGH61: 0 | SGI61: 0 | SGJ61: 0 | SGK61: 0 | SGL61: 0 | SGM61: 0 | SGN61: 0 | SGO61: 0 | SGP61: 0 | SGQ61: 0 | SGR61: 0 | SGS61: 0 | SGT61: 0 | SGU61: 0 | SGV61: 0 | SGW61: 0 | SGX61: 0 | SGY61: 0 | SGZ61: 0 | SHA61: 0 | SHB61: 0 | SHC61: 0 | SHD61: 0 | SHE61: 0 | SHF61: 0 | SHG61: 0 | SHH61: 0 | SHI61: 0 | SHJ61: 0 | SHK61: 0 | SHL61: 0 | SHM61: =SHM30 -> 0 | SHN61: 0 | SHO61: 0 | SHP61: 0 | SHQ61: 0 | SHR61: 0 | SHS61: 0 | SHT61: 0 | SHU61: 0 | SHV61: 0 | SHW61: 0 | SHX61: 0 | SHY61: 0 | SHZ61: 0 | SIA61: 0 | SIB61: 0 | SIC61: 0 | SID61: 0 | SIE61: 0 | SIF61: 0 | SIG61: 0 | SIH61: 0 | SII61: 0 | SIJ61: 0 | SIK61: 0 | SIL61: 0 | SIM61: 0 | SIN61: 0 | SIO61: 0 | SIP61: 0 | SIQ61: 0 | SIR61: 0 | SIS61: 0 | SIT61: 0 | SIU61: 0 | SIV61: 0 | SIW61: 0 | SIX61: 0 | SIY61: 0 | SIZ61: 0 | SJA61: 0 | SJB61: 0 | SJC61: 0 | SJD61: 0 | SJE61: 0 | SJF61: 0 | SJG61: 0 | SJH61: 0 | SJI61: 0 | SJJ61: 0 | SJK61: 0 | SJL61: 0 | SJM61: 0 | SJN61: 0 | SJO61: 0 | SJP61: 0 | SJQ61: 0 | SJR61: 0 | SJS61: 0 | SJT61: 0 | SJU61: 0 | SJV61: 0 | SJW61: 0 | SJX61: 0 | SJY61: =SJY30 -> 0 | SJZ61: 0 | SKA61: 0 | SKB61: 0 | SKC61: 0 | SKD61: 0 | SKE61: 0 | SKF61: 0 | SKG61: 0 | SKH61: 0 | SKI61: 0 | SKJ61: 0 | SKK61: 0 | SKL61: 0 | SKM61: 0 | SKN61: 0 | SKO61: 0 | SKP61: 0 | SKQ61: 0 | SKR61: 0 | SKS61: 0 | SKT61: 0 | SKU61: 0 | SKV61: 0 | SKW61: 0 | SKX61: 0 | SKY61: 0 | SKZ61: 0 | SLA61: 0 | SLB61: 0 | SLC61: 0 | SLD61: 0 | SLE61: 0 | SLF61: 0 | SLG61: 0 | SLH61: 0 | SLI61: 0 | SLJ61: 0 | SLK61: 0 | SLL61: 0 | SLM61: 0 | SLN61: 0 | SLO61: 0 | SLP61: 0 | SLQ61: 0 | SLR61: 0 | SLS61: 0 | SLT61: 0 | SLU61: 0 | SLV61: 0 | SLW61: 0 | SLX61: 0 | SLY61: 0 | SLZ61: 0 | SMA61: 0 | SMB61: 0 | SMC61: 0 | SMD61: 0 | SME61: 0 | SMF61: 0 | SMG61: 0 | SMH61: 0 | SMI61: 0 | SMJ61: 0 | SMK61: =SMK30 -> 0 | SML61: 0 | SMM61: 0 | SMN61: 0 | SMO61: 0 | SMP61: 0 | SMQ61: 0 | SMR61: 0 | SMS61: 0 | SMT61: 0 | SMU61: 0 | SMV61: 0 | SMW61: 0 | SMX61: 0 | SMY61: 0 | SMZ61: 0 | SNA61: 0 | SNB61: 0 | SNC61: 0 | SND61: 0 | SNE61: 0 | SNF61: 0 | SNG61: 0 | SNH61: 0 | SNI61: 0 | SNJ61: 0 | SNK61: 0 | SNL61: 0 | SNM61: 0 | SNN61: 0 | SNO61: 0 | SNP61: 0 | SNQ61: 0 | SNR61: 0 | SNS61: 0 | SNT61: 0 | SNU61: 0 | SNV61: 0 | SNW61: 0 | SNX61: 0 | SNY61: 0 | SNZ61: 0 | SOA61: 0 | SOB61: 0 | SOC61: 0 | SOD61: 0 | SOE61: 0 | SOF61: 0 | SOG61: 0 | SOH61: 0 | SOI61: 0 | SOJ61: 0 | SOK61: 0 | SOL61: 0 | SOM61: 0 | SON61: 0 | SOO61: 0 | SOP61: 0 | SOQ61: 0 | SOR61: 0 | SOS61: 0 | SOT61: 0 | SOU61: 0 | SOV61: 0 | SOW61: =SOW30 -> 0 | SOX61: 0 | SOY61: 0 | SOZ61: 0 | SPA61: 0 | SPB61: 0 | SPC61: 0 | SPD61: 0 | SPE61: 0 | SPF61: 0 | SPG61: 0 | SPH61: 0 | SPI61: 0 | SPJ61: 0 | SPK61: 0 | SPL61: 0 | SPM61: 0 | SPN61: 0 | SPO61: 0 | SPP61: 0 | SPQ61: 0 | SPR61: 0 | SPS61: 0 | SPT61: 0 | SPU61: 0 | SPV61: 0 | SPW61: 0 | SPX61: 0 | SPY61: 0 | SPZ61: 0 | SQA61: 0 | SQB61: 0 | SQC61: 0 | SQD61: 0 | SQE61: 0 | SQF61: 0 | SQG61: 0 | SQH61: 0 | SQI61: 0 | SQJ61: 0 | SQK61: 0 | SQL61: 0 | SQM61: 0 | SQN61: 0 | SQO61: 0 | SQP61: 0 | SQQ61: 0 | SQR61: 0 | SQS61: 0 | SQT61: 0 | SQU61: 0 | SQV61: 0 | SQW61: 0 | SQX61: 0 | SQY61: 0 | SQZ61: 0 | SRA61: 0 | SRB61: 0 | SRC61: 0 | SRD61: 0 | SRE61: 0 | SRF61: 0 | SRG61: 0 | SRH61: 0 | SRI61: =SRI30 -> 0 | SRJ61: 0 | SRK61: 0 | SRL61: 0 | SRM61: 0 | SRN61: 0 | SRO61: 0 | SRP61: 0 | SRQ61: 0 | SRR61: 0 | SRS61: 0 | SRT61: 0 | SRU61: 0 | SRV61: 0 | SRW61: 0 | SRX61: 0 | SRY61: 0 | SRZ61: 0 | SSA61: 0 | SSB61: 0 | SSC61: 0 | SSD61: 0 | SSE61: 0 | SSF61: 0 | SSG61: 0 | SSH61: 0 | SSI61: 0 | SSJ61: 0 | SSK61: 0 | SSL61: 0 | SSM61: 0 | SSN61: 0 | SSO61: 0 | SSP61: 0 | SSQ61: 0 | SSR61: 0 | SSS61: 0 | SST61: 0 | SSU61: 0 | SSV61: 0 | SSW61: 0 | SSX61: 0 | SSY61: 0 | SSZ61: 0 | STA61: 0 | STB61: 0 | STC61: 0 | STD61: 0 | STE61: 0 | STF61: 0 | STG61: 0 | STH61: 0 | STI61: 0 | STJ61: 0 | STK61: 0 | STL61: 0 | STM61: 0 | STN61: 0 | STO61: 0 | STP61: 0 | STQ61: 0 | STR61: 0 | STS61: 0 | STT61: 0 | STU61: =STU30 -> 0 | STV61: 0 | STW61: 0 | STX61: 0 | STY61: 0 | STZ61: 0 | SUA61: 0 | SUB61: 0 | SUC61: 0 | SUD61: 0 | SUE61: 0 | SUF61: 0 | SUG61: 0 | SUH61: 0 | SUI61: 0 | SUJ61: 0 | SUK61: 0 | SUL61: 0 | SUM61: 0 | SUN61: 0 | SUO61: 0 | SUP61: 0 | SUQ61: 0 | SUR61: 0 | SUS61: 0 | SUT61: 0 | SUU61: 0 | SUV61: 0 | SUW61: 0 | SUX61: 0 | SUY61: 0 | SUZ61: 0 | SVA61: 0 | SVB61: 0 | SVC61: 0 | SVD61: 0 | SVE61: 0 | SVF61: 0 | SVG61: 0 | SVH61: 0 | SVI61: 0 | SVJ61: 0 | SVK61: 0 | SVL61: 0 | SVM61: 0 | SVN61: 0 | SVO61: 0 | SVP61: 0 | SVQ61: 0 | SVR61: 0 | SVS61: 0 | SVT61: 0 | SVU61: 0 | SVV61: 0 | SVW61: 0 | SVX61: 0 | SVY61: 0 | SVZ61: 0 | SWA61: 0 | SWB61: 0 | SWC61: 0 | SWD61: 0 | SWE61: 0 | SWF61: 0 | SWG61: =SWG30 -> 0 | SWH61: 0 | SWI61: 0 | SWJ61: 0 | SWK61: 0 | SWL61: 0 | SWM61: 0 | SWN61: 0 | SWO61: 0 | SWP61: 0 | SWQ61: 0 | SWR61: 0 | SWS61: 0 | SWT61: 0 | SWU61: 0 | SWV61: 0 | SWW61: 0 | SWX61: 0 | SWY61: 0 | SWZ61: 0 | SXA61: 0 | SXB61: 0 | SXC61: 0 | SXD61: 0 | SXE61: 0 | SXF61: 0 | SXG61: 0 | SXH61: 0 | SXI61: 0 | SXJ61: 0 | SXK61: 0 | SXL61: 0 | SXM61: 0 | SXN61: 0 | SXO61: 0 | SXP61: 0 | SXQ61: 0 | SXR61: 0 | SXS61: 0 | SXT61: 0 | SXU61: 0 | SXV61: 0 | SXW61: 0 | SXX61: 0 | SXY61: 0 | SXZ61: 0 | SYA61: 0 | SYB61: 0 | SYC61: 0 | SYD61: 0 | SYE61: 0 | SYF61: 0 | SYG61: 0 | SYH61: 0 | SYI61: 0 | SYJ61: 0 | SYK61: 0 | SYL61: 0 | SYM61: 0 | SYN61: 0 | SYO61: 0 | SYP61: 0 | SYQ61: 0 | SYR61: 0 | SYS61: =SYS30 -> 0 | SYT61: 0 | SYU61: 0 | SYV61: 0 | SYW61: 0 | SYX61: 0 | SYY61: 0 | SYZ61: 0 | SZA61: 0 | SZB61: 0 | SZC61: 0 | SZD61: 0 | SZE61: 0 | SZF61: 0 | SZG61: 0 | SZH61: 0 | SZI61: 0 | SZJ61: 0 | SZK61: 0 | SZL61: 0 | SZM61: 0 | SZN61: 0 | SZO61: 0 | SZP61: 0 | SZQ61: 0 | SZR61: 0 | SZS61: 0 | SZT61: 0 | SZU61: 0 | SZV61: 0 | SZW61: 0 | SZX61: 0 | SZY61: 0 | SZZ61: 0 | TAA61: 0 | TAB61: 0 | TAC61: 0 | TAD61: 0 | TAE61: 0 | TAF61: 0 | TAG61: 0 | TAH61: 0 | TAI61: 0 | TAJ61: 0 | TAK61: 0 | TAL61: 0 | TAM61: 0 | TAN61: 0 | TAO61: 0 | TAP61: 0 | TAQ61: 0 | TAR61: 0 | TAS61: 0 | TAT61: 0 | TAU61: 0 | TAV61: 0 | TAW61: 0 | TAX61: 0 | TAY61: 0 | TAZ61: 0 | TBA61: 0 | TBB61: 0 | TBC61: 0 | TBD61: 0 | TBE61: =TBE30 -> 0 | TBF61: 0 | TBG61: 0 | TBH61: 0 | TBI61: 0 | TBJ61: 0 | TBK61: 0 | TBL61: 0 | TBM61: 0 | TBN61: 0 | TBO61: 0 | TBP61: 0 | TBQ61: 0 | TBR61: 0 | TBS61: 0 | TBT61: 0 | TBU61: 0 | TBV61: 0 | TBW61: 0 | TBX61: 0 | TBY61: 0 | TBZ61: 0 | TCA61: 0 | TCB61: 0 | TCC61: 0 | TCD61: 0 | TCE61: 0 | TCF61: 0 | TCG61: 0 | TCH61: 0 | TCI61: 0 | TCJ61: 0 | TCK61: 0 | TCL61: 0 | TCM61: 0 | TCN61: 0 | TCO61: 0 | TCP61: 0 | TCQ61: 0 | TCR61: 0 | TCS61: 0 | TCT61: 0 | TCU61: 0 | TCV61: 0 | TCW61: 0 | TCX61: 0 | TCY61: 0 | TCZ61: 0 | TDA61: 0 | TDB61: 0 | TDC61: 0 | TDD61: 0 | TDE61: 0 | TDF61: 0 | TDG61: 0 | TDH61: 0 | TDI61: 0 | TDJ61: 0 | TDK61: 0 | TDL61: 0 | TDM61: 0 | TDN61: 0 | TDO61: 0 | TDP61: 0 | TDQ61: =TDQ30 -> 0 | TDR61: 0 | TDS61: 0 | TDT61: 0 | TDU61: 0 | TDV61: 0 | TDW61: 0 | TDX61: 0 | TDY61: 0 | TDZ61: 0 | TEA61: 0 | TEB61: 0 | TEC61: 0 | TED61: 0 | TEE61: 0 | TEF61: 0 | TEG61: 0 | TEH61: 0 | TEI61: 0 | TEJ61: 0 | TEK61: 0 | TEL61: 0 | TEM61: 0 | TEN61: 0 | TEO61: 0 | TEP61: 0 | TEQ61: 0 | TER61: 0 | TES61: 0 | TET61: 0 | TEU61: 0 | TEV61: 0 | TEW61: 0 | TEX61: 0 | TEY61: 0 | TEZ61: 0 | TFA61: 0 | TFB61: 0 | TFC61: 0 | TFD61: 0 | TFE61: 0 | TFF61: 0 | TFG61: 0 | TFH61: 0 | TFI61: 0 | TFJ61: 0 | TFK61: 0 | TFL61: 0 | TFM61: 0 | TFN61: 0 | TFO61: 0 | TFP61: 0 | TFQ61: 0 | TFR61: 0 | TFS61: 0 | TFT61: 0 | TFU61: 0 | TFV61: 0 | TFW61: 0 | TFX61: 0 | TFY61: 0 | TFZ61: 0 | TGA61: 0 | TGB61: 0 | TGC61: =TGC30 -> 0 | TGD61: 0 | TGE61: 0 | TGF61: 0 | TGG61: 0 | TGH61: 0 | TGI61: 0 | TGJ61: 0 | TGK61: 0 | TGL61: 0 | TGM61: 0 | TGN61: 0 | TGO61: 0 | TGP61: 0 | TGQ61: 0 | TGR61: 0 | TGS61: 0 | TGT61: 0 | TGU61: 0 | TGV61: 0 | TGW61: 0 | TGX61: 0 | TGY61: 0 | TGZ61: 0 | THA61: 0 | THB61: 0 | THC61: 0 | THD61: 0 | THE61: 0 | THF61: 0 | THG61: 0 | THH61: 0 | THI61: 0 | THJ61: 0 | THK61: 0 | THL61: 0 | THM61: 0 | THN61: 0 | THO61: 0 | THP61: 0 | THQ61: 0 | THR61: 0 | THS61: 0 | THT61: 0 | THU61: 0 | THV61: 0 | THW61: 0 | THX61: 0 | THY61: 0 | THZ61: 0 | TIA61: 0 | TIB61: 0 | TIC61: 0 | TID61: 0 | TIE61: 0 | TIF61: 0 | TIG61: 0 | TIH61: 0 | TII61: 0 | TIJ61: 0 | TIK61: 0 | TIL61: 0 | TIM61: 0 | TIN61: 0 | TIO61: =TIO30 -> 0 | TIP61: 0 | TIQ61: 0 | TIR61: 0 | TIS61: 0 | TIT61: 0 | TIU61: 0 | TIV61: 0 | TIW61: 0 | TIX61: 0 | TIY61: 0 | TIZ61: 0 | TJA61: 0 | TJB61: 0 | TJC61: 0 | TJD61: 0 | TJE61: 0 | TJF61: 0 | TJG61: 0 | TJH61: 0 | TJI61: 0 | TJJ61: 0 | TJK61: 0 | TJL61: 0 | TJM61: 0 | TJN61: 0 | TJO61: 0 | TJP61: 0 | TJQ61: 0 | TJR61: 0 | TJS61: 0 | TJT61: 0 | TJU61: 0 | TJV61: 0 | TJW61: 0 | TJX61: 0 | TJY61: 0 | TJZ61: 0 | TKA61: 0 | TKB61: 0 | TKC61: 0 | TKD61: 0 | TKE61: 0 | TKF61: 0 | TKG61: 0 | TKH61: 0 | TKI61: 0 | TKJ61: 0 | TKK61: 0 | TKL61: 0 | TKM61: 0 | TKN61: 0 | TKO61: 0 | TKP61: 0 | TKQ61: 0 | TKR61: 0 | TKS61: 0 | TKT61: 0 | TKU61: 0 | TKV61: 0 | TKW61: 0 | TKX61: 0 | TKY61: 0 | TKZ61: 0 | TLA61: =TLA30 -> 0 | TLB61: 0 | TLC61: 0 | TLD61: 0 | TLE61: 0 | TLF61: 0 | TLG61: 0 | TLH61: 0 | TLI61: 0 | TLJ61: 0 | TLK61: 0 | TLL61: 0 | TLM61: 0 | TLN61: 0 | TLO61: 0 | TLP61: 0 | TLQ61: 0 | TLR61: 0 | TLS61: 0 | TLT61: 0 | TLU61: 0 | TLV61: 0 | TLW61: 0 | TLX61: 0 | TLY61: 0 | TLZ61: 0 | TMA61: 0 | TMB61: 0 | TMC61: 0 | TMD61: 0 | TME61: 0 | TMF61: 0 | TMG61: 0 | TMH61: 0 | TMI61: 0 | TMJ61: 0 | TMK61: 0 | TML61: 0 | TMM61: 0 | TMN61: 0 | TMO61: 0 | TMP61: 0 | TMQ61: 0 | TMR61: 0 | TMS61: 0 | TMT61: 0 | TMU61: 0 | TMV61: 0 | TMW61: 0 | TMX61: 0 | TMY61: 0 | TMZ61: 0 | TNA61: 0 | TNB61: 0 | TNC61: 0 | TND61: 0 | TNE61: 0 | TNF61: 0 | TNG61: 0 | TNH61: 0 | TNI61: 0 | TNJ61: 0 | TNK61: 0 | TNL61: 0 | TNM61: =TNM30 -> 0 | TNN61: 0 | TNO61: 0 | TNP61: 0 | TNQ61: 0 | TNR61: 0 | TNS61: 0 | TNT61: 0 | TNU61: 0 | TNV61: 0 | TNW61: 0 | TNX61: 0 | TNY61: 0 | TNZ61: 0 | TOA61: 0 | TOB61: 0 | TOC61: 0 | TOD61: 0 | TOE61: 0 | TOF61: 0 | TOG61: 0 | TOH61: 0 | TOI61: 0 | TOJ61: 0 | TOK61: 0 | TOL61: 0 | TOM61: 0 | TON61: 0 | TOO61: 0 | TOP61: 0 | TOQ61: 0 | TOR61: 0 | TOS61: 0 | TOT61: 0 | TOU61: 0 | TOV61: 0 | TOW61: 0 | TOX61: 0 | TOY61: 0 | TOZ61: 0 | TPA61: 0 | TPB61: 0 | TPC61: 0 | TPD61: 0 | TPE61: 0 | TPF61: 0 | TPG61: 0 | TPH61: 0 | TPI61: 0 | TPJ61: 0 | TPK61: 0 | TPL61: 0 | TPM61: 0 | TPN61: 0 | TPO61: 0 | TPP61: 0 | TPQ61: 0 | TPR61: 0 | TPS61: 0 | TPT61: 0 | TPU61: 0 | TPV61: 0 | TPW61: 0 | TPX61: 0 | TPY61: =TPY30 -> 0 | TPZ61: 0 | TQA61: 0 | TQB61: 0 | TQC61: 0 | TQD61: 0 | TQE61: 0 | TQF61: 0 | TQG61: 0 | TQH61: 0 | TQI61: 0 | TQJ61: 0 | TQK61: 0 | TQL61: 0 | TQM61: 0 | TQN61: 0 | TQO61: 0 | TQP61: 0 | TQQ61: 0 | TQR61: 0 | TQS61: 0 | TQT61: 0 | TQU61: 0 | TQV61: 0 | TQW61: 0 | TQX61: 0 | TQY61: 0 | TQZ61: 0 | TRA61: 0 | TRB61: 0 | TRC61: 0 | TRD61: 0 | TRE61: 0 | TRF61: 0 | TRG61: 0 | TRH61: 0 | TRI61: 0 | TRJ61: 0 | TRK61: 0 | TRL61: 0 | TRM61: 0 | TRN61: 0 | TRO61: 0 | TRP61: 0 | TRQ61: 0 | TRR61: 0 | TRS61: 0 | TRT61: 0 | TRU61: 0 | TRV61: 0 | TRW61: 0 | TRX61: 0 | TRY61: 0 | TRZ61: 0 | TSA61: 0 | TSB61: 0 | TSC61: 0 | TSD61: 0 | TSE61: 0 | TSF61: 0 | TSG61: 0 | TSH61: 0 | TSI61: 0 | TSJ61: 0 | TSK61: =TSK30 -> 0 | TSL61: 0 | TSM61: 0 | TSN61: 0 | TSO61: 0 | TSP61: 0 | TSQ61: 0 | TSR61: 0 | TSS61: 0 | TST61: 0 | TSU61: 0 | TSV61: 0 | TSW61: 0 | TSX61: 0 | TSY61: 0 | TSZ61: 0 | TTA61: 0 | TTB61: 0 | TTC61: 0 | TTD61: 0 | TTE61: 0 | TTF61: 0 | TTG61: 0 | TTH61: 0 | TTI61: 0 | TTJ61: 0 | TTK61: 0 | TTL61: 0 | TTM61: 0 | TTN61: 0 | TTO61: 0 | TTP61: 0 | TTQ61: 0 | TTR61: 0 | TTS61: 0 | TTT61: 0 | TTU61: 0 | TTV61: 0 | TTW61: 0 | TTX61: 0 | TTY61: 0 | TTZ61: 0 | TUA61: 0 | TUB61: 0 | TUC61: 0 | TUD61: 0 | TUE61: 0 | TUF61: 0 | TUG61: 0 | TUH61: 0 | TUI61: 0 | TUJ61: 0 | TUK61: 0 | TUL61: 0 | TUM61: 0 | TUN61: 0 | TUO61: 0 | TUP61: 0 | TUQ61: 0 | TUR61: 0 | TUS61: 0 | TUT61: 0 | TUU61: 0 | TUV61: 0 | TUW61: =TUW30 -> 0 | TUX61: 0 | TUY61: 0 | TUZ61: 0 | TVA61: 0 | TVB61: 0 | TVC61: 0 | TVD61: 0 | TVE61: 0 | TVF61: 0 | TVG61: 0 | TVH61: 0 | TVI61: 0 | TVJ61: 0 | TVK61: 0 | TVL61: 0 | TVM61: 0 | TVN61: 0 | TVO61: 0 | TVP61: 0 | TVQ61: 0 | TVR61: 0 | TVS61: 0 | TVT61: 0 | TVU61: 0 | TVV61: 0 | TVW61: 0 | TVX61: 0 | TVY61: 0 | TVZ61: 0 | TWA61: 0 | TWB61: 0 | TWC61: 0 | TWD61: 0 | TWE61: 0 | TWF61: 0 | TWG61: 0 | TWH61: 0 | TWI61: 0 | TWJ61: 0 | TWK61: 0 | TWL61: 0 | TWM61: 0 | TWN61: 0 | TWO61: 0 | TWP61: 0 | TWQ61: 0 | TWR61: 0 | TWS61: 0 | TWT61: 0 | TWU61: 0 | TWV61: 0 | TWW61: 0 | TWX61: 0 | TWY61: 0 | TWZ61: 0 | TXA61: 0 | TXB61: 0 | TXC61: 0 | TXD61: 0 | TXE61: 0 | TXF61: 0 | TXG61: 0 | TXH61: 0 | TXI61: =TXI30 -> 0 | TXJ61: 0 | TXK61: 0 | TXL61: 0 | TXM61: 0 | TXN61: 0 | TXO61: 0 | TXP61: 0 | TXQ61: 0 | TXR61: 0 | TXS61: 0 | TXT61: 0 | TXU61: 0 | TXV61: 0 | TXW61: 0 | TXX61: 0 | TXY61: 0 | TXZ61: 0 | TYA61: 0 | TYB61: 0 | TYC61: 0 | TYD61: 0 | TYE61: 0 | TYF61: 0 | TYG61: 0 | TYH61: 0 | TYI61: 0 | TYJ61: 0 | TYK61: 0 | TYL61: 0 | TYM61: 0 | TYN61: 0 | TYO61: 0 | TYP61: 0 | TYQ61: 0 | TYR61: 0 | TYS61: 0 | TYT61: 0 | TYU61: 0 | TYV61: 0 | TYW61: 0 | TYX61: 0 | TYY61: 0 | TYZ61: 0 | TZA61: 0 | TZB61: 0 | TZC61: 0 | TZD61: 0 | TZE61: 0 | TZF61: 0 | TZG61: 0 | TZH61: 0 | TZI61: 0 | TZJ61: 0 | TZK61: 0 | TZL61: 0 | TZM61: 0 | TZN61: 0 | TZO61: 0 | TZP61: 0 | TZQ61: 0 | TZR61: 0 | TZS61: 0 | TZT61: 0 | TZU61: =TZU30 -> 0 | TZV61: 0 | TZW61: 0 | TZX61: 0 | TZY61: 0 | TZZ61: 0 | UAA61: 0 | UAB61: 0 | UAC61: 0 | UAD61: 0 | UAE61: 0 | UAF61: 0 | UAG61: 0 | UAH61: 0 | UAI61: 0 | UAJ61: 0 | UAK61: 0 | UAL61: 0 | UAM61: 0 | UAN61: 0 | UAO61: 0 | UAP61: 0 | UAQ61: 0 | UAR61: 0 | UAS61: 0 | UAT61: 0 | UAU61: 0 | UAV61: 0 | UAW61: 0 | UAX61: 0 | UAY61: 0 | UAZ61: 0 | UBA61: 0 | UBB61: 0 | UBC61: 0 | UBD61: 0 | UBE61: 0 | UBF61: 0 | UBG61: 0 | UBH61: 0 | UBI61: 0 | UBJ61: 0 | UBK61: 0 | UBL61: 0 | UBM61: 0 | UBN61: 0 | UBO61: 0 | UBP61: 0 | UBQ61: 0 | UBR61: 0 | UBS61: 0 | UBT61: 0 | UBU61: 0 | UBV61: 0 | UBW61: 0 | UBX61: 0 | UBY61: 0 | UBZ61: 0 | UCA61: 0 | UCB61: 0 | UCC61: 0 | UCD61: 0 | UCE61: 0 | UCF61: 0 | UCG61: =UCG30 -> 0 | UCH61: 0 | UCI61: 0 | UCJ61: 0 | UCK61: 0 | UCL61: 0 | UCM61: 0 | UCN61: 0 | UCO61: 0 | UCP61: 0 | UCQ61: 0 | UCR61: 0 | UCS61: 0 | UCT61: 0 | UCU61: 0 | UCV61: 0 | UCW61: 0 | UCX61: 0 | UCY61: 0 | UCZ61: 0 | UDA61: 0 | UDB61: 0 | UDC61: 0 | UDD61: 0 | UDE61: 0 | UDF61: 0 | UDG61: 0 | UDH61: 0 | UDI61: 0 | UDJ61: 0 | UDK61: 0 | UDL61: 0 | UDM61: 0 | UDN61: 0 | UDO61: 0 | UDP61: 0 | UDQ61: 0 | UDR61: 0 | UDS61: 0 | UDT61: 0 | UDU61: 0 | UDV61: 0 | UDW61: 0 | UDX61: 0 | UDY61: 0 | UDZ61: 0 | UEA61: 0 | UEB61: 0 | UEC61: 0 | UED61: 0 | UEE61: 0 | UEF61: 0 | UEG61: 0 | UEH61: 0 | UEI61: 0 | UEJ61: 0 | UEK61: 0 | UEL61: 0 | UEM61: 0 | UEN61: 0 | UEO61: 0 | UEP61: 0 | UEQ61: 0 | UER61: 0 | UES61: =UES30 -> 0 | UET61: 0 | UEU61: 0 | UEV61: 0 | UEW61: 0 | UEX61: 0 | UEY61: 0 | UEZ61: 0 | UFA61: 0 | UFB61: 0 | UFC61: 0 | UFD61: 0 | UFE61: 0 | UFF61: 0 | UFG61: 0 | UFH61: 0 | UFI61: 0 | UFJ61: 0 | UFK61: 0 | UFL61: 0 | UFM61: 0 | UFN61: 0 | UFO61: 0 | UFP61: 0 | UFQ61: 0 | UFR61: 0 | UFS61: 0 | UFT61: 0 | UFU61: 0 | UFV61: 0 | UFW61: 0 | UFX61: 0 | UFY61: 0 | UFZ61: 0 | UGA61: 0 | UGB61: 0 | UGC61: 0 | UGD61: 0 | UGE61: 0 | UGF61: 0 | UGG61: 0 | UGH61: 0 | UGI61: 0 | UGJ61: 0 | UGK61: 0 | UGL61: 0 | UGM61: 0 | UGN61: 0 | UGO61: 0 | UGP61: 0 | UGQ61: 0 | UGR61: 0 | UGS61: 0 | UGT61: 0 | UGU61: 0 | UGV61: 0 | UGW61: 0 | UGX61: 0 | UGY61: 0 | UGZ61: 0 | UHA61: 0 | UHB61: 0 | UHC61: 0 | UHD61: 0 | UHE61: =UHE30 -> 0 | UHF61: 0 | UHG61: 0 | UHH61: 0 | UHI61: 0 | UHJ61: 0 | UHK61: 0 | UHL61: 0 | UHM61: 0 | UHN61: 0 | UHO61: 0 | UHP61: 0 | UHQ61: 0 | UHR61: 0 | UHS61: 0 | UHT61: 0 | UHU61: 0 | UHV61: 0 | UHW61: 0 | UHX61: 0 | UHY61: 0 | UHZ61: 0 | UIA61: 0 | UIB61: 0 | UIC61: 0 | UID61: 0 | UIE61: 0 | UIF61: 0 | UIG61: 0 | UIH61: 0 | UII61: 0 | UIJ61: 0 | UIK61: 0 | UIL61: 0 | UIM61: 0 | UIN61: 0 | UIO61: 0 | UIP61: 0 | UIQ61: 0 | UIR61: 0 | UIS61: 0 | UIT61: 0 | UIU61: 0 | UIV61: 0 | UIW61: 0 | UIX61: 0 | UIY61: 0 | UIZ61: 0 | UJA61: 0 | UJB61: 0 | UJC61: 0 | UJD61: 0 | UJE61: 0 | UJF61: 0 | UJG61: 0 | UJH61: 0 | UJI61: 0 | UJJ61: 0 | UJK61: 0 | UJL61: 0 | UJM61: 0 | UJN61: 0 | UJO61: 0 | UJP61: 0 | UJQ61: =UJQ30 -> 0 | UJR61: 0 | UJS61: 0 | UJT61: 0 | UJU61: 0 | UJV61: 0 | UJW61: 0 | UJX61: 0 | UJY61: 0 | UJZ61: 0 | UKA61: 0 | UKB61: 0 | UKC61: 0 | UKD61: 0 | UKE61: 0 | UKF61: 0 | UKG61: 0 | UKH61: 0 | UKI61: 0 | UKJ61: 0 | UKK61: 0 | UKL61: 0 | UKM61: 0 | UKN61: 0 | UKO61: 0 | UKP61: 0 | UKQ61: 0 | UKR61: 0 | UKS61: 0 | UKT61: 0 | UKU61: 0 | UKV61: 0 | UKW61: 0 | UKX61: 0 | UKY61: 0 | UKZ61: 0 | ULA61: 0 | ULB61: 0 | ULC61: 0 | ULD61: 0 | ULE61: 0 | ULF61: 0 | ULG61: 0 | ULH61: 0 | ULI61: 0 | ULJ61: 0 | ULK61: 0 | ULL61: 0 | ULM61: 0 | ULN61: 0 | ULO61: 0 | ULP61: 0 | ULQ61: 0 | ULR61: 0 | ULS61: 0 | ULT61: 0 | ULU61: 0 | ULV61: 0 | ULW61: 0 | ULX61: 0 | ULY61: 0 | ULZ61: 0 | UMA61: 0 | UMB61: 0 | UMC61: =UMC30 -> 0 | UMD61: 0 | UME61: 0 | UMF61: 0 | UMG61: 0 | UMH61: 0 | UMI61: 0 | UMJ61: 0 | UMK61: 0 | UML61: 0 | UMM61: 0 | UMN61: 0 | UMO61: 0 | UMP61: 0 | UMQ61: 0 | UMR61: 0 | UMS61: 0 | UMT61: 0 | UMU61: 0 | UMV61: 0 | UMW61: 0 | UMX61: 0 | UMY61: 0 | UMZ61: 0 | UNA61: 0 | UNB61: 0 | UNC61: 0 | UND61: 0 | UNE61: 0 | UNF61: 0 | UNG61: 0 | UNH61: 0 | UNI61: 0 | UNJ61: 0 | UNK61: 0 | UNL61: 0 | UNM61: 0 | UNN61: 0 | UNO61: 0 | UNP61: 0 | UNQ61: 0 | UNR61: 0 | UNS61: 0 | UNT61: 0 | UNU61: 0 | UNV61: 0 | UNW61: 0 | UNX61: 0 | UNY61: 0 | UNZ61: 0 | UOA61: 0 | UOB61: 0 | UOC61: 0 | UOD61: 0 | UOE61: 0 | UOF61: 0 | UOG61: 0 | UOH61: 0 | UOI61: 0 | UOJ61: 0 | UOK61: 0 | UOL61: 0 | UOM61: 0 | UON61: 0 | UOO61: =UOO30 -> 0 | UOP61: 0 | UOQ61: 0 | UOR61: 0 | UOS61: 0 | UOT61: 0 | UOU61: 0 | UOV61: 0 | UOW61: 0 | UOX61: 0 | UOY61: 0 | UOZ61: 0 | UPA61: 0 | UPB61: 0 | UPC61: 0 | UPD61: 0 | UPE61: 0 | UPF61: 0 | UPG61: 0 | UPH61: 0 | UPI61: 0 | UPJ61: 0 | UPK61: 0 | UPL61: 0 | UPM61: 0 | UPN61: 0 | UPO61: 0 | UPP61: 0 | UPQ61: 0 | UPR61: 0 | UPS61: 0 | UPT61: 0 | UPU61: 0 | UPV61: 0 | UPW61: 0 | UPX61: 0 | UPY61: 0 | UPZ61: 0 | UQA61: 0 | UQB61: 0 | UQC61: 0 | UQD61: 0 | UQE61: 0 | UQF61: 0 | UQG61: 0 | UQH61: 0 | UQI61: 0 | UQJ61: 0 | UQK61: 0 | UQL61: 0 | UQM61: 0 | UQN61: 0 | UQO61: 0 | UQP61: 0 | UQQ61: 0 | UQR61: 0 | UQS61: 0 | UQT61: 0 | UQU61: 0 | UQV61: 0 | UQW61: 0 | UQX61: 0 | UQY61: 0 | UQZ61: 0 | URA61: =URA30 -> 0 | URB61: 0 | URC61: 0 | URD61: 0 | URE61: 0 | URF61: 0 | URG61: 0 | URH61: 0 | URI61: 0 | URJ61: 0 | URK61: 0 | URL61: 0 | URM61: 0 | URN61: 0 | URO61: 0 | URP61: 0 | URQ61: 0 | URR61: 0 | URS61: 0 | URT61: 0 | URU61: 0 | URV61: 0 | URW61: 0 | URX61: 0 | URY61: 0 | URZ61: 0 | USA61: 0 | USB61: 0 | USC61: 0 | USD61: 0 | USE61: 0 | USF61: 0 | USG61: 0 | USH61: 0 | USI61: 0 | USJ61: 0 | USK61: 0 | USL61: 0 | USM61: 0 | USN61: 0 | USO61: 0 | USP61: 0 | USQ61: 0 | USR61: 0 | USS61: 0 | UST61: 0 | USU61: 0 | USV61: 0 | USW61: 0 | USX61: 0 | USY61: 0 | USZ61: 0 | UTA61: 0 | UTB61: 0 | UTC61: 0 | UTD61: 0 | UTE61: 0 | UTF61: 0 | UTG61: 0 | UTH61: 0 | UTI61: 0 | UTJ61: 0 | UTK61: 0 | UTL61: 0 | UTM61: =UTM30 -> 0 | UTN61: 0 | UTO61: 0 | UTP61: 0 | UTQ61: 0 | UTR61: 0 | UTS61: 0 | UTT61: 0 | UTU61: 0 | UTV61: 0 | UTW61: 0 | UTX61: 0 | UTY61: 0 | UTZ61: 0 | UUA61: 0 | UUB61: 0 | UUC61: 0 | UUD61: 0 | UUE61: 0 | UUF61: 0 | UUG61: 0 | UUH61: 0 | UUI61: 0 | UUJ61: 0 | UUK61: 0 | UUL61: 0 | UUM61: 0 | UUN61: 0 | UUO61: 0 | UUP61: 0 | UUQ61: 0 | UUR61: 0 | UUS61: 0 | UUT61: 0 | UUU61: 0 | UUV61: 0 | UUW61: 0 | UUX61: 0 | UUY61: 0 | UUZ61: 0 | UVA61: 0 | UVB61: 0 | UVC61: 0 | UVD61: 0 | UVE61: 0 | UVF61: 0 | UVG61: 0 | UVH61: 0 | UVI61: 0 | UVJ61: 0 | UVK61: 0 | UVL61: 0 | UVM61: 0 | UVN61: 0 | UVO61: 0 | UVP61: 0 | UVQ61: 0 | UVR61: 0 | UVS61: 0 | UVT61: 0 | UVU61: 0 | UVV61: 0 | UVW61: 0 | UVX61: 0 | UVY61: =UVY30 -> 0 | UVZ61: 0 | UWA61: 0 | UWB61: 0 | UWC61: 0 | UWD61: 0 | UWE61: 0 | UWF61: 0 | UWG61: 0 | UWH61: 0 | UWI61: 0 | UWJ61: 0 | UWK61: 0 | UWL61: 0 | UWM61: 0 | UWN61: 0 | UWO61: 0 | UWP61: 0 | UWQ61: 0 | UWR61: 0 | UWS61: 0 | UWT61: 0 | UWU61: 0 | UWV61: 0 | UWW61: 0 | UWX61: 0 | UWY61: 0 | UWZ61: 0 | UXA61: 0 | UXB61: 0 | UXC61: 0 | UXD61: 0 | UXE61: 0 | UXF61: 0 | UXG61: 0 | UXH61: 0 | UXI61: 0 | UXJ61: 0 | UXK61: 0 | UXL61: 0 | UXM61: 0 | UXN61: 0 | UXO61: 0 | UXP61: 0 | UXQ61: 0 | UXR61: 0 | UXS61: 0 | UXT61: 0 | UXU61: 0 | UXV61: 0 | UXW61: 0 | UXX61: 0 | UXY61: 0 | UXZ61: 0 | UYA61: 0 | UYB61: 0 | UYC61: 0 | UYD61: 0 | UYE61: 0 | UYF61: 0 | UYG61: 0 | UYH61: 0 | UYI61: 0 | UYJ61: 0 | UYK61: =UYK30 -> 0 | UYL61: 0 | UYM61: 0 | UYN61: 0 | UYO61: 0 | UYP61: 0 | UYQ61: 0 | UYR61: 0 | UYS61: 0 | UYT61: 0 | UYU61: 0 | UYV61: 0 | UYW61: 0 | UYX61: 0 | UYY61: 0 | UYZ61: 0 | UZA61: 0 | UZB61: 0 | UZC61: 0 | UZD61: 0 | UZE61: 0 | UZF61: 0 | UZG61: 0 | UZH61: 0 | UZI61: 0 | UZJ61: 0 | UZK61: 0 | UZL61: 0 | UZM61: 0 | UZN61: 0 | UZO61: 0 | UZP61: 0 | UZQ61: 0 | UZR61: 0 | UZS61: 0 | UZT61: 0 | UZU61: 0 | UZV61: 0 | UZW61: 0 | UZX61: 0 | UZY61: 0 | UZZ61: 0 | VAA61: 0 | VAB61: 0 | VAC61: 0 | VAD61: 0 | VAE61: 0 | VAF61: 0 | VAG61: 0 | VAH61: 0 | VAI61: 0 | VAJ61: 0 | VAK61: 0 | VAL61: 0 | VAM61: 0 | VAN61: 0 | VAO61: 0 | VAP61: 0 | VAQ61: 0 | VAR61: 0 | VAS61: 0 | VAT61: 0 | VAU61: 0 | VAV61: 0 | VAW61: =VAW30 -> 0 | VAX61: 0 | VAY61: 0 | VAZ61: 0 | VBA61: 0 | VBB61: 0 | VBC61: 0 | VBD61: 0 | VBE61: 0 | VBF61: 0 | VBG61: 0 | VBH61: 0 | VBI61: 0 | VBJ61: 0 | VBK61: 0 | VBL61: 0 | VBM61: 0 | VBN61: 0 | VBO61: 0 | VBP61: 0 | VBQ61: 0 | VBR61: 0 | VBS61: 0 | VBT61: 0 | VBU61: 0 | VBV61: 0 | VBW61: 0 | VBX61: 0 | VBY61: 0 | VBZ61: 0 | VCA61: 0 | VCB61: 0 | VCC61: 0 | VCD61: 0 | VCE61: 0 | VCF61: 0 | VCG61: 0 | VCH61: 0 | VCI61: 0 | VCJ61: 0 | VCK61: 0 | VCL61: 0 | VCM61: 0 | VCN61: 0 | VCO61: 0 | VCP61: 0 | VCQ61: 0 | VCR61: 0 | VCS61: 0 | VCT61: 0 | VCU61: 0 | VCV61: 0 | VCW61: 0 | VCX61: 0 | VCY61: 0 | VCZ61: 0 | VDA61: 0 | VDB61: 0 | VDC61: 0 | VDD61: 0 | VDE61: 0 | VDF61: 0 | VDG61: 0 | VDH61: 0 | VDI61: =VDI30 -> 0 | VDJ61: 0 | VDK61: 0 | VDL61: 0 | VDM61: 0 | VDN61: 0 | VDO61: 0 | VDP61: 0 | VDQ61: 0 | VDR61: 0 | VDS61: 0 | VDT61: 0 | VDU61: 0 | VDV61: 0 | VDW61: 0 | VDX61: 0 | VDY61: 0 | VDZ61: 0 | VEA61: 0 | VEB61: 0 | VEC61: 0 | VED61: 0 | VEE61: 0 | VEF61: 0 | VEG61: 0 | VEH61: 0 | VEI61: 0 | VEJ61: 0 | VEK61: 0 | VEL61: 0 | VEM61: 0 | VEN61: 0 | VEO61: 0 | VEP61: 0 | VEQ61: 0 | VER61: 0 | VES61: 0 | VET61: 0 | VEU61: 0 | VEV61: 0 | VEW61: 0 | VEX61: 0 | VEY61: 0 | VEZ61: 0 | VFA61: 0 | VFB61: 0 | VFC61: 0 | VFD61: 0 | VFE61: 0 | VFF61: 0 | VFG61: 0 | VFH61: 0 | VFI61: 0 | VFJ61: 0 | VFK61: 0 | VFL61: 0 | VFM61: 0 | VFN61: 0 | VFO61: 0 | VFP61: 0 | VFQ61: 0 | VFR61: 0 | VFS61: 0 | VFT61: 0 | VFU61: =VFU30 -> 0 | VFV61: 0 | VFW61: 0 | VFX61: 0 | VFY61: 0 | VFZ61: 0 | VGA61: 0 | VGB61: 0 | VGC61: 0 | VGD61: 0 | VGE61: 0 | VGF61: 0 | VGG61: 0 | VGH61: 0 | VGI61: 0 | VGJ61: 0 | VGK61: 0 | VGL61: 0 | VGM61: 0 | VGN61: 0 | VGO61: 0 | VGP61: 0 | VGQ61: 0 | VGR61: 0 | VGS61: 0 | VGT61: 0 | VGU61: 0 | VGV61: 0 | VGW61: 0 | VGX61: 0 | VGY61: 0 | VGZ61: 0 | VHA61: 0 | VHB61: 0 | VHC61: 0 | VHD61: 0 | VHE61: 0 | VHF61: 0 | VHG61: 0 | VHH61: 0 | VHI61: 0 | VHJ61: 0 | VHK61: 0 | VHL61: 0 | VHM61: 0 | VHN61: 0 | VHO61: 0 | VHP61: 0 | VHQ61: 0 | VHR61: 0 | VHS61: 0 | VHT61: 0 | VHU61: 0 | VHV61: 0 | VHW61: 0 | VHX61: 0 | VHY61: 0 | VHZ61: 0 | VIA61: 0 | VIB61: 0 | VIC61: 0 | VID61: 0 | VIE61: 0 | VIF61: 0 | VIG61: =VIG30 -> 0 | VIH61: 0 | VII61: 0 | VIJ61: 0 | VIK61: 0 | VIL61: 0 | VIM61: 0 | VIN61: 0 | VIO61: 0 | VIP61: 0 | VIQ61: 0 | VIR61: 0 | VIS61: 0 | VIT61: 0 | VIU61: 0 | VIV61: 0 | VIW61: 0 | VIX61: 0 | VIY61: 0 | VIZ61: 0 | VJA61: 0 | VJB61: 0 | VJC61: 0 | VJD61: 0 | VJE61: 0 | VJF61: 0 | VJG61: 0 | VJH61: 0 | VJI61: 0 | VJJ61: 0 | VJK61: 0 | VJL61: 0 | VJM61: 0 | VJN61: 0 | VJO61: 0 | VJP61: 0 | VJQ61: 0 | VJR61: 0 | VJS61: 0 | VJT61: 0 | VJU61: 0 | VJV61: 0 | VJW61: 0 | VJX61: 0 | VJY61: 0 | VJZ61: 0 | VKA61: 0 | VKB61: 0 | VKC61: 0 | VKD61: 0 | VKE61: 0 | VKF61: 0 | VKG61: 0 | VKH61: 0 | VKI61: 0 | VKJ61: 0 | VKK61: 0 | VKL61: 0 | VKM61: 0 | VKN61: 0 | VKO61: 0 | VKP61: 0 | VKQ61: 0 | VKR61: 0 | VKS61: =VKS30 -> 0 | VKT61: 0 | VKU61: 0 | VKV61: 0 | VKW61: 0 | VKX61: 0 | VKY61: 0 | VKZ61: 0 | VLA61: 0 | VLB61: 0 | VLC61: 0 | VLD61: 0 | VLE61: 0 | VLF61: 0 | VLG61: 0 | VLH61: 0 | VLI61: 0 | VLJ61: 0 | VLK61: 0 | VLL61: 0 | VLM61: 0 | VLN61: 0 | VLO61: 0 | VLP61: 0 | VLQ61: 0 | VLR61: 0 | VLS61: 0 | VLT61: 0 | VLU61: 0 | VLV61: 0 | VLW61: 0 | VLX61: 0 | VLY61: 0 | VLZ61: 0 | VMA61: 0 | VMB61: 0 | VMC61: 0 | VMD61: 0 | VME61: 0 | VMF61: 0 | VMG61: 0 | VMH61: 0 | VMI61: 0 | VMJ61: 0 | VMK61: 0 | VML61: 0 | VMM61: 0 | VMN61: 0 | VMO61: 0 | VMP61: 0 | VMQ61: 0 | VMR61: 0 | VMS61: 0 | VMT61: 0 | VMU61: 0 | VMV61: 0 | VMW61: 0 | VMX61: 0 | VMY61: 0 | VMZ61: 0 | VNA61: 0 | VNB61: 0 | VNC61: 0 | VND61: 0 | VNE61: =VNE30 -> 0 | VNF61: 0 | VNG61: 0 | VNH61: 0 | VNI61: 0 | VNJ61: 0 | VNK61: 0 | VNL61: 0 | VNM61: 0 | VNN61: 0 | VNO61: 0 | VNP61: 0 | VNQ61: 0 | VNR61: 0 | VNS61: 0 | VNT61: 0 | VNU61: 0 | VNV61: 0 | VNW61: 0 | VNX61: 0 | VNY61: 0 | VNZ61: 0 | VOA61: 0 | VOB61: 0 | VOC61: 0 | VOD61: 0 | VOE61: 0 | VOF61: 0 | VOG61: 0 | VOH61: 0 | VOI61: 0 | VOJ61: 0 | VOK61: 0 | VOL61: 0 | VOM61: 0 | VON61: 0 | VOO61: 0 | VOP61: 0 | VOQ61: 0 | VOR61: 0 | VOS61: 0 | VOT61: 0 | VOU61: 0 | VOV61: 0 | VOW61: 0 | VOX61: 0 | VOY61: 0 | VOZ61: 0 | VPA61: 0 | VPB61: 0 | VPC61: 0 | VPD61: 0 | VPE61: 0 | VPF61: 0 | VPG61: 0 | VPH61: 0 | VPI61: 0 | VPJ61: 0 | VPK61: 0 | VPL61: 0 | VPM61: 0 | VPN61: 0 | VPO61: 0 | VPP61: 0 | VPQ61: =VPQ30 -> 0 | VPR61: 0 | VPS61: 0 | VPT61: 0 | VPU61: 0 | VPV61: 0 | VPW61: 0 | VPX61: 0 | VPY61: 0 | VPZ61: 0 | VQA61: 0 | VQB61: 0 | VQC61: 0 | VQD61: 0 | VQE61: 0 | VQF61: 0 | VQG61: 0 | VQH61: 0 | VQI61: 0 | VQJ61: 0 | VQK61: 0 | VQL61: 0 | VQM61: 0 | VQN61: 0 | VQO61: 0 | VQP61: 0 | VQQ61: 0 | VQR61: 0 | VQS61: 0 | VQT61: 0 | VQU61: 0 | VQV61: 0 | VQW61: 0 | VQX61: 0 | VQY61: 0 | VQZ61: 0 | VRA61: 0 | VRB61: 0 | VRC61: 0 | VRD61: 0 | VRE61: 0 | VRF61: 0 | VRG61: 0 | VRH61: 0 | VRI61: 0 | VRJ61: 0 | VRK61: 0 | VRL61: 0 | VRM61: 0 | VRN61: 0 | VRO61: 0 | VRP61: 0 | VRQ61: 0 | VRR61: 0 | VRS61: 0 | VRT61: 0 | VRU61: 0 | VRV61: 0 | VRW61: 0 | VRX61: 0 | VRY61: 0 | VRZ61: 0 | VSA61: 0 | VSB61: 0 | VSC61: =VSC30 -> 0 | VSD61: 0 | VSE61: 0 | VSF61: 0 | VSG61: 0 | VSH61: 0 | VSI61: 0 | VSJ61: 0 | VSK61: 0 | VSL61: 0 | VSM61: 0 | VSN61: 0 | VSO61: 0 | VSP61: 0 | VSQ61: 0 | VSR61: 0 | VSS61: 0 | VST61: 0 | VSU61: 0 | VSV61: 0 | VSW61: 0 | VSX61: 0 | VSY61: 0 | VSZ61: 0 | VTA61: 0 | VTB61: 0 | VTC61: 0 | VTD61: 0 | VTE61: 0 | VTF61: 0 | VTG61: 0 | VTH61: 0 | VTI61: 0 | VTJ61: 0 | VTK61: 0 | VTL61: 0 | VTM61: 0 | VTN61: 0 | VTO61: 0 | VTP61: 0 | VTQ61: 0 | VTR61: 0 | VTS61: 0 | VTT61: 0 | VTU61: 0 | VTV61: 0 | VTW61: 0 | VTX61: 0 | VTY61: 0 | VTZ61: 0 | VUA61: 0 | VUB61: 0 | VUC61: 0 | VUD61: 0 | VUE61: 0 | VUF61: 0 | VUG61: 0 | VUH61: 0 | VUI61: 0 | VUJ61: 0 | VUK61: 0 | VUL61: 0 | VUM61: 0 | VUN61: 0 | VUO61: =VUO30 -> 0 | VUP61: 0 | VUQ61: 0 | VUR61: 0 | VUS61: 0 | VUT61: 0 | VUU61: 0 | VUV61: 0 | VUW61: 0 | VUX61: 0 | VUY61: 0 | VUZ61: 0 | VVA61: 0 | VVB61: 0 | VVC61: 0 | VVD61: 0 | VVE61: 0 | VVF61: 0 | VVG61: 0 | VVH61: 0 | VVI61: 0 | VVJ61: 0 | VVK61: 0 | VVL61: 0 | VVM61: 0 | VVN61: 0 | VVO61: 0 | VVP61: 0 | VVQ61: 0 | VVR61: 0 | VVS61: 0 | VVT61: 0 | VVU61: 0 | VVV61: 0 | VVW61: 0 | VVX61: 0 | VVY61: 0 | VVZ61: 0 | VWA61: 0 | VWB61: 0 | VWC61: 0 | VWD61: 0 | VWE61: 0 | VWF61: 0 | VWG61: 0 | VWH61: 0 | VWI61: 0 | VWJ61: 0 | VWK61: 0 | VWL61: 0 | VWM61: 0 | VWN61: 0 | VWO61: 0 | VWP61: 0 | VWQ61: 0 | VWR61: 0 | VWS61: 0 | VWT61: 0 | VWU61: 0 | VWV61: 0 | VWW61: 0 | VWX61: 0 | VWY61: 0 | VWZ61: 0 | VXA61: =VXA30 -> 0 | VXB61: 0 | VXC61: 0 | VXD61: 0 | VXE61: 0 | VXF61: 0 | VXG61: 0 | VXH61: 0 | VXI61: 0 | VXJ61: 0 | VXK61: 0 | VXL61: 0 | VXM61: 0 | VXN61: 0 | VXO61: 0 | VXP61: 0 | VXQ61: 0 | VXR61: 0 | VXS61: 0 | VXT61: 0 | VXU61: 0 | VXV61: 0 | VXW61: 0 | VXX61: 0 | VXY61: 0 | VXZ61: 0 | VYA61: 0 | VYB61: 0 | VYC61: 0 | VYD61: 0 | VYE61: 0 | VYF61: 0 | VYG61: 0 | VYH61: 0 | VYI61: 0 | VYJ61: 0 | VYK61: 0 | VYL61: 0 | VYM61: 0 | VYN61: 0 | VYO61: 0 | VYP61: 0 | VYQ61: 0 | VYR61: 0 | VYS61: 0 | VYT61: 0 | VYU61: 0 | VYV61: 0 | VYW61: 0 | VYX61: 0 | VYY61: 0 | VYZ61: 0 | VZA61: 0 | VZB61: 0 | VZC61: 0 | VZD61: 0 | VZE61: 0 | VZF61: 0 | VZG61: 0 | VZH61: 0 | VZI61: 0 | VZJ61: 0 | VZK61: 0 | VZL61: 0 | VZM61: =VZM30 -> 0 | VZN61: 0 | VZO61: 0 | VZP61: 0 | VZQ61: 0 | VZR61: 0 | VZS61: 0 | VZT61: 0 | VZU61: 0 | VZV61: 0 | VZW61: 0 | VZX61: 0 | VZY61: 0 | VZZ61: 0 | WAA61: 0 | WAB61: 0 | WAC61: 0 | WAD61: 0 | WAE61: 0 | WAF61: 0 | WAG61: 0 | WAH61: 0 | WAI61: 0 | WAJ61: 0 | WAK61: 0 | WAL61: 0 | WAM61: 0 | WAN61: 0 | WAO61: 0 | WAP61: 0 | WAQ61: 0 | WAR61: 0 | WAS61: 0 | WAT61: 0 | WAU61: 0 | WAV61: 0 | WAW61: 0 | WAX61: 0 | WAY61: 0 | WAZ61: 0 | WBA61: 0 | WBB61: 0 | WBC61: 0 | WBD61: 0 | WBE61: 0 | WBF61: 0 | WBG61: 0 | WBH61: 0 | WBI61: 0 | WBJ61: 0 | WBK61: 0 | WBL61: 0 | WBM61: 0 | WBN61: 0 | WBO61: 0 | WBP61: 0 | WBQ61: 0 | WBR61: 0 | WBS61: 0 | WBT61: 0 | WBU61: 0 | WBV61: 0 | WBW61: 0 | WBX61: 0 | WBY61: =WBY30 -> 0 | WBZ61: 0 | WCA61: 0 | WCB61: 0 | WCC61: 0 | WCD61: 0 | WCE61: 0 | WCF61: 0 | WCG61: 0 | WCH61: 0 | WCI61: 0 | WCJ61: 0 | WCK61: 0 | WCL61: 0 | WCM61: 0 | WCN61: 0 | WCO61: 0 | WCP61: 0 | WCQ61: 0 | WCR61: 0 | WCS61: 0 | WCT61: 0 | WCU61: 0 | WCV61: 0 | WCW61: 0 | WCX61: 0 | WCY61: 0 | WCZ61: 0 | WDA61: 0 | WDB61: 0 | WDC61: 0 | WDD61: 0 | WDE61: 0 | WDF61: 0 | WDG61: 0 | WDH61: 0 | WDI61: 0 | WDJ61: 0 | WDK61: 0 | WDL61: 0 | WDM61: 0 | WDN61: 0 | WDO61: 0 | WDP61: 0 | WDQ61: 0 | WDR61: 0 | WDS61: 0 | WDT61: 0 | WDU61: 0 | WDV61: 0 | WDW61: 0 | WDX61: 0 | WDY61: 0 | WDZ61: 0 | WEA61: 0 | WEB61: 0 | WEC61: 0 | WED61: 0 | WEE61: 0 | WEF61: 0 | WEG61: 0 | WEH61: 0 | WEI61: 0 | WEJ61: 0 | WEK61: =WEK30 -> 0 | WEL61: 0 | WEM61: 0 | WEN61: 0 | WEO61: 0 | WEP61: 0 | WEQ61: 0 | WER61: 0 | WES61: 0 | WET61: 0 | WEU61: 0 | WEV61: 0 | WEW61: 0 | WEX61: 0 | WEY61: 0 | WEZ61: 0 | WFA61: 0 | WFB61: 0 | WFC61: 0 | WFD61: 0 | WFE61: 0 | WFF61: 0 | WFG61: 0 | WFH61: 0 | WFI61: 0 | WFJ61: 0 | WFK61: 0 | WFL61: 0 | WFM61: 0 | WFN61: 0 | WFO61: 0 | WFP61: 0 | WFQ61: 0 | WFR61: 0 | WFS61: 0 | WFT61: 0 | WFU61: 0 | WFV61: 0 | WFW61: 0 | WFX61: 0 | WFY61: 0 | WFZ61: 0 | WGA61: 0 | WGB61: 0 | WGC61: 0 | WGD61: 0 | WGE61: 0 | WGF61: 0 | WGG61: 0 | WGH61: 0 | WGI61: 0 | WGJ61: 0 | WGK61: 0 | WGL61: 0 | WGM61: 0 | WGN61: 0 | WGO61: 0 | WGP61: 0 | WGQ61: 0 | WGR61: 0 | WGS61: 0 | WGT61: 0 | WGU61: 0 | WGV61: 0 | WGW61: =WGW30 -> 0 | WGX61: 0 | WGY61: 0 | WGZ61: 0 | WHA61: 0 | WHB61: 0 | WHC61: 0 | WHD61: 0 | WHE61: 0 | WHF61: 0 | WHG61: 0 | WHH61: 0 | WHI61: 0 | WHJ61: 0 | WHK61: 0 | WHL61: 0 | WHM61: 0 | WHN61: 0 | WHO61: 0 | WHP61: 0 | WHQ61: 0 | WHR61: 0 | WHS61: 0 | WHT61: 0 | WHU61: 0 | WHV61: 0 | WHW61: 0 | WHX61: 0 | WHY61: 0 | WHZ61: 0 | WIA61: 0 | WIB61: 0 | WIC61: 0 | WID61: 0 | WIE61: 0 | WIF61: 0 | WIG61: 0 | WIH61: 0 | WII61: 0 | WIJ61: 0 | WIK61: 0 | WIL61: 0 | WIM61: 0 | WIN61: 0 | WIO61: 0 | WIP61: 0 | WIQ61: 0 | WIR61: 0 | WIS61: 0 | WIT61: 0 | WIU61: 0 | WIV61: 0 | WIW61: 0 | WIX61: 0 | WIY61: 0 | WIZ61: 0 | WJA61: 0 | WJB61: 0 | WJC61: 0 | WJD61: 0 | WJE61: 0 | WJF61: 0 | WJG61: 0 | WJH61: 0 | WJI61: =WJI30 -> 0 | WJJ61: 0 | WJK61: 0 | WJL61: 0 | WJM61: 0 | WJN61: 0 | WJO61: 0 | WJP61: 0 | WJQ61: 0 | WJR61: 0 | WJS61: 0 | WJT61: 0 | WJU61: 0 | WJV61: 0 | WJW61: 0 | WJX61: 0 | WJY61: 0 | WJZ61: 0 | WKA61: 0 | WKB61: 0 | WKC61: 0 | WKD61: 0 | WKE61: 0 | WKF61: 0 | WKG61: 0 | WKH61: 0 | WKI61: 0 | WKJ61: 0 | WKK61: 0 | WKL61: 0 | WKM61: 0 | WKN61: 0 | WKO61: 0 | WKP61: 0 | WKQ61: 0 | WKR61: 0 | WKS61: 0 | WKT61: 0 | WKU61: 0 | WKV61: 0 | WKW61: 0 | WKX61: 0 | WKY61: 0 | WKZ61: 0 | WLA61: 0 | WLB61: 0 | WLC61: 0 | WLD61: 0 | WLE61: 0 | WLF61: 0 | WLG61: 0 | WLH61: 0 | WLI61: 0 | WLJ61: 0 | WLK61: 0 | WLL61: 0 | WLM61: 0 | WLN61: 0 | WLO61: 0 | WLP61: 0 | WLQ61: 0 | WLR61: 0 | WLS61: 0 | WLT61: 0 | WLU61: =WLU30 -> 0 | WLV61: 0 | WLW61: 0 | WLX61: 0 | WLY61: 0 | WLZ61: 0 | WMA61: 0 | WMB61: 0 | WMC61: 0 | WMD61: 0 | WME61: 0 | WMF61: 0 | WMG61: 0 | WMH61: 0 | WMI61: 0 | WMJ61: 0 | WMK61: 0 | WML61: 0 | WMM61: 0 | WMN61: 0 | WMO61: 0 | WMP61: 0 | WMQ61: 0 | WMR61: 0 | WMS61: 0 | WMT61: 0 | WMU61: 0 | WMV61: 0 | WMW61: 0 | WMX61: 0 | WMY61: 0 | WMZ61: 0 | WNA61: 0 | WNB61: 0 | WNC61: 0 | WND61: 0 | WNE61: 0 | WNF61: 0 | WNG61: 0 | WNH61: 0 | WNI61: 0 | WNJ61: 0 | WNK61: 0 | WNL61: 0 | WNM61: 0 | WNN61: 0 | WNO61: 0 | WNP61: 0 | WNQ61: 0 | WNR61: 0 | WNS61: 0 | WNT61: 0 | WNU61: 0 | WNV61: 0 | WNW61: 0 | WNX61: 0 | WNY61: 0 | WNZ61: 0 | WOA61: 0 | WOB61: 0 | WOC61: 0 | WOD61: 0 | WOE61: 0 | WOF61: 0 | WOG61: =WOG30 -> 0 | WOH61: 0 | WOI61: 0 | WOJ61: 0 | WOK61: 0 | WOL61: 0 | WOM61: 0 | WON61: 0 | WOO61: 0 | WOP61: 0 | WOQ61: 0 | WOR61: 0 | WOS61: 0 | WOT61: 0 | WOU61: 0 | WOV61: 0 | WOW61: 0 | WOX61: 0 | WOY61: 0 | WOZ61: 0 | WPA61: 0 | WPB61: 0 | WPC61: 0 | WPD61: 0 | WPE61: 0 | WPF61: 0 | WPG61: 0 | WPH61: 0 | WPI61: 0 | WPJ61: 0 | WPK61: 0 | WPL61: 0 | WPM61: 0 | WPN61: 0 | WPO61: 0 | WPP61: 0 | WPQ61: 0 | WPR61: 0 | WPS61: 0 | WPT61: 0 | WPU61: 0 | WPV61: 0 | WPW61: 0 | WPX61: 0 | WPY61: 0 | WPZ61: 0 | WQA61: 0 | WQB61: 0 | WQC61: 0 | WQD61: 0 | WQE61: 0 | WQF61: 0 | WQG61: 0 | WQH61: 0 | WQI61: 0 | WQJ61: 0 | WQK61: 0 | WQL61: 0 | WQM61: 0 | WQN61: 0 | WQO61: 0 | WQP61: 0 | WQQ61: 0 | WQR61: 0 | WQS61: =WQS30 -> 0 | WQT61: 0 | WQU61: 0 | WQV61: 0 | WQW61: 0 | WQX61: 0 | WQY61: 0 | WQZ61: 0 | WRA61: 0 | WRB61: 0 | WRC61: 0 | WRD61: 0 | WRE61: 0 | WRF61: 0 | WRG61: 0 | WRH61: 0 | WRI61: 0 | WRJ61: 0 | WRK61: 0 | WRL61: 0 | WRM61: 0 | WRN61: 0 | WRO61: 0 | WRP61: 0 | WRQ61: 0 | WRR61: 0 | WRS61: 0 | WRT61: 0 | WRU61: 0 | WRV61: 0 | WRW61: 0 | WRX61: 0 | WRY61: 0 | WRZ61: 0 | WSA61: 0 | WSB61: 0 | WSC61: 0 | WSD61: 0 | WSE61: 0 | WSF61: 0 | WSG61: 0 | WSH61: 0 | WSI61: 0 | WSJ61: 0 | WSK61: 0 | WSL61: 0 | WSM61: 0 | WSN61: 0 | WSO61: 0 | WSP61: 0 | WSQ61: 0 | WSR61: 0 | WSS61: 0 | WST61: 0 | WSU61: 0 | WSV61: 0 | WSW61: 0 | WSX61: 0 | WSY61: 0 | WSZ61: 0 | WTA61: 0 | WTB61: 0 | WTC61: 0 | WTD61: 0 | WTE61: =WTE30 -> 0 | WTF61: 0 | WTG61: 0 | WTH61: 0 | WTI61: 0 | WTJ61: 0 | WTK61: 0 | WTL61: 0 | WTM61: 0 | WTN61: 0 | WTO61: 0 | WTP61: 0 | WTQ61: 0 | WTR61: 0 | WTS61: 0 | WTT61: 0 | WTU61: 0 | WTV61: 0 | WTW61: 0 | WTX61: 0 | WTY61: 0 | WTZ61: 0 | WUA61: 0 | WUB61: 0 | WUC61: 0 | WUD61: 0 | WUE61: 0 | WUF61: 0 | WUG61: 0 | WUH61: 0 | WUI61: 0 | WUJ61: 0 | WUK61: 0 | WUL61: 0 | WUM61: 0 | WUN61: 0 | WUO61: 0 | WUP61: 0 | WUQ61: 0 | WUR61: 0 | WUS61: 0 | WUT61: 0 | WUU61: 0 | WUV61: 0 | WUW61: 0 | WUX61: 0 | WUY61: 0 | WUZ61: 0 | WVA61: 0 | WVB61: 0 | WVC61: 0 | WVD61: 0 | WVE61: 0 | WVF61: 0 | WVG61: 0 | WVH61: 0 | WVI61: 0 | WVJ61: 0 | WVK61: 0 | WVL61: 0 | WVM61: 0 | WVN61: 0 | WVO61: 0 | WVP61: 0 | WVQ61: =WVQ30 -> 0 | WVR61: 0 | WVS61: 0 | WVT61: 0 | WVU61: 0 | WVV61: 0 | WVW61: 0 | WVX61: 0 | WVY61: 0 | WVZ61: 0 | WWA61: 0 | WWB61: 0 | WWC61: 0 | WWD61: 0 | WWE61: 0 | WWF61: 0 | WWG61: 0 | WWH61: 0 | WWI61: 0 | WWJ61: 0 | WWK61: 0 | WWL61: 0 | WWM61: 0 | WWN61: 0 | WWO61: 0 | WWP61: 0 | WWQ61: 0 | WWR61: 0 | WWS61: 0 | WWT61: 0 | WWU61: 0 | WWV61: 0 | WWW61: 0 | WWX61: 0 | WWY61: 0 | WWZ61: 0 | WXA61: 0 | WXB61: 0 | WXC61: 0 | WXD61: 0 | WXE61: 0 | WXF61: 0 | WXG61: 0 | WXH61: 0 | WXI61: 0 | WXJ61: 0 | WXK61: 0 | WXL61: 0 | WXM61: 0 | WXN61: 0 | WXO61: 0 | WXP61: 0 | WXQ61: 0 | WXR61: 0 | WXS61: 0 | WXT61: 0 | WXU61: 0 | WXV61: 0 | WXW61: 0 | WXX61: 0 | WXY61: 0 | WXZ61: 0 | WYA61: 0 | WYB61: 0 | WYC61: =WYC30 -> 0 | WYD61: 0 | WYE61: 0 | WYF61: 0 | WYG61: 0 | WYH61: 0 | WYI61: 0 | WYJ61: 0 | WYK61: 0 | WYL61: 0 | WYM61: 0 | WYN61: 0 | WYO61: 0 | WYP61: 0 | WYQ61: 0 | WYR61: 0 | WYS61: 0 | WYT61: 0 | WYU61: 0 | WYV61: 0 | WYW61: 0 | WYX61: 0 | WYY61: 0 | WYZ61: 0 | WZA61: 0 | WZB61: 0 | WZC61: 0 | WZD61: 0 | WZE61: 0 | WZF61: 0 | WZG61: 0 | WZH61: 0 | WZI61: 0 | WZJ61: 0 | WZK61: 0 | WZL61: 0 | WZM61: 0 | WZN61: 0 | WZO61: 0 | WZP61: 0 | WZQ61: 0 | WZR61: 0 | WZS61: 0 | WZT61: 0 | WZU61: 0 | WZV61: 0 | WZW61: 0 | WZX61: 0 | WZY61: 0 | WZZ61: 0 | XAA61: 0 | XAB61: 0 | XAC61: 0 | XAD61: 0 | XAE61: 0 | XAF61: 0 | XAG61: 0 | XAH61: 0 | XAI61: 0 | XAJ61: 0 | XAK61: 0 | XAL61: 0 | XAM61: 0 | XAN61: 0 | XAO61: =XAO30 -> 0 | XAP61: 0 | XAQ61: 0 | XAR61: 0 | XAS61: 0 | XAT61: 0 | XAU61: 0 | XAV61: 0 | XAW61: 0 | XAX61: 0 | XAY61: 0 | XAZ61: 0 | XBA61: 0 | XBB61: 0 | XBC61: 0 | XBD61: 0 | XBE61: 0 | XBF61: 0 | XBG61: 0 | XBH61: 0 | XBI61: 0 | XBJ61: 0 | XBK61: 0 | XBL61: 0 | XBM61: 0 | XBN61: 0 | XBO61: 0 | XBP61: 0 | XBQ61: 0 | XBR61: 0 | XBS61: 0 | XBT61: 0 | XBU61: 0 | XBV61: 0 | XBW61: 0 | XBX61: 0 | XBY61: 0 | XBZ61: 0 | XCA61: 0 | XCB61: 0 | XCC61: 0 | XCD61: 0 | XCE61: 0 | XCF61: 0 | XCG61: 0 | XCH61: 0 | XCI61: 0 | XCJ61: 0 | XCK61: 0 | XCL61: 0 | XCM61: 0 | XCN61: 0 | XCO61: 0 | XCP61: 0 | XCQ61: 0 | XCR61: 0 | XCS61: 0 | XCT61: 0 | XCU61: 0 | XCV61: 0 | XCW61: 0 | XCX61: 0 | XCY61: 0 | XCZ61: 0 | XDA61: =XDA30 -> 0 | XDB61: 0 | XDC61: 0 | XDD61: 0 | XDE61: 0 | XDF61: 0 | XDG61: 0 | XDH61: 0 | XDI61: 0 | XDJ61: 0 | XDK61: 0 | XDL61: 0 | XDM61: 0 | XDN61: 0 | XDO61: 0 | XDP61: 0 | XDQ61: 0 | XDR61: 0 | XDS61: 0 | XDT61: 0 | XDU61: 0 | XDV61: 0 | XDW61: 0 | XDX61: 0 | XDY61: 0 | XDZ61: 0 | XEA61: 0 | XEB61: 0 | XEC61: 0 | XED61: 0 | XEE61: 0 | XEF61: 0 | XEG61: 0 | XEH61: 0 | XEI61: 0 | XEJ61: 0 | XEK61: 0 | XEL61: 0 | XEM61: 0 | XEN61: 0 | XEO61: 0 | XEP61: 0 | XEQ61: 0 | XER61: 0 | XES61: 0 | XET61: 0 | XEU61: 0 | XEV61: 0 | XEW61: 0 | XEX61: 0 | XEY61: 0 | XEZ61: 0 | XFA61: 0 | XFB61: 0 | XFC61: 0 | XFD61: 0
C62: Target Debt Service | F62: =F46 -> 1.35 | H62: =H58*H30/$F$62 -> 14800000 | I62: =I58*I30/$F$62 -> 14745600 | J62: 14690112 | K62: 14633514.24 | L62: 14575784.52 | M62: 14516900.22 | N62: 14456838.22 | O62: 14395574.98 | P62: 14333086.48 | Q62: 14269348.21 | R62: 14204335.18 | S62: 14138021.88 | T62: 14070382.32 | U62: 14001389.97 | V62: 13931017.76 | W62: 13859238.12 | X62: 13786022.88 | Y62: 13711343.34 | Z62: 13635170.21 | AA62: 13557473.61 | AB62: 0 | AC62: 0 | AD62: 0 | AE62: 0 | AF62: 0 | AG62: 0 | AH62: 0 | AI62: 0 | AJ62: 0 | AK62: 0 | AL62: 0 | AM62: 0 | AN62: 0 | AO62: 0 | AP62: 0 | AQ62: 0 | AR62: 0 | AS62: 0 | AT62: 0 | AU62: 0 | AV62: 0 | AW62: 0 | AX62: 0 | AY62: 0 | AZ62: 0 | BA62: 0 | BB62: 0 | BC62: 0 | BD62: 0 | BE62: 0
C63: NPV of Debt Service | F63: =F52+F53 -> 0.045 | G63: =NPV(F63,H62:BE62) -> 186134804.2
C65: Uses of Funds
D66: Capital Expenditures | G66: =F13 -> 450000000
D67: Development Fee
D68: IDC, Fees, DSRA
D69: Total Project Cost | G69: =SUM(G66:G68) -> 450000000
C71: Sources of Funds | H71: Debt/Cap | I71: Amount | J71: DSCR
D72: Debt Funding | G72: =MIN(I72:J72) -> 186134804.2 | H72: =F45 -> 0.8 | I72: =H72*G69 -> 360000000 | J72: =G63 -> 186134804.2
D73: Equity Funding | G73: =G69-G72 -> 263865195.8
D74: Total Sources | G74: =G72+G73 -> 450000000
D76: CFADS | H76: =H30*H58 -> 19980000 | I76: =I30*I58 -> 19906560 | J76: 19831651.2 | K76: 19755244.22 | L76: 19677309.11 | M76: 19597815.29 | N76: 19516731.6 | O76: 19434026.23 | P76: 19349666.75 | Q76: 19263620.09 | R76: 19175852.49 | S76: 19086329.54 | T76: 18995016.13 | U76: 18901876.45 | V76: 18806873.98 | W76: 18709971.46 | X76: 18611130.89 | Y76: 18510313.51 | Z76: 18407479.78 | AA76: 18302589.37 | AB76: 0 | AC76: 0 | AD76: 0 | AE76: 0 | AF76: 0 | AG76: 0 | AH76: 0 | AI76: 0 | AJ76: 0 | AK76: 0 | AL76: 0 | AM76: 0 | AN76: 0 | AO76: 0 | AP76: 0 | AQ76: 0 | AR76: 0 | AS76: 0 | AT76: 0 | AU76: 0 | AV76: 0 | AW76: 0 | AX76: 0 | AY76: 0 | AZ76: 0 | BA76: 0 | BB76: 0 | BC76: 0 | BD76: 0 | BE76: 0
D77: PV CFADS | F77: =F63 -> 0.045 | G77: =NPV(F77,H76:BE76) -> 251281985.7
D78: Debt Applied | G78: =G72 -> 186134804.2
D79: DSCR/LLCR Applied | G79: =G77/G78 -> 1.35
D80: Debt Service Applied | F80: =NPV(F77,H80:BE80) -> 186134804.2 | G80: =G79 -> 1.35 | H80: =H30/$G$80*H58 -> 14800000 | I80: =I30/$G$80*I58 -> 14745600 | J80: 14690112 | K80: 14633514.24 | L80: 14575784.52 | M80: 14516900.22 | N80: 14456838.22 | O80: 14395574.98 | P80: 14333086.48 | Q80: 14269348.21 | R80: 14204335.18 | S80: 14138021.88 | T80: 14070382.32 | U80: 14001389.97 | V80: 13931017.76 | W80: 13859238.12 | X80: 13786022.88 | Y80: 13711343.34 | Z80: 13635170.21 | AA80: 13557473.61 | AB80: 0 | AC80: 0 | AD80: 0 | AE80: 0 | AF80: 0 | AG80: 0 | AH80: 0 | AI80: 0 | AJ80: 0 | AK80: 0 | AL80: 0 | AM80: 0 | AN80: 0 | AO80: 0 | AP80: 0 | AQ80: 0 | AR80: 0 | AS80: 0 | AT80: 0 | AU80: 0 | AV80: 0 | AW80: 0 | AX80: 0 | AY80: 0 | AZ80: 0 | BA80: 0 | BB80: 0 | BC80: 0 | BD80: 0 | BE80: 0
C82: Debt Schedule
D83: Opening Balance | H83: =G85 -> 186134804.2 | I83: =H85 -> 179710870.4 | J83: 173052259.5 | K83: 166149499.2 | L83: 158992712.5 | M83: 151571600 | N83: 143875421.8 | O83: 135892977.5 | P83: 127612586.5 | Q83: 119022066.5 | R83: 110108711.2 | S83: 100859268.1 | T83: 91259913.24 | U83: 81296227.01 | V83: 70953167.26 | W83: 60215042.03 | X83: 49065480.8 | Y83: 37487404.55 | Z83: 25462994.42 | AA83: 12973658.96 | AB83: 2.328306437e-07 | AC83: 2.433080226e-07 | AD83: 2.542568836e-07 | AE83: 2.656984434e-07 | AF83: 2.776548734e-07 | AG83: 2.901493427e-07 | AH83: 3.032060631e-07 | AI83: 3.168503359e-07 | AJ83: 3.31108601e-07 | AK83: 3.460084881e-07 | AL83: 3.6157887e-07 | AM83: 3.778499192e-07 | AN83: 3.948531656e-07 | AO83: 4.12621558e-07 | AP83: 4.311895281e-07 | AQ83: 4.505930569e-07 | AR83: 4.708697444e-07 | AS83: 4.920588829e-07 | AT83: 5.142015327e-07 | AU83: 5.373406016e-07 | AV83: 5.615209287e-07 | AW83: 5.867893705e-07 | AX83: 6.131948922e-07 | AY83: 6.407886623e-07 | AZ83: 6.696241521e-07 | BA83: 6.99757239e-07 | BB83: 7.312463147e-07 | BC83: 7.641523989e-07 | BD83: 7.985392568e-07 | BE83: 8.344735234e-07
D84: Less: Repayment | H84: =H80-H86 -> 6423933.811 | I84: =I80-I86 -> 6658610.833 | J84: 6902760.32 | K84: 7156786.775 | L84: 7421112.464 | M84: 7696178.216 | N84: 7982444.24 | O84: 8280390.995 | P84: 8590520.089 | Q84: 8913355.223 | R84: 9249443.172 | S84: 9599354.819 | T84: 9963686.223 | U84: 10343059.75 | V84: 10738125.24 | W84: 11149561.23 | X84: 11578076.25 | Y84: 12024410.14 | Z84: 12489335.46 | AA84: 12973658.96 | AB84: -1.047737896e-08 | AC84: -1.094886102e-08 | AD84: -1.144155976e-08 | AE84: -1.195642995e-08 | AF84: -1.24944693e-08 | AG84: -1.305672042e-08 | AH84: -1.364427284e-08 | AI84: -1.425826512e-08 | AJ84: -1.489988705e-08 | AK84: -1.557038196e-08 | AL84: -1.627104915e-08 | AM84: -1.700324636e-08 | AN84: -1.776839245e-08 | AO84: -1.856797011e-08 | AP84: -1.940352877e-08 | AQ84: -2.027668756e-08 | AR84: -2.11891385e-08 | AS84: -2.214264973e-08 | AT84: -2.313906897e-08 | AU84: -2.418032707e-08 | AV84: -2.526844179e-08 | AW84: -2.640552167e-08 | AX84: -2.759377015e-08 | AY84: -2.88354898e-08 | AZ84: -3.013308685e-08 | BA84: -3.148907575e-08 | BB84: -3.290608416e-08 | BC84: -3.438685795e-08 | BD84: -3.593426656e-08 | BE84: -3.755130855e-08
D85: Closing Balance | G85: =G72 -> 186134804.2 | H85: =H83-H84 -> 179710870.4 | I85: =I83-I84 -> 173052259.5 | J85: 166149499.2 | K85: 158992712.5 | L85: 151571600 | M85: 143875421.8 | N85: 135892977.5 | O85: 127612586.5 | P85: 119022066.5 | Q85: 110108711.2 | R85: 100859268.1 | S85: 91259913.24 | T85: 81296227.01 | U85: 70953167.26 | V85: 60215042.03 | W85: 49065480.8 | X85: 37487404.55 | Y85: 25462994.42 | Z85: 12973658.96 | AA85: 2.328306437e-07 | AB85: 2.433080226e-07 | AC85: 2.542568836e-07 | AD85: 2.656984434e-07 | AE85: 2.776548734e-07 | AF85: 2.901493427e-07 | AG85: 3.032060631e-07 | AH85: 3.168503359e-07 | AI85: 3.31108601e-07 | AJ85: 3.460084881e-07 | AK85: 3.6157887e-07 | AL85: 3.778499192e-07 | AM85: 3.948531656e-07 | AN85: 4.12621558e-07 | AO85: 4.311895281e-07 | AP85: 4.505930569e-07 | AQ85: 4.708697444e-07 | AR85: 4.920588829e-07 | AS85: 5.142015327e-07 | AT85: 5.373406016e-07 | AU85: 5.615209287e-07 | AV85: 5.867893705e-07 | AW85: 6.131948922e-07 | AX85: 6.407886623e-07 | AY85: 6.696241521e-07 | AZ85: 6.99757239e-07 | BA85: 7.312463147e-07 | BB85: 7.641523989e-07 | BC85: 7.985392568e-07 | BD85: 8.344735234e-07 | BE85: 8.72024832e-07
D86: Interest Expense | F86: =F77 -> 0.045 | H86: =$F$86*H83 -> 8376066.189 | I86: =$F$86*I83 -> 8086989.167 | J86: 7787351.68 | K86: 7476727.465 | L86: 7154672.06 | M86: 6820722 | N86: 6474393.98 | O86: 6115183.989 | P86: 5742566.394 | Q86: 5355992.99 | R86: 4954892.005 | S86: 4538667.062 | T86: 4106696.096 | U86: 3658330.216 | V86: 3192892.527 | W86: 2709676.891 | X86: 2207946.636 | Y86: 1686933.205 | Z86: 1145834.749 | AA86: 583814.6531 | AB86: 1.047737896e-08 | AC86: 1.094886102e-08 | AD86: 1.144155976e-08 | AE86: 1.195642995e-08 | AF86: 1.24944693e-08 | AG86: 1.305672042e-08 | AH86: 1.364427284e-08 | AI86: 1.425826512e-08 | AJ86: 1.489988705e-08 | AK86: 1.557038196e-08 | AL86: 1.627104915e-08 | AM86: 1.700324636e-08 | AN86: 1.776839245e-08 | AO86: 1.856797011e-08 | AP86: 1.940352877e-08 | AQ86: 2.027668756e-08 | AR86: 2.11891385e-08 | AS86: 2.214264973e-08 | AT86: 2.313906897e-08 | AU86: 2.418032707e-08 | AV86: 2.526844179e-08 | AW86: 2.640552167e-08 | AX86: 2.759377015e-08 | AY86: 2.88354898e-08 | AZ86: 3.013308685e-08 | BA86: 3.148907575e-08 | BB86: 3.290608416e-08 | BC86: 3.438685795e-08 | BD86: 3.593426656e-08 | BE86: 3.755130855e-08
C88: Cash Flow
D89: EBITDA/CFADS | H89: =H30 -> 19980000 | I89: 19906560 | J89: 19831651.2 | K89: 19755244.22 | L89: 19677309.11 | M89: 19597815.29 | N89: 19516731.6 | O89: 19434026.23 | P89: 19349666.75 | Q89: 19263620.09 | R89: 19175852.49 | S89: 19086329.54 | T89: 18995016.13 | U89: 18901876.45 | V89: 18806873.98 | W89: 18709971.46 | X89: 18611130.89 | Y89: 18510313.51 | Z89: 18407479.78 | AA89: 18302589.37 | AB89: 18195601.16 | AC89: 18086473.19 | AD89: 17975162.65 | AE89: 17861625.9 | AF89: 17745818.42 | AG89: 17627694.79 | AH89: 17507208.68 | AI89: 17384312.86 | AJ89: 17258959.11 | AK89: 17131098.3 | AL89: 0 | AM89: 0 | AN89: =AN30 -> 0 | AO89: 0 | AP89: 0 | AQ89: 0 | AR89: 0 | AS89: 0 | AT89: 0 | AU89: 0 | AV89: 0 | AW89: 0 | AX89: 0 | AY89: 0 | AZ89: 0 | BA89: 0 | BB89: 0 | BC89: 0 | BD89: 0 | BE89: 0
D90: Interest Expense | H90: =H86 -> 8376066.189 | I90: 8086989.167 | J90: 7787351.68 | K90: 7476727.465 | L90: 7154672.06 | M90: 6820722 | N90: 6474393.98 | O90: 6115183.989 | P90: 5742566.394 | Q90: 5355992.99 | R90: 4954892.005 | S90: 4538667.062 | T90: 4106696.096 | U90: 3658330.216 | V90: 3192892.527 | W90: 2709676.891 | X90: 2207946.636 | Y90: 1686933.205 | Z90: 1145834.749 | AA90: 583814.6531 | AB90: 1.047737896e-08 | AC90: 1.094886102e-08 | AD90: 1.144155976e-08 | AE90: 1.195642995e-08 | AF90: 1.24944693e-08 | AG90: 1.305672042e-08 | AH90: 1.364427284e-08 | AI90: 1.425826512e-08 | AJ90: 1.489988705e-08 | AK90: 1.557038196e-08 | AL90: 1.627104915e-08 | AM90: 1.700324636e-08 | AN90: =AN86 -> 1.776839245e-08 | AO90: 1.856797011e-08 | AP90: 1.940352877e-08 | AQ90: 2.027668756e-08 | AR90: 2.11891385e-08 | AS90: 2.214264973e-08 | AT90: 2.313906897e-08 | AU90: 2.418032707e-08 | AV90: 2.526844179e-08 | AW90: 2.640552167e-08 | AX90: 2.759377015e-08 | AY90: 2.88354898e-08 | AZ90: 3.013308685e-08 | BA90: 3.148907575e-08 | BB90: 3.290608416e-08 | BC90: 3.438685795e-08 | BD90: 3.593426656e-08 | BE90: 3.755130855e-08
D91: Debt Repayment | H91: =H84 -> 6423933.811 | I91: 6658610.833 | J91: 6902760.32 | K91: 7156786.775 | L91: 7421112.464 | M91: 7696178.216 | N91: 7982444.24 | O91: 8280390.995 | P91: 8590520.089 | Q91: 8913355.223 | R91: 9249443.172 | S91: 9599354.819 | T91: 9963686.223 | U91: 10343059.75 | V91: 10738125.24 | W91: 11149561.23 | X91: 11578076.25 | Y91: 12024410.14 | Z91: 12489335.46 | AA91: 12973658.96 | AB91: -1.047737896e-08 | AC91: -1.094886102e-08 | AD91: -1.144155976e-08 | AE91: -1.195642995e-08 | AF91: -1.24944693e-08 | AG91: -1.305672042e-08 | AH91: -1.364427284e-08 | AI91: -1.425826512e-08 | AJ91: -1.489988705e-08 | AK91: -1.557038196e-08 | AL91: -1.627104915e-08 | AM91: -1.700324636e-08 | AN91: =AN84 -> -1.776839245e-08 | AO91: -1.856797011e-08 | AP91: -1.940352877e-08 | AQ91: -2.027668756e-08 | AR91: -2.11891385e-08 | AS91: -2.214264973e-08 | AT91: -2.313906897e-08 | AU91: -2.418032707e-08 | AV91: -2.526844179e-08 | AW91: -2.640552167e-08 | AX91: -2.759377015e-08 | AY91: -2.88354898e-08 | AZ91: -3.013308685e-08 | BA91: -3.148907575e-08 | BB91: -3.290608416e-08 | BC91: -3.438685795e-08 | BD91: -3.593426656e-08 | BE91: -3.755130855e-08
D92: Equity Cash Flow | H92: =H89-H90-H91 -> 5180000 | I92: =I89-I90-I91 -> 5160960 | J92: 5141539.2 | K92: 5121729.984 | L92: 5101524.584 | M92: 5080915.075 | N92: 5059893.377 | O92: 5038451.244 | P92: 5016580.269 | Q92: 4994271.875 | R92: 4971517.312 | S92: 4948307.658 | T92: 4924633.812 | U92: 4900486.488 | V92: 4875856.218 | W92: 4850733.342 | X92: 4825108.009 | Y92: 4798970.169 | Z92: 4772309.572 | AA92: 4745115.764 | AB92: 18195601.16 | AC92: 18086473.19 | AD92: 17975162.65 | AE92: 17861625.9 | AF92: 17745818.42 | AG92: 17627694.79 | AH92: 17507208.68 | AI92: 17384312.86 | AJ92: 17258959.11 | AK92: 17131098.3 | AL92: 0 | AM92: 0 | AN92: 0 | AO92: 0 | AP92: 0 | AQ92: 0 | AR92: 0 | AS92: 0 | AT92: 0 | AU92: 0 | AV92: 0 | AW92: 0 | AX92: 0 | AY92: 0 | AZ92: 0 | BA92: 0 | BB92: 0 | BC92: 0 | BD92: 0 | BE92: 0
D93: Cash Equity Investment | G93: =-G73 -> -263865195.8 | H93: =H92 -> 5180000 | I93: =I92 -> 5160960 | J93: 5141539.2 | K93: 5121729.984 | L93: 5101524.584 | M93: 5080915.075 | N93: 5059893.377 | O93: 5038451.244 | P93: 5016580.269 | Q93: 4994271.875 | R93: 4971517.312 | S93: 4948307.658 | T93: 4924633.812 | U93: 4900486.488 | V93: 4875856.218 | W93: 4850733.342 | X93: 4825108.009 | Y93: 4798970.169 | Z93: 4772309.572 | AA93: 4745115.764 | AB93: 18195601.16 | AC93: 18086473.19 | AD93: 17975162.65 | AE93: 17861625.9 | AF93: 17745818.42 | AG93: 17627694.79 | AH93: 17507208.68 | AI93: 17384312.86 | AJ93: 17258959.11 | AK93: 17131098.3 | AL93: 0 | AM93: 0 | AN93: 0 | AO93: 0 | AP93: 0 | AQ93: 0 | AR93: 0 | AS93: 0 | AT93: 0 | AU93: 0 | AV93: 0 | AW93: 0 | AX93: 0 | AY93: 0 | AZ93: 0 | BA93: 0 | BB93: 0 | BC93: 0 | BD93: 0 | BE93: 0
D95: Equity IRR | G95: =IRR(93:93) -> 0.00231051849
D96: NPV at Target | F96: =F34 -> 0.1 | G96: =NPV(F96,G93:BE93) -> -186093215.6
D98: Carrying Charge Rate
D100: CFADS | H100: =H30 -> 19980000 | I100: =I30 -> 19906560 | J100: 19831651.2 | K100: 19755244.22 | L100: 19677309.11 | M100: 19597815.29 | N100: 19516731.6 | O100: 19434026.23 | P100: 19349666.75 | Q100: 19263620.09 | R100: 19175852.49 | S100: 19086329.54 | T100: 18995016.13 | U100: 18901876.45 | V100: 18806873.98 | W100: 18709971.46 | X100: 18611130.89 | Y100: 18510313.51 | Z100: 18407479.78 | AA100: 18302589.37 | AB100: 18195601.16 | AC100: 18086473.19 | AD100: 17975162.65 | AE100: 17861625.9 | AF100: 17745818.42 | AG100: 17627694.79 | AH100: 17507208.68 | AI100: 17384312.86 | AJ100: 17258959.11 | AK100: 17131098.3 | AL100: 0 | AM100: 0 | AN100: 0 | AO100: 0 | AP100: 0 | AQ100: 0 | AR100: 0 | AS100: 0 | AT100: 0 | AU100: 0 | AV100: 0 | AW100: 0 | AX100: 0 | AY100: 0 | AZ100: 0 | BA100: 0 | BB100: 0 | BC100: 0 | BD100: 0 | BE100: 0
D101: Repayment Switch | H101: =H58 -> TRUE | I101: =I58 -> TRUE | J101: TRUE | K101: TRUE | L101: TRUE | M101: TRUE | N101: TRUE | O101: TRUE | P101: TRUE | Q101: TRUE | R101: TRUE | S101: TRUE | T101: TRUE | U101: TRUE | V101: TRUE | W101: TRUE | X101: TRUE | Y101: TRUE | Z101: TRUE | AA101: TRUE | AB101: FALSE | AC101: FALSE | AD101: FALSE | AE101: FALSE | AF101: FALSE | AG101: FALSE | AH101: FALSE | AI101: FALSE | AJ101: FALSE | AK101: FALSE | AL101: FALSE | AM101: FALSE | AN101: FALSE | AO101: FALSE | AP101: FALSE | AQ101: FALSE | AR101: FALSE | AS101: FALSE | AT101: FALSE | AU101: FALSE | AV101: FALSE | AW101: FALSE | AX101: FALSE | AY101: FALSE | AZ101: FALSE | BA101: FALSE | BB101: FALSE | BC101: FALSE | BD101: FALSE | BE101: FALSE
D102: CFADS over Repayment Period
D104: DSCR | H104: =H89/(H90+H91) -> 1.35 | I104: =I89/(I90+I91) -> 1.35 | J104: 1.35 | K104: 1.35 | L104: 1.35 | M104: 1.35 | N104: 1.35 | O104: 1.35 | P104: 1.35 | Q104: 1.35 | R104: 1.35 | S104: 1.35 | T104: 1.35 | U104: 1.35 | V104: 1.35 | W104: 1.35 | X104: 1.35 | Y104: 1.35 | Z104: 1.35 | AA104: 1.35
D105: LLCR | F105: =F77 -> 0.045
D106: PLCR | F106: =F105 -> 0.045 | G106: =NPV(F106,100:100)/G72 -> 1.662348383
D108: Debt Repayment | H108: =H84 -> 6423933.811 | I108: =I84 -> 6658610.833 | J108: 6902760.32 | K108: 7156786.775 | L108: 7421112.464 | M108: 7696178.216 | N108: 7982444.24 | O108: 8280390.995 | P108: 8590520.089 | Q108: 8913355.223 | R108: 9249443.172 | S108: 9599354.819 | T108: 9963686.223 | U108: 10343059.75 | V108: 10738125.24 | W108: 11149561.23 | X108: 11578076.25 | Y108: 12024410.14 | Z108: 12489335.46 | AA108: 12973658.96 | AB108: -1.047737896e-08 | AC108: -1.094886102e-08 | AD108: -1.144155976e-08 | AE108: -1.195642995e-08 | AF108: -1.24944693e-08 | AG108: -1.305672042e-08 | AH108: -1.364427284e-08 | AI108: -1.425826512e-08 | AJ108: -1.489988705e-08 | AK108: -1.557038196e-08 | AL108: -1.627104915e-08 | AM108: -1.700324636e-08 | AN108: -1.776839245e-08 | AO108: -1.856797011e-08 | AP108: -1.940352877e-08 | AQ108: -2.027668756e-08 | AR108: -2.11891385e-08 | AS108: -2.214264973e-08 | AT108: -2.313906897e-08 | AU108: -2.418032707e-08 | AV108: -2.526844179e-08 | AW108: -2.640552167e-08 | AX108: -2.759377015e-08 | AY108: -2.88354898e-08 | AZ108: -3.013308685e-08 | BA108: -3.148907575e-08 | BB108: -3.290608416e-08 | BC108: -3.438685795e-08 | BD108: -3.593426656e-08 | BE108: -3.755130855e-08
D109: Average Life
B128: Changing inflation | G128: 1 | H128: 4 | I128: 6 | J128: 10
G129: 0.005 | H129: 0.015 | I129: 0.02 | J129: 0.03

Sheet Distribution Financials
A1: Table of Contents | B1: 2016 | C1: 2015
A2: N' N'
A3: Revenue | B3: 64497695 | C3: 62636720
A4: Operating costs | B4: -76104047 | C4: -58160854
A5: Gross loss/profit | B5: -11606352 | C5: 4475866
A6: Other income | B6: 464615 | C6: 139433
A7: Administrative costs | B7: -39824643 | C7: -31796857
A8: Impairment loss | B8: -33972720 | C8: 0
A9: Operating loss | B9: -84939100 | C9: -27181558
A10: Finance income | B10: 183 | C10: 4863
A11: Finance costs | B11: -5357239 | C11: -1134052
A12: Net finance cost | B12: -5357056 | C12: -1129189
A13: Loss before taxation | B13: -90296156 | C13: -28310747
A14: Taxation | B14: 24659852 | C14: -305425
A15: Loss for the year | B15: -65636304 | C15: -28616172

Sheet LCOE
A1: Table of Contents | B1: LCOE | E1: Scenario | F1: 5 | I1: 1 | J1: 2 | K1: 3 | L1: 4 | M1: 5 | N1: 6 | O1: 7 | P1: 8 | Q1: 9 | R1: 10 | S1: 11 | T1: 12 | U1: 13 | V1: 14 | W1: 15 | X1: 16
E2: Carry | F2: =G12 -> 0.084 | G2: =INDEX(I2:X2,$F$1) -> Nigerian solar | I2: German solar | J2: John Project - Solar and Inverter | K2: John Project - Battery | L2: John Project - Solar and Battery | M2: Nigerian solar | N2: On-shore wind Best Case | O2: On-shore wind Worst Case | P2: Off-shore wind Best Case | Q2: Off-shore wind Worst Case | R2: Nuclear | S2: Biomass | T2: NGCC in Nigeria | U2: John Gasoline Gen Set | V2: NGCC in Japan | W2: Battery+Solar | X2: Grid Power in Nigeria
A3: LCOE drivers
B4: Project Size | E4: kW | F4: Input | G4: =INDEX(I4:X4,$F$1) -> 300000 | I4: 300000 | J4: =20*300/1000 -> 6 | M4: 300000 | N4: 300000 | O4: 300000 | P4: 300000 | Q4: 300000
B5: Project Size Battery | E5: kWh | F5: Input | G5: =INDEX(I5:X5,$F$1) -> 0
B6: Exchange Rate | E6: NGN/USD | F6: Download | G6: =INDEX(I6:X6,$F$1) -> 0
D7: =LCOE!J815 -> 0
B8: Capacity factor | E8: % | F8: Resource Analysis | G8: =INDEX(I8:X8,$F$1) -> 0.2 | I8: 0.13 | J8: 0.17 | M8: 0.2 | N8: 0.55 | O8: 0.38 | P8: 0.55 | Q8: 0.45 | R8: 0.85 | S8: 0.85 | T8: 0.85 | U8: 0.85 | V8: 0.85 | X8: 0.5
B10: Cost per kW | E10: USD/kW | F10: Lazard, IEA, Model | G10: =INDEX(I10:X10,$F$1) -> 1500 | I10: 690 | J10: ='Nigeria Backup'!H22 -> 1000 | M10: 1500 | N10: 2999 | O10: 1200 | P10: 2250 | Q10: 5933 | R10: 4000 | S10: 2500 | T10: 1500 | U10: ='Nigeria Backup'!L10 -> 352.9411765 | V10: 1200
B12: Carrying charge rate | E12: % | F12: Input | G12: =INDEX(I12:X12,$F$1) -> 0.084 | H12: 84 | I12: =H12/1000 -> 0.084 | J12: =I12 -> 0.084 | M12: =+I12 -> 0.084 | N12: =+M12 -> 0.084 | O12: =+N12 -> 0.084 | P12: =+O12 -> 0.084 | Q12: =+P12 -> 0.084 | R12: =$Q$12 -> 0.084 | S12: =$Q$12 -> 0.084 | T12: 0.084 | U12: 0.084 | V12: 0.084 | W12: 0.084 | X12: 0.084
C13: Project Life | E13: years | F13: IEA | H13: 30
C14: Required Equity IRR | E14: % | F14: Input | H14: 0.1
C15: Inflate Tariff | F15: Input | H15: FALSE
C16: Inflation rate | E16: % | F16: Input | H16: 0.02
C17: Level payment | E17: % | F17: PMT Function | H17: =PMT(H14,H13,-1) -> 0.1060792483
B19: Annual Capital Cost | E19: USD/kWy | F19: CCR x Cost | G19: =G10*G12 -> 126 | I19: =I10*I12 -> 57.96 | J19: =J10*J12 -> 84 | M19: =M10*M12 -> 126 | N19: 251.916 | O19: 100.8 | P19: 189 | Q19: 498.372 | R19: 336 | S19: =S10*S12 -> 210 | T19: 126 | U19: 29.64705882 | V19: 100.8 | X19: 0
B20: Annual Capital Cost | E20: USD/MWh | F20: Ann x 1000/(8760 * CF) | G20: =G19*1000/(8760*G8) -> 71.91780822 | I20: =I19*1000/(8760*I8) -> 50.89567966 | J20: =J19*1000/(8760*J8) -> 56.40612409 | M20: =M19*1000/(8760*M8) -> 71.91780822 | N20: 52.2864259 | O20: 30.28118241 | P20: 39.22789539 | Q20: 126.4261796 | R20: 45.12489927 | S20: =S19*1000/(8760*S8) -> 28.20306205 | T20: 16.92183723 | U20: 3.98160876 | V20: 13.53746978 | X20: 0
B22: O&M Cost
C23: Fixed O&M Cost | E23: USD/kWy | F23: Lazard | G23: =INDEX(I23:X23,$F$1) -> 12 | I23: 6 | M23: 12 | N23: 36.5 | O23: 28 | P23: 40 | Q23: 80 | R23: 160 | S23: 40 | T23: 8 | U23: 0 | V23: 8
C24: Fixed O&M Cost | E24: USD/MWh | F24: Fix x 1000/(8760 x CF) | G24: =INDEX(I24:X24,$F$1) -> 6.849315068 | I24: =I23*1000/(8760*I8) -> 5.268703899 | M24: =M23*1000/(8760*M8) -> 6.849315068 | N24: =N23*1000/(8760*N8) -> 7.575757576 | O24: =O23*1000/(8760*O8) -> 8.411439558 | P24: =P23*1000/(8760*P8) -> 8.302200083 | Q24: =Q23*1000/(8760*Q8) -> 20.29426687
C25: Variable O&M Cost | E25: USD/MWh | F25: Lazard | G25: =INDEX(I25:X25,$F$1) -> 0 | P25: 8.3 | S25: =S23*1000/(8760*55%) -> 8.302200083 | T25: 10 | U25: 10 | V25: 10
B27: Heat Rate | E27: Liter/kWh | S27: 14000 | T27: 6500 | U27: 0.255 | V27: 6500
B28: Heat Rate | E28: Liter/MWH | S28: =S27/1000 -> 14 | T28: =T27/1000 -> 6.5 | U28: =1000*U27 -> 255 | V28: =V27/1000 -> 6.5
B29: Fuel Cost | E29: USD/Liter | S29: 1 | T29: 3.5 | U29: ='Nigeria Backup'!L14 -> 0.6450704225 | V29: 8
B30: Fuel Cost | E30: USD/MWH | R30: 10 | S30: =S29*S28 -> 14 | T30: =T29*T28 -> 22.75 | U30: =U29*U28 -> 164.4929577 | V30: =V29*V28 -> 52
B32: Display | I32: TRUE | J32: TRUE | K32: FALSE | L32: FALSE | M32: TRUE | N32: TRUE | O32: TRUE | P32: TRUE | Q32: TRUE | R32: TRUE | S32: TRUE | T32: TRUE | U32: TRUE | V32: TRUE
I33: =H33+I32 -> 1 | J33: =I33+J32 -> 2 | K33: 2 | L33: 2 | M33: 3 | N33: 4 | O33: 5 | P33: 6 | Q33: 7 | R33: 8 | S33: 9 | T33: 10 | U33: 11 | V33: 12 | W33: 12 | X33: 12 | Y33: 12
I34: =IF(I32,I2) -> German solar | J34: =IF(J32,J2) -> John Project - Solar and Inverter | K34: FALSE | L34: FALSE | M34: Nigerian solar | N34: On-shore wind Best Case | O34: On-shore wind Worst Case | P34: Off-shore wind Best Case | Q34: Off-shore wind Worst Case | R34: Nuclear | S34: Biomass | T34: NGCC in Nigeria | U34: John Gasoline Gen Set | V34: NGCC in Japan | W34: FALSE | X34: FALSE | Y34: FALSE
B35: Levelized Cost of Electricity | E35: USD/MWh | G35: =INDEX(I35:X35,$F$1) -> 78.76712329 | I35: =I24+I20+I30 -> 56.16438356 | J35: =J24+J20+J30 -> 56.40612409 | K35: 0 | L35: 0 | M35: 78.76712329 | N35: 59.86218348 | O35: 38.69262197 | P35: 47.53009548 | Q35: 146.7204465 | R35: 55.12489927 | S35: 42.20306205 | T35: 39.67183723 | U35: 168.4745665 | V35: 65.53746978
I37: =MAX(33:33) -> 12
I38: 1 | J38: =IF(I38+1<=$I$37,I38+1,NA()) -> 2 | K38: =IF(J38+1<=$I$37,J38+1,NA()) -> 3 | L38: 4 | M38: 5 | N38: 6 | O38: 7 | P38: 8 | Q38: 9 | R38: 10 | S38: 11 | T38: 12
I39: =MATCH(I38,33:33,0) -> 9 | J39: =MATCH(J38,33:33,0) -> 10 | K39: 13 | L39: 14 | M39: 15 | N39: 16 | O39: 17 | P39: 18 | Q39: 19 | R39: 20 | S39: 21 | T39: 22
I41: =INDEX(34:34,I39) -> German solar | J41: =INDEX(34:34,J39) -> John Project - Solar and Inverter | K41: Nigerian solar | L41: On-shore wind Best Case | M41: On-shore wind Worst Case | N41: Off-shore wind Best Case | O41: Off-shore wind Worst Case | P41: Nuclear | Q41: Biomass | R41: NGCC in Nigeria | S41: John Gasoline Gen Set | T41: NGCC in Japan
B42: =B35 -> Levelized Cost of Electricity | E42: =E35 -> USD/MWh | I42: =INDEX(35:35,I39) -> 56.16438356 | J42: =INDEX(35:35,J39) -> 56.40612409 | K42: 78.76712329 | L42: 59.86218348 | M42: 38.69262197 | N42: 47.53009548 | O42: 146.7204465 | P42: 55.12489927 | Q42: 42.20306205 | R42: 39.67183723 | S42: 168.4745665 | T42: 65.53746978
AB61: 1 | AC61: =TRANSPOSE(I2:X2) -> German solar
AB62: 2 | AC62: John Project - Solar and Inverter
AB63: 3 | AC63: John Project - Battery
AB64: 4 | AC64: John Project - Solar and Battery
AB65: 5 | AC65: Nigerian solar
AB66: 6 | AC66: On-shore wind Best Case
AB67: 7 | AC67: On-shore wind Worst Case
AB68: 8 | AC68: Off-shore wind Best Case
AB69: 9 | AC69: Off-shore wind Worst Case
AB70: 10 | AC70: Nuclear
AB71: 11 | AC71: Biomass
AB72: 12 | AC72: NGCC in Nigeria
AB73: 13 | AC73: John Gasoline Gen Set
AB74: 14 | AC74: NGCC in Japan
AB75: 15 | AC75: Battery+Solar
AB76: 16 | AC76: Grid Power in Nigeria

Sheet Scenario Output
A1: Table of Contents | B1: Scenario Output
C3: No | D3: Name | E3: Plant Cost | F3: Capacity Factor | G3: O&M Cost | H3: Carry Charge | I3: LCOE | L3: <--------------- | M3: Replace these titles and Links in Next Row
E4: =LCOE!G10 -> 1500 | F4: =LCOE!G8 -> 0.2 | G4: =LCOE!G23 -> 12 | H4: =LCOE!G12 -> 0.084 | I4: =LCOE!G35 -> 78.76712329
C6: 1 | D6: Germany Solar at 6.5% CCR | E6: 690 | F6: 0.13 | G6: 6 | H6: 0.065 | I6: 44.65226554
C7: 2 | D7: German Solar with NG Capacity Factor | E7: 690 | F7: 0.2 | G7: 6 | H7: 0.065 | I7: 29.0239726
C8: 3 | D8: Higher Capital Cost/kW | E8: 1500 | F8: 0.2 | G8: 6 | H8: 0.065 | I8: 59.07534247
C9: 4 | D9: Higher O&M Cost | E9: 1500 | F9: 0.2 | G9: 12 | H9: 0.065 | I9: 62.5
C10: 5 | D10: Higher Cost of Capital | E10: 1500 | F10: 0.2 | G10: 12 | H10: 0.13 | I10: 118.1506849
D14: Germany Solar at 6.5% CCR | E14: =I6 -> 44.65226554
D15: German Solar with NG Capacity Factor | E15: =I7-I6 -> -15.62829294
D16: Sub-total
D17: Higher Capital Cost/kW | E17: =I8-I7 -> 30.05136986
D18: Higher O&M Cost | E18: =I9-I8 -> 3.424657534
D19: Higher Cost of Capital | E19: =I10-I9 -> 55.65068493
D20: Final
A91: Parameters for Scenario Name
D93: Row with Links | E93: =ROW(Q4) -> 4
D94: Scenario Number Column | E94: =COLUMN(C:C) -> 3
D95: Scenario Name Column | E95: =COLUMN(D:D) -> 4
D96: Base Address | E96: =ADDRESS(E93,E94) -> $C$4
D97: Column Scenario Number | E97: =MID(E96,2,1) -> C
D98: Scenario Sheet Name | E98: Scenario Output
E99: Scenario Output
E100: FALSE
D102: Instructions at www.edbodmer.com
D103: Questions: e-mail edwardbodmer@gmail.com

Sheet Example of PV Syst
A1: Table of Contents | B1: GlobHor | C1: T | D1: GlobInc | E1: GlobEff | F1: EArray | G1: E_Grid | H1: EffArrR | I1: EffSysR
B2: kWh/m² | C2: °C | D2: kWh/m² | E2: kWh/m² | F2: MWh | G2: MWh | H2: % | I2: %
A3: January | B3: 141.2 | C3: 21.3 | D3: 180 | E3: 171 | F3: 95.5 | G3: 91.8 | H3: 13.19 | I3: 12.68
A4: February | B4: 154 | C4: 24.1 | D4: 197.6 | E4: 188.5 | F4: 103.4 | G4: 99.4 | H4: 13 | I4: 12.5
A5: March | B5: 194.7 | C5: 28.3 | D5: 247.1 | E5: 236.3 | F5: 125.9 | G5: 120.9 | H5: 12.66 | I5: 12.16
A6: April | B6: 201.5 | C6: 31.6 | D6: 252.4 | E6: 242 | F6: 125.4 | G6: 120.4 | H6: 12.35 | I6: 11.85
A7: May | B7: 208.2 | C7: 32.4 | D7: 258 | E7: 246.4 | F7: 128.9 | G7: 123.8 | H7: 12.41 | I7: 11.93
A8: June | B8: 163.1 | C8: 28 | D8: 192.4 | E8: 182.1 | F8: 98.9 | G8: 95.1 | H8: 12.77 | I8: 12.28
A9: July | B9: 133.3 | C9: 26.1 | D9: 155.4 | E9: 146.7 | F9: 80.6 | G9: 77.4 | H9: 12.88 | I9: 12.37
A10: August | B10: 130.9 | C10: 24.8 | D10: 147 | E10: 138.1 | F10: 76.6 | G10: 73.6 | H10: 12.96 | I10: 12.45
A11: September | B11: 150 | C11: 25.2 | D11: 181.6 | E11: 172.2 | F11: 94.9 | G11: 91.1 | H11: 12.98 | I11: 12.47
A12: October | B12: 162 | C12: 25.2 | D12: 202.9 | E12: 192.9 | F12: 105.8 | G12: 101.7 | H12: 12.96 | I12: 12.46
A13: November | B13: 139.6 | C13: 22.8 | D13: 175.6 | E13: 166.6 | F13: 92.9 | G13: 89.3 | H13: 13.14 | I13: 12.64
A14: December | B14: 134 | C14: 21.09 | D14: 170.1 | E14: 161.2 | F14: 90.7 | G14: 87.2 | H14: 13.25 | I14: 12.74
A15: Year | B15: 1912.5 | C15: 25.91 | D15: 2360.1 | E15: 2244.1 | F15: 1219.3 | G15: 1171.7 | H15: 12.84 | I15: 12.34
A17: Capacity Factor w/o PR | D17: =D15/8760 -> 0.2694178082 | F17: Hourly MW | G17: =G15/8760 -> 0.1337557078
A18: Use 8760 | F18: Avg kW | G18: =G17*1000 -> 133.7557078
F19: Cap kWp | G19: 612
D20: =D17 -> 0.2694178082 | F20: Cap Factor Realised | G20: =G18/G19 -> 0.218555078 | H20: PR = CF1/CF2 | J20: =G20/D17 -> 0.8112124417

Sheet Debt Sizing Analysis
A1: Table of Contents
B2: Time period | G2: 1 | H2: 2 | I2: 3 | J2: 4 | K2: 5 | L2: 6 | M2: 7 | N2: 8 | O2: 9 | P2: 10 | Q2: 11 | R2: 12 | S2: 13 | T2: 14 | U2: 15 | V2: 16 | W2: 17 | X2: 18 | Y2: 19 | Z2: 20 | AA2: 21 | AB2: 22 | AC2: 23 | AD2: 24 | AE2: 25 | AF2: 26 | AG2: 27 | AH2: 28 | AI2: 29 | AJ2: 30
B3: Debt Repayment Period | E3: flag | F3: =F18 -> 12 | G3: =G2<=$F$3 -> TRUE | H3: TRUE | I3: TRUE | J3: TRUE | K3: TRUE | L3: TRUE | M3: TRUE | N3: TRUE | O3: TRUE | P3: TRUE | Q3: TRUE | R3: TRUE | S3: FALSE | T3: FALSE | U3: FALSE | V3: FALSE | W3: FALSE | X3: FALSE | Y3: FALSE | Z3: FALSE | AA3: FALSE | AB3: FALSE | AC3: FALSE | AD3: FALSE | AE3: FALSE | AF3: FALSE | AG3: FALSE | AH3: FALSE | AI3: FALSE | AJ3: FALSE
B6: CFADS P50 | E6: $ | G6: 38 | H6: =G6*1.02 -> 38.76 | I6: 39.5352 | J6: 40.325904 | K6: 41.13242208 | L6: 41.95507052 | M6: 42.79417193 | N6: 43.65005537 | O6: =N6*0.98 -> 42.77705426 | P6: 41.92151318 | Q6: 41.08308291 | R6: 40.26142126 | S6: 39.45619283 | T6: 38.66706897 | U6: 37.89372759 | V6: 37.13585304 | W6: 36.39313598 | X6: 35.66527326 | Y6: 34.9519678 | Z6: 34.25292844 | AA6: 33.56786987 | AB6: 32.89651248 | AC6: 32.23858223 | AD6: 31.59381058 | AE6: 30.96193437 | AF6: 30.34269568 | AG6: 29.73584177 | AH6: 29.14112493 | AI6: 28.55830243 | AJ6: 27.98713639
B7: CFADS P99 | E7: $ | F7: 1.2 | G7: =G6/$F$7 -> 31.66666667 | H7: =H6/$F$7 -> 32.3 | I7: 32.946 | J7: 33.60492 | K7: 34.2770184 | L7: 34.96255877 | M7: 35.66180994 | N7: 36.37504614 | O7: 35.64754522 | P7: 34.93459431 | Q7: 34.23590243 | R7: 33.55118438 | S7: 32.88016069 | T7: 32.22255748 | U7: 31.57810633 | V7: 30.9465442 | W7: 30.32761332 | X7: 29.72106105 | Y7: 29.12663983 | Z7: 28.54410703 | AA7: 27.97322489 | AB7: 27.4137604 | AC7: 26.86548519 | AD7: 26.32817548 | AE7: 25.80161197 | AF7: 25.28557974 | AG7: 24.77986814 | AH7: 24.28427078 | AI7: 23.79858536 | AJ7: 23.32261365
B8: Percent Difference | G8: =G7/G6 -> 0.8333333333 | H8: =H7/H6 -> 0.8333333333 | I8: 0.8333333333 | J8: 0.8333333333 | K8: 0.8333333333 | L8: 0.8333333333 | M8: 0.8333333333 | N8: 0.8333333333 | O8: 0.8333333333 | P8: 0.8333333333 | Q8: 0.8333333333 | R8: 0.8333333333 | S8: 0.8333333333 | T8: 0.8333333333 | U8: 0.8333333333 | V8: 0.8333333333 | W8: 0.8333333333 | X8: 0.8333333333 | Y8: 0.8333333333 | Z8: 0.8333333333 | AA8: 0.8333333333 | AB8: 0.8333333333 | AC8: 0.8333333333 | AD8: 0.8333333333 | AE8: 0.8333333333 | AF8: 0.8333333333 | AG8: 0.8333333333 | AH8: 0.8333333333 | AI8: 0.8333333333 | AJ8: 0.8333333333
B10: Project Cost | E10: $ | F10: 600
B11: Project Cash Flow P50 | E11: $ | F11: =F6-F10 -> -600 | G11: 38 | H11: 38.76 | I11: 39.5352 | J11: 40.325904 | K11: 41.13242208 | L11: 41.95507052 | M11: 42.79417193 | N11: 43.65005537 | O11: 42.77705426 | P11: 41.92151318 | Q11: 41.08308291 | R11: 40.26142126 | S11: 39.45619283 | T11: 38.66706897 | U11: 37.89372759 | V11: 37.13585304 | W11: 36.39313598 | X11: 35.66527326 | Y11: 34.9519678 | Z11: 34.25292844 | AA11: 33.56786987 | AB11: 32.89651248 | AC11: 32.23858223 | AD11: 31.59381058 | AE11: 30.96193437 | AF11: 30.34269568 | AG11: 29.73584177 | AH11: 29.14112493 | AI11: 28.55830243 | AJ11: 27.98713639
B12: Project IRR | E12: % | F12: =IRR(11:11) -> 0.04767059155
B14: DSCR P50 | F14: 1.35 | I14: Summary
B15: DSCR P99 | F15: 1 | I15: Debt P50 | J15: =E24 -> 301.6335146
B16: Maximum Debt to Capital | E16: % | F16: 0.8 | I16: Debt P99 | J16: =E27 -> 339.3377039
I17: Debt to Cap | J17: =E21 -> 480
B18: Debt Maturity | E18: years | F18: 12
B19: Interest Rate | E19: % | F19: 0.03 | I19: Selected | J19: =MIN(J15:J17) -> 301.6335146
B21: Debt to Capital Size | E21: =F16*F10 -> 480
B23: P50 Debt Service | E23: $ | F23: =F14 -> 1.35 | G23: =G6/$F$23*G3 -> 28.14814815 | H23: 28.71111111 | I23: 29.28533333 | J23: 29.87104 | K23: 30.4684608 | L23: 31.07783002 | M23: 31.69938662 | N23: 32.33337435 | O23: 31.68670686 | P23: 31.05297272 | Q23: 30.43191327 | R23: 29.823275 | S23: 0 | T23: 0 | U23: 0 | V23: 0 | W23: 0 | X23: 0 | Y23: 0 | Z23: 0 | AA23: 0 | AB23: 0 | AC23: 0 | AD23: 0 | AE23: 0 | AF23: 0 | AG23: 0 | AH23: 0 | AI23: 0 | AJ23: 0
B24: NPV Debt Service | E24: =NPV(F24,G23:AJ23) -> 301.6335146 | F24: =F19 -> 0.03
B26: P99 Debt Service | F26: =F15 -> 1 | G26: =G7*G3/$F$26 -> 31.66666667 | H26: =H7*H3/$F$26 -> 32.3 | I26: 32.946 | J26: 33.60492 | K26: 34.2770184 | L26: 34.96255877 | M26: 35.66180994 | N26: 36.37504614 | O26: 35.64754522 | P26: 34.93459431 | Q26: 34.23590243 | R26: 33.55118438 | S26: 0 | T26: 0 | U26: 0 | V26: 0 | W26: 0 | X26: 0 | Y26: 0 | Z26: 0 | AA26: 0 | AB26: 0 | AC26: 0 | AD26: 0 | AE26: 0 | AF26: 0 | AG26: 0 | AH26: 0 | AI26: 0 | AJ26: 0
B27: NPV of Debt Service | E27: =NPV(F27,G26:AJ26) -> 339.3377039 | F27: =F19 -> 0.03
B29: P50 Proof
C30: Debt Service
C31: Opening Balance | G31: =F33 -> 301.6335146 | H31: =G33 -> 282.5343719 | I31: 262.2992919 | J31: 240.8829373 | K31: 218.2383854 | L31: 194.3170762 | M31: 169.0687585 | N31: 142.4414346 | O31: 114.3813033 | P31: 86.12603554 | Q31: 57.65684388 | R31: 28.95463593 | S31: 0 | T31: 0 | U31: 0 | V31: 0 | W31: 0 | X31: 0 | Y31: 0 | Z31: 0 | AA31: 0 | AB31: 0 | AC31: 0 | AD31: 0 | AE31: 0 | AF31: 0 | AG31: 0 | AH31: 0 | AI31: 0 | AJ31: 0
C32: Less: Repayment | G32: =G23-G34 -> 19.09914271 | H32: =H23-H34 -> 20.23507996 | I32: 21.41635458 | J32: 22.64455188 | K32: 23.92130924 | L32: 25.24831773 | M32: 26.62732386 | N32: 28.06013131 | O32: 28.25526776 | P32: 28.46919166 | Q32: 28.70220795 | R32: 28.95463593 | S32: 0 | T32: 0 | U32: 0 | V32: 0 | W32: 0 | X32: 0 | Y32: 0 | Z32: 0 | AA32: 0 | AB32: 0 | AC32: 0 | AD32: 0 | AE32: 0 | AF32: 0 | AG32: 0 | AH32: 0 | AI32: 0 | AJ32: 0
C33: Closing Balance | F33: =E24 -> 301.6335146 | G33: =G31-G32 -> 282.5343719 | H33: =H31-H32 -> 262.2992919 | I33: 240.8829373 | J33: 218.2383854 | K33: 194.3170762 | L33: 169.0687585 | M33: 142.4414346 | N33: 114.3813033 | O33: 86.12603554 | P33: 57.65684388 | Q33: 28.95463593 | R33: 0 | S33: 0 | T33: 0 | U33: 0 | V33: 0 | W33: 0 | X33: 0 | Y33: 0 | Z33: 0 | AA33: 0 | AB33: 0 | AC33: 0 | AD33: 0 | AE33: 0 | AF33: 0 | AG33: 0 | AH33: 0 | AI33: 0 | AJ33: 0
C34: Interest | F34: =F19 -> 0.03 | G34: =$F$34*G31 -> 9.049005437 | H34: =$F$34*H31 -> 8.476031156 | I34: 7.868978757 | J34: 7.22648812 | K34: 6.547151563 | L34: 5.829512286 | M34: 5.072062754 | N34: 4.273243038 | O34: 3.431439099 | P34: 2.583781066 | Q34: 1.729705316 | R34: 0.8686390778 | S34: 0 | T34: 0 | U34: 0 | V34: 0 | W34: 0 | X34: 0 | Y34: 0 | Z34: 0 | AA34: 0 | AB34: 0 | AC34: 0 | AD34: 0 | AE34: 0 | AF34: 0 | AG34: 0 | AH34: 0 | AI34: 0 | AJ34: 0

Sheet Debt Repayment Analysis
A1: Table of Contents | B1: Debt Repayment Analysis
B2: Year | D2: 0 | E2: 1 | F2: 2 | G2: 3 | H2: 4 | I2: 5 | J2: 6 | K2: 7 | L2: 8 | M2: 9 | N2: 10
B4: Debt Size | C4: =C7*D12 -> 100
B5: Debt Maturity | C5: 10
B6: Interest Rate | C6: =Scenarios!G9 -> 0.04
B7: Debt/Project Cost | C7: =Scenarios!F9 -> 0.8
B8: Target Equity IRR | C8: =Scenarios!H9 -> 0.1
B9: DSCR | C9: =C10 -> 1.368959141 | R9: Debt
B10: LLCR | C10: =NPV(C6,E13:N13)/C4 -> 1.368959141
B12: Project Cost | D12: 125
B13: CFADS | E13: 14.23717506 | F13: =E13*1.04 -> 14.80666206 | G13: =F13*1.04 -> 15.39892855 | H13: 16.01488569 | I13: 16.65548112 | J13: 17.32170036 | K13: 18.01456838 | L13: 18.73515111 | M13: 19.48455715 | N13: 20.26393944
B14: Project Cash Flow | D14: =-D12 -> -125 | E14: =E13 -> 14.23717506 | F14: 14.80666206 | G14: 15.39892855 | H14: 16.01488569 | I14: 16.65548112 | J14: 17.32170036 | K14: 18.01456838 | L14: 18.73515111 | M14: 19.48455715 | N14: 20.26393944 | Q14: =D25 -> 0.1209580542 | R14: 80 | S14: 90 | T14: 100 | U14: 110
B15: Project IRR | D15: =IRR(D14:N14) -> 0.05755471769 | P15: Interest | Q15: 0.02 | R15: 0.1164427481 | S15: 0.1404917161 | T15: 0.1813418821 | U15: 0.2684446824
Q16: 0.03 | R16: 0.1021299135 | S16: 0.1206572675 | T16: 0.1523947788 | U16: 0.2206133168
B17: Opening balance | E17: =D19 -> 100 | F17: =E19 -> 93.6 | G17: 86.528 | H17: 78.74048 | I17: 70.1915136 | J17: 60.83264512 | K17: 50.61276074 | L17: 39.47795338 | M17: 27.37138101 | N17: 14.23311812 | Q17: 0.04 | R17: 0.08689462528 | S17: 0.09935302873 | T17: 0.1209580542 | U17: 0.1681242229
B18: Principal Repayment | E18: =E39 -> 6.4 | F18: =F39 -> 7.072 | G18: 7.78752 | H18: 8.5489664 | I18: 9.35886848 | J18: 10.21988438 | K18: 11.13480736 | L18: 12.10657237 | M18: 13.13826288 | N18: 14.23311812 | Q18: 0.05 | R18: 0.0706228285 | S18: 0.07631914384 | T18: 0.08637699502 | U18: 0.1089763323
B19: Closing Balance | D19: =$C$4 -> 100 | E19: =E17-E18 -> 93.6 | F19: 86.528 | G19: 78.74048 | H19: 70.1915136 | I19: 60.83264512 | J19: 50.61276074 | K19: 39.47795338 | L19: 27.37138101 | M19: 14.23311812 | N19: -3.019806627e-14 | Q19: 0.06 | R19: 0.05316759268 | S19: 0.05119206066 | T19: 0.0476087905 | U19: 0.03910474476
B20: Interest | E20: =E17*$C$6 -> 4 | F20: 3.744 | G20: 3.46112 | H20: 3.1496192 | I20: 2.807660544 | J20: 2.433305805 | K20: 2.02451043 | L20: 1.579118135 | M20: 1.09485524 | N20: 0.569324725 | Q20: 0.07 | R20: 0.03433518615 | S20: 0.02344129631 | T20: 0.002841027543 | U20: -0.05201662834
B21: debt service | E21: =E18+E20 -> 10.4 | F21: 10.816 | G21: 11.24864 | H21: 11.6985856 | I21: 12.16652902 | J21: 12.65319018 | K21: 13.15931779 | L21: 13.6856905 | M21: 14.23311812 | N21: 14.80244285 | Q21: 0.08 | R21: 0.01386293104 | S21: -0.007751368532 | T21: -0.05153131689 | U21: -0.2166123678
B22: NPV debt service | D22: =NPV($C$6,E21:N21) -> 100
R23: Debt Size
B24: Equity Cash Flow | D24: =-D12+D19 -> -25 | E24: =E13-E21 -> 3.837175062 | F24: 3.990662064 | G24: 4.150288547 | H24: 4.316300088 | I24: 4.488952092 | J24: 4.668510176 | K24: 4.855250583 | L24: 5.049460606 | M24: 5.25143903 | N24: 5.461496591 | R24: 80 | S24: 90 | T24: 100 | U24: 110
B25: Equity IRR | D25: =IRR(D24:N24) -> 0.1209580542 | P25: Interest Rate | Q25: 0.02 | R25: 0.1413842508 | S25: 0.1710374775 | T25: 0.221240246 | U25: 0.3283322913
B26: NPV of Equity CF | C26: =C8 -> 0.1 | D26: =NPV(C26,D24:N24) -> 2.231908576 | Q26: 0.03 | R26: 0.127776016 | S26: 0.1522715426 | T26: 0.1939680712 | U26: 0.2831971626
Q27: 0.04 | R27: 0.1133646574 | S27: 0.132271479 | T27: 0.1647123015 | U27: 0.2346507216
B28: Debt Cash Flow | D28: =-D22 -> -100 | E28: =E21 -> 10.4 | F28: 10.816 | G28: 11.24864 | H28: 11.6985856 | I28: 12.16652902 | J28: 12.65319018 | K28: 13.15931779 | L28: 13.6856905 | M28: 14.23311812 | N28: 14.80244285 | Q28: 0.05 | R28: 0.09806637913 | S28: 0.1108579072 | T28: 0.1330622467 | U28: 0.181630891
B29: Debt IRR | D29: =IRR(D28:N28) -> 0.04 | Q29: 0.06 | R29: 0.08177576587 | S29: 0.08778935248 | T29: 0.09840698888 | U29: 0.1222657326
Q30: 0.07 | R30: 0.06435771439 | S30: 0.06273044705 | T30: 0.05978379146 | U30: 0.05281704485
Q31: 0.08 | R31: 0.04563527752 | S31: 0.03519672933 | T31: 0.01554658356 | U31: -0.0360560519
B32: Repayment Alternatives
B33: Repayment Code | C33: 3
B34: Level Repayment | E34: =$C$4/$C$5 -> 10 | F34: =$C$4/$C$5 -> 10 | G34: 10 | H34: 10 | I34: 10 | J34: 10 | K34: 10 | L34: 10 | M34: 10 | N34: 10
B35: Level Debt Service (=PPMT) | E35: =PPMT($C$6,E2,$C$5,-$C$4) -> 8.329094433 | F35: 8.66225821 | G35: 9.008748539 | H35: 9.36909848 | I35: 9.74386242 | J35: 10.13361692 | K35: 10.53896159 | L35: 10.96052006 | M35: 11.39894086 | N35: 11.85489849
B36: Sculpting Repayment | E36: =E13/$C$9-E20 -> 6.4 | F36: 7.072 | G36: 7.78752 | H36: 8.5489664 | I36: 9.35886848 | J36: 10.21988438 | K36: 11.13480736 | L36: 12.10657237 | M36: 13.13826288 | N36: 14.23311812
E38: =E2 -> 1 | F38: 2 | G38: 3 | H38: 4 | I38: 5 | J38: 6 | K38: 7 | L38: 8 | M38: 9 | N38: 10
B39: =INDEX(B34:B36,$C$33) -> Sculpting Repayment | C39: repayments | E39: =INDEX(E34:E36,$C$33) -> 6.4 | F39: 7.072 | G39: 7.78752 | H39: 8.5489664 | I39: 9.35886848 | J39: 10.21988438 | K39: 11.13480736 | L39: 12.10657237 | M39: 13.13826288 | N39: 14.23311812
B40: =B39 -> Sculpting Repayment | C40: interest | E40: =E20 -> 4 | F40: 3.744 | G40: 3.46112 | H40: 3.1496192 | I40: 2.807660544 | J40: 2.433305805 | K40: 2.02451043 | L40: 1.579118135 | M40: 1.09485524 | N40: 0.569324725
B42: DSCR | E42: =E14/E21 -> 1.368959141 | F42: =F14/F21 -> 1.368959141 | G42: 1.368959141 | H42: 1.368959141 | I42: 1.368959141 | J42: 1.368959141 | K42: 1.368959141 | L42: 1.368959141 | M42: 1.368959141 | N42: 1.368959141

Sheet Scenarios
A1: Table of Contents | B1: Scenarios
B2: Scenario Number | F2: 2
F4: Debt/Project Cost | G4: Interest | H4: Equity IRR | I4: Repayment
E5: Case 1 | F5: 0.7 | G5: 0.06 | H5: 0.12 | I5: 1
E6: Case 2 | F6: 0.8 | G6: 0.04 | H6: 0.1 | I6: 2
E7: Case 3 | F7: 0.9 | G7: 0.03 | H7: 0.08 | I7: 3
E9: =INDEX(E5:E7,$F$2) -> Case 2 | F9: =INDEX(F5:F7,$F$2) -> 0.8 | G9: =INDEX(G5:G7,$F$2) -> 0.04 | H9: 0.1 | I9: 2

Sheet Waterfall Chartdata1
A1: Table of Contents | B1: Waterfall Chartdata1 | O1: =CHOOSE(U1,BF1,BF1,BF1,0,0,0,0,-BF1) -> 5.953635152 | P1: =CHOOSE(U1,0,BA1,Q1,-BA1,-BA1,0,BA1,-BA1) -> 0 | Q1: =IF(AX1,BA1+R1,0) -> 0 | S1: =CHOOSE(U1,AV1,AV1-BA1,AV1-BA1,AV1,AV1-BF1,AV1,R1-T1,AV1) -> 44.65226554 | T1: =CHOOSE(U1,0,0,0,AV1-BF1,BF1,-BF1,-BF1,0) -> 0 | U1: =AE1*1+AD1*2+AC1*3+AB1*4+AA1*5+Z1*6+Y1*7+X1*8 -> 1 | V1: =SUMPRODUCT(X1:AE1*1) -> 1 | X1: =AND(AV1<0,BA1>0) -> FALSE | Y1: =AND(BA1<0,AU1<0,NOT(AY1)) -> FALSE | Z1: =AH1 -> FALSE | AA1: =AND(AF1,NOT(AX1),NOT(AB1),NOT(AD1),AU1>0) -> FALSE | AB1: =AND(NOT(AX1),AJ1<0,AF1,NOT(Y1),AG1) -> FALSE | AC1: =AND(AX1,BA1<0) -> FALSE | AD1: =AND(AF1,BA1>0,AV1>0) -> FALSE | AE1: =AND(AY1,AV1>0) -> TRUE | AF1: =NOT(AY1) -> FALSE | AG1: =BA1<0 -> FALSE | AH1: =AND(AV1<0,AY1) -> FALSE | AJ1: =AV1-BF1 -> 38.69863039 | AU1: =BA1 -> 44.65226554 | AV1: =BA1 -> 44.65226554 | AW1: =IF(AV1>0,1,0) -> 1 | AX1: FALSE | AY1: TRUE | AZ1: =waterfall_graph_data1 -> Germany Solar at 6.5% CCR | BA1: 44.65226554 | BB1: =AU1 -> 44.65226554 | BF1: 5.953635152 | BJ1: =IF(AY1,BB1,BA1) -> 44.65226554 | BQ1: =AZ1 -> Germany Solar at 6.5% CCR | BS1: =BB1 -> 44.65226554 | BT1: =BQ1&BR1 -> Germany Solar at 6.5% CCR | BU1: =S1 -> 44.65226554 | BV1: 0 | BW1: =P1 -> 0 | BX1: =O1 -> 5.953635152 | BY1: =BB1 -> 44.65226554
O2: 0 | P2: 15.62829294 | Q2: 0 | R2: =AV1 -> 44.65226554 | S2: 23.07033745 | T2: 5.953635152 | U2: 5 | V2: 1 | X2: FALSE | Y2: FALSE | Z2: FALSE | AA2: TRUE | AB2: FALSE | AC2: FALSE | AD2: FALSE | AE2: FALSE | AF2: TRUE | AG2: TRUE | AH2: FALSE | AJ2: 23.07033745 | AU2: =IF(AX2,AV1,AV2) -> 29.0239726 | AV2: =AV1+BA2 -> 29.0239726 | AW2: 1 | AX2: =AV2*AV1<0 -> FALSE | AY2: FALSE | AZ2: German Solar with NG Capacity Factor | BA2: -15.62829294 | BB2: 29.0239726 | BF2: =BF1 -> 5.953635152 | BJ2: -15.62829294 | BQ2: German Solar with NG Capacity Factor | BS2: 29.0239726 | BT2: German Solar with NG Capacity Factor | BU2: 23.07033745 | BV2: 5.953635152 | BW2: 15.62829294 | BX2: 0 | BY2: =BB1 -> 44.65226554 | BZ2: =BB2 -> 29.0239726
O3: 5.953635152 | P3: 0 | Q3: 0 | R3: 29.0239726 | S3: 29.0239726 | T3: 0 | U3: 1 | V3: 1 | X3: FALSE | Y3: FALSE | Z3: FALSE | AA3: FALSE | AB3: FALSE | AC3: FALSE | AD3: FALSE | AE3: TRUE | AF3: FALSE | AG3: FALSE | AH3: FALSE | AJ3: 23.07033745 | AU3: 29.0239726 | AV3: 29.0239726 | AW3: 1 | AX3: FALSE | AY3: TRUE | AZ3: Sub-total | BA3: 0 | BB3: 29.0239726 | BF3: 5.953635152 | BJ3: 29.0239726 | BQ3: Sub-total | BS3: 29.0239726 | BT3: Sub-total | BU3: 29.0239726 | BV3: 0 | BW3: 0 | BX3: 5.953635152 | BZ3: =BB2 -> 29.0239726 | CA3: =BB3 -> 29.0239726
O4: 5.953635152 | P4: 30.05136986 | Q4: 0 | R4: 29.0239726 | S4: 29.0239726 | T4: 0 | U4: 2 | V4: 1 | X4: FALSE | Y4: FALSE | Z4: FALSE | AA4: FALSE | AB4: FALSE | AC4: FALSE | AD4: TRUE | AE4: FALSE | AF4: TRUE | AG4: FALSE | AH4: FALSE | AJ4: 53.12170731 | AU4: 59.07534247 | AV4: 59.07534247 | AW4: 1 | AX4: FALSE | AY4: FALSE | AZ4: Higher Capital Cost/kW | BA4: 30.05136986 | BB4: 59.07534247 | BF4: 5.953635152 | BJ4: 30.05136986 | BQ4: Higher Capital Cost/kW | BS4: 59.07534247 | BT4: Higher Capital Cost/kW | BU4: 29.0239726 | BV4: 0 | BW4: 30.05136986 | BX4: 5.953635152 | CA4: =BB3 -> 29.0239726 | CB4: =BB4 -> 59.07534247
O5: 5.953635152 | P5: 3.424657534 | Q5: 0 | R5: 59.07534247 | S5: 59.07534247 | T5: 0 | U5: 2 | V5: 1 | X5: FALSE | Y5: FALSE | Z5: FALSE | AA5: FALSE | AB5: FALSE | AC5: FALSE | AD5: TRUE | AE5: FALSE | AF5: TRUE | AG5: FALSE | AH5: FALSE | AJ5: 56.54636485 | AU5: 62.5 | AV5: 62.5 | AW5: 1 | AX5: FALSE | AY5: FALSE | AZ5: Higher O&M Cost | BA5: 3.424657534 | BB5: 62.5 | BF5: 5.953635152 | BJ5: 3.424657534 | BQ5: Higher O&M Cost | BS5: 62.5 | BT5: Higher O&M Cost | BU5: 59.07534247 | BV5: 0 | BW5: 3.424657534 | BX5: 5.953635152 | CB5: =BB4 -> 59.07534247 | CC5: =BB5 -> 62.5
O6: 5.953635152 | P6: 55.65068493 | Q6: 0 | R6: 62.5 | S6: 62.5 | T6: 0 | U6: 2 | V6: 1 | X6: FALSE | Y6: FALSE | Z6: FALSE | AA6: FALSE | AB6: FALSE | AC6: FALSE | AD6: TRUE | AE6: FALSE | AF6: TRUE | AG6: FALSE | AH6: FALSE | AJ6: 112.1970498 | AU6: 118.1506849 | AV6: 118.1506849 | AW6: 1 | AX6: FALSE | AY6: FALSE | AZ6: Higher Cost of Capital | BA6: 55.65068493 | BB6: 118.1506849 | BF6: 5.953635152 | BJ6: 55.65068493 | BQ6: Higher Cost of Capital | BS6: 118.1506849 | BT6: Higher Cost of Capital | BU6: 62.5 | BV6: 0 | BW6: 55.65068493 | BX6: 5.953635152 | CC6: =BB5 -> 62.5 | CD6: =BB6 -> 118.1506849
O7: 5.953635152 | P7: 0 | Q7: 0 | R7: 118.1506849 | S7: 118.1506849 | T7: 0 | U7: 1 | V7: 1 | X7: FALSE | Y7: FALSE | Z7: FALSE | AA7: FALSE | AB7: FALSE | AC7: FALSE | AD7: FALSE | AE7: TRUE | AF7: FALSE | AG7: FALSE | AH7: FALSE | AJ7: 112.1970498 | AU7: 118.1506849 | AV7: 118.1506849 | AW7: 1 | AX7: FALSE | AY7: TRUE | AZ7: Final | BA7: 0 | BB7: 118.1506849 | BF7: 5.953635152 | BJ7: 118.1506849 | BQ7: Final | BS7: 118.1506849 | BT7: Final | BU7: 118.1506849 | BV7: 0 | BW7: 0 | BX7: 5.953635152 | CD7: =BB6 -> 118.1506849
B8: =COLUMN() -> 2 | C8: =COLUMN() -> 3 | D8: =COLUMN() -> 4 | E8: =COLUMN() -> 5 | F8: =COLUMN() -> 6 | G8: =COLUMN() -> 7 | H8: =COLUMN() -> 8 | I8: =COLUMN() -> 9 | J8: =COLUMN() -> 10 | K8: =COLUMN() -> 11 | L8: =COLUMN() -> 12 | M8: =COLUMN() -> 13 | N8: =COLUMN() -> 14 | O8: =COLUMN() -> 15 | P8: =COLUMN() -> 16 | Q8: =COLUMN() -> 17 | R8: =COLUMN() -> 18 | S8: =COLUMN() -> 19 | T8: =COLUMN() -> 20 | U8: =COLUMN() -> 21 | V8: =COLUMN() -> 22 | W8: =COLUMN() -> 23 | X8: =COLUMN() -> 24 | Y8: =COLUMN() -> 25 | Z8: =COLUMN() -> 26 | AA8: =COLUMN() -> 27 | AB8: =COLUMN() -> 28 | AC8: =COLUMN() -> 29 | AD8: =COLUMN() -> 30 | AE8: =COLUMN() -> 31 | AF8: =COLUMN() -> 32 | AG8: =COLUMN() -> 33 | AH8: =COLUMN() -> 34 | AI8: =COLUMN() -> 35 | AJ8: =COLUMN() -> 36 | AK8: =COLUMN() -> 37 | AL8: =COLUMN() -> 38 | AM8: =COLUMN() -> 39 | AN8: =COLUMN() -> 40 | AO8: =COLUMN() -> 41 | AP8: =COLUMN() -> 42 | AQ8: =COLUMN() -> 43 | AR8: =COLUMN() -> 44 | AS8: =COLUMN() -> 45 | AT8: =COLUMN() -> 46 | AU8: =COLUMN() -> 47 | AV8: =COLUMN() -> 48 | AW8: =COLUMN() -> 49 | AX8: =COLUMN() -> 50 | AY8: =COLUMN() -> 51 | AZ8: =COLUMN() -> 52 | BA8: =COLUMN() -> 53 | BB8: =COLUMN() -> 54 | BC8: =COLUMN() -> 55 | BD8: =COLUMN() -> 56 | BE8: =COLUMN() -> 57 | BF8: =COLUMN() -> 58 | BG8: =COLUMN() -> 59 | BH8: =COLUMN() -> 60 | BI8: =COLUMN() -> 61 | BJ8: =COLUMN() -> 62 | BK8: =COLUMN() -> 63 | BL8: =COLUMN() -> 64 | BM8: =COLUMN() -> 65 | BN8: =COLUMN() -> 66 | BO8: =COLUMN() -> 67 | BP8: =COLUMN() -> 68 | BQ8: =COLUMN() -> 69 | BR8: =COLUMN() -> 70 | BS8: =COLUMN() -> 71 | BT8: =COLUMN() -> 72 | BU8: =COLUMN() -> 73 | BV8: =COLUMN() -> 74 | BW8: =COLUMN() -> 75 | BX8: =COLUMN() -> 76 | BY8: =COLUMN() -> 77 | BZ8: =COLUMN() -> 78 | CA8: =COLUMN() -> 79 | CB8: =COLUMN() -> 80 | CC8: =COLUMN() -> 81 | CD8: =COLUMN() -> 82 | CE8: =COLUMN() -> 83 | CF8: =COLUMN() -> 84 | CG8: =COLUMN() -> 85 | CH8: =COLUMN() -> 86 | CI8: =COLUMN() -> 87 | CJ8: =COLUMN() -> 88 | CK8: =COLUMN() -> 89 | CL8: =COLUMN() -> 90 | CM8: =COLUMN() -> 91 | CN8: =COLUMN() -> 92 | CO8: =COLUMN() -> 93 | CP8: =COLUMN() -> 94 | CQ8: =COLUMN() -> 95 | CR8: =COLUMN() -> 96 | CS8: =COLUMN() -> 97 | CT8: =COLUMN() -> 98 | CU8: =COLUMN() -> 99 | CV8: =COLUMN() -> 100
O9: Final | P9: Final | Q9: Change | R9: Prior | S9: Final | T9: Final | U9: Code | V9: Sumproduct | X9: Negative | Y9: Negative | Z9: Negative | AA9: Negative | AB9: Not | AC9: Chg | AD9: Pos | AE9: Pos | AF9: Not | AG9: Neg | AH9: Neg | AJ9: Label | AU9: Cum | AV9: Raw | AX9: Chg | AY9: Tot or | AZ9: Read | BA9: Read | BB9: Conect | BF9: Label | BJ9: Label | BT9: X | BU9: Base | BV9: Label | BW9: Incr- | BX9: Label | BY9: Con-
O10: Positive | P10: Increment | Q10: Sign | R10: Cumulative | S10: Base | T10: Neg | U10: Number | V10: Test | X10: Base | Y10: Cumulative | Z10: Cumulative | AA10: Increment | AB10: Enough | AC10: Sign | AD10: Incr | AE10: Cum | AF10: Tot or | AG10: Incr | AH10: Label | AJ10: Space | AU10: Adj | AV10: Cum | AX10: Sign | AY10: Sub | AZ10: Label | BA10: Data | BB10: Adj | BF10: Input | BJ10: to Show | BT10: Axis | BU10: Bar | BV10: Minus | BW10: ment | BX10: Plus | BY10: nector
O11: Label | Q11: Adjustment | S11: Bar | T11: Label | X11: Pos Incr | Y11: and Incr | Z11: Switch | AA11: Switch | AB11: Space | AC11: Negative | AD11: Switch | AE11: Switch | AF11: Subtotal | AG11: Switch | AH11: Switch | AJ11: Avail
O12: Space | T12: Space | X12: Cde 8 | Y12: Cde 7 | Z12: Cde 6 | AA12: Cde 5 | AB12: Cde 4 | AC12: Cde 3 | AD12: Cde 2 | AE12: Cde 1 | AX12: Chart Title
S14: 1 - Cum
S15: 2 - Cum - Incr
